Workbook

Sheet v přípravě a připraveno
A1: Název projektu | B1: druh stavby | C1: podkategorie | D1: dopravní zatížení | E1: spolufinancování | F1: dopravní význam | G1: technický stav | H1: stavební stav | I1: životní prostředí | J1: regionální význam | K1: jediná přístupová cesta | L1: stav přípravy | M1: hromadná doprava | N1: nehodová lokalita | O1: Výsledné hodnocení | P1: Hodnocení s korekcí | Q1: Předpokládané náklady KSÚS (s DPH) | R1: Předpokládaný zdroj spolufinancování | S1: Poznámky | T1: =SUM(Q2:Q405) -> 3.030039291e+10 | U1: Prosím opravit a zapsat do sloupce R (starý předpokládaný zdroj spolufinancování)
A2: Rekonstrukce místní komunikace ulice Boleslavská Kosmonosy – rekonstrukce křižovatky III/2769 a MK Boleslavská | B2: řešení bodové závady a/nebo bezpečnostního rizika (křižovatky, opěrné zdi, skalní masivy) | C2: - | D2: 3 | E2: 10 | F2: 7 | G2: 6 | H2: 6 | I2: 10 | J2: 7 | K2: 0 | L2: 10 | M2: 10 | N2: 2 | O2: =IF(B2=data!$B$2,D2*0.7+E2*0.5+F2*0.2+G2*0.8+H2+I2*0.2+J2+K2*0.3+L2+M2*0.5+N2*0.2,IF(B2=data!$B$3,D2*0.1+E2*0.4+F2*0.3+G2*0.1+H2+J2+K2*0.5+L2+M2*0.4,IF(B2=data!$B$4,D2*0.6+E2*0.8+F2*0.7+G2+H2+J2+L2+N2,IF(B2=data!$B$5,D2*0.7+E2*0.8+F2+I2*0.7+J2+L2,"zvolte typ stavby")))) -> 45.7 | P2: =IF(B2=data!$B$2,(O2*10)/6.4,IF(B2=data!$B$3,(O2*10)/4.8,IF(B2=data!$B$4,(O2*10)/7.1,IF(B2=data!$B$5,(O2*10)/5.2,"zvolte typ stavby")))) -> 64.36619718 | Q2: 15775672
A3: II/611 Kostelní Lhota - Přední Lhota | B3: oprava a rekonstrukce | C3: Rekonstrukce | D3: 6 | E3: 0 | F3: 10 | G3: 6 | H3: 6 | I3: 10 | J3: 10 | K3: 0 | L3: 8 | M3: 10 | N3: 4 | O3: =IF(B3=data!$B$2,D3*0.7+E3*0.5+F3*0.2+G3*0.8+H3+I3*0.2+J3+K3*0.3+L3+M3*0.5+N3*0.2,IF(B3=data!$B$3,D3*0.1+E3*0.4+F3*0.3+G3*0.1+H3+J3+K3*0.5+L3+M3*0.4,IF(B3=data!$B$4,D3*0.6+E3*0.8+F3*0.7+G3+H3+J3+L3+N3,IF(B3=data!$B$5,D3*0.7+E3*0.8+F3+I3*0.7+J3+L3,"zvolte typ stavby")))) -> 42.8 | P3: =IF(B3=data!$B$2,(O3*10)/6.4,IF(B3=data!$B$3,(O3*10)/4.8,IF(B3=data!$B$4,(O3*10)/7.1,IF(B3=data!$B$5,(O3*10)/5.2,"zvolte typ stavby")))) -> 66.875 | Q3: 110 000 000,00 | S3: Realizace možná až po opravě sil. II/244 (most na obj. trase)
A4: II/240 a II/101, přeložka silnic v úseku D7 - D8, II. etapa - Obchvat Kralup nad Vltavou | B4: novostavba (obchvat, přeložka, propojka) | C4: - | D4: 10 | E4: 10 | F4: 10 | G4: 0 | H4: 0 | I4: 0 | J4: 10 | K4: 0 | L4: 5 | M4: 0 | N4: 0 | O4: =IF(B4=data!$B$2,D4*0.7+E4*0.5+F4*0.2+G4*0.8+H4+I4*0.2+J4+K4*0.3+L4+M4*0.5+N4*0.2,IF(B4=data!$B$3,D4*0.1+E4*0.4+F4*0.3+G4*0.1+H4+J4+K4*0.5+L4+M4*0.4,IF(B4=data!$B$4,D4*0.6+E4*0.8+F4*0.7+G4+H4+J4+L4+N4,IF(B4=data!$B$5,D4*0.7+E4*0.8+F4+I4*0.7+J4+L4,"zvolte typ stavby")))) -> 40 | P4: =IF(B4=data!$B$2,(O4*10)/6.4,IF(B4=data!$B$3,(O4*10)/4.8,IF(B4=data!$B$4,(O4*10)/7.1,IF(B4=data!$B$5,(O4*10)/5.2,"zvolte typ stavby")))) -> 76.92307692 | Q4: 1968043000 | U4: SFDI mosty
A5: II/116 Jinočany - Hlásná Třebáň, přeložka silnice | B5: novostavba (obchvat, přeložka, propojka) | C5: - | D5: 10 | E5: 0 | F5: 10 | G5: 0 | H5: 0 | I5: 10 | J5: 10 | K5: 0 | L5: 2 | M5: 0 | N5: 0 | O5: =IF(B5=data!$B$2,D5*0.7+E5*0.5+F5*0.2+G5*0.8+H5+I5*0.2+J5+K5*0.3+L5+M5*0.5+N5*0.2,IF(B5=data!$B$3,D5*0.1+E5*0.4+F5*0.3+G5*0.1+H5+J5+K5*0.5+L5+M5*0.4,IF(B5=data!$B$4,D5*0.6+E5*0.8+F5*0.7+G5+H5+J5+L5+N5,IF(B5=data!$B$5,D5*0.7+E5*0.8+F5+I5*0.7+J5+L5,"zvolte typ stavby")))) -> 36 | P5: =IF(B5=data!$B$2,(O5*10)/6.4,IF(B5=data!$B$3,(O5*10)/4.8,IF(B5=data!$B$4,(O5*10)/7.1,IF(B5=data!$B$5,(O5*10)/5.2,"zvolte typ stavby")))) -> 69.23076923 | Q5: 1900000000 | U5: IROP 2
A6: Vestecká spojka II. etapa | B6: novostavba (obchvat, přeložka, propojka) | C6: - | D6: 9 | E6: 10 | F6: 10 | G6: 0 | H6: 0 | I6: 0 | J6: 7 | K6: 0 | L6: 2 | M6: 0 | N6: 0 | O6: =IF(B6=data!$B$2,D6*0.7+E6*0.5+F6*0.2+G6*0.8+H6+I6*0.2+J6+K6*0.3+L6+M6*0.5+N6*0.2,IF(B6=data!$B$3,D6*0.1+E6*0.4+F6*0.3+G6*0.1+H6+J6+K6*0.5+L6+M6*0.4,IF(B6=data!$B$4,D6*0.6+E6*0.8+F6*0.7+G6+H6+J6+L6+N6,IF(B6=data!$B$5,D6*0.7+E6*0.8+F6+I6*0.7+J6+L6,"zvolte typ stavby")))) -> 33.3 | P6: =IF(B6=data!$B$2,(O6*10)/6.4,IF(B6=data!$B$3,(O6*10)/4.8,IF(B6=data!$B$4,(O6*10)/7.1,IF(B6=data!$B$5,(O6*10)/5.2,"zvolte typ stavby")))) -> 64.03846154 | Q6: 1813714280 | U6: SFDI (chybějící SOKP)
A7: II/240 a II/101, přeložka silnic v úseku D7 - D8, I. etapa - D7 MÚK Středokluky - Obchvat Kralup nad Vltavou | B7: novostavba (obchvat, přeložka, propojka) | C7: - | D7: 10 | E7: 10 | F7: 10 | G7: 0 | H7: 0 | I7: 0 | J7: 10 | K7: 0 | L7: 2 | M7: 0 | N7: 0 | O7: =IF(B7=data!$B$2,D7*0.7+E7*0.5+F7*0.2+G7*0.8+H7+I7*0.2+J7+K7*0.3+L7+M7*0.5+N7*0.2,IF(B7=data!$B$3,D7*0.1+E7*0.4+F7*0.3+G7*0.1+H7+J7+K7*0.5+L7+M7*0.4,IF(B7=data!$B$4,D7*0.6+E7*0.8+F7*0.7+G7+H7+J7+L7+N7,IF(B7=data!$B$5,D7*0.7+E7*0.8+F7+I7*0.7+J7+L7,"zvolte typ stavby")))) -> 37 | P7: =IF(B7=data!$B$2,(O7*10)/6.4,IF(B7=data!$B$3,(O7*10)/4.8,IF(B7=data!$B$4,(O7*10)/7.1,IF(B7=data!$B$5,(O7*10)/5.2,"zvolte typ stavby")))) -> 71.15384615 | Q7: 1723767000 | U7: SFDI mosty
A8: II/101 Úvaly - Říčany | B8: novostavba (obchvat, přeložka, propojka) | C8: - | D8: 4 | E8: 10 | F8: 10 | G8: 0 | H8: 0 | I8: 10 | J8: 4 | K8: 0 | L8: 5 | M8: 0 | N8: 0 | O8: =IF(B8=data!$B$2,D8*0.7+E8*0.5+F8*0.2+G8*0.8+H8+I8*0.2+J8+K8*0.3+L8+M8*0.5+N8*0.2,IF(B8=data!$B$3,D8*0.1+E8*0.4+F8*0.3+G8*0.1+H8+J8+K8*0.5+L8+M8*0.4,IF(B8=data!$B$4,D8*0.6+E8*0.8+F8*0.7+G8+H8+J8+L8+N8,IF(B8=data!$B$5,D8*0.7+E8*0.8+F8+I8*0.7+J8+L8,"zvolte typ stavby")))) -> 36.8 | P8: =IF(B8=data!$B$2,(O8*10)/6.4,IF(B8=data!$B$3,(O8*10)/4.8,IF(B8=data!$B$4,(O8*10)/7.1,IF(B8=data!$B$5,(O8*10)/5.2,"zvolte typ stavby")))) -> 70.76923077 | Q8: 1000000000 | R8: SFDI – UD – účelová dotace | U8: SFDI (chybějící SOKP)
A9: II/229 Lišany - obchvat, PD | B9: novostavba (obchvat, přeložka, propojka) | C9: - | D9: 4 | E9: 10 | F9: 10 | G9: 0 | H9: 0 | I9: 10 | J9: 4 | K9: 0 | L9: 5 | M9: 0 | N9: 0 | O9: =IF(B9=data!$B$2,D9*0.7+E9*0.5+F9*0.2+G9*0.8+H9+I9*0.2+J9+K9*0.3+L9+M9*0.5+N9*0.2,IF(B9=data!$B$3,D9*0.1+E9*0.4+F9*0.3+G9*0.1+H9+J9+K9*0.5+L9+M9*0.4,IF(B9=data!$B$4,D9*0.6+E9*0.8+F9*0.7+G9+H9+J9+L9+N9,IF(B9=data!$B$5,D9*0.7+E9*0.8+F9+I9*0.7+J9+L9,"zvolte typ stavby")))) -> 36.8 | P9: =IF(B9=data!$B$2,(O9*10)/6.4,IF(B9=data!$B$3,(O9*10)/4.8,IF(B9=data!$B$4,(O9*10)/7.1,IF(B9=data!$B$5,(O9*10)/5.2,"zvolte typ stavby")))) -> 70.76923077 | Q9: 600000000 | U9: SFDI mosty
A10: II/272 Litol-Lysá nad Labem, 2.stavba | B10: novostavba (obchvat, přeložka, propojka) | C10: - | D10: 7 | E10: 9 | F10: 10 | G10: 0 | H10: 0 | I10: 10 | J10: 7 | K10: 0 | L10: 5 | M10: 0 | N10: 0 | O10: =IF(B10=data!$B$2,D10*0.7+E10*0.5+F10*0.2+G10*0.8+H10+I10*0.2+J10+K10*0.3+L10+M10*0.5+N10*0.2,IF(B10=data!$B$3,D10*0.1+E10*0.4+F10*0.3+G10*0.1+H10+J10+K10*0.5+L10+M10*0.4,IF(B10=data!$B$4,D10*0.6+E10*0.8+F10*0.7+G10+H10+J10+L10+N10,IF(B10=data!$B$5,D10*0.7+E10*0.8+F10+I10*0.7+J10+L10,"zvolte typ stavby")))) -> 41.1 | P10: =IF(B10=data!$B$2,(O10*10)/6.4,IF(B10=data!$B$3,(O10*10)/4.8,IF(B10=data!$B$4,(O10*10)/7.1,IF(B10=data!$B$5,(O10*10)/5.2,"zvolte typ stavby")))) -> 79.03846154 | Q10: 570000000 | S10: V projekční přípravě (DÚR)
A11: II/240 a II/101, přeložka silnic v úseku D7 - D8, III. etapa - Obchvat Kralup nad Vltavou - D8 MÚK Úžice | B11: novostavba (obchvat, přeložka, propojka) | C11: - | D11: 10 | E11: 10 | F11: 10 | G11: 0 | H11: 0 | I11: 0 | J11: 10 | K11: 0 | L11: 2 | M11: 0 | N11: 0 | O11: =IF(B11=data!$B$2,D11*0.7+E11*0.5+F11*0.2+G11*0.8+H11+I11*0.2+J11+K11*0.3+L11+M11*0.5+N11*0.2,IF(B11=data!$B$3,D11*0.1+E11*0.4+F11*0.3+G11*0.1+H11+J11+K11*0.5+L11+M11*0.4,IF(B11=data!$B$4,D11*0.6+E11*0.8+F11*0.7+G11+H11+J11+L11+N11,IF(B11=data!$B$5,D11*0.7+E11*0.8+F11+I11*0.7+J11+L11,"zvolte typ stavby")))) -> 37 | P11: =IF(B11=data!$B$2,(O11*10)/6.4,IF(B11=data!$B$3,(O11*10)/4.8,IF(B11=data!$B$4,(O11*10)/7.1,IF(B11=data!$B$5,(O11*10)/5.2,"zvolte typ stavby")))) -> 71.15384615 | Q11: 512514000 | S11: V projekční přípravě. Bylo nutné přepracování PD (zařazen do kulturních památek)
A12: II/126 – Propojení D1 se sil. I/2, II. etapa | B12: oprava a rekonstrukce | C12: Rekonstrukce | D12: 4 | E12: 9 | F12: 10 | G12: 6 | H12: 6 | I12: 10 | J12: 10 | K12: 0 | L12: 10 | M12: 10 | N12: 10 | O12: =IF(B12=data!$B$2,D12*0.7+E12*0.5+F12*0.2+G12*0.8+H12+I12*0.2+J12+K12*0.3+L12+M12*0.5+N12*0.2,IF(B12=data!$B$3,D12*0.1+E12*0.4+F12*0.3+G12*0.1+H12+J12+K12*0.5+L12+M12*0.4,IF(B12=data!$B$4,D12*0.6+E12*0.8+F12*0.7+G12+H12+J12+L12+N12,IF(B12=data!$B$5,D12*0.7+E12*0.8+F12+I12*0.7+J12+L12,"zvolte typ stavby")))) -> 49.1 | P12: =IF(B12=data!$B$2,(O12*10)/6.4,IF(B12=data!$B$3,(O12*10)/4.8,IF(B12=data!$B$4,(O12*10)/7.1,IF(B12=data!$B$5,(O12*10)/5.2,"zvolte typ stavby")))) -> 76.71875 | Q12: 485541572.6 | S12: Realizace nutná společně s 276-002 (prozatím nevydáno SP, na 276-001 ano)
A13: II/244 Přezletice, přeložka včetně napojení na dálnici D0 | B13: novostavba (obchvat, přeložka, propojka) | C13: - | D13: 8 | E13: 10 | F13: 10 | G13: 0 | H13: 0 | I13: 10 | J13: 7 | K13: 0 | L13: 2 | M13: 0 | N13: 0 | O13: =IF(B13=data!$B$2,D13*0.7+E13*0.5+F13*0.2+G13*0.8+H13+I13*0.2+J13+K13*0.3+L13+M13*0.5+N13*0.2,IF(B13=data!$B$3,D13*0.1+E13*0.4+F13*0.3+G13*0.1+H13+J13+K13*0.5+L13+M13*0.4,IF(B13=data!$B$4,D13*0.6+E13*0.8+F13*0.7+G13+H13+J13+L13+N13,IF(B13=data!$B$5,D13*0.7+E13*0.8+F13+I13*0.7+J13+L13,"zvolte typ stavby")))) -> 39.6 | P13: =IF(B13=data!$B$2,(O13*10)/6.4,IF(B13=data!$B$3,(O13*10)/4.8,IF(B13=data!$B$4,(O13*10)/7.1,IF(B13=data!$B$5,(O13*10)/5.2,"zvolte typ stavby")))) -> 76.15384615 | Q13: 467060000 | U13: SFDI (chybějící SOKP)
A14: II/101 Mstětice - Jirny - Úvaly | B14: novostavba (obchvat, přeložka, propojka) | C14: - | D14: 5 | E14: 10 | F14: 10 | G14: 0 | H14: 0 | I14: 10 | J14: 7 | K14: 0 | L14: 2 | M14: 0 | N14: 0 | O14: =IF(B14=data!$B$2,D14*0.7+E14*0.5+F14*0.2+G14*0.8+H14+I14*0.2+J14+K14*0.3+L14+M14*0.5+N14*0.2,IF(B14=data!$B$3,D14*0.1+E14*0.4+F14*0.3+G14*0.1+H14+J14+K14*0.5+L14+M14*0.4,IF(B14=data!$B$4,D14*0.6+E14*0.8+F14*0.7+G14+H14+J14+L14+N14,IF(B14=data!$B$5,D14*0.7+E14*0.8+F14+I14*0.7+J14+L14,"zvolte typ stavby")))) -> 37.5 | P14: =IF(B14=data!$B$2,(O14*10)/6.4,IF(B14=data!$B$3,(O14*10)/4.8,IF(B14=data!$B$4,(O14*10)/7.1,IF(B14=data!$B$5,(O14*10)/5.2,"zvolte typ stavby")))) -> 72.11538462 | Q14: 466500000 | R14: - | U14: SFDI NZ 2022 - tendrovat, rezerva
A15: Severovýchodní obchvat Benešova I + II etapa | B15: novostavba (obchvat, přeložka, propojka) | C15: - | D15: 2 | E15: 0 | F15: 10 | G15: 0 | H15: 0 | I15: 10 | J15: 7 | K15: 0 | L15: 0 | M15: 0 | N15: 0 | O15: =IF(B15=data!$B$2,D15*0.7+E15*0.5+F15*0.2+G15*0.8+H15+I15*0.2+J15+K15*0.3+L15+M15*0.5+N15*0.2,IF(B15=data!$B$3,D15*0.1+E15*0.4+F15*0.3+G15*0.1+H15+J15+K15*0.5+L15+M15*0.4,IF(B15=data!$B$4,D15*0.6+E15*0.8+F15*0.7+G15+H15+J15+L15+N15,IF(B15=data!$B$5,D15*0.7+E15*0.8+F15+I15*0.7+J15+L15,"zvolte typ stavby")))) -> 25.4 | P15: =IF(B15=data!$B$2,(O15*10)/6.4,IF(B15=data!$B$3,(O15*10)/4.8,IF(B15=data!$B$4,(O15*10)/7.1,IF(B15=data!$B$5,(O15*10)/5.2,"zvolte typ stavby")))) -> 48.84615385 | Q15: 387200000 | U15: účelová dotace SFDI (MLADOBOLESLAVSKO)
A16: II/101 Dolní Břežany – Zbraslav | B16: oprava a rekonstrukce | C16: Rekonstrukce | D16: 6 | E16: 10 | F16: 10 | G16: 6 | H16: 10 | I16: 10 | J16: 10 | K16: 0 | L16: 5 | M16: 10 | N16: 7 | O16: =IF(B16=data!$B$2,D16*0.7+E16*0.5+F16*0.2+G16*0.8+H16+I16*0.2+J16+K16*0.3+L16+M16*0.5+N16*0.2,IF(B16=data!$B$3,D16*0.1+E16*0.4+F16*0.3+G16*0.1+H16+J16+K16*0.5+L16+M16*0.4,IF(B16=data!$B$4,D16*0.6+E16*0.8+F16*0.7+G16+H16+J16+L16+N16,IF(B16=data!$B$5,D16*0.7+E16*0.8+F16+I16*0.7+J16+L16,"zvolte typ stavby")))) -> 49.4 | P16: =IF(B16=data!$B$2,(O16*10)/6.4,IF(B16=data!$B$3,(O16*10)/4.8,IF(B16=data!$B$4,(O16*10)/7.1,IF(B16=data!$B$5,(O16*10)/5.2,"zvolte typ stavby")))) -> 77.1875 | Q16: 200000000 | S16: Zatím není rozpočet- projekční odhad | U16: SFDI (chybějící SOKP)
A17: II/272 Kounice, obchvat | B17: novostavba (obchvat, přeložka, propojka) | C17: - | D17: 4 | E17: 10 | F17: 10 | G17: 0 | H17: 0 | I17: 10 | J17: 4 | K17: 0 | L17: 2 | M17: 0 | N17: 0 | O17: =IF(B17=data!$B$2,D17*0.7+E17*0.5+F17*0.2+G17*0.8+H17+I17*0.2+J17+K17*0.3+L17+M17*0.5+N17*0.2,IF(B17=data!$B$3,D17*0.1+E17*0.4+F17*0.3+G17*0.1+H17+J17+K17*0.5+L17+M17*0.4,IF(B17=data!$B$4,D17*0.6+E17*0.8+F17*0.7+G17+H17+J17+L17+N17,IF(B17=data!$B$5,D17*0.7+E17*0.8+F17+I17*0.7+J17+L17,"zvolte typ stavby")))) -> 33.8 | P17: =IF(B17=data!$B$2,(O17*10)/6.4,IF(B17=data!$B$3,(O17*10)/4.8,IF(B17=data!$B$4,(O17*10)/7.1,IF(B17=data!$B$5,(O17*10)/5.2,"zvolte typ stavby")))) -> 65 | Q17: 318481000 | U17: SFDI mosty
A18: II/101 Brandýs nad Labem, přeložka - I. etapa 2. část | B18: novostavba (obchvat, přeložka, propojka) | C18: - | D18: 8 | E18: 10 | F18: 10 | G18: 0 | H18: 0 | I18: 10 | J18: 7 | K18: 0 | L18: 5 | M18: 0 | N18: 0 | O18: =IF(B18=data!$B$2,D18*0.7+E18*0.5+F18*0.2+G18*0.8+H18+I18*0.2+J18+K18*0.3+L18+M18*0.5+N18*0.2,IF(B18=data!$B$3,D18*0.1+E18*0.4+F18*0.3+G18*0.1+H18+J18+K18*0.5+L18+M18*0.4,IF(B18=data!$B$4,D18*0.6+E18*0.8+F18*0.7+G18+H18+J18+L18+N18,IF(B18=data!$B$5,D18*0.7+E18*0.8+F18+I18*0.7+J18+L18,"zvolte typ stavby")))) -> 42.6 | P18: =IF(B18=data!$B$2,(O18*10)/6.4,IF(B18=data!$B$3,(O18*10)/4.8,IF(B18=data!$B$4,(O18*10)/7.1,IF(B18=data!$B$5,(O18*10)/5.2,"zvolte typ stavby")))) -> 81.92307692 | Q18: 300000000 | R18: - | U18: SFDI mosty
A19: II/229 Rakovník, obchvat, část B1, PD | B19: novostavba (obchvat, přeložka, propojka) | C19: - | D19: 5 | E19: 10 | F19: 10 | G19: 0 | H19: 0 | I19: 10 | J19: 7 | K19: 0 | L19: 2 | M19: 0 | N19: 0 | O19: =IF(B19=data!$B$2,D19*0.7+E19*0.5+F19*0.2+G19*0.8+H19+I19*0.2+J19+K19*0.3+L19+M19*0.5+N19*0.2,IF(B19=data!$B$3,D19*0.1+E19*0.4+F19*0.3+G19*0.1+H19+J19+K19*0.5+L19+M19*0.4,IF(B19=data!$B$4,D19*0.6+E19*0.8+F19*0.7+G19+H19+J19+L19+N19,IF(B19=data!$B$5,D19*0.7+E19*0.8+F19+I19*0.7+J19+L19,"zvolte typ stavby")))) -> 37.5 | P19: =IF(B19=data!$B$2,(O19*10)/6.4,IF(B19=data!$B$3,(O19*10)/4.8,IF(B19=data!$B$4,(O19*10)/7.1,IF(B19=data!$B$5,(O19*10)/5.2,"zvolte typ stavby")))) -> 72.11538462 | Q19: 290000000 | U19: SFDI NZ 2022 - tendrovat, rezerva
A20: II/229 Rakovník připojení na II/237 (obchvat města, trasa B3), PD | B20: novostavba (obchvat, přeložka, propojka) | C20: - | D20: 5 | E20: 10 | F20: 10 | G20: 0 | H20: 0 | I20: 10 | J20: 7 | K20: 0 | L20: 5 | M20: 0 | N20: 0 | O20: =IF(B20=data!$B$2,D20*0.7+E20*0.5+F20*0.2+G20*0.8+H20+I20*0.2+J20+K20*0.3+L20+M20*0.5+N20*0.2,IF(B20=data!$B$3,D20*0.1+E20*0.4+F20*0.3+G20*0.1+H20+J20+K20*0.5+L20+M20*0.4,IF(B20=data!$B$4,D20*0.6+E20*0.8+F20*0.7+G20+H20+J20+L20+N20,IF(B20=data!$B$5,D20*0.7+E20*0.8+F20+I20*0.7+J20+L20,"zvolte typ stavby")))) -> 40.5 | P20: =IF(B20=data!$B$2,(O20*10)/6.4,IF(B20=data!$B$3,(O20*10)/4.8,IF(B20=data!$B$4,(O20*10)/7.1,IF(B20=data!$B$5,(O20*10)/5.2,"zvolte typ stavby")))) -> 77.88461538 | Q20: 274240000 | U20: SFDI NZ 2022 - tendrovat (vytendrován zhotovitel i TDS)
A21: II/603 Jesenice, obchvat | B21: novostavba (obchvat, přeložka, propojka) | C21: - | D21: 7 | E21: 10 | F21: 10 | G21: 0 | H21: 0 | I21: 10 | J21: 7 | K21: 0 | L21: 2 | M21: 0 | N21: 0 | O21: =IF(B21=data!$B$2,D21*0.7+E21*0.5+F21*0.2+G21*0.8+H21+I21*0.2+J21+K21*0.3+L21+M21*0.5+N21*0.2,IF(B21=data!$B$3,D21*0.1+E21*0.4+F21*0.3+G21*0.1+H21+J21+K21*0.5+L21+M21*0.4,IF(B21=data!$B$4,D21*0.6+E21*0.8+F21*0.7+G21+H21+J21+L21+N21,IF(B21=data!$B$5,D21*0.7+E21*0.8+F21+I21*0.7+J21+L21,"zvolte typ stavby")))) -> 38.9 | P21: =IF(B21=data!$B$2,(O21*10)/6.4,IF(B21=data!$B$3,(O21*10)/4.8,IF(B21=data!$B$4,(O21*10)/7.1,IF(B21=data!$B$5,(O21*10)/5.2,"zvolte typ stavby")))) -> 74.80769231 | Q21: 271898000 | U21: SFDI NZ 2022 - tendrovat
A22: II/111 Divišov obchvat, PD | B22: novostavba (obchvat, přeložka, propojka) | C22: - | D22: 4 | E22: 10 | F22: 10 | G22: 0 | H22: 0 | I22: 10 | J22: 4 | K22: 0 | L22: 2 | M22: 0 | N22: 0 | O22: =IF(B22=data!$B$2,D22*0.7+E22*0.5+F22*0.2+G22*0.8+H22+I22*0.2+J22+K22*0.3+L22+M22*0.5+N22*0.2,IF(B22=data!$B$3,D22*0.1+E22*0.4+F22*0.3+G22*0.1+H22+J22+K22*0.5+L22+M22*0.4,IF(B22=data!$B$4,D22*0.6+E22*0.8+F22*0.7+G22+H22+J22+L22+N22,IF(B22=data!$B$5,D22*0.7+E22*0.8+F22+I22*0.7+J22+L22,"zvolte typ stavby")))) -> 33.8 | P22: =IF(B22=data!$B$2,(O22*10)/6.4,IF(B22=data!$B$3,(O22*10)/4.8,IF(B22=data!$B$4,(O22*10)/7.1,IF(B22=data!$B$5,(O22*10)/5.2,"zvolte typ stavby")))) -> 65 | Q22: 335000000 | U22: SFDI mosty
A23: II/110 Benešov - Ostředek II.tepa | B23: oprava a rekonstrukce | C23: Rekonstrukce | D23: 4 | E23: 10 | F23: 10 | G23: 3 | H23: 10 | I23: 10 | J23: 7 | K23: 0 | L23: 5 | M23: 10 | N23: 4 | O23: =IF(B23=data!$B$2,D23*0.7+E23*0.5+F23*0.2+G23*0.8+H23+I23*0.2+J23+K23*0.3+L23+M23*0.5+N23*0.2,IF(B23=data!$B$3,D23*0.1+E23*0.4+F23*0.3+G23*0.1+H23+J23+K23*0.5+L23+M23*0.4,IF(B23=data!$B$4,D23*0.6+E23*0.8+F23*0.7+G23+H23+J23+L23+N23,IF(B23=data!$B$5,D23*0.7+E23*0.8+F23+I23*0.7+J23+L23,"zvolte typ stavby")))) -> 42 | P23: =IF(B23=data!$B$2,(O23*10)/6.4,IF(B23=data!$B$3,(O23*10)/4.8,IF(B23=data!$B$4,(O23*10)/7.1,IF(B23=data!$B$5,(O23*10)/5.2,"zvolte typ stavby")))) -> 65.625 | Q23: 45000000
A24: II/110 Benešov - Ostředek I.tepa | B24: oprava a rekonstrukce | C24: Rekonstrukce | D24: 3 | E24: 10 | F24: 10 | G24: 3 | H24: 10 | I24: 10 | J24: 7 | K24: 0 | L24: 5 | M24: 10 | N24: 10 | O24: =IF(B24=data!$B$2,D24*0.7+E24*0.5+F24*0.2+G24*0.8+H24+I24*0.2+J24+K24*0.3+L24+M24*0.5+N24*0.2,IF(B24=data!$B$3,D24*0.1+E24*0.4+F24*0.3+G24*0.1+H24+J24+K24*0.5+L24+M24*0.4,IF(B24=data!$B$4,D24*0.6+E24*0.8+F24*0.7+G24+H24+J24+L24+N24,IF(B24=data!$B$5,D24*0.7+E24*0.8+F24+I24*0.7+J24+L24,"zvolte typ stavby")))) -> 42.5 | P24: =IF(B24=data!$B$2,(O24*10)/6.4,IF(B24=data!$B$3,(O24*10)/4.8,IF(B24=data!$B$4,(O24*10)/7.1,IF(B24=data!$B$5,(O24*10)/5.2,"zvolte typ stavby")))) -> 66.40625 | Q24: 160000000 | U24: SFDI mosty
A25: II/244 Měšice I/9 – Byšice I/16 II. etapa | B25: oprava a rekonstrukce | C25: Rekonstrukce | D25: 5 | E25: 10 | F25: 10 | G25: 6 | H25: 10 | I25: 10 | J25: 7 | K25: 0 | L25: 5 | M25: 10 | N25: 10 | O25: =IF(B25=data!$B$2,D25*0.7+E25*0.5+F25*0.2+G25*0.8+H25+I25*0.2+J25+K25*0.3+L25+M25*0.5+N25*0.2,IF(B25=data!$B$3,D25*0.1+E25*0.4+F25*0.3+G25*0.1+H25+J25+K25*0.5+L25+M25*0.4,IF(B25=data!$B$4,D25*0.6+E25*0.8+F25*0.7+G25+H25+J25+L25+N25,IF(B25=data!$B$5,D25*0.7+E25*0.8+F25+I25*0.7+J25+L25,"zvolte typ stavby")))) -> 46.3 | P25: =IF(B25=data!$B$2,(O25*10)/6.4,IF(B25=data!$B$3,(O25*10)/4.8,IF(B25=data!$B$4,(O25*10)/7.1,IF(B25=data!$B$5,(O25*10)/5.2,"zvolte typ stavby")))) -> 72.34375 | Q25: 354530000 | U25: SFDI mosty
A26: II/114 - II/117 Hořovice, východní obchvat, PD | B26: novostavba (obchvat, přeložka, propojka) | C26: - | D26: 5 | E26: 10 | F26: 10 | G26: 0 | H26: 0 | I26: 10 | J26: 7 | K26: 0 | L26: 8 | M26: 0 | N26: 0 | O26: =IF(B26=data!$B$2,D26*0.7+E26*0.5+F26*0.2+G26*0.8+H26+I26*0.2+J26+K26*0.3+L26+M26*0.5+N26*0.2,IF(B26=data!$B$3,D26*0.1+E26*0.4+F26*0.3+G26*0.1+H26+J26+K26*0.5+L26+M26*0.4,IF(B26=data!$B$4,D26*0.6+E26*0.8+F26*0.7+G26+H26+J26+L26+N26,IF(B26=data!$B$5,D26*0.7+E26*0.8+F26+I26*0.7+J26+L26,"zvolte typ stavby")))) -> 43.5 | P26: =IF(B26=data!$B$2,(O26*10)/6.4,IF(B26=data!$B$3,(O26*10)/4.8,IF(B26=data!$B$4,(O26*10)/7.1,IF(B26=data!$B$5,(O26*10)/5.2,"zvolte typ stavby")))) -> 83.65384615 | Q26: 235000000 | U26: SFDI mosty
A27: II/101 Drahelčice obchvat, připojení ze sjezdu z D5 | B27: novostavba (obchvat, přeložka, propojka) | C27: - | D27: 5 | E27: 10 | F27: 10 | G27: 0 | H27: 0 | I27: 10 | J27: 10 | K27: 0 | L27: 5 | M27: 0 | N27: 0 | O27: =IF(B27=data!$B$2,D27*0.7+E27*0.5+F27*0.2+G27*0.8+H27+I27*0.2+J27+K27*0.3+L27+M27*0.5+N27*0.2,IF(B27=data!$B$3,D27*0.1+E27*0.4+F27*0.3+G27*0.1+H27+J27+K27*0.5+L27+M27*0.4,IF(B27=data!$B$4,D27*0.6+E27*0.8+F27*0.7+G27+H27+J27+L27+N27,IF(B27=data!$B$5,D27*0.7+E27*0.8+F27+I27*0.7+J27+L27,"zvolte typ stavby")))) -> 43.5 | P27: =IF(B27=data!$B$2,(O27*10)/6.4,IF(B27=data!$B$3,(O27*10)/4.8,IF(B27=data!$B$4,(O27*10)/7.1,IF(B27=data!$B$5,(O27*10)/5.2,"zvolte typ stavby")))) -> 83.65384615 | Q27: 240000000 | U27: SFDI mosty
A28: II/228 Jesenice - Rakovník, rekonstrukce - PD | B28: oprava a rekonstrukce | C28: Rekonstrukce | D28: 4 | E28: 10 | F28: 10 | G28: 6 | H28: 10 | I28: 10 | J28: 7 | K28: 0 | L28: 8 | M28: 10 | N28: 10 | O28: =IF(B28=data!$B$2,D28*0.7+E28*0.5+F28*0.2+G28*0.8+H28+I28*0.2+J28+K28*0.3+L28+M28*0.5+N28*0.2,IF(B28=data!$B$3,D28*0.1+E28*0.4+F28*0.3+G28*0.1+H28+J28+K28*0.5+L28+M28*0.4,IF(B28=data!$B$4,D28*0.6+E28*0.8+F28*0.7+G28+H28+J28+L28+N28,IF(B28=data!$B$5,D28*0.7+E28*0.8+F28+I28*0.7+J28+L28,"zvolte typ stavby")))) -> 48.6 | P28: =IF(B28=data!$B$2,(O28*10)/6.4,IF(B28=data!$B$3,(O28*10)/4.8,IF(B28=data!$B$4,(O28*10)/7.1,IF(B28=data!$B$5,(O28*10)/5.2,"zvolte typ stavby")))) -> 75.9375 | Q28: 215000000 | U28: SFDI mosty
A29: II/118 Hluboš – hr. Okr. Příbram a Lochovice – Rejkovice | B29: oprava a rekonstrukce | C29: Rekonstrukce | D29: 4 | E29: 10 | F29: 10 | G29: 3 | H29: 3 | I29: 10 | J29: 10 | K29: 0 | L29: 2 | M29: 10 | N29: 2 | O29: =IF(B29=data!$B$2,D29*0.7+E29*0.5+F29*0.2+G29*0.8+H29+I29*0.2+J29+K29*0.3+L29+M29*0.5+N29*0.2,IF(B29=data!$B$3,D29*0.1+E29*0.4+F29*0.3+G29*0.1+H29+J29+K29*0.5+L29+M29*0.4,IF(B29=data!$B$4,D29*0.6+E29*0.8+F29*0.7+G29+H29+J29+L29+N29,IF(B29=data!$B$5,D29*0.7+E29*0.8+F29+I29*0.7+J29+L29,"zvolte typ stavby")))) -> 34.6 | P29: =IF(B29=data!$B$2,(O29*10)/6.4,IF(B29=data!$B$3,(O29*10)/4.8,IF(B29=data!$B$4,(O29*10)/7.1,IF(B29=data!$B$5,(O29*10)/5.2,"zvolte typ stavby")))) -> 54.0625 | Q29: 205700000 | U29: SFDI
A30: II/608 – rekonstrukce silnice II. etapa | B30: oprava a rekonstrukce | C30: Rekonstrukce | D30: 5 | E30: 10 | F30: 10 | G30: 6 | H30: 6 | I30: 10 | J30: 10 | K30: 0 | L30: 5 | M30: 10 | N30: 10 | O30: =IF(B30=data!$B$2,D30*0.7+E30*0.5+F30*0.2+G30*0.8+H30+I30*0.2+J30+K30*0.3+L30+M30*0.5+N30*0.2,IF(B30=data!$B$3,D30*0.1+E30*0.4+F30*0.3+G30*0.1+H30+J30+K30*0.5+L30+M30*0.4,IF(B30=data!$B$4,D30*0.6+E30*0.8+F30*0.7+G30+H30+J30+L30+N30,IF(B30=data!$B$5,D30*0.7+E30*0.8+F30+I30*0.7+J30+L30,"zvolte typ stavby")))) -> 45.3 | P30: =IF(B30=data!$B$2,(O30*10)/6.4,IF(B30=data!$B$3,(O30*10)/4.8,IF(B30=data!$B$4,(O30*10)/7.1,IF(B30=data!$B$5,(O30*10)/5.2,"zvolte typ stavby")))) -> 70.78125 | Q30: 202500000
A31: II/240 Velvary, obchvat | B31: novostavba (obchvat, přeložka, propojka) | C31: - | D31: 3 | E31: 9 | F31: 10 | G31: 0 | H31: 0 | I31: 10 | J31: 4 | K31: 0 | L31: 2 | M31: 0 | N31: 0 | O31: =IF(B31=data!$B$2,D31*0.7+E31*0.5+F31*0.2+G31*0.8+H31+I31*0.2+J31+K31*0.3+L31+M31*0.5+N31*0.2,IF(B31=data!$B$3,D31*0.1+E31*0.4+F31*0.3+G31*0.1+H31+J31+K31*0.5+L31+M31*0.4,IF(B31=data!$B$4,D31*0.6+E31*0.8+F31*0.7+G31+H31+J31+L31+N31,IF(B31=data!$B$5,D31*0.7+E31*0.8+F31+I31*0.7+J31+L31,"zvolte typ stavby")))) -> 32.3 | P31: =IF(B31=data!$B$2,(O31*10)/6.4,IF(B31=data!$B$3,(O31*10)/4.8,IF(B31=data!$B$4,(O31*10)/7.1,IF(B31=data!$B$5,(O31*10)/5.2,"zvolte typ stavby")))) -> 62.11538462 | Q31: 200000000 | R31: - | U31: SFDI NZ 2022 - tendrovat (bude vypsán nový tendr)
A32: II/101 Brandýs nad Labem, přeložka - II.etapa | B32: novostavba (obchvat, přeložka, propojka) | C32: - | D32: 7 | E32: 9 | F32: 10 | G32: 0 | H32: 0 | I32: 10 | J32: 7 | K32: 0 | L32: 5 | M32: 0 | N32: 0 | O32: =IF(B32=data!$B$2,D32*0.7+E32*0.5+F32*0.2+G32*0.8+H32+I32*0.2+J32+K32*0.3+L32+M32*0.5+N32*0.2,IF(B32=data!$B$3,D32*0.1+E32*0.4+F32*0.3+G32*0.1+H32+J32+K32*0.5+L32+M32*0.4,IF(B32=data!$B$4,D32*0.6+E32*0.8+F32*0.7+G32+H32+J32+L32+N32,IF(B32=data!$B$5,D32*0.7+E32*0.8+F32+I32*0.7+J32+L32,"zvolte typ stavby")))) -> 41.1 | P32: =IF(B32=data!$B$2,(O32*10)/6.4,IF(B32=data!$B$3,(O32*10)/4.8,IF(B32=data!$B$4,(O32*10)/7.1,IF(B32=data!$B$5,(O32*10)/5.2,"zvolte typ stavby")))) -> 79.03846154 | Q32: 200000000 | R32: - | U32: účelová dotace SFDI (MLADOBOLESLAVSKO)
A33: II/261 a III/26124 Liběchov - hr. Kraje | B33: oprava a rekonstrukce | C33: Rekonstrukce | D33: 4 | E33: 10 | F33: 10 | G33: 6 | H33: 10 | I33: 10 | J33: 4 | K33: 10 | L33: 8 | M33: 10 | N33: 10 | O33: =IF(B33=data!$B$2,D33*0.7+E33*0.5+F33*0.2+G33*0.8+H33+I33*0.2+J33+K33*0.3+L33+M33*0.5+N33*0.2,IF(B33=data!$B$3,D33*0.1+E33*0.4+F33*0.3+G33*0.1+H33+J33+K33*0.5+L33+M33*0.4,IF(B33=data!$B$4,D33*0.6+E33*0.8+F33*0.7+G33+H33+J33+L33+N33,IF(B33=data!$B$5,D33*0.7+E33*0.8+F33+I33*0.7+J33+L33,"zvolte typ stavby")))) -> 48.6 | P33: =IF(B33=data!$B$2,(O33*10)/6.4,IF(B33=data!$B$3,(O33*10)/4.8,IF(B33=data!$B$4,(O33*10)/7.1,IF(B33=data!$B$5,(O33*10)/5.2,"zvolte typ stavby")))) -> 75.9375 | Q33: 195000000 | U33: SFDI mosty
A34: II/245 Čelákovice, obchvat | B34: novostavba (obchvat, přeložka, propojka) | C34: - | D34: 4 | E34: 9 | F34: 10 | G34: 0 | H34: 0 | I34: 10 | J34: 7 | K34: 0 | L34: 5 | M34: 0 | N34: 0 | O34: =IF(B34=data!$B$2,D34*0.7+E34*0.5+F34*0.2+G34*0.8+H34+I34*0.2+J34+K34*0.3+L34+M34*0.5+N34*0.2,IF(B34=data!$B$3,D34*0.1+E34*0.4+F34*0.3+G34*0.1+H34+J34+K34*0.5+L34+M34*0.4,IF(B34=data!$B$4,D34*0.6+E34*0.8+F34*0.7+G34+H34+J34+L34+N34,IF(B34=data!$B$5,D34*0.7+E34*0.8+F34+I34*0.7+J34+L34,"zvolte typ stavby")))) -> 39 | P34: =IF(B34=data!$B$2,(O34*10)/6.4,IF(B34=data!$B$3,(O34*10)/4.8,IF(B34=data!$B$4,(O34*10)/7.1,IF(B34=data!$B$5,(O34*10)/5.2,"zvolte typ stavby")))) -> 75 | Q34: 190000000 | R34: SFDI – UD – účelová dotace | U34: SFDI mosty
A35: II/331 Sojovice, obchvat | B35: novostavba (obchvat, přeložka, propojka) | C35: - | D35: 3 | E35: 10 | F35: 10 | G35: 0 | H35: 0 | I35: 10 | J35: 4 | K35: 0 | L35: 2 | M35: 0 | N35: 0 | O35: =IF(B35=data!$B$2,D35*0.7+E35*0.5+F35*0.2+G35*0.8+H35+I35*0.2+J35+K35*0.3+L35+M35*0.5+N35*0.2,IF(B35=data!$B$3,D35*0.1+E35*0.4+F35*0.3+G35*0.1+H35+J35+K35*0.5+L35+M35*0.4,IF(B35=data!$B$4,D35*0.6+E35*0.8+F35*0.7+G35+H35+J35+L35+N35,IF(B35=data!$B$5,D35*0.7+E35*0.8+F35+I35*0.7+J35+L35,"zvolte typ stavby")))) -> 33.1 | P35: =IF(B35=data!$B$2,(O35*10)/6.4,IF(B35=data!$B$3,(O35*10)/4.8,IF(B35=data!$B$4,(O35*10)/7.1,IF(B35=data!$B$5,(O35*10)/5.2,"zvolte typ stavby")))) -> 63.65384615 | Q35: 176000000 | U35: SFDI mosty
A36: Velké Přílepy, obchvat | B36: novostavba (obchvat, přeložka, propojka) | C36: - | D36: 5 | E36: 10 | F36: 10 | G36: 0 | H36: 0 | I36: 10 | J36: 4 | K36: 0 | L36: 2 | M36: 0 | N36: 0 | O36: =IF(B36=data!$B$2,D36*0.7+E36*0.5+F36*0.2+G36*0.8+H36+I36*0.2+J36+K36*0.3+L36+M36*0.5+N36*0.2,IF(B36=data!$B$3,D36*0.1+E36*0.4+F36*0.3+G36*0.1+H36+J36+K36*0.5+L36+M36*0.4,IF(B36=data!$B$4,D36*0.6+E36*0.8+F36*0.7+G36+H36+J36+L36+N36,IF(B36=data!$B$5,D36*0.7+E36*0.8+F36+I36*0.7+J36+L36,"zvolte typ stavby")))) -> 34.5 | P36: =IF(B36=data!$B$2,(O36*10)/6.4,IF(B36=data!$B$3,(O36*10)/4.8,IF(B36=data!$B$4,(O36*10)/7.1,IF(B36=data!$B$5,(O36*10)/5.2,"zvolte typ stavby")))) -> 66.34615385 | Q36: 102440000 | U36: SFDI NZ 2022 - tendrovat
A37: II/610 Kosmonosy, obchvat - III. etapa | B37: novostavba (obchvat, přeložka, propojka) | C37: - | D37: 4 | E37: 10 | F37: 10 | G37: 0 | H37: 0 | I37: 10 | J37: 4 | K37: 0 | L37: 2 | M37: 0 | N37: 0 | O37: =IF(B37=data!$B$2,D37*0.7+E37*0.5+F37*0.2+G37*0.8+H37+I37*0.2+J37+K37*0.3+L37+M37*0.5+N37*0.2,IF(B37=data!$B$3,D37*0.1+E37*0.4+F37*0.3+G37*0.1+H37+J37+K37*0.5+L37+M37*0.4,IF(B37=data!$B$4,D37*0.6+E37*0.8+F37*0.7+G37+H37+J37+L37+N37,IF(B37=data!$B$5,D37*0.7+E37*0.8+F37+I37*0.7+J37+L37,"zvolte typ stavby")))) -> 33.8 | P37: =IF(B37=data!$B$2,(O37*10)/6.4,IF(B37=data!$B$3,(O37*10)/4.8,IF(B37=data!$B$4,(O37*10)/7.1,IF(B37=data!$B$5,(O37*10)/5.2,"zvolte typ stavby")))) -> 65 | Q37: 159720000 | U37: SFDI mosty
A38: II/111 Struhařov - Divišov | B38: oprava a rekonstrukce | C38: Rekonstrukce | D38: 4 | E38: 10 | F38: 10 | G38: 10 | H38: 10 | I38: 10 | J38: 7 | K38: 0 | L38: 2 | M38: 10 | N38: 10 | O38: =IF(B38=data!$B$2,D38*0.7+E38*0.5+F38*0.2+G38*0.8+H38+I38*0.2+J38+K38*0.3+L38+M38*0.5+N38*0.2,IF(B38=data!$B$3,D38*0.1+E38*0.4+F38*0.3+G38*0.1+H38+J38+K38*0.5+L38+M38*0.4,IF(B38=data!$B$4,D38*0.6+E38*0.8+F38*0.7+G38+H38+J38+L38+N38,IF(B38=data!$B$5,D38*0.7+E38*0.8+F38+I38*0.7+J38+L38,"zvolte typ stavby")))) -> 45.8 | P38: =IF(B38=data!$B$2,(O38*10)/6.4,IF(B38=data!$B$3,(O38*10)/4.8,IF(B38=data!$B$4,(O38*10)/7.1,IF(B38=data!$B$5,(O38*10)/5.2,"zvolte typ stavby")))) -> 71.5625 | Q38: 159720000 | U38: SFDI mosty
A39: II/113 Divišov - Vlašim | B39: oprava a rekonstrukce | C39: Rekonstrukce | D39: 4 | E39: 10 | F39: 10 | G39: 6 | H39: 6 | I39: 10 | J39: 7 | K39: 0 | L39: 10 | M39: 10 | N39: 10 | O39: =IF(B39=data!$B$2,D39*0.7+E39*0.5+F39*0.2+G39*0.8+H39+I39*0.2+J39+K39*0.3+L39+M39*0.5+N39*0.2,IF(B39=data!$B$3,D39*0.1+E39*0.4+F39*0.3+G39*0.1+H39+J39+K39*0.5+L39+M39*0.4,IF(B39=data!$B$4,D39*0.6+E39*0.8+F39*0.7+G39+H39+J39+L39+N39,IF(B39=data!$B$5,D39*0.7+E39*0.8+F39+I39*0.7+J39+L39,"zvolte typ stavby")))) -> 46.6 | P39: =IF(B39=data!$B$2,(O39*10)/6.4,IF(B39=data!$B$3,(O39*10)/4.8,IF(B39=data!$B$4,(O39*10)/7.1,IF(B39=data!$B$5,(O39*10)/5.2,"zvolte typ stavby")))) -> 72.8125 | Q39: 163700423.1 | U39: SFDI NZ 2022 - tendrovat
A40: Netvořice, obchvat | B40: novostavba (obchvat, přeložka, propojka) | D40: 5 | E40: 10 | F40: 7 | G40: 0 | H40: 0 | I40: 10 | J40: 7 | K40: 0 | L40: 2 | M40: 0 | N40: 0 | O40: =IF(B40=data!$B$2,D40*0.7+E40*0.5+F40*0.2+G40*0.8+H40+I40*0.2+J40+K40*0.3+L40+M40*0.5+N40*0.2,IF(B40=data!$B$3,D40*0.1+E40*0.4+F40*0.3+G40*0.1+H40+J40+K40*0.5+L40+M40*0.4,IF(B40=data!$B$4,D40*0.6+E40*0.8+F40*0.7+G40+H40+J40+L40+N40,IF(B40=data!$B$5,D40*0.7+E40*0.8+F40+I40*0.7+J40+L40,"zvolte typ stavby")))) -> 34.5 | P40: =IF(B40=data!$B$2,(O40*10)/6.4,IF(B40=data!$B$3,(O40*10)/4.8,IF(B40=data!$B$4,(O40*10)/7.1,IF(B40=data!$B$5,(O40*10)/5.2,"zvolte typ stavby")))) -> 66.34615385 | Q40: 95000000 | U40: SFDI NZ 2022 - tendrovat
A41: III/0031 Dolní Břežany - obchvat | B41: novostavba (obchvat, přeložka, propojka) | D41: 5 | E41: 10 | F41: 7 | G41: 0 | H41: 0 | I41: 10 | J41: 10 | K41: 0 | L41: 2 | M41: 0 | N41: 0 | O41: =IF(B41=data!$B$2,D41*0.7+E41*0.5+F41*0.2+G41*0.8+H41+I41*0.2+J41+K41*0.3+L41+M41*0.5+N41*0.2,IF(B41=data!$B$3,D41*0.1+E41*0.4+F41*0.3+G41*0.1+H41+J41+K41*0.5+L41+M41*0.4,IF(B41=data!$B$4,D41*0.6+E41*0.8+F41*0.7+G41+H41+J41+L41+N41,IF(B41=data!$B$5,D41*0.7+E41*0.8+F41+I41*0.7+J41+L41,"zvolte typ stavby")))) -> 37.5 | P41: =IF(B41=data!$B$2,(O41*10)/6.4,IF(B41=data!$B$3,(O41*10)/4.8,IF(B41=data!$B$4,(O41*10)/7.1,IF(B41=data!$B$5,(O41*10)/5.2,"zvolte typ stavby")))) -> 72.11538462 | Q41: 120000000 | U41: SFDI NZ 2022 - tendrovat
A42: II/611 Nehvizdy, obchvat | B42: novostavba (obchvat, přeložka, propojka) | C42: - | D42: 6 | E42: 10 | F42: 10 | G42: 0 | H42: 0 | I42: 10 | J42: 7 | K42: 0 | L42: 5 | M42: 0 | N42: 0 | O42: =IF(B42=data!$B$2,D42*0.7+E42*0.5+F42*0.2+G42*0.8+H42+I42*0.2+J42+K42*0.3+L42+M42*0.5+N42*0.2,IF(B42=data!$B$3,D42*0.1+E42*0.4+F42*0.3+G42*0.1+H42+J42+K42*0.5+L42+M42*0.4,IF(B42=data!$B$4,D42*0.6+E42*0.8+F42*0.7+G42+H42+J42+L42+N42,IF(B42=data!$B$5,D42*0.7+E42*0.8+F42+I42*0.7+J42+L42,"zvolte typ stavby")))) -> 41.2 | P42: =IF(B42=data!$B$2,(O42*10)/6.4,IF(B42=data!$B$3,(O42*10)/4.8,IF(B42=data!$B$4,(O42*10)/7.1,IF(B42=data!$B$5,(O42*10)/5.2,"zvolte typ stavby")))) -> 79.23076923 | Q42: 150000000 | U42: SFDI mosty
A43: Beroun obchvat - V. etapa nové autobusové nádraží - sjezd na D5 exit 14 | B43: novostavba (obchvat, přeložka, propojka) | C43: - | D43: 4 | E43: 10 | F43: 10 | G43: 0 | H43: 0 | I43: 10 | J43: 7 | K43: 0 | L43: 5 | M43: 0 | N43: 0 | O43: =IF(B43=data!$B$2,D43*0.7+E43*0.5+F43*0.2+G43*0.8+H43+I43*0.2+J43+K43*0.3+L43+M43*0.5+N43*0.2,IF(B43=data!$B$3,D43*0.1+E43*0.4+F43*0.3+G43*0.1+H43+J43+K43*0.5+L43+M43*0.4,IF(B43=data!$B$4,D43*0.6+E43*0.8+F43*0.7+G43+H43+J43+L43+N43,IF(B43=data!$B$5,D43*0.7+E43*0.8+F43+I43*0.7+J43+L43,"zvolte typ stavby")))) -> 39.8 | P43: =IF(B43=data!$B$2,(O43*10)/6.4,IF(B43=data!$B$3,(O43*10)/4.8,IF(B43=data!$B$4,(O43*10)/7.1,IF(B43=data!$B$5,(O43*10)/5.2,"zvolte typ stavby")))) -> 76.53846154 | Q43: 150000000 | U43: SFDI mosty
A44: II/503 Nymburk, mosty ev.č. 503-004 přes Labe | B44: mostní objekty a propustky | C44: Most | D44: 8 | E44: 10 | F44: 10 | G44: 6 | H44: 6 | I44: 10 | J44: 10 | K44: 0 | L44: 5 | M44: 10 | N44: 0 | O44: =IF(B44=data!$B$2,D44*0.7+E44*0.5+F44*0.2+G44*0.8+H44+I44*0.2+J44+K44*0.3+L44+M44*0.5+N44*0.2,IF(B44=data!$B$3,D44*0.1+E44*0.4+F44*0.3+G44*0.1+H44+J44+K44*0.5+L44+M44*0.4,IF(B44=data!$B$4,D44*0.6+E44*0.8+F44*0.7+G44+H44+J44+L44+N44,IF(B44=data!$B$5,D44*0.7+E44*0.8+F44+I44*0.7+J44+L44,"zvolte typ stavby")))) -> 33.4 | P44: =IF(B44=data!$B$2,(O44*10)/6.4,IF(B44=data!$B$3,(O44*10)/4.8,IF(B44=data!$B$4,(O44*10)/7.1,IF(B44=data!$B$5,(O44*10)/5.2,"zvolte typ stavby")))) -> 69.58333333 | Q44: 147200000 | S44: Předpokládaný termmín realizace 06/2023-06/2025 | U44: SFDI ( Nymburk)
A45: II/110 Ostředek - Sázava etapa 2 | B45: oprava a rekonstrukce | C45: Rekonstrukce | D45: 3 | E45: 10 | F45: 10 | G45: 3 | H45: 10 | I45: 1 | J45: 4 | K45: 10 | L45: 2 | M45: 0 | N45: 10 | O45: =IF(B45=data!$B$2,D45*0.7+E45*0.5+F45*0.2+G45*0.8+H45+I45*0.2+J45+K45*0.3+L45+M45*0.5+N45*0.2,IF(B45=data!$B$3,D45*0.1+E45*0.4+F45*0.3+G45*0.1+H45+J45+K45*0.5+L45+M45*0.4,IF(B45=data!$B$4,D45*0.6+E45*0.8+F45*0.7+G45+H45+J45+L45+N45,IF(B45=data!$B$5,D45*0.7+E45*0.8+F45+I45*0.7+J45+L45,"zvolte typ stavby")))) -> 32.7 | P45: =IF(B45=data!$B$2,(O45*10)/6.4,IF(B45=data!$B$3,(O45*10)/4.8,IF(B45=data!$B$4,(O45*10)/7.1,IF(B45=data!$B$5,(O45*10)/5.2,"zvolte typ stavby")))) -> 51.09375 | Q45: 140000000 | S45: Realizace nutná společně s 276-001
A46: II/111 Český Šternberk, most ev.č. 111-010 přes Sázavu v Českém Šternberku | B46: mostní objekty a propustky | C46: Most | D46: 3 | E46: 10 | F46: 10 | G46: 10 | H46: 6 | I46: 10 | J46: 10 | K46: 10 | L46: 8 | M46: 10 | N46: 0 | O46: =IF(B46=data!$B$2,D46*0.7+E46*0.5+F46*0.2+G46*0.8+H46+I46*0.2+J46+K46*0.3+L46+M46*0.5+N46*0.2,IF(B46=data!$B$3,D46*0.1+E46*0.4+F46*0.3+G46*0.1+H46+J46+K46*0.5+L46+M46*0.4,IF(B46=data!$B$4,D46*0.6+E46*0.8+F46*0.7+G46+H46+J46+L46+N46,IF(B46=data!$B$5,D46*0.7+E46*0.8+F46+I46*0.7+J46+L46,"zvolte typ stavby")))) -> 41.3 | P46: =IF(B46=data!$B$2,(O46*10)/6.4,IF(B46=data!$B$3,(O46*10)/4.8,IF(B46=data!$B$4,(O46*10)/7.1,IF(B46=data!$B$5,(O46*10)/5.2,"zvolte typ stavby")))) -> 86.04166667 | Q46: 140000000 | S46: Předpokládaný termmín realizace 06/2023-06/2025, přesun stromů v období vegetačního klidu | U46: SFDI mosty
A47: II/110 Ostředek - Sázava etapa 1 | B47: oprava a rekonstrukce | C47: Rekonstrukce | D47: 3 | E47: 10 | F47: 10 | G47: 3 | H47: 2 | I47: 1 | J47: 4 | K47: 10 | L47: 5 | M47: 0 | N47: 4 | O47: =IF(B47=data!$B$2,D47*0.7+E47*0.5+F47*0.2+G47*0.8+H47+I47*0.2+J47+K47*0.3+L47+M47*0.5+N47*0.2,IF(B47=data!$B$3,D47*0.1+E47*0.4+F47*0.3+G47*0.1+H47+J47+K47*0.5+L47+M47*0.4,IF(B47=data!$B$4,D47*0.6+E47*0.8+F47*0.7+G47+H47+J47+L47+N47,IF(B47=data!$B$5,D47*0.7+E47*0.8+F47+I47*0.7+J47+L47,"zvolte typ stavby")))) -> 26.5 | P47: =IF(B47=data!$B$2,(O47*10)/6.4,IF(B47=data!$B$3,(O47*10)/4.8,IF(B47=data!$B$4,(O47*10)/7.1,IF(B47=data!$B$5,(O47*10)/5.2,"zvolte typ stavby")))) -> 41.40625 | Q47: 132000000 | U47: SFDI mosty
A48: III/11628 Voznice | B48: oprava a rekonstrukce | C48: Rekonstrukce | D48: 3 | E48: 10 | F48: 6 | G48: 6 | H48: 6 | I48: 10 | J48: 7 | K48: 0 | L48: 10 | M48: 10 | N48: 2 | O48: =IF(B48=data!$B$2,D48*0.7+E48*0.5+F48*0.2+G48*0.8+H48+I48*0.2+J48+K48*0.3+L48+M48*0.5+N48*0.2,IF(B48=data!$B$3,D48*0.1+E48*0.4+F48*0.3+G48*0.1+H48+J48+K48*0.5+L48+M48*0.4,IF(B48=data!$B$4,D48*0.6+E48*0.8+F48*0.7+G48+H48+J48+L48+N48,IF(B48=data!$B$5,D48*0.7+E48*0.8+F48+I48*0.7+J48+L48,"zvolte typ stavby")))) -> 43.5 | P48: =IF(B48=data!$B$2,(O48*10)/6.4,IF(B48=data!$B$3,(O48*10)/4.8,IF(B48=data!$B$4,(O48*10)/7.1,IF(B48=data!$B$5,(O48*10)/5.2,"zvolte typ stavby")))) -> 67.96875 | Q48: 133000000 | S48: Komplikace se smlouvou na překládku ČEZ (nereaguje) | U48: SFDI (chybějící SOKP)
A49: II/242, III/2421, III/2422 Roztoky, rekonstrukce silnic | B49: oprava a rekonstrukce | C49: Rekonstrukce | D49: 4 | E49: 10 | F49: 10 | G49: 6 | H49: 6 | I49: 10 | J49: 10 | K49: 10 | L49: 5 | M49: 10 | N49: 7 | O49: =IF(B49=data!$B$2,D49*0.7+E49*0.5+F49*0.2+G49*0.8+H49+I49*0.2+J49+K49*0.3+L49+M49*0.5+N49*0.2,IF(B49=data!$B$3,D49*0.1+E49*0.4+F49*0.3+G49*0.1+H49+J49+K49*0.5+L49+M49*0.4,IF(B49=data!$B$4,D49*0.6+E49*0.8+F49*0.7+G49+H49+J49+L49+N49,IF(B49=data!$B$5,D49*0.7+E49*0.8+F49+I49*0.7+J49+L49,"zvolte typ stavby")))) -> 47 | P49: =IF(B49=data!$B$2,(O49*10)/6.4,IF(B49=data!$B$3,(O49*10)/4.8,IF(B49=data!$B$4,(O49*10)/7.1,IF(B49=data!$B$5,(O49*10)/5.2,"zvolte typ stavby")))) -> 73.4375 | Q49: 130000000 | U49: SFDI NZ 2022 - tendrovat
A50: Chrášťany, přeložka II. etapa | B50: novostavba (obchvat, přeložka, propojka) | C50: - | D50: 8 | E50: 10 | F50: 10 | G50: 0 | H50: 0 | I50: 10 | J50: 4 | K50: 0 | L50: 2 | M50: 0 | N50: 0 | O50: =IF(B50=data!$B$2,D50*0.7+E50*0.5+F50*0.2+G50*0.8+H50+I50*0.2+J50+K50*0.3+L50+M50*0.5+N50*0.2,IF(B50=data!$B$3,D50*0.1+E50*0.4+F50*0.3+G50*0.1+H50+J50+K50*0.5+L50+M50*0.4,IF(B50=data!$B$4,D50*0.6+E50*0.8+F50*0.7+G50+H50+J50+L50+N50,IF(B50=data!$B$5,D50*0.7+E50*0.8+F50+I50*0.7+J50+L50,"zvolte typ stavby")))) -> 36.6 | P50: =IF(B50=data!$B$2,(O50*10)/6.4,IF(B50=data!$B$3,(O50*10)/4.8,IF(B50=data!$B$4,(O50*10)/7.1,IF(B50=data!$B$5,(O50*10)/5.2,"zvolte typ stavby")))) -> 70.38461538 | Q50: 130000000
A51: Propojení průmyslové zóny Plazy s MÚK Kosmonosy - prodloužení silnice III0164 | B51: novostavba (obchvat, přeložka, propojka) | C51: - | D51: 5 | E51: 10 | F51: 5 | G51: 0 | H51: 0 | I51: 1 | J51: 2 | K51: 0 | L51: 5 | M51: 0 | N51: 0 | O51: =IF(B51=data!$B$2,D51*0.7+E51*0.5+F51*0.2+G51*0.8+H51+I51*0.2+J51+K51*0.3+L51+M51*0.5+N51*0.2,IF(B51=data!$B$3,D51*0.1+E51*0.4+F51*0.3+G51*0.1+H51+J51+K51*0.5+L51+M51*0.4,IF(B51=data!$B$4,D51*0.6+E51*0.8+F51*0.7+G51+H51+J51+L51+N51,IF(B51=data!$B$5,D51*0.7+E51*0.8+F51+I51*0.7+J51+L51,"zvolte typ stavby")))) -> 24.2 | P51: =IF(B51=data!$B$2,(O51*10)/6.4,IF(B51=data!$B$3,(O51*10)/4.8,IF(B51=data!$B$4,(O51*10)/7.1,IF(B51=data!$B$5,(O51*10)/5.2,"zvolte typ stavby")))) -> 46.53846154 | Q51: 128260000
A52: II/105 Kamenný Přívoz mosty ev.č. 105-008 a 105-009 | B52: mostní objekty a propustky | C52: Most | D52: 4 | E52: 10 | F52: 10 | G52: 6 | H52: 6 | I52: 1 | J52: 7 | K52: 0 | L52: 2 | M52: 10 | N52: 0 | O52: =IF(B52=data!$B$2,D52*0.7+E52*0.5+F52*0.2+G52*0.8+H52+I52*0.2+J52+K52*0.3+L52+M52*0.5+N52*0.2,IF(B52=data!$B$3,D52*0.1+E52*0.4+F52*0.3+G52*0.1+H52+J52+K52*0.5+L52+M52*0.4,IF(B52=data!$B$4,D52*0.6+E52*0.8+F52*0.7+G52+H52+J52+L52+N52,IF(B52=data!$B$5,D52*0.7+E52*0.8+F52+I52*0.7+J52+L52,"zvolte typ stavby")))) -> 27 | P52: =IF(B52=data!$B$2,(O52*10)/6.4,IF(B52=data!$B$3,(O52*10)/4.8,IF(B52=data!$B$4,(O52*10)/7.1,IF(B52=data!$B$5,(O52*10)/5.2,"zvolte typ stavby")))) -> 56.25 | Q52: 127050000 | U52: SFDI NZ 2022 - tendrovat, rezerva
A53: Lysá nad Labem, obchvat – 3. etapa | B53: novostavba (obchvat, přeložka, propojka) | C53: - | D53: 4 | E53: 9 | F53: 10 | G53: 0 | H53: 0 | I53: 10 | J53: 4 | K53: 0 | L53: 2 | M53: 0 | N53: 0 | O53: =IF(B53=data!$B$2,D53*0.7+E53*0.5+F53*0.2+G53*0.8+H53+I53*0.2+J53+K53*0.3+L53+M53*0.5+N53*0.2,IF(B53=data!$B$3,D53*0.1+E53*0.4+F53*0.3+G53*0.1+H53+J53+K53*0.5+L53+M53*0.4,IF(B53=data!$B$4,D53*0.6+E53*0.8+F53*0.7+G53+H53+J53+L53+N53,IF(B53=data!$B$5,D53*0.7+E53*0.8+F53+I53*0.7+J53+L53,"zvolte typ stavby")))) -> 33 | P53: =IF(B53=data!$B$2,(O53*10)/6.4,IF(B53=data!$B$3,(O53*10)/4.8,IF(B53=data!$B$4,(O53*10)/7.1,IF(B53=data!$B$5,(O53*10)/5.2,"zvolte typ stavby")))) -> 63.46153846 | Q53: 127050000
A54: II/240 Černý Vůl, opěrná zeď | B54: řešení bodové závady a/nebo bezpečnostního rizika (křižovatky, opěrné zdi, skalní masivy) | C54: - | D54: 5 | E54: 10 | F54: 10 | G54: 6 | H54: 6 | I54: 0 | J54: 10 | K54: 0 | L54: 5 | M54: 0 | N54: 2 | O54: =IF(B54=data!$B$2,D54*0.7+E54*0.5+F54*0.2+G54*0.8+H54+I54*0.2+J54+K54*0.3+L54+M54*0.5+N54*0.2,IF(B54=data!$B$3,D54*0.1+E54*0.4+F54*0.3+G54*0.1+H54+J54+K54*0.5+L54+M54*0.4,IF(B54=data!$B$4,D54*0.6+E54*0.8+F54*0.7+G54+H54+J54+L54+N54,IF(B54=data!$B$5,D54*0.7+E54*0.8+F54+I54*0.7+J54+L54,"zvolte typ stavby")))) -> 47 | P54: =IF(B54=data!$B$2,(O54*10)/6.4,IF(B54=data!$B$3,(O54*10)/4.8,IF(B54=data!$B$4,(O54*10)/7.1,IF(B54=data!$B$5,(O54*10)/5.2,"zvolte typ stavby")))) -> 66.1971831 | Q54: 125939745
A55: II/121 Heřmaničky - obchvat, PD | B55: novostavba (obchvat, přeložka, propojka) | C55: - | D55: 3 | E55: 10 | F55: 10 | G55: 0 | H55: 0 | I55: 10 | J55: 4 | K55: 0 | L55: 2 | M55: 0 | N55: 0 | O55: =IF(B55=data!$B$2,D55*0.7+E55*0.5+F55*0.2+G55*0.8+H55+I55*0.2+J55+K55*0.3+L55+M55*0.5+N55*0.2,IF(B55=data!$B$3,D55*0.1+E55*0.4+F55*0.3+G55*0.1+H55+J55+K55*0.5+L55+M55*0.4,IF(B55=data!$B$4,D55*0.6+E55*0.8+F55*0.7+G55+H55+J55+L55+N55,IF(B55=data!$B$5,D55*0.7+E55*0.8+F55+I55*0.7+J55+L55,"zvolte typ stavby")))) -> 33.1 | P55: =IF(B55=data!$B$2,(O55*10)/6.4,IF(B55=data!$B$3,(O55*10)/4.8,IF(B55=data!$B$4,(O55*10)/7.1,IF(B55=data!$B$5,(O55*10)/5.2,"zvolte typ stavby")))) -> 63.65384615 | Q55: 119185000
A56: III/00715, III/00722, III/00723, III/24010, oprava II. etapa | B56: oprava a rekonstrukce | C56: Rekonstrukce | D56: 3 | E56: 10 | F56: 6 | G56: 6 | H56: 6 | I56: 10 | J56: 4 | K56: 0 | L56: 10 | M56: 10 | N56: 10 | O56: =IF(B56=data!$B$2,D56*0.7+E56*0.5+F56*0.2+G56*0.8+H56+I56*0.2+J56+K56*0.3+L56+M56*0.5+N56*0.2,IF(B56=data!$B$3,D56*0.1+E56*0.4+F56*0.3+G56*0.1+H56+J56+K56*0.5+L56+M56*0.4,IF(B56=data!$B$4,D56*0.6+E56*0.8+F56*0.7+G56+H56+J56+L56+N56,IF(B56=data!$B$5,D56*0.7+E56*0.8+F56+I56*0.7+J56+L56,"zvolte typ stavby")))) -> 42.1 | P56: =IF(B56=data!$B$2,(O56*10)/6.4,IF(B56=data!$B$3,(O56*10)/4.8,IF(B56=data!$B$4,(O56*10)/7.1,IF(B56=data!$B$5,(O56*10)/5.2,"zvolte typ stavby")))) -> 65.78125 | Q56: 115148550
A57: Obchvat obce Ořech - silnice III třídy | B57: novostavba (obchvat, přeložka, propojka) | C57: - | D57: 5 | E57: 10 | F57: 5 | G57: 0 | H57: 0 | I57: 10 | J57: 10 | K57: 0 | L57: 5 | M57: 0 | N57: 0 | O57: =IF(B57=data!$B$2,D57*0.7+E57*0.5+F57*0.2+G57*0.8+H57+I57*0.2+J57+K57*0.3+L57+M57*0.5+N57*0.2,IF(B57=data!$B$3,D57*0.1+E57*0.4+F57*0.3+G57*0.1+H57+J57+K57*0.5+L57+M57*0.4,IF(B57=data!$B$4,D57*0.6+E57*0.8+F57*0.7+G57+H57+J57+L57+N57,IF(B57=data!$B$5,D57*0.7+E57*0.8+F57+I57*0.7+J57+L57,"zvolte typ stavby")))) -> 38.5 | P57: =IF(B57=data!$B$2,(O57*10)/6.4,IF(B57=data!$B$3,(O57*10)/4.8,IF(B57=data!$B$4,(O57*10)/7.1,IF(B57=data!$B$5,(O57*10)/5.2,"zvolte typ stavby")))) -> 74.03846154 | Q57: 115049000 | U57: SFDI
A58: II/237 N. Strašecí - Mšec, rekonstrukce, II. etapa | B58: oprava a rekonstrukce | C58: Rekonstrukce | D58: 3 | E58: 10 | F58: 10 | G58: 3 | H58: 2 | I58: 10 | J58: 4 | K58: 0 | L58: 10 | M58: 10 | N58: 0 | O58: =IF(B58=data!$B$2,D58*0.7+E58*0.5+F58*0.2+G58*0.8+H58+I58*0.2+J58+K58*0.3+L58+M58*0.5+N58*0.2,IF(B58=data!$B$3,D58*0.1+E58*0.4+F58*0.3+G58*0.1+H58+J58+K58*0.5+L58+M58*0.4,IF(B58=data!$B$4,D58*0.6+E58*0.8+F58*0.7+G58+H58+J58+L58+N58,IF(B58=data!$B$5,D58*0.7+E58*0.8+F58+I58*0.7+J58+L58,"zvolte typ stavby")))) -> 34.5 | P58: =IF(B58=data!$B$2,(O58*10)/6.4,IF(B58=data!$B$3,(O58*10)/4.8,IF(B58=data!$B$4,(O58*10)/7.1,IF(B58=data!$B$5,(O58*10)/5.2,"zvolte typ stavby")))) -> 53.90625 | Q58: 110476228.1
A59: II/272 Benátky nad Jizerou - Zdětín - aktualizace projektové dokumentace | B59: oprava a rekonstrukce | C59: Rekonstrukce | D59: 3 | E59: 10 | F59: 10 | G59: 6 | H59: 6 | I59: 10 | J59: 4 | K59: 0 | L59: 8 | M59: 10 | N59: 0 | O59: =IF(B59=data!$B$2,D59*0.7+E59*0.5+F59*0.2+G59*0.8+H59+I59*0.2+J59+K59*0.3+L59+M59*0.5+N59*0.2,IF(B59=data!$B$3,D59*0.1+E59*0.4+F59*0.3+G59*0.1+H59+J59+K59*0.5+L59+M59*0.4,IF(B59=data!$B$4,D59*0.6+E59*0.8+F59*0.7+G59+H59+J59+L59+N59,IF(B59=data!$B$5,D59*0.7+E59*0.8+F59+I59*0.7+J59+L59,"zvolte typ stavby")))) -> 38.9 | P59: =IF(B59=data!$B$2,(O59*10)/6.4,IF(B59=data!$B$3,(O59*10)/4.8,IF(B59=data!$B$4,(O59*10)/7.1,IF(B59=data!$B$5,(O59*10)/5.2,"zvolte typ stavby")))) -> 60.78125 | Q59: 110000000
A60: III/11513 Jíloviště, most ev. č. 11513 – 1 přes D4 v obci Jíloviště | B60: mostní objekty a propustky | C60: Most | D60: 4 | E60: 0 | F60: 5 | G60: 6 | H60: 6 | I60: 0 | J60: 10 | K60: 0 | L60: 5 | M60: 10 | N60: 0 | O60: =IF(B60=data!$B$2,D60*0.7+E60*0.5+F60*0.2+G60*0.8+H60+I60*0.2+J60+K60*0.3+L60+M60*0.5+N60*0.2,IF(B60=data!$B$3,D60*0.1+E60*0.4+F60*0.3+G60*0.1+H60+J60+K60*0.5+L60+M60*0.4,IF(B60=data!$B$4,D60*0.6+E60*0.8+F60*0.7+G60+H60+J60+L60+N60,IF(B60=data!$B$5,D60*0.7+E60*0.8+F60+I60*0.7+J60+L60,"zvolte typ stavby")))) -> 27.5 | P60: =IF(B60=data!$B$2,(O60*10)/6.4,IF(B60=data!$B$3,(O60*10)/4.8,IF(B60=data!$B$4,(O60*10)/7.1,IF(B60=data!$B$5,(O60*10)/5.2,"zvolte typ stavby")))) -> 57.29166667 | Q60: 110000000 | S60: Předpokládaný termmín realizace 03/2024-12/2025
A61: III/1021 a III/1024 Hvozdnice-Bratřínov-PD | B61: oprava a rekonstrukce | C61: Rekonstrukce | D61: 3 | E61: 10 | F61: 6 | G61: 6 | H61: 6 | I61: 10 | J61: 4 | K61: 10 | L61: 10 | M61: 10 | N61: 4 | O61: =IF(B61=data!$B$2,D61*0.7+E61*0.5+F61*0.2+G61*0.8+H61+I61*0.2+J61+K61*0.3+L61+M61*0.5+N61*0.2,IF(B61=data!$B$3,D61*0.1+E61*0.4+F61*0.3+G61*0.1+H61+J61+K61*0.5+L61+M61*0.4,IF(B61=data!$B$4,D61*0.6+E61*0.8+F61*0.7+G61+H61+J61+L61+N61,IF(B61=data!$B$5,D61*0.7+E61*0.8+F61+I61*0.7+J61+L61,"zvolte typ stavby")))) -> 43.9 | P61: =IF(B61=data!$B$2,(O61*10)/6.4,IF(B61=data!$B$3,(O61*10)/4.8,IF(B61=data!$B$4,(O61*10)/7.1,IF(B61=data!$B$5,(O61*10)/5.2,"zvolte typ stavby")))) -> 68.59375 | Q61: 108207751.9
A62: III/00715, III/00718, III/00719 Buštěhrad, průtah - PD | B62: oprava a rekonstrukce | C62: Rekonstrukce | D62: 4 | E62: 10 | F62: 5 | G62: 3 | H62: 6 | I62: 1 | J62: 4 | K62: 0 | L62: 2 | M62: 10 | N62: 7 | O62: =IF(B62=data!$B$2,D62*0.7+E62*0.5+F62*0.2+G62*0.8+H62+I62*0.2+J62+K62*0.3+L62+M62*0.5+N62*0.2,IF(B62=data!$B$3,D62*0.1+E62*0.4+F62*0.3+G62*0.1+H62+J62+K62*0.5+L62+M62*0.4,IF(B62=data!$B$4,D62*0.6+E62*0.8+F62*0.7+G62+H62+J62+L62+N62,IF(B62=data!$B$5,D62*0.7+E62*0.8+F62+I62*0.7+J62+L62,"zvolte typ stavby")))) -> 29.8 | P62: =IF(B62=data!$B$2,(O62*10)/6.4,IF(B62=data!$B$3,(O62*10)/4.8,IF(B62=data!$B$4,(O62*10)/7.1,IF(B62=data!$B$5,(O62*10)/5.2,"zvolte typ stavby")))) -> 46.5625 | Q62: 106071780
A63: II/329 Pečky, severní obchvat | B63: novostavba (obchvat, přeložka, propojka) | C63: - | D63: 4 | E63: 10 | F63: 10 | G63: 0 | H63: 0 | I63: 10 | J63: 4 | K63: 0 | L63: 2 | M63: 0 | N63: 0 | O63: =IF(B63=data!$B$2,D63*0.7+E63*0.5+F63*0.2+G63*0.8+H63+I63*0.2+J63+K63*0.3+L63+M63*0.5+N63*0.2,IF(B63=data!$B$3,D63*0.1+E63*0.4+F63*0.3+G63*0.1+H63+J63+K63*0.5+L63+M63*0.4,IF(B63=data!$B$4,D63*0.6+E63*0.8+F63*0.7+G63+H63+J63+L63+N63,IF(B63=data!$B$5,D63*0.7+E63*0.8+F63+I63*0.7+J63+L63,"zvolte typ stavby")))) -> 33.8 | P63: =IF(B63=data!$B$2,(O63*10)/6.4,IF(B63=data!$B$3,(O63*10)/4.8,IF(B63=data!$B$4,(O63*10)/7.1,IF(B63=data!$B$5,(O63*10)/5.2,"zvolte typ stavby")))) -> 65 | Q63: 105000000
A64: II/117 a III/23511 Žebrák, zlepšení dopravní obslužnosti | B64: novostavba (obchvat, přeložka, propojka) | C64: - | D64: 6 | E64: 10 | F64: 10 | G64: 0 | H64: 0 | I64: 10 | J64: 7 | K64: 0 | L64: 2 | M64: 0 | N64: 0 | O64: =IF(B64=data!$B$2,D64*0.7+E64*0.5+F64*0.2+G64*0.8+H64+I64*0.2+J64+K64*0.3+L64+M64*0.5+N64*0.2,IF(B64=data!$B$3,D64*0.1+E64*0.4+F64*0.3+G64*0.1+H64+J64+K64*0.5+L64+M64*0.4,IF(B64=data!$B$4,D64*0.6+E64*0.8+F64*0.7+G64+H64+J64+L64+N64,IF(B64=data!$B$5,D64*0.7+E64*0.8+F64+I64*0.7+J64+L64,"zvolte typ stavby")))) -> 38.2 | P64: =IF(B64=data!$B$2,(O64*10)/6.4,IF(B64=data!$B$3,(O64*10)/4.8,IF(B64=data!$B$4,(O64*10)/7.1,IF(B64=data!$B$5,(O64*10)/5.2,"zvolte typ stavby")))) -> 73.46153846 | Q64: 104153412
A65: II/608 – rekonstrukce silnice I. etapa | B65: oprava a rekonstrukce | C65: Rekonstrukce | D65: 6 | E65: 10 | F65: 10 | G65: 6 | H65: 6 | I65: 10 | J65: 10 | K65: 0 | L65: 10 | M65: 10 | N65: 10 | O65: =IF(B65=data!$B$2,D65*0.7+E65*0.5+F65*0.2+G65*0.8+H65+I65*0.2+J65+K65*0.3+L65+M65*0.5+N65*0.2,IF(B65=data!$B$3,D65*0.1+E65*0.4+F65*0.3+G65*0.1+H65+J65+K65*0.5+L65+M65*0.4,IF(B65=data!$B$4,D65*0.6+E65*0.8+F65*0.7+G65+H65+J65+L65+N65,IF(B65=data!$B$5,D65*0.7+E65*0.8+F65+I65*0.7+J65+L65,"zvolte typ stavby")))) -> 51 | P65: =IF(B65=data!$B$2,(O65*10)/6.4,IF(B65=data!$B$3,(O65*10)/4.8,IF(B65=data!$B$4,(O65*10)/7.1,IF(B65=data!$B$5,(O65*10)/5.2,"zvolte typ stavby")))) -> 79.6875 | Q65: 415000000 | S65: Předpoklad realizace nejdříve 2023 | U65: SFDI (chybějící SOKP)
A66: II/331 Brandýs nad Labem - I/9, rekonstrukce silnice etapa I - III | B66: oprava a rekonstrukce | C66: Rekonstrukce | D66: 4 | E66: 10 | F66: 10 | G66: 6 | H66: 10 | I66: 10 | J66: 10 | K66: 0 | L66: 0 | M66: 10 | N66: 10 | O66: =IF(B66=data!$B$2,D66*0.7+E66*0.5+F66*0.2+G66*0.8+H66+I66*0.2+J66+K66*0.3+L66+M66*0.5+N66*0.2,IF(B66=data!$B$3,D66*0.1+E66*0.4+F66*0.3+G66*0.1+H66+J66+K66*0.5+L66+M66*0.4,IF(B66=data!$B$4,D66*0.6+E66*0.8+F66*0.7+G66+H66+J66+L66+N66,IF(B66=data!$B$5,D66*0.7+E66*0.8+F66+I66*0.7+J66+L66,"zvolte typ stavby")))) -> 43.6 | P66: =IF(B66=data!$B$2,(O66*10)/6.4,IF(B66=data!$B$3,(O66*10)/4.8,IF(B66=data!$B$4,(O66*10)/7.1,IF(B66=data!$B$5,(O66*10)/5.2,"zvolte typ stavby")))) -> 68.125 | Q66: 100000000
A67: II/331 Brandýs nad Labem - I/9, rekonstrukce silnice etapa VI | B67: oprava a rekonstrukce | C67: Rekonstrukce | D67: 4 | E67: 10 | F67: 10 | G67: 6 | H67: 10 | I67: 10 | J67: 10 | K67: 0 | L67: 5 | M67: 10 | N67: 10 | O67: =IF(B67=data!$B$2,D67*0.7+E67*0.5+F67*0.2+G67*0.8+H67+I67*0.2+J67+K67*0.3+L67+M67*0.5+N67*0.2,IF(B67=data!$B$3,D67*0.1+E67*0.4+F67*0.3+G67*0.1+H67+J67+K67*0.5+L67+M67*0.4,IF(B67=data!$B$4,D67*0.6+E67*0.8+F67*0.7+G67+H67+J67+L67+N67,IF(B67=data!$B$5,D67*0.7+E67*0.8+F67+I67*0.7+J67+L67,"zvolte typ stavby")))) -> 48.6 | P67: =IF(B67=data!$B$2,(O67*10)/6.4,IF(B67=data!$B$3,(O67*10)/4.8,IF(B67=data!$B$4,(O67*10)/7.1,IF(B67=data!$B$5,(O67*10)/5.2,"zvolte typ stavby")))) -> 75.9375 | Q67: 100000000
A68: III/2444 a III/0105a Přezletice, průtah I etapa | B68: oprava a rekonstrukce | C68: Rekonstrukce | D68: 5 | E68: 10 | F68: 5 | G68: 6 | H68: 10 | I68: 1 | J68: 7 | K68: 0 | L68: 5 | M68: 10 | N68: 2 | O68: =IF(B68=data!$B$2,D68*0.7+E68*0.5+F68*0.2+G68*0.8+H68+I68*0.2+J68+K68*0.3+L68+M68*0.5+N68*0.2,IF(B68=data!$B$3,D68*0.1+E68*0.4+F68*0.3+G68*0.1+H68+J68+K68*0.5+L68+M68*0.4,IF(B68=data!$B$4,D68*0.6+E68*0.8+F68*0.7+G68+H68+J68+L68+N68,IF(B68=data!$B$5,D68*0.7+E68*0.8+F68+I68*0.7+J68+L68,"zvolte typ stavby")))) -> 41.9 | P68: =IF(B68=data!$B$2,(O68*10)/6.4,IF(B68=data!$B$3,(O68*10)/4.8,IF(B68=data!$B$4,(O68*10)/7.1,IF(B68=data!$B$5,(O68*10)/5.2,"zvolte typ stavby")))) -> 65.46875 | Q68: 95456000
A69: II/118 Želevčice - Zlonice | B69: oprava a rekonstrukce | C69: Rekonstrukce | D69: 4 | E69: 10 | F69: 10 | G69: 3 | H69: 10 | I69: 1 | J69: 2 | K69: 10 | L69: 2 | M69: 0 | N69: 2 | O69: =IF(B69=data!$B$2,D69*0.7+E69*0.5+F69*0.2+G69*0.8+H69+I69*0.2+J69+K69*0.3+L69+M69*0.5+N69*0.2,IF(B69=data!$B$3,D69*0.1+E69*0.4+F69*0.3+G69*0.1+H69+J69+K69*0.5+L69+M69*0.4,IF(B69=data!$B$4,D69*0.6+E69*0.8+F69*0.7+G69+H69+J69+L69+N69,IF(B69=data!$B$5,D69*0.7+E69*0.8+F69+I69*0.7+J69+L69,"zvolte typ stavby")))) -> 29.8 | P69: =IF(B69=data!$B$2,(O69*10)/6.4,IF(B69=data!$B$3,(O69*10)/4.8,IF(B69=data!$B$4,(O69*10)/7.1,IF(B69=data!$B$5,(O69*10)/5.2,"zvolte typ stavby")))) -> 46.5625 | Q69: 95000000 | R69: -
A70: II/610 Tuřice - Kbel (Benátky nad Jizerou průtah II. etapa) | B70: oprava a rekonstrukce | C70: Rekonstrukce | D70: 3 | E70: 10 | F70: 10 | G70: 3 | H70: 10 | I70: 1 | J70: 4 | K70: 0 | L70: 2 | M70: 10 | N70: 4 | O70: =IF(B70=data!$B$2,D70*0.7+E70*0.5+F70*0.2+G70*0.8+H70+I70*0.2+J70+K70*0.3+L70+M70*0.5+N70*0.2,IF(B70=data!$B$3,D70*0.1+E70*0.4+F70*0.3+G70*0.1+H70+J70+K70*0.5+L70+M70*0.4,IF(B70=data!$B$4,D70*0.6+E70*0.8+F70*0.7+G70+H70+J70+L70+N70,IF(B70=data!$B$5,D70*0.7+E70*0.8+F70+I70*0.7+J70+L70,"zvolte typ stavby")))) -> 33.5 | P70: =IF(B70=data!$B$2,(O70*10)/6.4,IF(B70=data!$B$3,(O70*10)/4.8,IF(B70=data!$B$4,(O70*10)/7.1,IF(B70=data!$B$5,(O70*10)/5.2,"zvolte typ stavby")))) -> 52.34375 | Q70: 90750000
A71: II/328 Sloveč - Kněžice | B71: oprava a rekonstrukce | C71: Rekonstrukce | D71: 2 | E71: 10 | F71: 10 | G71: 6 | H71: 6 | I71: 10 | J71: 7 | K71: 0 | L71: 10 | M71: 10 | N71: 4 | O71: =IF(B71=data!$B$2,D71*0.7+E71*0.5+F71*0.2+G71*0.8+H71+I71*0.2+J71+K71*0.3+L71+M71*0.5+N71*0.2,IF(B71=data!$B$3,D71*0.1+E71*0.4+F71*0.3+G71*0.1+H71+J71+K71*0.5+L71+M71*0.4,IF(B71=data!$B$4,D71*0.6+E71*0.8+F71*0.7+G71+H71+J71+L71+N71,IF(B71=data!$B$5,D71*0.7+E71*0.8+F71+I71*0.7+J71+L71,"zvolte typ stavby")))) -> 44 | P71: =IF(B71=data!$B$2,(O71*10)/6.4,IF(B71=data!$B$3,(O71*10)/4.8,IF(B71=data!$B$4,(O71*10)/7.1,IF(B71=data!$B$5,(O71*10)/5.2,"zvolte typ stavby")))) -> 68.75 | Q71: 90525137.11
A72: II/332 Zbožíčko, obchvat | B72: novostavba (obchvat, přeložka, propojka) | C72: - | D72: 3 | E72: 9 | F72: 8 | G72: 0 | H72: 0 | I72: 10 | J72: 4 | K72: 0 | L72: 5 | M72: 0 | N72: 0 | O72: =IF(B72=data!$B$2,D72*0.7+E72*0.5+F72*0.2+G72*0.8+H72+I72*0.2+J72+K72*0.3+L72+M72*0.5+N72*0.2,IF(B72=data!$B$3,D72*0.1+E72*0.4+F72*0.3+G72*0.1+H72+J72+K72*0.5+L72+M72*0.4,IF(B72=data!$B$4,D72*0.6+E72*0.8+F72*0.7+G72+H72+J72+L72+N72,IF(B72=data!$B$5,D72*0.7+E72*0.8+F72+I72*0.7+J72+L72,"zvolte typ stavby")))) -> 33.3 | P72: =IF(B72=data!$B$2,(O72*10)/6.4,IF(B72=data!$B$3,(O72*10)/4.8,IF(B72=data!$B$4,(O72*10)/7.1,IF(B72=data!$B$5,(O72*10)/5.2,"zvolte typ stavby")))) -> 64.03846154 | Q72: 90000000 | R72: -
A73: II/125 Louňovice - Kamberk | B73: oprava a rekonstrukce | C73: Rekonstrukce | D73: 2 | E73: 10 | F73: 10 | G73: 6 | H73: 10 | I73: 10 | J73: 2 | K73: 0 | L73: 5 | M73: 10 | N73: 2 | O73: =IF(B73=data!$B$2,D73*0.7+E73*0.5+F73*0.2+G73*0.8+H73+I73*0.2+J73+K73*0.3+L73+M73*0.5+N73*0.2,IF(B73=data!$B$3,D73*0.1+E73*0.4+F73*0.3+G73*0.1+H73+J73+K73*0.5+L73+M73*0.4,IF(B73=data!$B$4,D73*0.6+E73*0.8+F73*0.7+G73+H73+J73+L73+N73,IF(B73=data!$B$5,D73*0.7+E73*0.8+F73+I73*0.7+J73+L73,"zvolte typ stavby")))) -> 37.6 | P73: =IF(B73=data!$B$2,(O73*10)/6.4,IF(B73=data!$B$3,(O73*10)/4.8,IF(B73=data!$B$4,(O73*10)/7.1,IF(B73=data!$B$5,(O73*10)/5.2,"zvolte typ stavby")))) -> 58.75 | Q73: 89999999.65
A74: III/11510 Všenory, průtah - PD | B74: oprava a rekonstrukce | C74: Rekonstrukce | D74: 7 | E74: 10 | F74: 6 | G74: 6 | H74: 6 | I74: 10 | J74: 7 | K74: 0 | L74: 8 | M74: 10 | N74: 2 | O74: =IF(B74=data!$B$2,D74*0.7+E74*0.5+F74*0.2+G74*0.8+H74+I74*0.2+J74+K74*0.3+L74+M74*0.5+N74*0.2,IF(B74=data!$B$3,D74*0.1+E74*0.4+F74*0.3+G74*0.1+H74+J74+K74*0.5+L74+M74*0.4,IF(B74=data!$B$4,D74*0.6+E74*0.8+F74*0.7+G74+H74+J74+L74+N74,IF(B74=data!$B$5,D74*0.7+E74*0.8+F74+I74*0.7+J74+L74,"zvolte typ stavby")))) -> 44.3 | P74: =IF(B74=data!$B$2,(O74*10)/6.4,IF(B74=data!$B$3,(O74*10)/4.8,IF(B74=data!$B$4,(O74*10)/7.1,IF(B74=data!$B$5,(O74*10)/5.2,"zvolte typ stavby")))) -> 69.21875 | Q74: 88680900
A75: III/2365 Trubská,nestabilní svah-PD | B75: řešení bodové závady a/nebo bezpečnostního rizika (křižovatky, opěrné zdi, skalní masivy) | C75: - | D75: 4 | E75: 10 | F75: 5 | G75: 10 | H75: 10 | I75: 0 | J75: 4 | K75: 0 | L75: 8 | M75: 0 | N75: 2 | O75: =IF(B75=data!$B$2,D75*0.7+E75*0.5+F75*0.2+G75*0.8+H75+I75*0.2+J75+K75*0.3+L75+M75*0.5+N75*0.2,IF(B75=data!$B$3,D75*0.1+E75*0.4+F75*0.3+G75*0.1+H75+J75+K75*0.5+L75+M75*0.4,IF(B75=data!$B$4,D75*0.6+E75*0.8+F75*0.7+G75+H75+J75+L75+N75,IF(B75=data!$B$5,D75*0.7+E75*0.8+F75+I75*0.7+J75+L75,"zvolte typ stavby")))) -> 47.9 | P75: =IF(B75=data!$B$2,(O75*10)/6.4,IF(B75=data!$B$3,(O75*10)/4.8,IF(B75=data!$B$4,(O75*10)/7.1,IF(B75=data!$B$5,(O75*10)/5.2,"zvolte typ stavby")))) -> 67.46478873 | Q75: 88509773 | S75: Předpoklad SFDI nebo IROP dle možností v době dokončení
A76: III/00324 Otice - Všechromy, PD | B76: oprava a rekonstrukce | C76: Rekonstrukce | D76: 3 | E76: 10 | F76: 5 | G76: 6 | H76: 6 | I76: 10 | J76: 4 | K76: 0 | L76: 10 | M76: 0 | N76: 0 | O76: =IF(B76=data!$B$2,D76*0.7+E76*0.5+F76*0.2+G76*0.8+H76+I76*0.2+J76+K76*0.3+L76+M76*0.5+N76*0.2,IF(B76=data!$B$3,D76*0.1+E76*0.4+F76*0.3+G76*0.1+H76+J76+K76*0.5+L76+M76*0.4,IF(B76=data!$B$4,D76*0.6+E76*0.8+F76*0.7+G76+H76+J76+L76+N76,IF(B76=data!$B$5,D76*0.7+E76*0.8+F76+I76*0.7+J76+L76,"zvolte typ stavby")))) -> 34.9 | P76: =IF(B76=data!$B$2,(O76*10)/6.4,IF(B76=data!$B$3,(O76*10)/4.8,IF(B76=data!$B$4,(O76*10)/7.1,IF(B76=data!$B$5,(O76*10)/5.2,"zvolte typ stavby")))) -> 54.53125 | Q76: 85000000
A77: II/244 Měšice I/9 – Byšice I/16 I. etapa | B77: oprava a rekonstrukce | C77: Rekonstrukce | D77: 6 | E77: 10 | F77: 10 | G77: 6 | H77: 6 | I77: 10 | J77: 10 | K77: 0 | L77: 8 | M77: 10 | N77: 7 | O77: =IF(B77=data!$B$2,D77*0.7+E77*0.5+F77*0.2+G77*0.8+H77+I77*0.2+J77+K77*0.3+L77+M77*0.5+N77*0.2,IF(B77=data!$B$3,D77*0.1+E77*0.4+F77*0.3+G77*0.1+H77+J77+K77*0.5+L77+M77*0.4,IF(B77=data!$B$4,D77*0.6+E77*0.8+F77*0.7+G77+H77+J77+L77+N77,IF(B77=data!$B$5,D77*0.7+E77*0.8+F77+I77*0.7+J77+L77,"zvolte typ stavby")))) -> 48.4 | P77: =IF(B77=data!$B$2,(O77*10)/6.4,IF(B77=data!$B$3,(O77*10)/4.8,IF(B77=data!$B$4,(O77*10)/7.1,IF(B77=data!$B$5,(O77*10)/5.2,"zvolte typ stavby")))) -> 75.625 | Q77: 108900000
A78: Rekonstrukce silnic III/0083 a III/0084 v k.ú. Sedlec u Líbeznic | B78: oprava a rekonstrukce | C78: Rekonstrukce | D78: 5 | E78: 10 | F78: 5 | G78: 6 | H78: 10 | I78: 10 | J78: 7 | K78: 0 | L78: 10 | M78: 10 | N78: 7 | O78: =IF(B78=data!$B$2,D78*0.7+E78*0.5+F78*0.2+G78*0.8+H78+I78*0.2+J78+K78*0.3+L78+M78*0.5+N78*0.2,IF(B78=data!$B$3,D78*0.1+E78*0.4+F78*0.3+G78*0.1+H78+J78+K78*0.5+L78+M78*0.4,IF(B78=data!$B$4,D78*0.6+E78*0.8+F78*0.7+G78+H78+J78+L78+N78,IF(B78=data!$B$5,D78*0.7+E78*0.8+F78+I78*0.7+J78+L78,"zvolte typ stavby")))) -> 49.7 | P78: =IF(B78=data!$B$2,(O78*10)/6.4,IF(B78=data!$B$3,(O78*10)/4.8,IF(B78=data!$B$4,(O78*10)/7.1,IF(B78=data!$B$5,(O78*10)/5.2,"zvolte typ stavby")))) -> 77.65625 | Q78: 82000000
A79: II/272 Lysá nad Labem, průtah (ul. Jedličkova) | B79: oprava a rekonstrukce | C79: Rekonstrukce | D79: 6 | E79: 0 | F79: 10 | G79: 6 | H79: 6 | I79: 10 | J79: 7 | K79: 0 | L79: 2 | M79: 10 | N79: 10 | O79: =IF(B79=data!$B$2,D79*0.7+E79*0.5+F79*0.2+G79*0.8+H79+I79*0.2+J79+K79*0.3+L79+M79*0.5+N79*0.2,IF(B79=data!$B$3,D79*0.1+E79*0.4+F79*0.3+G79*0.1+H79+J79+K79*0.5+L79+M79*0.4,IF(B79=data!$B$4,D79*0.6+E79*0.8+F79*0.7+G79+H79+J79+L79+N79,IF(B79=data!$B$5,D79*0.7+E79*0.8+F79+I79*0.7+J79+L79,"zvolte typ stavby")))) -> 35 | P79: =IF(B79=data!$B$2,(O79*10)/6.4,IF(B79=data!$B$3,(O79*10)/4.8,IF(B79=data!$B$4,(O79*10)/7.1,IF(B79=data!$B$5,(O79*10)/5.2,"zvolte typ stavby")))) -> 54.6875 | Q79: 80000000
A80: II/111 Nechyba I - Český Šternberk | B80: oprava a rekonstrukce | C80: Rekonstrukce | D80: 3 | E80: 10 | F80: 10 | G80: 6 | H80: 6 | I80: 10 | J80: 10 | K80: 0 | L80: 10 | M80: 10 | N80: 7 | O80: =IF(B80=data!$B$2,D80*0.7+E80*0.5+F80*0.2+G80*0.8+H80+I80*0.2+J80+K80*0.3+L80+M80*0.5+N80*0.2,IF(B80=data!$B$3,D80*0.1+E80*0.4+F80*0.3+G80*0.1+H80+J80+K80*0.5+L80+M80*0.4,IF(B80=data!$B$4,D80*0.6+E80*0.8+F80*0.7+G80+H80+J80+L80+N80,IF(B80=data!$B$5,D80*0.7+E80*0.8+F80+I80*0.7+J80+L80,"zvolte typ stavby")))) -> 48.3 | P80: =IF(B80=data!$B$2,(O80*10)/6.4,IF(B80=data!$B$3,(O80*10)/4.8,IF(B80=data!$B$4,(O80*10)/7.1,IF(B80=data!$B$5,(O80*10)/5.2,"zvolte typ stavby")))) -> 75.46875 | Q80: 167447921.2
A81: III/6111 Jirny, most ev.č. 6111-1 | B81: mostní objekty a propustky | C81: Most | D81: 6 | E81: 0 | F81: 7 | G81: 6 | H81: 6 | I81: 0 | J81: 10 | K81: 0 | L81: 5 | M81: 10 | N81: 0 | O81: =IF(B81=data!$B$2,D81*0.7+E81*0.5+F81*0.2+G81*0.8+H81+I81*0.2+J81+K81*0.3+L81+M81*0.5+N81*0.2,IF(B81=data!$B$3,D81*0.1+E81*0.4+F81*0.3+G81*0.1+H81+J81+K81*0.5+L81+M81*0.4,IF(B81=data!$B$4,D81*0.6+E81*0.8+F81*0.7+G81+H81+J81+L81+N81,IF(B81=data!$B$5,D81*0.7+E81*0.8+F81+I81*0.7+J81+L81,"zvolte typ stavby")))) -> 28.3 | P81: =IF(B81=data!$B$2,(O81*10)/6.4,IF(B81=data!$B$3,(O81*10)/4.8,IF(B81=data!$B$4,(O81*10)/7.1,IF(B81=data!$B$5,(O81*10)/5.2,"zvolte typ stavby")))) -> 58.95833333 | Q81: 70000000
A82: ,,II/610 Stará Boleslav, most ev.č. 610-018 přes D10 za obcí St.Boleslav" | B82: mostní objekty a propustky | C82: Most | D82: 6 | E82: 0 | F82: 10 | G82: 6 | H82: 6 | I82: 0 | J82: 10 | K82: 0 | L82: 8 | M82: 10 | N82: 0 | O82: =IF(B82=data!$B$2,D82*0.7+E82*0.5+F82*0.2+G82*0.8+H82+I82*0.2+J82+K82*0.3+L82+M82*0.5+N82*0.2,IF(B82=data!$B$3,D82*0.1+E82*0.4+F82*0.3+G82*0.1+H82+J82+K82*0.5+L82+M82*0.4,IF(B82=data!$B$4,D82*0.6+E82*0.8+F82*0.7+G82+H82+J82+L82+N82,IF(B82=data!$B$5,D82*0.7+E82*0.8+F82+I82*0.7+J82+L82,"zvolte typ stavby")))) -> 32.2 | P82: =IF(B82=data!$B$2,(O82*10)/6.4,IF(B82=data!$B$3,(O82*10)/4.8,IF(B82=data!$B$4,(O82*10)/7.1,IF(B82=data!$B$5,(O82*10)/5.2,"zvolte typ stavby")))) -> 67.08333333 | Q82: 80000000 | S82: Předpokládaný termmín realizace 03/2024-12/2024.
A83: II/603 Sulice - Želivec, rekonstrukce silnice a mostů - PD | B83: oprava a rekonstrukce | C83: Rekonstrukce | D83: 7 | E83: 10 | F83: 10 | G83: 6 | H83: 10 | I83: 10 | J83: 7 | K83: 0 | L83: 8 | M83: 10 | N83: 10 | O83: =IF(B83=data!$B$2,D83*0.7+E83*0.5+F83*0.2+G83*0.8+H83+I83*0.2+J83+K83*0.3+L83+M83*0.5+N83*0.2,IF(B83=data!$B$3,D83*0.1+E83*0.4+F83*0.3+G83*0.1+H83+J83+K83*0.5+L83+M83*0.4,IF(B83=data!$B$4,D83*0.6+E83*0.8+F83*0.7+G83+H83+J83+L83+N83,IF(B83=data!$B$5,D83*0.7+E83*0.8+F83+I83*0.7+J83+L83,"zvolte typ stavby")))) -> 50.7 | P83: =IF(B83=data!$B$2,(O83*10)/6.4,IF(B83=data!$B$3,(O83*10)/4.8,IF(B83=data!$B$4,(O83*10)/7.1,IF(B83=data!$B$5,(O83*10)/5.2,"zvolte typ stavby")))) -> 79.21875 | Q83: 120000000
A84: III/1025 Bojov – Klínec, rekonstrukce silnice stavba I - silnice III/1025 a III/0042 Jíloviště -Líšnice | B84: oprava a rekonstrukce | C84: Rekonstrukce | D84: 5 | E84: 10 | F84: 5 | G84: 10 | H84: 10 | I84: 10 | J84: 10 | K84: 0 | L84: 8 | M84: 10 | N84: 4 | O84: =IF(B84=data!$B$2,D84*0.7+E84*0.5+F84*0.2+G84*0.8+H84+I84*0.2+J84+K84*0.3+L84+M84*0.5+N84*0.2,IF(B84=data!$B$3,D84*0.1+E84*0.4+F84*0.3+G84*0.1+H84+J84+K84*0.5+L84+M84*0.4,IF(B84=data!$B$4,D84*0.6+E84*0.8+F84*0.7+G84+H84+J84+L84+N84,IF(B84=data!$B$5,D84*0.7+E84*0.8+F84+I84*0.7+J84+L84,"zvolte typ stavby")))) -> 53.3 | P84: =IF(B84=data!$B$2,(O84*10)/6.4,IF(B84=data!$B$3,(O84*10)/4.8,IF(B84=data!$B$4,(O84*10)/7.1,IF(B84=data!$B$5,(O84*10)/5.2,"zvolte typ stavby")))) -> 83.28125 | Q84: 66000000
A85: II/116 a III/11614 Srbsko, průtah | B85: oprava a rekonstrukce | C85: Rekonstrukce | D85: 4 | E85: 10 | F85: 7 | G85: 10 | H85: 10 | I85: 1 | J85: 7 | K85: 0 | L85: 2 | M85: 0 | N85: 4 | O85: =IF(B85=data!$B$2,D85*0.7+E85*0.5+F85*0.2+G85*0.8+H85+I85*0.2+J85+K85*0.3+L85+M85*0.5+N85*0.2,IF(B85=data!$B$3,D85*0.1+E85*0.4+F85*0.3+G85*0.1+H85+J85+K85*0.5+L85+M85*0.4,IF(B85=data!$B$4,D85*0.6+E85*0.8+F85*0.7+G85+H85+J85+L85+N85,IF(B85=data!$B$5,D85*0.7+E85*0.8+F85+I85*0.7+J85+L85,"zvolte typ stavby")))) -> 37.2 | P85: =IF(B85=data!$B$2,(O85*10)/6.4,IF(B85=data!$B$3,(O85*10)/4.8,IF(B85=data!$B$4,(O85*10)/7.1,IF(B85=data!$B$5,(O85*10)/5.2,"zvolte typ stavby")))) -> 58.125 | Q85: 79052564.5
A86: II/118 Třebichovice, průtah | B86: oprava a rekonstrukce | C86: Rekonstrukce | D86: 3 | E86: 10 | F86: 10 | G86: 3 | H86: 10 | I86: 10 | J86: 4 | K86: 0 | L86: 2 | M86: 10 | N86: 0 | O86: =IF(B86=data!$B$2,D86*0.7+E86*0.5+F86*0.2+G86*0.8+H86+I86*0.2+J86+K86*0.3+L86+M86*0.5+N86*0.2,IF(B86=data!$B$3,D86*0.1+E86*0.4+F86*0.3+G86*0.1+H86+J86+K86*0.5+L86+M86*0.4,IF(B86=data!$B$4,D86*0.6+E86*0.8+F86*0.7+G86+H86+J86+L86+N86,IF(B86=data!$B$5,D86*0.7+E86*0.8+F86+I86*0.7+J86+L86,"zvolte typ stavby")))) -> 34.5 | P86: =IF(B86=data!$B$2,(O86*10)/6.4,IF(B86=data!$B$3,(O86*10)/4.8,IF(B86=data!$B$4,(O86*10)/7.1,IF(B86=data!$B$5,(O86*10)/5.2,"zvolte typ stavby")))) -> 53.90625 | Q86: 78650000
A87: II/106 přeložka k sjezdu z D3 u Hostěradic - PD | B87: novostavba (obchvat, přeložka, propojka) | C87: - | D87: 5 | E87: 10 | F87: 10 | G87: 0 | H87: 0 | I87: 1 | J87: 2 | K87: 0 | L87: 2 | M87: 0 | N87: 0 | O87: =IF(B87=data!$B$2,D87*0.7+E87*0.5+F87*0.2+G87*0.8+H87+I87*0.2+J87+K87*0.3+L87+M87*0.5+N87*0.2,IF(B87=data!$B$3,D87*0.1+E87*0.4+F87*0.3+G87*0.1+H87+J87+K87*0.5+L87+M87*0.4,IF(B87=data!$B$4,D87*0.6+E87*0.8+F87*0.7+G87+H87+J87+L87+N87,IF(B87=data!$B$5,D87*0.7+E87*0.8+F87+I87*0.7+J87+L87,"zvolte typ stavby")))) -> 26.2 | P87: =IF(B87=data!$B$2,(O87*10)/6.4,IF(B87=data!$B$3,(O87*10)/4.8,IF(B87=data!$B$4,(O87*10)/7.1,IF(B87=data!$B$5,(O87*10)/5.2,"zvolte typ stavby")))) -> 50.38461538 | Q87: 78512000
A88: Oprava silnic II/116 a II/236, kruhový objezd Lány, mikrokoberec | B88: oprava a rekonstrukce | D88: 1 | E88: 10 | F88: 9 | G88: 6 | H88: 6 | I88: 1 | J88: 7 | K88: 0 | L88: 10 | M88: 10 | N88: 4 | O88: =IF(B88=data!$B$2,D88*0.7+E88*0.5+F88*0.2+G88*0.8+H88+I88*0.2+J88+K88*0.3+L88+M88*0.5+N88*0.2,IF(B88=data!$B$3,D88*0.1+E88*0.4+F88*0.3+G88*0.1+H88+J88+K88*0.5+L88+M88*0.4,IF(B88=data!$B$4,D88*0.6+E88*0.8+F88*0.7+G88+H88+J88+L88+N88,IF(B88=data!$B$5,D88*0.7+E88*0.8+F88+I88*0.7+J88+L88,"zvolte typ stavby")))) -> 41.3 | P88: =IF(B88=data!$B$2,(O88*10)/6.4,IF(B88=data!$B$3,(O88*10)/4.8,IF(B88=data!$B$4,(O88*10)/7.1,IF(B88=data!$B$5,(O88*10)/5.2,"zvolte typ stavby")))) -> 64.53125 | Q88: 77882889.35
A89: II/335,II/508,III/1014 a III/1012 Mnichovice průtah II. etapa | B89: oprava a rekonstrukce | C89: Rekonstrukce | D89: 4 | E89: 10 | F89: 10 | G89: 6 | H89: 10 | I89: 10 | J89: 4 | K89: 0 | L89: 2 | M89: 10 | N89: 4 | O89: =IF(B89=data!$B$2,D89*0.7+E89*0.5+F89*0.2+G89*0.8+H89+I89*0.2+J89+K89*0.3+L89+M89*0.5+N89*0.2,IF(B89=data!$B$3,D89*0.1+E89*0.4+F89*0.3+G89*0.1+H89+J89+K89*0.5+L89+M89*0.4,IF(B89=data!$B$4,D89*0.6+E89*0.8+F89*0.7+G89+H89+J89+L89+N89,IF(B89=data!$B$5,D89*0.7+E89*0.8+F89+I89*0.7+J89+L89,"zvolte typ stavby")))) -> 38.4 | P89: =IF(B89=data!$B$2,(O89*10)/6.4,IF(B89=data!$B$3,(O89*10)/4.8,IF(B89=data!$B$4,(O89*10)/7.1,IF(B89=data!$B$5,(O89*10)/5.2,"zvolte typ stavby")))) -> 60 | Q89: 72850000
A90: II/106 Krňany, obchvat | B90: novostavba (obchvat, přeložka, propojka) | C90: - | D90: 3 | E90: 10 | F90: 10 | G90: 0 | H90: 0 | I90: 10 | J90: 4 | K90: 0 | L90: 2 | M90: 0 | N90: 0 | O90: =IF(B90=data!$B$2,D90*0.7+E90*0.5+F90*0.2+G90*0.8+H90+I90*0.2+J90+K90*0.3+L90+M90*0.5+N90*0.2,IF(B90=data!$B$3,D90*0.1+E90*0.4+F90*0.3+G90*0.1+H90+J90+K90*0.5+L90+M90*0.4,IF(B90=data!$B$4,D90*0.6+E90*0.8+F90*0.7+G90+H90+J90+L90+N90,IF(B90=data!$B$5,D90*0.7+E90*0.8+F90+I90*0.7+J90+L90,"zvolte typ stavby")))) -> 33.1 | P90: =IF(B90=data!$B$2,(O90*10)/6.4,IF(B90=data!$B$3,(O90*10)/4.8,IF(B90=data!$B$4,(O90*10)/7.1,IF(B90=data!$B$5,(O90*10)/5.2,"zvolte typ stavby")))) -> 63.65384615 | Q90: 71750000
A91: II/106, most ev.č. 106 – 001 Štěchovice | B91: mostní objekty a propustky | C91: Most | D91: 5 | E91: 10 | F91: 10 | G91: 6 | H91: 6 | I91: 10 | J91: 10 | K91: 10 | L91: 10 | M91: 10 | N91: 0 | O91: =IF(B91=data!$B$2,D91*0.7+E91*0.5+F91*0.2+G91*0.8+H91+I91*0.2+J91+K91*0.3+L91+M91*0.5+N91*0.2,IF(B91=data!$B$3,D91*0.1+E91*0.4+F91*0.3+G91*0.1+H91+J91+K91*0.5+L91+M91*0.4,IF(B91=data!$B$4,D91*0.6+E91*0.8+F91*0.7+G91+H91+J91+L91+N91,IF(B91=data!$B$5,D91*0.7+E91*0.8+F91+I91*0.7+J91+L91,"zvolte typ stavby")))) -> 43.1 | P91: =IF(B91=data!$B$2,(O91*10)/6.4,IF(B91=data!$B$3,(O91*10)/4.8,IF(B91=data!$B$4,(O91*10)/7.1,IF(B91=data!$B$5,(O91*10)/5.2,"zvolte typ stavby")))) -> 89.79166667 | Q91: 140000000 | S91: Předpokládaný termmín realizace 06/2023-12/2024
A92: II/111 Šternov - Český Šternbek | B92: oprava a rekonstrukce | C92: Rekonstrukce | D92: 3 | E92: 0 | F92: 10 | G92: 10 | H92: 10 | I92: 10 | J92: 7 | K92: 0 | L92: 2 | M92: 10 | N92: 10 | O92: =IF(B92=data!$B$2,D92*0.7+E92*0.5+F92*0.2+G92*0.8+H92+I92*0.2+J92+K92*0.3+L92+M92*0.5+N92*0.2,IF(B92=data!$B$3,D92*0.1+E92*0.4+F92*0.3+G92*0.1+H92+J92+K92*0.5+L92+M92*0.4,IF(B92=data!$B$4,D92*0.6+E92*0.8+F92*0.7+G92+H92+J92+L92+N92,IF(B92=data!$B$5,D92*0.7+E92*0.8+F92+I92*0.7+J92+L92,"zvolte typ stavby")))) -> 40.1 | P92: =IF(B92=data!$B$2,(O92*10)/6.4,IF(B92=data!$B$3,(O92*10)/4.8,IF(B92=data!$B$4,(O92*10)/7.1,IF(B92=data!$B$5,(O92*10)/5.2,"zvolte typ stavby")))) -> 62.65625 | Q92: 70000000
A93: II/331 Brandýs nad Labem - I/9, rekonstrukce silnice etapa IV | B93: oprava a rekonstrukce | C93: Rekonstrukce | D93: 4 | E93: 10 | F93: 10 | G93: 6 | H93: 10 | I93: 10 | J93: 10 | K93: 0 | L93: 5 | M93: 10 | N93: 10 | O93: =IF(B93=data!$B$2,D93*0.7+E93*0.5+F93*0.2+G93*0.8+H93+I93*0.2+J93+K93*0.3+L93+M93*0.5+N93*0.2,IF(B93=data!$B$3,D93*0.1+E93*0.4+F93*0.3+G93*0.1+H93+J93+K93*0.5+L93+M93*0.4,IF(B93=data!$B$4,D93*0.6+E93*0.8+F93*0.7+G93+H93+J93+L93+N93,IF(B93=data!$B$5,D93*0.7+E93*0.8+F93+I93*0.7+J93+L93,"zvolte typ stavby")))) -> 48.6 | P93: =IF(B93=data!$B$2,(O93*10)/6.4,IF(B93=data!$B$3,(O93*10)/4.8,IF(B93=data!$B$4,(O93*10)/7.1,IF(B93=data!$B$5,(O93*10)/5.2,"zvolte typ stavby")))) -> 75.9375 | Q93: 70000000
A94: III/2722 Semice, rekonstrukce | B94: oprava a rekonstrukce | C94: Rekonstrukce | D94: 3 | E94: 0 | F94: 5 | G94: 10 | H94: 10 | I94: 10 | J94: 10 | K94: 10 | L94: 8 | M94: 10 | N94: 0 | O94: =IF(B94=data!$B$2,D94*0.7+E94*0.5+F94*0.2+G94*0.8+H94+I94*0.2+J94+K94*0.3+L94+M94*0.5+N94*0.2,IF(B94=data!$B$3,D94*0.1+E94*0.4+F94*0.3+G94*0.1+H94+J94+K94*0.5+L94+M94*0.4,IF(B94=data!$B$4,D94*0.6+E94*0.8+F94*0.7+G94+H94+J94+L94+N94,IF(B94=data!$B$5,D94*0.7+E94*0.8+F94+I94*0.7+J94+L94,"zvolte typ stavby")))) -> 49.1 | P94: =IF(B94=data!$B$2,(O94*10)/6.4,IF(B94=data!$B$3,(O94*10)/4.8,IF(B94=data!$B$4,(O94*10)/7.1,IF(B94=data!$B$5,(O94*10)/5.2,"zvolte typ stavby")))) -> 76.71875 | Q94: 70000000
A95: II/107 Kamenice, II. etapa | B95: oprava a rekonstrukce | C95: Rekonstrukce | D95: 3 | E95: 10 | F95: 10 | G95: 6 | H95: 6 | I95: 10 | J95: 7 | K95: 0 | L95: 5 | M95: 10 | N95: 4 | O95: =IF(B95=data!$B$2,D95*0.7+E95*0.5+F95*0.2+G95*0.8+H95+I95*0.2+J95+K95*0.3+L95+M95*0.5+N95*0.2,IF(B95=data!$B$3,D95*0.1+E95*0.4+F95*0.3+G95*0.1+H95+J95+K95*0.5+L95+M95*0.4,IF(B95=data!$B$4,D95*0.6+E95*0.8+F95*0.7+G95+H95+J95+L95+N95,IF(B95=data!$B$5,D95*0.7+E95*0.8+F95+I95*0.7+J95+L95,"zvolte typ stavby")))) -> 39.7 | P95: =IF(B95=data!$B$2,(O95*10)/6.4,IF(B95=data!$B$3,(O95*10)/4.8,IF(B95=data!$B$4,(O95*10)/7.1,IF(B95=data!$B$5,(O95*10)/5.2,"zvolte typ stavby")))) -> 62.03125 | Q95: 69000000
A96: II/610 Svijany, most ev.č. 610-035 přes Jizeru před obcí Svijany | B96: mostní objekty a propustky | C96: Most | D96: 3 | E96: 0 | F96: 10 | G96: 6 | H96: 6 | I96: 0 | J96: 7 | K96: 0 | L96: 5 | M96: 10 | N96: 0 | O96: =IF(B96=data!$B$2,D96*0.7+E96*0.5+F96*0.2+G96*0.8+H96+I96*0.2+J96+K96*0.3+L96+M96*0.5+N96*0.2,IF(B96=data!$B$3,D96*0.1+E96*0.4+F96*0.3+G96*0.1+H96+J96+K96*0.5+L96+M96*0.4,IF(B96=data!$B$4,D96*0.6+E96*0.8+F96*0.7+G96+H96+J96+L96+N96,IF(B96=data!$B$5,D96*0.7+E96*0.8+F96+I96*0.7+J96+L96,"zvolte typ stavby")))) -> 25.9 | P96: =IF(B96=data!$B$2,(O96*10)/6.4,IF(B96=data!$B$3,(O96*10)/4.8,IF(B96=data!$B$4,(O96*10)/7.1,IF(B96=data!$B$5,(O96*10)/5.2,"zvolte typ stavby")))) -> 53.95833333 | Q96: 68546000 | S96: Předpokládaný termmín realizace 03/2024-12/2024
A97: III/33355 Kutná Hora, ul. Gruntecká | B97: oprava a rekonstrukce | C97: Rekonstrukce | D97: 3 | E97: 10 | F97: 6 | G97: 6 | H97: 6 | I97: 10 | J97: 7 | K97: 0 | L97: 10 | M97: 10 | N97: 4 | O97: =IF(B97=data!$B$2,D97*0.7+E97*0.5+F97*0.2+G97*0.8+H97+I97*0.2+J97+K97*0.3+L97+M97*0.5+N97*0.2,IF(B97=data!$B$3,D97*0.1+E97*0.4+F97*0.3+G97*0.1+H97+J97+K97*0.5+L97+M97*0.4,IF(B97=data!$B$4,D97*0.6+E97*0.8+F97*0.7+G97+H97+J97+L97+N97,IF(B97=data!$B$5,D97*0.7+E97*0.8+F97+I97*0.7+J97+L97,"zvolte typ stavby")))) -> 43.9 | P97: =IF(B97=data!$B$2,(O97*10)/6.4,IF(B97=data!$B$3,(O97*10)/4.8,IF(B97=data!$B$4,(O97*10)/7.1,IF(B97=data!$B$5,(O97*10)/5.2,"zvolte typ stavby")))) -> 68.59375 | Q97: 67196795.63
A98: II/272 Chotětov - Bezno | B98: oprava a rekonstrukce | C98: Souvislá údržba | D98: 3 | E98: 10 | F98: 10 | G98: 6 | H98: 6 | I98: 10 | J98: 7 | K98: 0 | L98: 10 | M98: 10 | N98: 4 | O98: =IF(B98=data!$B$2,D98*0.7+E98*0.5+F98*0.2+G98*0.8+H98+I98*0.2+J98+K98*0.3+L98+M98*0.5+N98*0.2,IF(B98=data!$B$3,D98*0.1+E98*0.4+F98*0.3+G98*0.1+H98+J98+K98*0.5+L98+M98*0.4,IF(B98=data!$B$4,D98*0.6+E98*0.8+F98*0.7+G98+H98+J98+L98+N98,IF(B98=data!$B$5,D98*0.7+E98*0.8+F98+I98*0.7+J98+L98,"zvolte typ stavby")))) -> 44.7 | P98: =IF(B98=data!$B$2,(O98*10)/6.4,IF(B98=data!$B$3,(O98*10)/4.8,IF(B98=data!$B$4,(O98*10)/7.1,IF(B98=data!$B$5,(O98*10)/5.2,"zvolte typ stavby")))) -> 69.84375 | Q98: 67088737.17
A99: III/0066, III/00711, III/00716 Hřebeč, rekonstrukce silnic I.etapa | B99: oprava a rekonstrukce | C99: Souvislá údržba | D99: 4 | E99: 10 | F99: 6 | G99: 6 | H99: 6 | I99: 10 | J99: 7 | K99: 0 | L99: 10 | M99: 10 | N99: 2 | O99: =IF(B99=data!$B$2,D99*0.7+E99*0.5+F99*0.2+G99*0.8+H99+I99*0.2+J99+K99*0.3+L99+M99*0.5+N99*0.2,IF(B99=data!$B$3,D99*0.1+E99*0.4+F99*0.3+G99*0.1+H99+J99+K99*0.5+L99+M99*0.4,IF(B99=data!$B$4,D99*0.6+E99*0.8+F99*0.7+G99+H99+J99+L99+N99,IF(B99=data!$B$5,D99*0.7+E99*0.8+F99+I99*0.7+J99+L99,"zvolte typ stavby")))) -> 44.2 | P99: =IF(B99=data!$B$2,(O99*10)/6.4,IF(B99=data!$B$3,(O99*10)/4.8,IF(B99=data!$B$4,(O99*10)/7.1,IF(B99=data!$B$5,(O99*10)/5.2,"zvolte typ stavby")))) -> 69.0625 | Q99: 25000000
A100: III/0066, III/00711, III/00716 Hřebeč, rekonstrukce silnic II.etapa | B100: oprava a rekonstrukce | C100: Rekonstrukce | D100: 4 | E100: 10 | F100: 6 | G100: 6 | H100: 6 | I100: 10 | J100: 7 | K100: 0 | L100: 10 | M100: 10 | N100: 2 | O100: =IF(B100=data!$B$2,D100*0.7+E100*0.5+F100*0.2+G100*0.8+H100+I100*0.2+J100+K100*0.3+L100+M100*0.5+N100*0.2,IF(B100=data!$B$3,D100*0.1+E100*0.4+F100*0.3+G100*0.1+H100+J100+K100*0.5+L100+M100*0.4,IF(B100=data!$B$4,D100*0.6+E100*0.8+F100*0.7+G100+H100+J100+L100+N100,IF(B100=data!$B$5,D100*0.7+E100*0.8+F100+I100*0.7+J100+L100,"zvolte typ stavby")))) -> 44.2 | P100: =IF(B100=data!$B$2,(O100*10)/6.4,IF(B100=data!$B$3,(O100*10)/4.8,IF(B100=data!$B$4,(O100*10)/7.1,IF(B100=data!$B$5,(O100*10)/5.2,"zvolte typ stavby")))) -> 69.0625 | Q100: 45000000
A101: II/240,III/2404 Horoměřice-PD | B101: oprava a rekonstrukce | C101: Rekonstrukce | D101: 6 | E101: 10 | F101: 10 | G101: 3 | H101: 6 | I101: 1 | J101: 10 | K101: 0 | L101: 2 | M101: 10 | N101: 7 | O101: =IF(B101=data!$B$2,D101*0.7+E101*0.5+F101*0.2+G101*0.8+H101+I101*0.2+J101+K101*0.3+L101+M101*0.5+N101*0.2,IF(B101=data!$B$3,D101*0.1+E101*0.4+F101*0.3+G101*0.1+H101+J101+K101*0.5+L101+M101*0.4,IF(B101=data!$B$4,D101*0.6+E101*0.8+F101*0.7+G101+H101+J101+L101+N101,IF(B101=data!$B$5,D101*0.7+E101*0.8+F101+I101*0.7+J101+L101,"zvolte typ stavby")))) -> 38.2 | P101: =IF(B101=data!$B$2,(O101*10)/6.4,IF(B101=data!$B$3,(O101*10)/4.8,IF(B101=data!$B$4,(O101*10)/7.1,IF(B101=data!$B$5,(O101*10)/5.2,"zvolte typ stavby")))) -> 59.6875 | Q101: 66754000
A102: III/3399 a III/33914 Vlastějovice - Pavlovice | B102: oprava a rekonstrukce | C102: Rekonstrukce | D102: 3 | E102: 0 | F102: 5 | G102: 3 | H102: 6 | I102: 1 | J102: 4 | K102: 0 | L102: 10 | M102: 10 | N102: 2 | O102: =IF(B102=data!$B$2,D102*0.7+E102*0.5+F102*0.2+G102*0.8+H102+I102*0.2+J102+K102*0.3+L102+M102*0.5+N102*0.2,IF(B102=data!$B$3,D102*0.1+E102*0.4+F102*0.3+G102*0.1+H102+J102+K102*0.5+L102+M102*0.4,IF(B102=data!$B$4,D102*0.6+E102*0.8+F102*0.7+G102+H102+J102+L102+N102,IF(B102=data!$B$5,D102*0.7+E102*0.8+F102+I102*0.7+J102+L102,"zvolte typ stavby")))) -> 31.1 | P102: =IF(B102=data!$B$2,(O102*10)/6.4,IF(B102=data!$B$3,(O102*10)/4.8,IF(B102=data!$B$4,(O102*10)/7.1,IF(B102=data!$B$5,(O102*10)/5.2,"zvolte typ stavby")))) -> 48.59375 | Q102: 115000000 | U102: IROP 2
A103: III/1024 a III/1025 Čisovice, mosty ev.č. 1024-2, 1024-4 a 1025-2 | B103: mostní objekty a propustky | C103: Most | D103: 2 | E103: 0 | F103: 5 | G103: 6 | H103: 6 | I103: 0 | J103: 4 | K103: 0 | L103: 5 | M103: 10 | N103: 0 | O103: =IF(B103=data!$B$2,D103*0.7+E103*0.5+F103*0.2+G103*0.8+H103+I103*0.2+J103+K103*0.3+L103+M103*0.5+N103*0.2,IF(B103=data!$B$3,D103*0.1+E103*0.4+F103*0.3+G103*0.1+H103+J103+K103*0.5+L103+M103*0.4,IF(B103=data!$B$4,D103*0.6+E103*0.8+F103*0.7+G103+H103+J103+L103+N103,IF(B103=data!$B$5,D103*0.7+E103*0.8+F103+I103*0.7+J103+L103,"zvolte typ stavby")))) -> 21.3 | P103: =IF(B103=data!$B$2,(O103*10)/6.4,IF(B103=data!$B$3,(O103*10)/4.8,IF(B103=data!$B$4,(O103*10)/7.1,IF(B103=data!$B$5,(O103*10)/5.2,"zvolte typ stavby")))) -> 44.375 | Q103: 65000000 | S103: Předpokládaný termmín realizace 03/2024-12/2024 | U103: IROP 2
A104: II/120 Sedlec - Prčice - hr. Kraje 16,976-11,566 km | B104: oprava a rekonstrukce | C104: Rekonstrukce | D104: 4 | E104: 10 | F104: 10 | G104: 6 | H104: 6 | I104: 10 | J104: 7 | K104: 0 | L104: 10 | M104: 10 | N104: 7 | O104: =IF(B104=data!$B$2,D104*0.7+E104*0.5+F104*0.2+G104*0.8+H104+I104*0.2+J104+K104*0.3+L104+M104*0.5+N104*0.2,IF(B104=data!$B$3,D104*0.1+E104*0.4+F104*0.3+G104*0.1+H104+J104+K104*0.5+L104+M104*0.4,IF(B104=data!$B$4,D104*0.6+E104*0.8+F104*0.7+G104+H104+J104+L104+N104,IF(B104=data!$B$5,D104*0.7+E104*0.8+F104+I104*0.7+J104+L104,"zvolte typ stavby")))) -> 46 | P104: =IF(B104=data!$B$2,(O104*10)/6.4,IF(B104=data!$B$3,(O104*10)/4.8,IF(B104=data!$B$4,(O104*10)/7.1,IF(B104=data!$B$5,(O104*10)/5.2,"zvolte typ stavby")))) -> 71.875 | Q104: 159500000 | S104: Předpoklad SFDI nebo IROP dle možností v době dokončení
A105: III/1025 Čísovice - Bojov, havarijní stav silnice - PD | B105: oprava a rekonstrukce | C105: Rekonstrukce | D105: 1 | E105: 10 | F105: 5 | G105: 6 | H105: 6 | I105: 0 | J105: 2 | K105: 10 | L105: 5 | M105: 10 | N105: 2 | O105: =IF(B105=data!$B$2,D105*0.7+E105*0.5+F105*0.2+G105*0.8+H105+I105*0.2+J105+K105*0.3+L105+M105*0.5+N105*0.2,IF(B105=data!$B$3,D105*0.1+E105*0.4+F105*0.3+G105*0.1+H105+J105+K105*0.5+L105+M105*0.4,IF(B105=data!$B$4,D105*0.6+E105*0.8+F105*0.7+G105+H105+J105+L105+N105,IF(B105=data!$B$5,D105*0.7+E105*0.8+F105+I105*0.7+J105+L105,"zvolte typ stavby")))) -> 32.9 | P105: =IF(B105=data!$B$2,(O105*10)/6.4,IF(B105=data!$B$3,(O105*10)/4.8,IF(B105=data!$B$4,(O105*10)/7.1,IF(B105=data!$B$5,(O105*10)/5.2,"zvolte typ stavby")))) -> 51.40625 | Q105: 65000000
A106: II/116 Hostim a Nižbor a II/201 Višňová - Nezabudice, nestabilní skalní masiv | B106: řešení bodové závady a/nebo bezpečnostního rizika (křižovatky, opěrné zdi, skalní masivy) | C106: - | D106: 4 | E106: 10 | F106: 10 | G106: 10 | H106: 10 | I106: 0 | J106: 2 | K106: 0 | L106: 2 | M106: 0 | N106: 4 | O106: =IF(B106=data!$B$2,D106*0.7+E106*0.5+F106*0.2+G106*0.8+H106+I106*0.2+J106+K106*0.3+L106+M106*0.5+N106*0.2,IF(B106=data!$B$3,D106*0.1+E106*0.4+F106*0.3+G106*0.1+H106+J106+K106*0.5+L106+M106*0.4,IF(B106=data!$B$4,D106*0.6+E106*0.8+F106*0.7+G106+H106+J106+L106+N106,IF(B106=data!$B$5,D106*0.7+E106*0.8+F106+I106*0.7+J106+L106,"zvolte typ stavby")))) -> 45.4 | P106: =IF(B106=data!$B$2,(O106*10)/6.4,IF(B106=data!$B$3,(O106*10)/4.8,IF(B106=data!$B$4,(O106*10)/7.1,IF(B106=data!$B$5,(O106*10)/5.2,"zvolte typ stavby")))) -> 63.94366197 | Q106: 64130000 | U106: IROP 2
A107: III/0042 Líšnice, rekonstrukce silnice | B107: oprava a rekonstrukce | C107: Rekonstrukce | D107: 5 | E107: 10 | F107: 7 | G107: 6 | H107: 6 | I107: 10 | J107: 10 | K107: 0 | L107: 10 | M107: 10 | N107: 2 | O107: =IF(B107=data!$B$2,D107*0.7+E107*0.5+F107*0.2+G107*0.8+H107+I107*0.2+J107+K107*0.3+L107+M107*0.5+N107*0.2,IF(B107=data!$B$3,D107*0.1+E107*0.4+F107*0.3+G107*0.1+H107+J107+K107*0.5+L107+M107*0.4,IF(B107=data!$B$4,D107*0.6+E107*0.8+F107*0.7+G107+H107+J107+L107+N107,IF(B107=data!$B$5,D107*0.7+E107*0.8+F107+I107*0.7+J107+L107,"zvolte typ stavby")))) -> 48.1 | P107: =IF(B107=data!$B$2,(O107*10)/6.4,IF(B107=data!$B$3,(O107*10)/4.8,IF(B107=data!$B$4,(O107*10)/7.1,IF(B107=data!$B$5,(O107*10)/5.2,"zvolte typ stavby")))) -> 75.15625 | Q107: 64000000 | S107: Předpoklad SFDI nebo IROP dle možností v době dokončení
A108: II/116,III/1164 a III/1164A, průtah obcí Hýskov-PD | B108: oprava a rekonstrukce | C108: Rekonstrukce | D108: 4 | E108: 10 | F108: 10 | G108: 6 | H108: 6 | I108: 10 | J108: 7 | K108: 0 | L108: 8 | M108: 10 | N108: 2 | O108: =IF(B108=data!$B$2,D108*0.7+E108*0.5+F108*0.2+G108*0.8+H108+I108*0.2+J108+K108*0.3+L108+M108*0.5+N108*0.2,IF(B108=data!$B$3,D108*0.1+E108*0.4+F108*0.3+G108*0.1+H108+J108+K108*0.5+L108+M108*0.4,IF(B108=data!$B$4,D108*0.6+E108*0.8+F108*0.7+G108+H108+J108+L108+N108,IF(B108=data!$B$5,D108*0.7+E108*0.8+F108+I108*0.7+J108+L108,"zvolte typ stavby")))) -> 43 | P108: =IF(B108=data!$B$2,(O108*10)/6.4,IF(B108=data!$B$3,(O108*10)/4.8,IF(B108=data!$B$4,(O108*10)/7.1,IF(B108=data!$B$5,(O108*10)/5.2,"zvolte typ stavby")))) -> 67.1875 | Q108: 63024287.38 | U108: IROP 2
A109: III-00315,III-10113 Radlík-Kostelec u Křížků - I. Etapa | B109: oprava a rekonstrukce | C109: Souvislá údržba | D109: 3 | E109: 10 | F109: 5 | G109: 6 | H109: 6 | I109: 1 | J109: 7 | K109: 0 | L109: 10 | M109: 10 | N109: 7 | O109: =IF(B109=data!$B$2,D109*0.7+E109*0.5+F109*0.2+G109*0.8+H109+I109*0.2+J109+K109*0.3+L109+M109*0.5+N109*0.2,IF(B109=data!$B$3,D109*0.1+E109*0.4+F109*0.3+G109*0.1+H109+J109+K109*0.5+L109+M109*0.4,IF(B109=data!$B$4,D109*0.6+E109*0.8+F109*0.7+G109+H109+J109+L109+N109,IF(B109=data!$B$5,D109*0.7+E109*0.8+F109+I109*0.7+J109+L109,"zvolte typ stavby")))) -> 42.5 | P109: =IF(B109=data!$B$2,(O109*10)/6.4,IF(B109=data!$B$3,(O109*10)/4.8,IF(B109=data!$B$4,(O109*10)/7.1,IF(B109=data!$B$5,(O109*10)/5.2,"zvolte typ stavby")))) -> 66.40625 | Q109: 61185500.45
A110: II/110 Ostředek - Sázava etapa 3 | B110: oprava a rekonstrukce | C110: Rekonstrukce | D110: 3 | E110: 10 | F110: 10 | G110: 3 | H110: 6 | I110: 1 | J110: 4 | K110: 10 | L110: 2 | M110: 0 | N110: 0 | O110: =IF(B110=data!$B$2,D110*0.7+E110*0.5+F110*0.2+G110*0.8+H110+I110*0.2+J110+K110*0.3+L110+M110*0.5+N110*0.2,IF(B110=data!$B$3,D110*0.1+E110*0.4+F110*0.3+G110*0.1+H110+J110+K110*0.5+L110+M110*0.4,IF(B110=data!$B$4,D110*0.6+E110*0.8+F110*0.7+G110+H110+J110+L110+N110,IF(B110=data!$B$5,D110*0.7+E110*0.8+F110+I110*0.7+J110+L110,"zvolte typ stavby")))) -> 26.7 | P110: =IF(B110=data!$B$2,(O110*10)/6.4,IF(B110=data!$B$3,(O110*10)/4.8,IF(B110=data!$B$4,(O110*10)/7.1,IF(B110=data!$B$5,(O110*10)/5.2,"zvolte typ stavby")))) -> 41.71875 | Q110: 61000000 | S110: Nutné realizovat s Lysá obchvat 2. stavba | U110: IROP 2
A111: II/334 Sadská - Milčice | B111: oprava a rekonstrukce | C111: Rekonstrukce | D111: 2 | E111: 10 | F111: 10 | G111: 3 | H111: 6 | I111: 10 | J111: 4 | K111: 0 | L111: 5 | M111: 10 | N111: 4 | O111: =IF(B111=data!$B$2,D111*0.7+E111*0.5+F111*0.2+G111*0.8+H111+I111*0.2+J111+K111*0.3+L111+M111*0.5+N111*0.2,IF(B111=data!$B$3,D111*0.1+E111*0.4+F111*0.3+G111*0.1+H111+J111+K111*0.5+L111+M111*0.4,IF(B111=data!$B$4,D111*0.6+E111*0.8+F111*0.7+G111+H111+J111+L111+N111,IF(B111=data!$B$5,D111*0.7+E111*0.8+F111+I111*0.7+J111+L111,"zvolte typ stavby")))) -> 33.6 | P111: =IF(B111=data!$B$2,(O111*10)/6.4,IF(B111=data!$B$3,(O111*10)/4.8,IF(B111=data!$B$4,(O111*10)/7.1,IF(B111=data!$B$5,(O111*10)/5.2,"zvolte typ stavby")))) -> 52.5 | Q111: 60000000
A112: III/1057 Oprava komunikace na hrázi Dunávického rybníka, PD | B112: oprava a rekonstrukce | C112: Rekonstrukce | D112: 1 | E112: 0 | F112: 5 | G112: 10 | H112: 10 | I112: 10 | J112: 7 | K112: 0 | L112: 10 | M112: 10 | N112: 4 | O112: =IF(B112=data!$B$2,D112*0.7+E112*0.5+F112*0.2+G112*0.8+H112+I112*0.2+J112+K112*0.3+L112+M112*0.5+N112*0.2,IF(B112=data!$B$3,D112*0.1+E112*0.4+F112*0.3+G112*0.1+H112+J112+K112*0.5+L112+M112*0.4,IF(B112=data!$B$4,D112*0.6+E112*0.8+F112*0.7+G112+H112+J112+L112+N112,IF(B112=data!$B$5,D112*0.7+E112*0.8+F112+I112*0.7+J112+L112,"zvolte typ stavby")))) -> 44.5 | P112: =IF(B112=data!$B$2,(O112*10)/6.4,IF(B112=data!$B$3,(O112*10)/4.8,IF(B112=data!$B$4,(O112*10)/7.1,IF(B112=data!$B$5,(O112*10)/5.2,"zvolte typ stavby")))) -> 69.53125 | Q112: 60000000 | U112: IROP 2
A113: ,,II/610 Předměřice, most ev.č. 610-020 inundaci Jizery u Předměřic - PD" | B113: mostní objekty a propustky | C113: Most | D113: 3 | E113: 10 | F113: 10 | G113: 6 | H113: 6 | I113: 10 | J113: 10 | K113: 0 | L113: 8 | M113: 10 | N113: 0 | O113: =IF(B113=data!$B$2,D113*0.7+E113*0.5+F113*0.2+G113*0.8+H113+I113*0.2+J113+K113*0.3+L113+M113*0.5+N113*0.2,IF(B113=data!$B$3,D113*0.1+E113*0.4+F113*0.3+G113*0.1+H113+J113+K113*0.5+L113+M113*0.4,IF(B113=data!$B$4,D113*0.6+E113*0.8+F113*0.7+G113+H113+J113+L113+N113,IF(B113=data!$B$5,D113*0.7+E113*0.8+F113+I113*0.7+J113+L113,"zvolte typ stavby")))) -> 35.9 | P113: =IF(B113=data!$B$2,(O113*10)/6.4,IF(B113=data!$B$3,(O113*10)/4.8,IF(B113=data!$B$4,(O113*10)/7.1,IF(B113=data!$B$5,(O113*10)/5.2,"zvolte typ stavby")))) -> 74.79166667 | Q113: 60000000 | S113: Předpokládaný termmín realizace 07/2024-07/2025. V případě komplpikací s NPÚ realizace 2024.
A114: ,,II/276 Bakov, most ev.č. 276-006 přes Jizeru před Bakovem n/J “ | B114: mostní objekty a propustky | C114: Most | D114: 4 | E114: 0 | F114: 10 | G114: 6 | H114: 6 | I114: 0 | J114: 10 | K114: 0 | L114: 5 | M114: 10 | N114: 0 | O114: =IF(B114=data!$B$2,D114*0.7+E114*0.5+F114*0.2+G114*0.8+H114+I114*0.2+J114+K114*0.3+L114+M114*0.5+N114*0.2,IF(B114=data!$B$3,D114*0.1+E114*0.4+F114*0.3+G114*0.1+H114+J114+K114*0.5+L114+M114*0.4,IF(B114=data!$B$4,D114*0.6+E114*0.8+F114*0.7+G114+H114+J114+L114+N114,IF(B114=data!$B$5,D114*0.7+E114*0.8+F114+I114*0.7+J114+L114,"zvolte typ stavby")))) -> 29 | P114: =IF(B114=data!$B$2,(O114*10)/6.4,IF(B114=data!$B$3,(O114*10)/4.8,IF(B114=data!$B$4,(O114*10)/7.1,IF(B114=data!$B$5,(O114*10)/5.2,"zvolte typ stavby")))) -> 60.41666667 | Q114: 59800000 | S114: Předpokládaný termmín realizace 03/2024-06/2025
A115: III/1023 Masečín | B115: oprava a rekonstrukce | C115: Souvislá údržba | D115: 2 | E115: 10 | F115: 5 | G115: 6 | H115: 6 | I115: 10 | J115: 4 | K115: 10 | L115: 10 | M115: 10 | N115: 2 | O115: =IF(B115=data!$B$2,D115*0.7+E115*0.5+F115*0.2+G115*0.8+H115+I115*0.2+J115+K115*0.3+L115+M115*0.5+N115*0.2,IF(B115=data!$B$3,D115*0.1+E115*0.4+F115*0.3+G115*0.1+H115+J115+K115*0.5+L115+M115*0.4,IF(B115=data!$B$4,D115*0.6+E115*0.8+F115*0.7+G115+H115+J115+L115+N115,IF(B115=data!$B$5,D115*0.7+E115*0.8+F115+I115*0.7+J115+L115,"zvolte typ stavby")))) -> 42.6 | P115: =IF(B115=data!$B$2,(O115*10)/6.4,IF(B115=data!$B$3,(O115*10)/4.8,IF(B115=data!$B$4,(O115*10)/7.1,IF(B115=data!$B$5,(O115*10)/5.2,"zvolte typ stavby")))) -> 66.5625 | Q115: 57765622.05 | S115: Předpokiládaný termín realizace během stavební sezony 2023
A116: III/1021 Měchenice, rekonstrukce silnice | B116: oprava a rekonstrukce | C116: Rekonstrukce | D116: 3 | E116: 10 | F116: 5 | G116: 6 | H116: 6 | I116: 10 | J116: 4 | K116: 0 | L116: 10 | M116: 10 | N116: 2 | O116: =IF(B116=data!$B$2,D116*0.7+E116*0.5+F116*0.2+G116*0.8+H116+I116*0.2+J116+K116*0.3+L116+M116*0.5+N116*0.2,IF(B116=data!$B$3,D116*0.1+E116*0.4+F116*0.3+G116*0.1+H116+J116+K116*0.5+L116+M116*0.4,IF(B116=data!$B$4,D116*0.6+E116*0.8+F116*0.7+G116+H116+J116+L116+N116,IF(B116=data!$B$5,D116*0.7+E116*0.8+F116+I116*0.7+J116+L116,"zvolte typ stavby")))) -> 40.3 | P116: =IF(B116=data!$B$2,(O116*10)/6.4,IF(B116=data!$B$3,(O116*10)/4.8,IF(B116=data!$B$4,(O116*10)/7.1,IF(B116=data!$B$5,(O116*10)/5.2,"zvolte typ stavby")))) -> 62.96875 | Q116: 56466520
A117: III/10140 Cvrčovice, rekonstrukce silnice | B117: oprava a rekonstrukce | C117: Souvislá údržba | D117: 3 | E117: 10 | F117: 6 | G117: 6 | H117: 6 | I117: 10 | J117: 7 | K117: 10 | L117: 10 | M117: 10 | N117: 7 | O117: =IF(B117=data!$B$2,D117*0.7+E117*0.5+F117*0.2+G117*0.8+H117+I117*0.2+J117+K117*0.3+L117+M117*0.5+N117*0.2,IF(B117=data!$B$3,D117*0.1+E117*0.4+F117*0.3+G117*0.1+H117+J117+K117*0.5+L117+M117*0.4,IF(B117=data!$B$4,D117*0.6+E117*0.8+F117*0.7+G117+H117+J117+L117+N117,IF(B117=data!$B$5,D117*0.7+E117*0.8+F117+I117*0.7+J117+L117,"zvolte typ stavby")))) -> 47.5 | P117: =IF(B117=data!$B$2,(O117*10)/6.4,IF(B117=data!$B$3,(O117*10)/4.8,IF(B117=data!$B$4,(O117*10)/7.1,IF(B117=data!$B$5,(O117*10)/5.2,"zvolte typ stavby")))) -> 74.21875 | Q117: 79000000
A118: Černuc - obchvat | B118: novostavba (obchvat, přeložka, propojka) | C118: - | D118: 3 | E118: 10 | F118: 10 | G118: 0 | H118: 0 | I118: 10 | J118: 4 | K118: 0 | L118: 2 | M118: 0 | N118: 0 | O118: =IF(B118=data!$B$2,D118*0.7+E118*0.5+F118*0.2+G118*0.8+H118+I118*0.2+J118+K118*0.3+L118+M118*0.5+N118*0.2,IF(B118=data!$B$3,D118*0.1+E118*0.4+F118*0.3+G118*0.1+H118+J118+K118*0.5+L118+M118*0.4,IF(B118=data!$B$4,D118*0.6+E118*0.8+F118*0.7+G118+H118+J118+L118+N118,IF(B118=data!$B$5,D118*0.7+E118*0.8+F118+I118*0.7+J118+L118,"zvolte typ stavby")))) -> 33.1 | P118: =IF(B118=data!$B$2,(O118*10)/6.4,IF(B118=data!$B$3,(O118*10)/4.8,IF(B118=data!$B$4,(O118*10)/7.1,IF(B118=data!$B$5,(O118*10)/5.2,"zvolte typ stavby")))) -> 63.65384615 | Q118: 55000000
A119: II/115 Praha - Lety, rekonstrukce | B119: oprava a rekonstrukce | C119: Rekonstrukce | D119: 7 | E119: 10 | F119: 10 | G119: 6 | H119: 10 | I119: 10 | J119: 10 | K119: 0 | L119: 5 | M119: 10 | N119: 10 | O119: =IF(B119=data!$B$2,D119*0.7+E119*0.5+F119*0.2+G119*0.8+H119+I119*0.2+J119+K119*0.3+L119+M119*0.5+N119*0.2,IF(B119=data!$B$3,D119*0.1+E119*0.4+F119*0.3+G119*0.1+H119+J119+K119*0.5+L119+M119*0.4,IF(B119=data!$B$4,D119*0.6+E119*0.8+F119*0.7+G119+H119+J119+L119+N119,IF(B119=data!$B$5,D119*0.7+E119*0.8+F119+I119*0.7+J119+L119,"zvolte typ stavby")))) -> 50.7 | P119: =IF(B119=data!$B$2,(O119*10)/6.4,IF(B119=data!$B$3,(O119*10)/4.8,IF(B119=data!$B$4,(O119*10)/7.1,IF(B119=data!$B$5,(O119*10)/5.2,"zvolte typ stavby")))) -> 79.21875 | Q119: 54999999.45
A120: III/23915 Dřínov - Drchkov | B120: oprava a rekonstrukce | C120: Rekonstrukce | D120: 3 | E120: 10 | F120: 5 | G120: 3 | H120: 10 | I120: 10 | J120: 2 | K120: 0 | L120: 8 | M120: 10 | N120: 4 | O120: =IF(B120=data!$B$2,D120*0.7+E120*0.5+F120*0.2+G120*0.8+H120+I120*0.2+J120+K120*0.3+L120+M120*0.5+N120*0.2,IF(B120=data!$B$3,D120*0.1+E120*0.4+F120*0.3+G120*0.1+H120+J120+K120*0.5+L120+M120*0.4,IF(B120=data!$B$4,D120*0.6+E120*0.8+F120*0.7+G120+H120+J120+L120+N120,IF(B120=data!$B$5,D120*0.7+E120*0.8+F120+I120*0.7+J120+L120,"zvolte typ stavby")))) -> 38.3 | P120: =IF(B120=data!$B$2,(O120*10)/6.4,IF(B120=data!$B$3,(O120*10)/4.8,IF(B120=data!$B$4,(O120*10)/7.1,IF(B120=data!$B$5,(O120*10)/5.2,"zvolte typ stavby")))) -> 59.84375 | Q120: 56000000 | S120: Předpoklad SFDI nebo IROP dle možností v době dokončení
A121: III/24513 Rostoklaty, most ev.č. 24513-1 přes trať | B121: mostní objekty a propustky | C121: Most | D121: 2 | E121: 0 | F121: 5 | G121: 6 | H121: 6 | I121: 0 | J121: 7 | K121: 10 | L121: 5 | M121: 10 | N121: 0 | O121: =IF(B121=data!$B$2,D121*0.7+E121*0.5+F121*0.2+G121*0.8+H121+I121*0.2+J121+K121*0.3+L121+M121*0.5+N121*0.2,IF(B121=data!$B$3,D121*0.1+E121*0.4+F121*0.3+G121*0.1+H121+J121+K121*0.5+L121+M121*0.4,IF(B121=data!$B$4,D121*0.6+E121*0.8+F121*0.7+G121+H121+J121+L121+N121,IF(B121=data!$B$5,D121*0.7+E121*0.8+F121+I121*0.7+J121+L121,"zvolte typ stavby")))) -> 29.3 | P121: =IF(B121=data!$B$2,(O121*10)/6.4,IF(B121=data!$B$3,(O121*10)/4.8,IF(B121=data!$B$4,(O121*10)/7.1,IF(B121=data!$B$5,(O121*10)/5.2,"zvolte typ stavby")))) -> 61.04166667 | Q121: 54269000 | S121: Předpokládaný termmín realizace 03/2024-12/2024 | U121: IROP 2
A122: II/338 Žehušice - hr. Obl. | B122: oprava a rekonstrukce | C122: Rekonstrukce | D122: 2 | E122: 0 | F122: 10 | G122: 6 | H122: 6 | I122: 10 | J122: 7 | K122: 0 | L122: 2 | M122: 10 | N122: 2 | O122: =IF(B122=data!$B$2,D122*0.7+E122*0.5+F122*0.2+G122*0.8+H122+I122*0.2+J122+K122*0.3+L122+M122*0.5+N122*0.2,IF(B122=data!$B$3,D122*0.1+E122*0.4+F122*0.3+G122*0.1+H122+J122+K122*0.5+L122+M122*0.4,IF(B122=data!$B$4,D122*0.6+E122*0.8+F122*0.7+G122+H122+J122+L122+N122,IF(B122=data!$B$5,D122*0.7+E122*0.8+F122+I122*0.7+J122+L122,"zvolte typ stavby")))) -> 30.6 | P122: =IF(B122=data!$B$2,(O122*10)/6.4,IF(B122=data!$B$3,(O122*10)/4.8,IF(B122=data!$B$4,(O122*10)/7.1,IF(B122=data!$B$5,(O122*10)/5.2,"zvolte typ stavby")))) -> 47.8125 | Q122: 52000000
A123: II/116 Nová Ves pod Pleší | B123: oprava a rekonstrukce | C123: Rekonstrukce | D123: 3 | E123: 10 | F123: 10 | G123: 6 | H123: 10 | I123: 10 | J123: 4 | K123: 0 | L123: 10 | M123: 10 | N123: 2 | O123: =IF(B123=data!$B$2,D123*0.7+E123*0.5+F123*0.2+G123*0.8+H123+I123*0.2+J123+K123*0.3+L123+M123*0.5+N123*0.2,IF(B123=data!$B$3,D123*0.1+E123*0.4+F123*0.3+G123*0.1+H123+J123+K123*0.5+L123+M123*0.4,IF(B123=data!$B$4,D123*0.6+E123*0.8+F123*0.7+G123+H123+J123+L123+N123,IF(B123=data!$B$5,D123*0.7+E123*0.8+F123+I123*0.7+J123+L123,"zvolte typ stavby")))) -> 45.3 | P123: =IF(B123=data!$B$2,(O123*10)/6.4,IF(B123=data!$B$3,(O123*10)/4.8,IF(B123=data!$B$4,(O123*10)/7.1,IF(B123=data!$B$5,(O123*10)/5.2,"zvolte typ stavby")))) -> 70.78125 | Q123: 64207000
A124: II/106 Týnec nad Sázavou - Benešov - PD | B124: oprava a rekonstrukce | C124: Rekonstrukce | D124: 5 | E124: 10 | F124: 10 | G124: 3 | H124: 10 | I124: 1 | J124: 4 | K124: 0 | L124: 2 | M124: 0 | N124: 2 | O124: =IF(B124=data!$B$2,D124*0.7+E124*0.5+F124*0.2+G124*0.8+H124+I124*0.2+J124+K124*0.3+L124+M124*0.5+N124*0.2,IF(B124=data!$B$3,D124*0.1+E124*0.4+F124*0.3+G124*0.1+H124+J124+K124*0.5+L124+M124*0.4,IF(B124=data!$B$4,D124*0.6+E124*0.8+F124*0.7+G124+H124+J124+L124+N124,IF(B124=data!$B$5,D124*0.7+E124*0.8+F124+I124*0.7+J124+L124,"zvolte typ stavby")))) -> 29.5 | P124: =IF(B124=data!$B$2,(O124*10)/6.4,IF(B124=data!$B$3,(O124*10)/4.8,IF(B124=data!$B$4,(O124*10)/7.1,IF(B124=data!$B$5,(O124*10)/5.2,"zvolte typ stavby")))) -> 46.09375 | Q124: 50000000 | R124: -
A125: III/3321 Milovice (ul. Družstevní), rekonstrukce komunikace | B125: oprava a rekonstrukce | C125: Rekonstrukce | D125: 3 | E125: 0 | F125: 5 | G125: 10 | H125: 6 | I125: 10 | J125: 10 | K125: 0 | L125: 2 | M125: 0 | N125: 2 | O125: =IF(B125=data!$B$2,D125*0.7+E125*0.5+F125*0.2+G125*0.8+H125+I125*0.2+J125+K125*0.3+L125+M125*0.5+N125*0.2,IF(B125=data!$B$3,D125*0.1+E125*0.4+F125*0.3+G125*0.1+H125+J125+K125*0.5+L125+M125*0.4,IF(B125=data!$B$4,D125*0.6+E125*0.8+F125*0.7+G125+H125+J125+L125+N125,IF(B125=data!$B$5,D125*0.7+E125*0.8+F125+I125*0.7+J125+L125,"zvolte typ stavby")))) -> 31.5 | P125: =IF(B125=data!$B$2,(O125*10)/6.4,IF(B125=data!$B$3,(O125*10)/4.8,IF(B125=data!$B$4,(O125*10)/7.1,IF(B125=data!$B$5,(O125*10)/5.2,"zvolte typ stavby")))) -> 49.21875 | Q125: 50000000
A126: II/111 Bystřice – křižovatka s III/11112 | B126: oprava a rekonstrukce | C126: Rekonstrukce | D126: 2 | E126: 10 | F126: 10 | G126: 3 | H126: 3 | I126: 10 | J126: 4 | K126: 0 | L126: 8 | M126: 10 | N126: 4 | O126: =IF(B126=data!$B$2,D126*0.7+E126*0.5+F126*0.2+G126*0.8+H126+I126*0.2+J126+K126*0.3+L126+M126*0.5+N126*0.2,IF(B126=data!$B$3,D126*0.1+E126*0.4+F126*0.3+G126*0.1+H126+J126+K126*0.5+L126+M126*0.4,IF(B126=data!$B$4,D126*0.6+E126*0.8+F126*0.7+G126+H126+J126+L126+N126,IF(B126=data!$B$5,D126*0.7+E126*0.8+F126+I126*0.7+J126+L126,"zvolte typ stavby")))) -> 33.6 | P126: =IF(B126=data!$B$2,(O126*10)/6.4,IF(B126=data!$B$3,(O126*10)/4.8,IF(B126=data!$B$4,(O126*10)/7.1,IF(B126=data!$B$5,(O126*10)/5.2,"zvolte typ stavby")))) -> 52.5 | Q126: 96000000
A127: II/335 Uhlířské Janovice – Staňkovice, rekonstrukce vozovky a odstranění bodové závady_PD - II. etapa | B127: oprava a rekonstrukce | C127: Rekonstrukce | D127: 3 | E127: 10 | F127: 10 | G127: 6 | H127: 10 | I127: 10 | J127: 2 | K127: 0 | L127: 2 | M127: 10 | N127: 4 | O127: =IF(B127=data!$B$2,D127*0.7+E127*0.5+F127*0.2+G127*0.8+H127+I127*0.2+J127+K127*0.3+L127+M127*0.5+N127*0.2,IF(B127=data!$B$3,D127*0.1+E127*0.4+F127*0.3+G127*0.1+H127+J127+K127*0.5+L127+M127*0.4,IF(B127=data!$B$4,D127*0.6+E127*0.8+F127*0.7+G127+H127+J127+L127+N127,IF(B127=data!$B$5,D127*0.7+E127*0.8+F127+I127*0.7+J127+L127,"zvolte typ stavby")))) -> 35.7 | P127: =IF(B127=data!$B$2,(O127*10)/6.4,IF(B127=data!$B$3,(O127*10)/4.8,IF(B127=data!$B$4,(O127*10)/7.1,IF(B127=data!$B$5,(O127*10)/5.2,"zvolte typ stavby")))) -> 55.78125 | Q127: 65000000
A128: II/115 Řevnice - Vižina, rekonstrukce I. Etapa 2. část. - PD | B128: oprava a rekonstrukce | C128: Rekonstrukce | D128: 3 | E128: 10 | F128: 10 | G128: 3 | H128: 6 | I128: 10 | J128: 4 | K128: 0 | L128: 5 | M128: 10 | N128: 0 | O128: =IF(B128=data!$B$2,D128*0.7+E128*0.5+F128*0.2+G128*0.8+H128+I128*0.2+J128+K128*0.3+L128+M128*0.5+N128*0.2,IF(B128=data!$B$3,D128*0.1+E128*0.4+F128*0.3+G128*0.1+H128+J128+K128*0.5+L128+M128*0.4,IF(B128=data!$B$4,D128*0.6+E128*0.8+F128*0.7+G128+H128+J128+L128+N128,IF(B128=data!$B$5,D128*0.7+E128*0.8+F128+I128*0.7+J128+L128,"zvolte typ stavby")))) -> 33.5 | P128: =IF(B128=data!$B$2,(O128*10)/6.4,IF(B128=data!$B$3,(O128*10)/4.8,IF(B128=data!$B$4,(O128*10)/7.1,IF(B128=data!$B$5,(O128*10)/5.2,"zvolte typ stavby")))) -> 52.34375 | Q128: 50000000
A129: II/111 křižovatka s III/11112 - křižovatka s II/112 | B129: oprava a rekonstrukce | C129: Rekonstrukce | D129: 3 | E129: 10 | F129: 9 | G129: 3 | H129: 10 | I129: 1 | J129: 4 | K129: 0 | L129: 10 | M129: 10 | N129: 0 | O129: =IF(B129=data!$B$2,D129*0.7+E129*0.5+F129*0.2+G129*0.8+H129+I129*0.2+J129+K129*0.3+L129+M129*0.5+N129*0.2,IF(B129=data!$B$3,D129*0.1+E129*0.4+F129*0.3+G129*0.1+H129+J129+K129*0.5+L129+M129*0.4,IF(B129=data!$B$4,D129*0.6+E129*0.8+F129*0.7+G129+H129+J129+L129+N129,IF(B129=data!$B$5,D129*0.7+E129*0.8+F129+I129*0.7+J129+L129,"zvolte typ stavby")))) -> 40.5 | P129: =IF(B129=data!$B$2,(O129*10)/6.4,IF(B129=data!$B$3,(O129*10)/4.8,IF(B129=data!$B$4,(O129*10)/7.1,IF(B129=data!$B$5,(O129*10)/5.2,"zvolte typ stavby")))) -> 63.28125 | Q129: 50000000 | R129: -
A130: „III/27938 Obrubce – Dolní Bousov“, | B130: oprava a rekonstrukce | C130: Rekonstrukce | D130: 4 | E130: 10 | F130: 5 | G130: 6 | H130: 6 | I130: 10 | J130: 4 | K130: 0 | L130: 8 | M130: 10 | N130: 10 | O130: =IF(B130=data!$B$2,D130*0.7+E130*0.5+F130*0.2+G130*0.8+H130+I130*0.2+J130+K130*0.3+L130+M130*0.5+N130*0.2,IF(B130=data!$B$3,D130*0.1+E130*0.4+F130*0.3+G130*0.1+H130+J130+K130*0.5+L130+M130*0.4,IF(B130=data!$B$4,D130*0.6+E130*0.8+F130*0.7+G130+H130+J130+L130+N130,IF(B130=data!$B$5,D130*0.7+E130*0.8+F130+I130*0.7+J130+L130,"zvolte typ stavby")))) -> 40.6 | P130: =IF(B130=data!$B$2,(O130*10)/6.4,IF(B130=data!$B$3,(O130*10)/4.8,IF(B130=data!$B$4,(O130*10)/7.1,IF(B130=data!$B$5,(O130*10)/5.2,"zvolte typ stavby")))) -> 63.4375 | Q130: 113991000
A131: II/275 Luštěnice průtah, rekonstrukce | B131: oprava a rekonstrukce | C131: Rekonstrukce | D131: 5 | E131: 0 | F131: 10 | G131: 10 | H131: 10 | I131: 10 | J131: 10 | K131: 0 | L131: 2 | M131: 10 | N131: 2 | O131: =IF(B131=data!$B$2,D131*0.7+E131*0.5+F131*0.2+G131*0.8+H131+I131*0.2+J131+K131*0.3+L131+M131*0.5+N131*0.2,IF(B131=data!$B$3,D131*0.1+E131*0.4+F131*0.3+G131*0.1+H131+J131+K131*0.5+L131+M131*0.4,IF(B131=data!$B$4,D131*0.6+E131*0.8+F131*0.7+G131+H131+J131+L131+N131,IF(B131=data!$B$5,D131*0.7+E131*0.8+F131+I131*0.7+J131+L131,"zvolte typ stavby")))) -> 42.9 | P131: =IF(B131=data!$B$2,(O131*10)/6.4,IF(B131=data!$B$3,(O131*10)/4.8,IF(B131=data!$B$4,(O131*10)/7.1,IF(B131=data!$B$5,(O131*10)/5.2,"zvolte typ stavby")))) -> 67.03125 | Q131: 50000000
A132: II/331 Dvorce - Lysá nad Labem, rekonstrukce, PD | B132: oprava a rekonstrukce | C132: Rekonstrukce | D132: 3 | E132: 10 | F132: 9 | G132: 3 | H132: 10 | I132: 10 | J132: 4 | K132: 0 | L132: 10 | M132: 10 | N132: 4 | O132: =IF(B132=data!$B$2,D132*0.7+E132*0.5+F132*0.2+G132*0.8+H132+I132*0.2+J132+K132*0.3+L132+M132*0.5+N132*0.2,IF(B132=data!$B$3,D132*0.1+E132*0.4+F132*0.3+G132*0.1+H132+J132+K132*0.5+L132+M132*0.4,IF(B132=data!$B$4,D132*0.6+E132*0.8+F132*0.7+G132+H132+J132+L132+N132,IF(B132=data!$B$5,D132*0.7+E132*0.8+F132+I132*0.7+J132+L132,"zvolte typ stavby")))) -> 43.1 | P132: =IF(B132=data!$B$2,(O132*10)/6.4,IF(B132=data!$B$3,(O132*10)/4.8,IF(B132=data!$B$4,(O132*10)/7.1,IF(B132=data!$B$5,(O132*10)/5.2,"zvolte typ stavby")))) -> 67.34375 | Q132: 50000000
A133: II/125 Vlašim – příčná spára u mostu 125-012 | B133: oprava a rekonstrukce | C133: Rekonstrukce | D133: 3 | E133: 9 | F133: 9 | G133: 6 | H133: 10 | I133: 10 | J133: 4 | K133: 10 | L133: 10 | M133: 10 | N133: 0 | O133: =IF(B133=data!$B$2,D133*0.7+E133*0.5+F133*0.2+G133*0.8+H133+I133*0.2+J133+K133*0.3+L133+M133*0.5+N133*0.2,IF(B133=data!$B$3,D133*0.1+E133*0.4+F133*0.3+G133*0.1+H133+J133+K133*0.5+L133+M133*0.4,IF(B133=data!$B$4,D133*0.6+E133*0.8+F133*0.7+G133+H133+J133+L133+N133,IF(B133=data!$B$5,D133*0.7+E133*0.8+F133+I133*0.7+J133+L133,"zvolte typ stavby")))) -> 47.2 | P133: =IF(B133=data!$B$2,(O133*10)/6.4,IF(B133=data!$B$3,(O133*10)/4.8,IF(B133=data!$B$4,(O133*10)/7.1,IF(B133=data!$B$5,(O133*10)/5.2,"zvolte typ stavby")))) -> 73.75 | Q133: 50000000 | R133: IROP 2
A134: III/2451 Stará Boleslav, most ev.č.2451-1 | B134: mostní objekty a propustky | C134: Most | D134: 2 | E134: 10 | F134: 5 | G134: 6 | H134: 6 | I134: 0 | J134: 4 | K134: 0 | L134: 5 | M134: 0 | N134: 0 | O134: =IF(B134=data!$B$2,D134*0.7+E134*0.5+F134*0.2+G134*0.8+H134+I134*0.2+J134+K134*0.3+L134+M134*0.5+N134*0.2,IF(B134=data!$B$3,D134*0.1+E134*0.4+F134*0.3+G134*0.1+H134+J134+K134*0.5+L134+M134*0.4,IF(B134=data!$B$4,D134*0.6+E134*0.8+F134*0.7+G134+H134+J134+L134+N134,IF(B134=data!$B$5,D134*0.7+E134*0.8+F134+I134*0.7+J134+L134,"zvolte typ stavby")))) -> 21.3 | P134: =IF(B134=data!$B$2,(O134*10)/6.4,IF(B134=data!$B$3,(O134*10)/4.8,IF(B134=data!$B$4,(O134*10)/7.1,IF(B134=data!$B$5,(O134*10)/5.2,"zvolte typ stavby")))) -> 44.375 | Q134: 49760000 | S134: Předpoklad SFDI nebo IROP dle možností v době dokončení | U134: IROP
A135: II/327 Záboří nad Labem | B135: oprava a rekonstrukce | C135: Rekonstrukce | D135: 2 | E135: 10 | F135: 9 | G135: 3 | H135: 10 | I135: 10 | J135: 2 | K135: 0 | L135: 8 | M135: 10 | N135: 0 | O135: =IF(B135=data!$B$2,D135*0.7+E135*0.5+F135*0.2+G135*0.8+H135+I135*0.2+J135+K135*0.3+L135+M135*0.5+N135*0.2,IF(B135=data!$B$3,D135*0.1+E135*0.4+F135*0.3+G135*0.1+H135+J135+K135*0.5+L135+M135*0.4,IF(B135=data!$B$4,D135*0.6+E135*0.8+F135*0.7+G135+H135+J135+L135+N135,IF(B135=data!$B$5,D135*0.7+E135*0.8+F135+I135*0.7+J135+L135,"zvolte typ stavby")))) -> 37.6 | P135: =IF(B135=data!$B$2,(O135*10)/6.4,IF(B135=data!$B$3,(O135*10)/4.8,IF(B135=data!$B$4,(O135*10)/7.1,IF(B135=data!$B$5,(O135*10)/5.2,"zvolte typ stavby")))) -> 58.75 | Q135: 104400000
A136: II/101 x III/33312 Okružní křižovatka, Říčany | B136: oprava a rekonstrukce | C136: Rekonstrukce | D136: 10 | E136: 10 | F136: 9 | G136: 3 | H136: 3 | I136: 10 | J136: 10 | K136: 0 | L136: 0 | M136: 10 | N136: 2 | O136: =IF(B136=data!$B$2,D136*0.7+E136*0.5+F136*0.2+G136*0.8+H136+I136*0.2+J136+K136*0.3+L136+M136*0.5+N136*0.2,IF(B136=data!$B$3,D136*0.1+E136*0.4+F136*0.3+G136*0.1+H136+J136+K136*0.5+L136+M136*0.4,IF(B136=data!$B$4,D136*0.6+E136*0.8+F136*0.7+G136+H136+J136+L136+N136,IF(B136=data!$B$5,D136*0.7+E136*0.8+F136+I136*0.7+J136+L136,"zvolte typ stavby")))) -> 36.6 | P136: =IF(B136=data!$B$2,(O136*10)/6.4,IF(B136=data!$B$3,(O136*10)/4.8,IF(B136=data!$B$4,(O136*10)/7.1,IF(B136=data!$B$5,(O136*10)/5.2,"zvolte typ stavby")))) -> 57.1875 | Q136: 25000000
A137: III00710 Lichoceves, havarijní stav komunikace | B137: oprava a rekonstrukce | C137: Rekonstrukce | D137: 2 | E137: 10 | F137: 4 | G137: 10 | H137: 10 | I137: 10 | J137: 2 | K137: 0 | L137: 2 | M137: 10 | N137: 2 | O137: =IF(B137=data!$B$2,D137*0.7+E137*0.5+F137*0.2+G137*0.8+H137+I137*0.2+J137+K137*0.3+L137+M137*0.5+N137*0.2,IF(B137=data!$B$3,D137*0.1+E137*0.4+F137*0.3+G137*0.1+H137+J137+K137*0.5+L137+M137*0.4,IF(B137=data!$B$4,D137*0.6+E137*0.8+F137*0.7+G137+H137+J137+L137+N137,IF(B137=data!$B$5,D137*0.7+E137*0.8+F137+I137*0.7+J137+L137,"zvolte typ stavby")))) -> 36.6 | P137: =IF(B137=data!$B$2,(O137*10)/6.4,IF(B137=data!$B$3,(O137*10)/4.8,IF(B137=data!$B$4,(O137*10)/7.1,IF(B137=data!$B$5,(O137*10)/5.2,"zvolte typ stavby")))) -> 57.1875 | Q137: 60000000
A138: III/10114 Vestec-Libeň | B138: oprava a rekonstrukce | C138: Rekonstrukce | D138: 4 | E138: 10 | F138: 6 | G138: 6 | H138: 6 | I138: 10 | J138: 7 | K138: 0 | L138: 10 | M138: 10 | N138: 2 | O138: =IF(B138=data!$B$2,D138*0.7+E138*0.5+F138*0.2+G138*0.8+H138+I138*0.2+J138+K138*0.3+L138+M138*0.5+N138*0.2,IF(B138=data!$B$3,D138*0.1+E138*0.4+F138*0.3+G138*0.1+H138+J138+K138*0.5+L138+M138*0.4,IF(B138=data!$B$4,D138*0.6+E138*0.8+F138*0.7+G138+H138+J138+L138+N138,IF(B138=data!$B$5,D138*0.7+E138*0.8+F138+I138*0.7+J138+L138,"zvolte typ stavby")))) -> 44.2 | P138: =IF(B138=data!$B$2,(O138*10)/6.4,IF(B138=data!$B$3,(O138*10)/4.8,IF(B138=data!$B$4,(O138*10)/7.1,IF(B138=data!$B$5,(O138*10)/5.2,"zvolte typ stavby")))) -> 69.0625 | Q138: 48528844 | S138: předpoklad možné realizace v roce 2023 z fi. zdrojů SFDI
A139: III/2444 a III/0105a Přezletice, průtah II etapa | B139: oprava a rekonstrukce | C139: Rekonstrukce | D139: 5 | E139: 10 | F139: 5 | G139: 6 | H139: 10 | I139: 1 | J139: 7 | K139: 0 | L139: 5 | M139: 10 | N139: 2 | O139: =IF(B139=data!$B$2,D139*0.7+E139*0.5+F139*0.2+G139*0.8+H139+I139*0.2+J139+K139*0.3+L139+M139*0.5+N139*0.2,IF(B139=data!$B$3,D139*0.1+E139*0.4+F139*0.3+G139*0.1+H139+J139+K139*0.5+L139+M139*0.4,IF(B139=data!$B$4,D139*0.6+E139*0.8+F139*0.7+G139+H139+J139+L139+N139,IF(B139=data!$B$5,D139*0.7+E139*0.8+F139+I139*0.7+J139+L139,"zvolte typ stavby")))) -> 41.9 | P139: =IF(B139=data!$B$2,(O139*10)/6.4,IF(B139=data!$B$3,(O139*10)/4.8,IF(B139=data!$B$4,(O139*10)/7.1,IF(B139=data!$B$5,(O139*10)/5.2,"zvolte typ stavby")))) -> 65.46875 | Q139: 31744000
A140: III/27513 Mladá Boleslav, most ev.č. 27513-1a přes dálnici D10 u Mladé Boleslavi | B140: mostní objekty a propustky | C140: Most | D140: 3 | E140: 10 | F140: 5 | G140: 6 | H140: 6 | I140: 0 | J140: 4 | K140: 0 | L140: 5 | M140: 10 | N140: 0 | O140: =IF(B140=data!$B$2,D140*0.7+E140*0.5+F140*0.2+G140*0.8+H140+I140*0.2+J140+K140*0.3+L140+M140*0.5+N140*0.2,IF(B140=data!$B$3,D140*0.1+E140*0.4+F140*0.3+G140*0.1+H140+J140+K140*0.5+L140+M140*0.4,IF(B140=data!$B$4,D140*0.6+E140*0.8+F140*0.7+G140+H140+J140+L140+N140,IF(B140=data!$B$5,D140*0.7+E140*0.8+F140+I140*0.7+J140+L140,"zvolte typ stavby")))) -> 25.4 | P140: =IF(B140=data!$B$2,(O140*10)/6.4,IF(B140=data!$B$3,(O140*10)/4.8,IF(B140=data!$B$4,(O140*10)/7.1,IF(B140=data!$B$5,(O140*10)/5.2,"zvolte typ stavby")))) -> 52.91666667 | Q140: 48000000
A141: II/101 Jirny, most ev.č. 101-076 most přes Jirenský potok za obcí Jirny | B141: mostní objekty a propustky | C141: Most | D141: 7 | E141: 10 | F141: 8 | G141: 10 | H141: 10 | I141: 0 | J141: 7 | K141: 0 | L141: 2 | M141: 10 | N141: 0 | O141: =IF(B141=data!$B$2,D141*0.7+E141*0.5+F141*0.2+G141*0.8+H141+I141*0.2+J141+K141*0.3+L141+M141*0.5+N141*0.2,IF(B141=data!$B$3,D141*0.1+E141*0.4+F141*0.3+G141*0.1+H141+J141+K141*0.5+L141+M141*0.4,IF(B141=data!$B$4,D141*0.6+E141*0.8+F141*0.7+G141+H141+J141+L141+N141,IF(B141=data!$B$5,D141*0.7+E141*0.8+F141+I141*0.7+J141+L141,"zvolte typ stavby")))) -> 31.1 | P141: =IF(B141=data!$B$2,(O141*10)/6.4,IF(B141=data!$B$3,(O141*10)/4.8,IF(B141=data!$B$4,(O141*10)/7.1,IF(B141=data!$B$5,(O141*10)/5.2,"zvolte typ stavby")))) -> 64.79166667 | Q141: 10000000
A142: II/150 Loket - Brzotice | B142: oprava a rekonstrukce | C142: Rekonstrukce | D142: 3 | E142: 0 | F142: 10 | G142: 10 | H142: 10 | I142: 10 | J142: 7 | K142: 0 | L142: 2 | M142: 10 | N142: 4 | O142: =IF(B142=data!$B$2,D142*0.7+E142*0.5+F142*0.2+G142*0.8+H142+I142*0.2+J142+K142*0.3+L142+M142*0.5+N142*0.2,IF(B142=data!$B$3,D142*0.1+E142*0.4+F142*0.3+G142*0.1+H142+J142+K142*0.5+L142+M142*0.4,IF(B142=data!$B$4,D142*0.6+E142*0.8+F142*0.7+G142+H142+J142+L142+N142,IF(B142=data!$B$5,D142*0.7+E142*0.8+F142+I142*0.7+J142+L142,"zvolte typ stavby")))) -> 38.9 | P142: =IF(B142=data!$B$2,(O142*10)/6.4,IF(B142=data!$B$3,(O142*10)/4.8,IF(B142=data!$B$4,(O142*10)/7.1,IF(B142=data!$B$5,(O142*10)/5.2,"zvolte typ stavby")))) -> 60.78125 | Q142: 48000000
A143: III/11447 - křižovatka s III/11447a - křižovatka s III/11438 | B143: oprava a rekonstrukce | C143: Rekonstrukce | D143: 5 | E143: 10 | F143: 10 | G143: 10 | H143: 6 | I143: 1 | J143: 10 | K143: 0 | L143: 10 | M143: 10 | N143: 7 | O143: =IF(B143=data!$B$2,D143*0.7+E143*0.5+F143*0.2+G143*0.8+H143+I143*0.2+J143+K143*0.3+L143+M143*0.5+N143*0.2,IF(B143=data!$B$3,D143*0.1+E143*0.4+F143*0.3+G143*0.1+H143+J143+K143*0.5+L143+M143*0.4,IF(B143=data!$B$4,D143*0.6+E143*0.8+F143*0.7+G143+H143+J143+L143+N143,IF(B143=data!$B$5,D143*0.7+E143*0.8+F143+I143*0.7+J143+L143,"zvolte typ stavby")))) -> 51.1 | P143: =IF(B143=data!$B$2,(O143*10)/6.4,IF(B143=data!$B$3,(O143*10)/4.8,IF(B143=data!$B$4,(O143*10)/7.1,IF(B143=data!$B$5,(O143*10)/5.2,"zvolte typ stavby")))) -> 79.84375 | Q143: 47000000
A144: III-00315,III-10113 Radlík-Kostelec u Křížků - II. etapa | B144: oprava a rekonstrukce | C144: Rekonstrukce | D144: 3 | E144: 10 | F144: 5 | G144: 6 | H144: 6 | I144: 0 | J144: 7 | K144: 0 | L144: 8 | M144: 10 | N144: 2 | O144: =IF(B144=data!$B$2,D144*0.7+E144*0.5+F144*0.2+G144*0.8+H144+I144*0.2+J144+K144*0.3+L144+M144*0.5+N144*0.2,IF(B144=data!$B$3,D144*0.1+E144*0.4+F144*0.3+G144*0.1+H144+J144+K144*0.5+L144+M144*0.4,IF(B144=data!$B$4,D144*0.6+E144*0.8+F144*0.7+G144+H144+J144+L144+N144,IF(B144=data!$B$5,D144*0.7+E144*0.8+F144+I144*0.7+J144+L144,"zvolte typ stavby")))) -> 39.3 | P144: =IF(B144=data!$B$2,(O144*10)/6.4,IF(B144=data!$B$3,(O144*10)/4.8,IF(B144=data!$B$4,(O144*10)/7.1,IF(B144=data!$B$5,(O144*10)/5.2,"zvolte typ stavby")))) -> 61.40625 | Q144: 46217234 | S144: Předpoklad SFDI nebo IROP dle možností v době dokončení
A145: III/1016 Kunice | B145: oprava a rekonstrukce | C145: Rekonstrukce | D145: 3 | E145: 10 | F145: 5 | G145: 3 | H145: 6 | I145: 10 | J145: 4 | K145: 0 | L145: 5 | M145: 10 | N145: 4 | O145: =IF(B145=data!$B$2,D145*0.7+E145*0.5+F145*0.2+G145*0.8+H145+I145*0.2+J145+K145*0.3+L145+M145*0.5+N145*0.2,IF(B145=data!$B$3,D145*0.1+E145*0.4+F145*0.3+G145*0.1+H145+J145+K145*0.5+L145+M145*0.4,IF(B145=data!$B$4,D145*0.6+E145*0.8+F145*0.7+G145+H145+J145+L145+N145,IF(B145=data!$B$5,D145*0.7+E145*0.8+F145+I145*0.7+J145+L145,"zvolte typ stavby")))) -> 33.3 | P145: =IF(B145=data!$B$2,(O145*10)/6.4,IF(B145=data!$B$3,(O145*10)/4.8,IF(B145=data!$B$4,(O145*10)/7.1,IF(B145=data!$B$5,(O145*10)/5.2,"zvolte typ stavby")))) -> 52.03125 | Q145: 45000000
A146: III/1025 Bojov Klínec, rekonstrukce silnice etapa 2 | B146: oprava a rekonstrukce | C146: Rekonstrukce | D146: 5 | E146: 0 | F146: 5 | G146: 10 | H146: 10 | I146: 1 | J146: 7 | K146: 0 | L146: 2 | M146: 10 | N146: 2 | O146: =IF(B146=data!$B$2,D146*0.7+E146*0.5+F146*0.2+G146*0.8+H146+I146*0.2+J146+K146*0.3+L146+M146*0.5+N146*0.2,IF(B146=data!$B$3,D146*0.1+E146*0.4+F146*0.3+G146*0.1+H146+J146+K146*0.5+L146+M146*0.4,IF(B146=data!$B$4,D146*0.6+E146*0.8+F146*0.7+G146+H146+J146+L146+N146,IF(B146=data!$B$5,D146*0.7+E146*0.8+F146+I146*0.7+J146+L146,"zvolte typ stavby")))) -> 37.1 | P146: =IF(B146=data!$B$2,(O146*10)/6.4,IF(B146=data!$B$3,(O146*10)/4.8,IF(B146=data!$B$4,(O146*10)/7.1,IF(B146=data!$B$5,(O146*10)/5.2,"zvolte typ stavby")))) -> 57.96875 | Q146: 45000000
A147: II/108 Kostelec nad Černými lesy | B147: oprava a rekonstrukce | C147: Rekonstrukce | D147: 3 | E147: 0 | F147: 10 | G147: 6 | H147: 6 | I147: 10 | J147: 10 | K147: 0 | L147: 5 | M147: 10 | N147: 4 | O147: =IF(B147=data!$B$2,D147*0.7+E147*0.5+F147*0.2+G147*0.8+H147+I147*0.2+J147+K147*0.3+L147+M147*0.5+N147*0.2,IF(B147=data!$B$3,D147*0.1+E147*0.4+F147*0.3+G147*0.1+H147+J147+K147*0.5+L147+M147*0.4,IF(B147=data!$B$4,D147*0.6+E147*0.8+F147*0.7+G147+H147+J147+L147+N147,IF(B147=data!$B$5,D147*0.7+E147*0.8+F147+I147*0.7+J147+L147,"zvolte typ stavby")))) -> 37.7 | P147: =IF(B147=data!$B$2,(O147*10)/6.4,IF(B147=data!$B$3,(O147*10)/4.8,IF(B147=data!$B$4,(O147*10)/7.1,IF(B147=data!$B$5,(O147*10)/5.2,"zvolte typ stavby")))) -> 58.90625 | Q147: 45000000 | S147: Předpoklad SFDI nebo IROP dle možností v době dokončení | U147: IROP
A148: II/322 Kolín, ul. Třídvorská, okružní křižovatka - PD | B148: oprava a rekonstrukce | C148: Rekonstrukce | D148: 5 | E148: 10 | F148: 10 | G148: 6 | H148: 10 | I148: 10 | J148: 7 | K148: 0 | L148: 5 | M148: 10 | N148: 0 | O148: =IF(B148=data!$B$2,D148*0.7+E148*0.5+F148*0.2+G148*0.8+H148+I148*0.2+J148+K148*0.3+L148+M148*0.5+N148*0.2,IF(B148=data!$B$3,D148*0.1+E148*0.4+F148*0.3+G148*0.1+H148+J148+K148*0.5+L148+M148*0.4,IF(B148=data!$B$4,D148*0.6+E148*0.8+F148*0.7+G148+H148+J148+L148+N148,IF(B148=data!$B$5,D148*0.7+E148*0.8+F148+I148*0.7+J148+L148,"zvolte typ stavby")))) -> 44.3 | P148: =IF(B148=data!$B$2,(O148*10)/6.4,IF(B148=data!$B$3,(O148*10)/4.8,IF(B148=data!$B$4,(O148*10)/7.1,IF(B148=data!$B$5,(O148*10)/5.2,"zvolte typ stavby")))) -> 69.21875 | Q148: 42350000
A149: II/113 Ostředek - Třemošnice - PD | B149: oprava a rekonstrukce | C149: Rekonstrukce | D149: 3 | E149: 8 | F149: 10 | G149: 6 | H149: 6 | I149: 10 | J149: 7 | K149: 0 | L149: 10 | M149: 10 | N149: 4 | O149: =IF(B149=data!$B$2,D149*0.7+E149*0.5+F149*0.2+G149*0.8+H149+I149*0.2+J149+K149*0.3+L149+M149*0.5+N149*0.2,IF(B149=data!$B$3,D149*0.1+E149*0.4+F149*0.3+G149*0.1+H149+J149+K149*0.5+L149+M149*0.4,IF(B149=data!$B$4,D149*0.6+E149*0.8+F149*0.7+G149+H149+J149+L149+N149,IF(B149=data!$B$5,D149*0.7+E149*0.8+F149+I149*0.7+J149+L149,"zvolte typ stavby")))) -> 43.7 | P149: =IF(B149=data!$B$2,(O149*10)/6.4,IF(B149=data!$B$3,(O149*10)/4.8,IF(B149=data!$B$4,(O149*10)/7.1,IF(B149=data!$B$5,(O149*10)/5.2,"zvolte typ stavby")))) -> 68.28125 | Q149: 42000000 | U149: SFDI (SOKP)
A150: III/23642 Brandýsek-Pchery | B150: oprava a rekonstrukce | C150: Rekonstrukce | D150: 2 | E150: 10 | F150: 6 | G150: 10 | H150: 10 | I150: 10 | J150: 4 | K150: 0 | L150: 10 | M150: 10 | N150: 2 | O150: =IF(B150=data!$B$2,D150*0.7+E150*0.5+F150*0.2+G150*0.8+H150+I150*0.2+J150+K150*0.3+L150+M150*0.5+N150*0.2,IF(B150=data!$B$3,D150*0.1+E150*0.4+F150*0.3+G150*0.1+H150+J150+K150*0.5+L150+M150*0.4,IF(B150=data!$B$4,D150*0.6+E150*0.8+F150*0.7+G150+H150+J150+L150+N150,IF(B150=data!$B$5,D150*0.7+E150*0.8+F150+I150*0.7+J150+L150,"zvolte typ stavby")))) -> 47 | P150: =IF(B150=data!$B$2,(O150*10)/6.4,IF(B150=data!$B$3,(O150*10)/4.8,IF(B150=data!$B$4,(O150*10)/7.1,IF(B150=data!$B$5,(O150*10)/5.2,"zvolte typ stavby")))) -> 73.4375 | Q150: 41148290 | S150: možno realizovat v roce 2023, spolupráce s obcemi Brandýsek a Pchery (smlouvy o spočném zadání VŘ) | U150: IROP 2
A151: III/2388 Brandýsek,havarijní stav silnice-PD | B151: oprava a rekonstrukce | C151: Rekonstrukce | D151: 1 | E151: 10 | F151: 5 | G151: 6 | H151: 3 | I151: 0 | J151: 4 | K151: 0 | L151: 5 | M151: 0 | N151: 10 | O151: =IF(B151=data!$B$2,D151*0.7+E151*0.5+F151*0.2+G151*0.8+H151+I151*0.2+J151+K151*0.3+L151+M151*0.5+N151*0.2,IF(B151=data!$B$3,D151*0.1+E151*0.4+F151*0.3+G151*0.1+H151+J151+K151*0.5+L151+M151*0.4,IF(B151=data!$B$4,D151*0.6+E151*0.8+F151*0.7+G151+H151+J151+L151+N151,IF(B151=data!$B$5,D151*0.7+E151*0.8+F151+I151*0.7+J151+L151,"zvolte typ stavby")))) -> 25.5 | P151: =IF(B151=data!$B$2,(O151*10)/6.4,IF(B151=data!$B$3,(O151*10)/4.8,IF(B151=data!$B$4,(O151*10)/7.1,IF(B151=data!$B$5,(O151*10)/5.2,"zvolte typ stavby")))) -> 39.84375 | Q151: 40000000
A152: III/1015 Všestary, rekonstrukce silnice | B152: oprava a rekonstrukce | C152: Rekonstrukce | D152: 3 | E152: 10 | F152: 4 | G152: 3 | H152: 3 | I152: 10 | J152: 4 | K152: 0 | L152: 5 | M152: 10 | N152: 2 | O152: =IF(B152=data!$B$2,D152*0.7+E152*0.5+F152*0.2+G152*0.8+H152+I152*0.2+J152+K152*0.3+L152+M152*0.5+N152*0.2,IF(B152=data!$B$3,D152*0.1+E152*0.4+F152*0.3+G152*0.1+H152+J152+K152*0.5+L152+M152*0.4,IF(B152=data!$B$4,D152*0.6+E152*0.8+F152*0.7+G152+H152+J152+L152+N152,IF(B152=data!$B$5,D152*0.7+E152*0.8+F152+I152*0.7+J152+L152,"zvolte typ stavby")))) -> 29.7 | P152: =IF(B152=data!$B$2,(O152*10)/6.4,IF(B152=data!$B$3,(O152*10)/4.8,IF(B152=data!$B$4,(O152*10)/7.1,IF(B152=data!$B$5,(O152*10)/5.2,"zvolte typ stavby")))) -> 46.40625 | Q152: 40000000
A153: III/1012 Všestary, rekonstrukce silnice | B153: oprava a rekonstrukce | C153: Rekonstrukce | D153: 3 | E153: 10 | F153: 4 | G153: 3 | H153: 3 | I153: 10 | J153: 4 | K153: 0 | L153: 10 | M153: 10 | N153: 4 | O153: =IF(B153=data!$B$2,D153*0.7+E153*0.5+F153*0.2+G153*0.8+H153+I153*0.2+J153+K153*0.3+L153+M153*0.5+N153*0.2,IF(B153=data!$B$3,D153*0.1+E153*0.4+F153*0.3+G153*0.1+H153+J153+K153*0.5+L153+M153*0.4,IF(B153=data!$B$4,D153*0.6+E153*0.8+F153*0.7+G153+H153+J153+L153+N153,IF(B153=data!$B$5,D153*0.7+E153*0.8+F153+I153*0.7+J153+L153,"zvolte typ stavby")))) -> 35.1 | P153: =IF(B153=data!$B$2,(O153*10)/6.4,IF(B153=data!$B$3,(O153*10)/4.8,IF(B153=data!$B$4,(O153*10)/7.1,IF(B153=data!$B$5,(O153*10)/5.2,"zvolte typ stavby")))) -> 54.84375 | Q153: 40000000
A154: Okružní křižovatka II/110 a II/112 a silnice II/112 | B154: oprava a rekonstrukce | C154: Rekonstrukce | D154: 7 | E154: 9 | F154: 10 | G154: 6 | H154: 6 | I154: 1 | J154: 4 | K154: 0 | L154: 2 | M154: 10 | N154: 10 | O154: =IF(B154=data!$B$2,D154*0.7+E154*0.5+F154*0.2+G154*0.8+H154+I154*0.2+J154+K154*0.3+L154+M154*0.5+N154*0.2,IF(B154=data!$B$3,D154*0.1+E154*0.4+F154*0.3+G154*0.1+H154+J154+K154*0.5+L154+M154*0.4,IF(B154=data!$B$4,D154*0.6+E154*0.8+F154*0.7+G154+H154+J154+L154+N154,IF(B154=data!$B$5,D154*0.7+E154*0.8+F154+I154*0.7+J154+L154,"zvolte typ stavby")))) -> 35.4 | P154: =IF(B154=data!$B$2,(O154*10)/6.4,IF(B154=data!$B$3,(O154*10)/4.8,IF(B154=data!$B$4,(O154*10)/7.1,IF(B154=data!$B$5,(O154*10)/5.2,"zvolte typ stavby")))) -> 55.3125 | Q154: 40000000 | R154: -
A155: II/275 Zábrdovice - Dymokury | B155: oprava a rekonstrukce | C155: Rekonstrukce | D155: 3 | E155: 10 | F155: 10 | G155: 6 | H155: 6 | I155: 10 | J155: 7 | K155: 0 | L155: 8 | M155: 10 | N155: 4 | O155: =IF(B155=data!$B$2,D155*0.7+E155*0.5+F155*0.2+G155*0.8+H155+I155*0.2+J155+K155*0.3+L155+M155*0.5+N155*0.2,IF(B155=data!$B$3,D155*0.1+E155*0.4+F155*0.3+G155*0.1+H155+J155+K155*0.5+L155+M155*0.4,IF(B155=data!$B$4,D155*0.6+E155*0.8+F155*0.7+G155+H155+J155+L155+N155,IF(B155=data!$B$5,D155*0.7+E155*0.8+F155+I155*0.7+J155+L155,"zvolte typ stavby")))) -> 42.7 | P155: =IF(B155=data!$B$2,(O155*10)/6.4,IF(B155=data!$B$3,(O155*10)/4.8,IF(B155=data!$B$4,(O155*10)/7.1,IF(B155=data!$B$5,(O155*10)/5.2,"zvolte typ stavby")))) -> 66.71875 | Q155: 40000000 | U155: SFDI NZ 2022 - tendrovat
A156: Obchvat Králův Dvůr - IV. etapa vrátnice ČMC až katastr Beroun (C2) | B156: novostavba (obchvat, přeložka, propojka) | C156: - | D156: 3 | E156: 9 | F156: 9 | G156: 0 | H156: 0 | I156: 10 | J156: 4 | K156: 0 | L156: 2 | M156: 0 | N156: 0 | O156: =IF(B156=data!$B$2,D156*0.7+E156*0.5+F156*0.2+G156*0.8+H156+I156*0.2+J156+K156*0.3+L156+M156*0.5+N156*0.2,IF(B156=data!$B$3,D156*0.1+E156*0.4+F156*0.3+G156*0.1+H156+J156+K156*0.5+L156+M156*0.4,IF(B156=data!$B$4,D156*0.6+E156*0.8+F156*0.7+G156+H156+J156+L156+N156,IF(B156=data!$B$5,D156*0.7+E156*0.8+F156+I156*0.7+J156+L156,"zvolte typ stavby")))) -> 31.3 | P156: =IF(B156=data!$B$2,(O156*10)/6.4,IF(B156=data!$B$3,(O156*10)/4.8,IF(B156=data!$B$4,(O156*10)/7.1,IF(B156=data!$B$5,(O156*10)/5.2,"zvolte typ stavby")))) -> 60.19230769 | Q156: 40000000 | R156: - | U156: SFDI NZ 2022 - tendrovat
A157: III/12537 Sobočice - Zásmuky | B157: oprava a rekonstrukce | C157: Rekonstrukce | D157: 2 | E157: 10 | F157: 6 | G157: 6 | H157: 6 | I157: 10 | J157: 4 | K157: 0 | L157: 5 | M157: 10 | N157: 0 | O157: =IF(B157=data!$B$2,D157*0.7+E157*0.5+F157*0.2+G157*0.8+H157+I157*0.2+J157+K157*0.3+L157+M157*0.5+N157*0.2,IF(B157=data!$B$3,D157*0.1+E157*0.4+F157*0.3+G157*0.1+H157+J157+K157*0.5+L157+M157*0.4,IF(B157=data!$B$4,D157*0.6+E157*0.8+F157*0.7+G157+H157+J157+L157+N157,IF(B157=data!$B$5,D157*0.7+E157*0.8+F157+I157*0.7+J157+L157,"zvolte typ stavby")))) -> 34.4 | P157: =IF(B157=data!$B$2,(O157*10)/6.4,IF(B157=data!$B$3,(O157*10)/4.8,IF(B157=data!$B$4,(O157*10)/7.1,IF(B157=data!$B$5,(O157*10)/5.2,"zvolte typ stavby")))) -> 53.75 | Q157: 38000000 | U157: SFDI NZ 2022 - tendrovat
A158: III/0069, Unhošť-Pletený Újezd - PD | B158: oprava a rekonstrukce | C158: Rekonstrukce | D158: 4 | E158: 10 | F158: 6 | G158: 6 | H158: 6 | I158: 10 | J158: 4 | K158: 0 | L158: 10 | M158: 10 | N158: 2 | O158: =IF(B158=data!$B$2,D158*0.7+E158*0.5+F158*0.2+G158*0.8+H158+I158*0.2+J158+K158*0.3+L158+M158*0.5+N158*0.2,IF(B158=data!$B$3,D158*0.1+E158*0.4+F158*0.3+G158*0.1+H158+J158+K158*0.5+L158+M158*0.4,IF(B158=data!$B$4,D158*0.6+E158*0.8+F158*0.7+G158+H158+J158+L158+N158,IF(B158=data!$B$5,D158*0.7+E158*0.8+F158+I158*0.7+J158+L158,"zvolte typ stavby")))) -> 41.2 | P158: =IF(B158=data!$B$2,(O158*10)/6.4,IF(B158=data!$B$3,(O158*10)/4.8,IF(B158=data!$B$4,(O158*10)/7.1,IF(B158=data!$B$5,(O158*10)/5.2,"zvolte typ stavby")))) -> 64.375 | Q158: 37743476
A159: III/27922 Loukov, most ev.č. 27922-1a přes D10 u obce Loukov | B159: mostní objekty a propustky | C159: Most | D159: 3 | E159: 10 | F159: 5 | G159: 6 | H159: 10 | I159: 0 | J159: 4 | K159: 0 | L159: 5 | M159: 10 | N159: 0 | O159: =IF(B159=data!$B$2,D159*0.7+E159*0.5+F159*0.2+G159*0.8+H159+I159*0.2+J159+K159*0.3+L159+M159*0.5+N159*0.2,IF(B159=data!$B$3,D159*0.1+E159*0.4+F159*0.3+G159*0.1+H159+J159+K159*0.5+L159+M159*0.4,IF(B159=data!$B$4,D159*0.6+E159*0.8+F159*0.7+G159+H159+J159+L159+N159,IF(B159=data!$B$5,D159*0.7+E159*0.8+F159+I159*0.7+J159+L159,"zvolte typ stavby")))) -> 29.4 | P159: =IF(B159=data!$B$2,(O159*10)/6.4,IF(B159=data!$B$3,(O159*10)/4.8,IF(B159=data!$B$4,(O159*10)/7.1,IF(B159=data!$B$5,(O159*10)/5.2,"zvolte typ stavby")))) -> 61.25 | Q159: 37000000
A160: III/1024 Řitka, rekonstrukce silnice a řešení křižovatek | B160: řešení bodové závady a/nebo bezpečnostního rizika (křižovatky, opěrné zdi, skalní masivy) | C160: - | D160: 4 | E160: 10 | F160: 5 | G160: 10 | H160: 3 | I160: 10 | J160: 4 | K160: 0 | L160: 8 | M160: 10 | N160: 4 | O160: =IF(B160=data!$B$2,D160*0.7+E160*0.5+F160*0.2+G160*0.8+H160+I160*0.2+J160+K160*0.3+L160+M160*0.5+N160*0.2,IF(B160=data!$B$3,D160*0.1+E160*0.4+F160*0.3+G160*0.1+H160+J160+K160*0.5+L160+M160*0.4,IF(B160=data!$B$4,D160*0.6+E160*0.8+F160*0.7+G160+H160+J160+L160+N160,IF(B160=data!$B$5,D160*0.7+E160*0.8+F160+I160*0.7+J160+L160,"zvolte typ stavby")))) -> 42.9 | P160: =IF(B160=data!$B$2,(O160*10)/6.4,IF(B160=data!$B$3,(O160*10)/4.8,IF(B160=data!$B$4,(O160*10)/7.1,IF(B160=data!$B$5,(O160*10)/5.2,"zvolte typ stavby")))) -> 60.42253521 | Q160: 36900000
A161: II/125 Vlašim - Pavlovice | B161: novostavba (obchvat, přeložka, propojka) | C161: - | D161: 5 | E161: 10 | F161: 10 | G161: 0 | H161: 0 | I161: 10 | J161: 7 | K161: 0 | L161: 2 | M161: 0 | N161: 0 | O161: =IF(B161=data!$B$2,D161*0.7+E161*0.5+F161*0.2+G161*0.8+H161+I161*0.2+J161+K161*0.3+L161+M161*0.5+N161*0.2,IF(B161=data!$B$3,D161*0.1+E161*0.4+F161*0.3+G161*0.1+H161+J161+K161*0.5+L161+M161*0.4,IF(B161=data!$B$4,D161*0.6+E161*0.8+F161*0.7+G161+H161+J161+L161+N161,IF(B161=data!$B$5,D161*0.7+E161*0.8+F161+I161*0.7+J161+L161,"zvolte typ stavby")))) -> 37.5 | P161: =IF(B161=data!$B$2,(O161*10)/6.4,IF(B161=data!$B$3,(O161*10)/4.8,IF(B161=data!$B$4,(O161*10)/7.1,IF(B161=data!$B$5,(O161*10)/5.2,"zvolte typ stavby")))) -> 72.11538462 | Q161: 35695000
A162: III/3294 Velim | B162: oprava a rekonstrukce | C162: Rekonstrukce | D162: 3 | E162: 10 | F162: 7 | G162: 10 | H162: 6 | I162: 10 | J162: 7 | K162: 0 | L162: 10 | M162: 10 | N162: 4 | O162: =IF(B162=data!$B$2,D162*0.7+E162*0.5+F162*0.2+G162*0.8+H162+I162*0.2+J162+K162*0.3+L162+M162*0.5+N162*0.2,IF(B162=data!$B$3,D162*0.1+E162*0.4+F162*0.3+G162*0.1+H162+J162+K162*0.5+L162+M162*0.4,IF(B162=data!$B$4,D162*0.6+E162*0.8+F162*0.7+G162+H162+J162+L162+N162,IF(B162=data!$B$5,D162*0.7+E162*0.8+F162+I162*0.7+J162+L162,"zvolte typ stavby")))) -> 47.3 | P162: =IF(B162=data!$B$2,(O162*10)/6.4,IF(B162=data!$B$3,(O162*10)/4.8,IF(B162=data!$B$4,(O162*10)/7.1,IF(B162=data!$B$5,(O162*10)/5.2,"zvolte typ stavby")))) -> 73.90625 | Q162: 35000000 | U162: IROP 2
A163: III/1025 Bojov Klínec, rekonstrukce silnice etapa 3 | B163: oprava a rekonstrukce | C163: Rekonstrukce | D163: 5 | E163: 0 | F163: 5 | G163: 10 | H163: 10 | I163: 1 | J163: 7 | K163: 0 | L163: 2 | M163: 10 | N163: 2 | O163: =IF(B163=data!$B$2,D163*0.7+E163*0.5+F163*0.2+G163*0.8+H163+I163*0.2+J163+K163*0.3+L163+M163*0.5+N163*0.2,IF(B163=data!$B$3,D163*0.1+E163*0.4+F163*0.3+G163*0.1+H163+J163+K163*0.5+L163+M163*0.4,IF(B163=data!$B$4,D163*0.6+E163*0.8+F163*0.7+G163+H163+J163+L163+N163,IF(B163=data!$B$5,D163*0.7+E163*0.8+F163+I163*0.7+J163+L163,"zvolte typ stavby")))) -> 37.1 | P163: =IF(B163=data!$B$2,(O163*10)/6.4,IF(B163=data!$B$3,(O163*10)/4.8,IF(B163=data!$B$4,(O163*10)/7.1,IF(B163=data!$B$5,(O163*10)/5.2,"zvolte typ stavby")))) -> 57.96875 | Q163: 35000000
A164: II/174 Lazsko - Tochovice - PD | B164: oprava a rekonstrukce | C164: Rekonstrukce | D164: 2 | E164: 10 | F164: 10 | G164: 6 | H164: 6 | I164: 10 | J164: 7 | K164: 10 | L164: 8 | M164: 10 | N164: 4 | O164: =IF(B164=data!$B$2,D164*0.7+E164*0.5+F164*0.2+G164*0.8+H164+I164*0.2+J164+K164*0.3+L164+M164*0.5+N164*0.2,IF(B164=data!$B$3,D164*0.1+E164*0.4+F164*0.3+G164*0.1+H164+J164+K164*0.5+L164+M164*0.4,IF(B164=data!$B$4,D164*0.6+E164*0.8+F164*0.7+G164+H164+J164+L164+N164,IF(B164=data!$B$5,D164*0.7+E164*0.8+F164+I164*0.7+J164+L164,"zvolte typ stavby")))) -> 45 | P164: =IF(B164=data!$B$2,(O164*10)/6.4,IF(B164=data!$B$3,(O164*10)/4.8,IF(B164=data!$B$4,(O164*10)/7.1,IF(B164=data!$B$5,(O164*10)/5.2,"zvolte typ stavby")))) -> 70.3125 | Q164: 35000000
A165: II/331 Brandýs nad Labem - I/9, rekonstrukce silnice etapa V | B165: oprava a rekonstrukce | C165: Rekonstrukce | D165: 4 | E165: 10 | F165: 10 | G165: 6 | H165: 10 | I165: 10 | J165: 10 | K165: 0 | L165: 2 | M165: 10 | N165: 10 | O165: =IF(B165=data!$B$2,D165*0.7+E165*0.5+F165*0.2+G165*0.8+H165+I165*0.2+J165+K165*0.3+L165+M165*0.5+N165*0.2,IF(B165=data!$B$3,D165*0.1+E165*0.4+F165*0.3+G165*0.1+H165+J165+K165*0.5+L165+M165*0.4,IF(B165=data!$B$4,D165*0.6+E165*0.8+F165*0.7+G165+H165+J165+L165+N165,IF(B165=data!$B$5,D165*0.7+E165*0.8+F165+I165*0.7+J165+L165,"zvolte typ stavby")))) -> 45.6 | P165: =IF(B165=data!$B$2,(O165*10)/6.4,IF(B165=data!$B$3,(O165*10)/4.8,IF(B165=data!$B$4,(O165*10)/7.1,IF(B165=data!$B$5,(O165*10)/5.2,"zvolte typ stavby")))) -> 71.25 | Q165: 35000000 | U165: IROP 2
A166: II/335,II/508,III/1014 a III/1012 Mnichovice průtah I. etapa | B166: oprava a rekonstrukce | C166: Rekonstrukce | D166: 4 | E166: 10 | F166: 10 | G166: 6 | H166: 10 | I166: 10 | J166: 10 | K166: 0 | L166: 8 | M166: 10 | N166: 4 | O166: =IF(B166=data!$B$2,D166*0.7+E166*0.5+F166*0.2+G166*0.8+H166+I166*0.2+J166+K166*0.3+L166+M166*0.5+N166*0.2,IF(B166=data!$B$3,D166*0.1+E166*0.4+F166*0.3+G166*0.1+H166+J166+K166*0.5+L166+M166*0.4,IF(B166=data!$B$4,D166*0.6+E166*0.8+F166*0.7+G166+H166+J166+L166+N166,IF(B166=data!$B$5,D166*0.7+E166*0.8+F166+I166*0.7+J166+L166,"zvolte typ stavby")))) -> 50.4 | P166: =IF(B166=data!$B$2,(O166*10)/6.4,IF(B166=data!$B$3,(O166*10)/4.8,IF(B166=data!$B$4,(O166*10)/7.1,IF(B166=data!$B$5,(O166*10)/5.2,"zvolte typ stavby")))) -> 78.75 | Q166: 35000000
A167: Obchvat Králův Dvůr - III. etapa (napojení ul. Fučíkova) | B167: novostavba (obchvat, přeložka, propojka) | C167: - | D167: 3 | E167: 9 | F167: 9 | G167: 0 | H167: 0 | I167: 1 | J167: 2 | K167: 0 | L167: 2 | M167: 0 | N167: 0 | O167: =IF(B167=data!$B$2,D167*0.7+E167*0.5+F167*0.2+G167*0.8+H167+I167*0.2+J167+K167*0.3+L167+M167*0.5+N167*0.2,IF(B167=data!$B$3,D167*0.1+E167*0.4+F167*0.3+G167*0.1+H167+J167+K167*0.5+L167+M167*0.4,IF(B167=data!$B$4,D167*0.6+E167*0.8+F167*0.7+G167+H167+J167+L167+N167,IF(B167=data!$B$5,D167*0.7+E167*0.8+F167+I167*0.7+J167+L167,"zvolte typ stavby")))) -> 23 | P167: =IF(B167=data!$B$2,(O167*10)/6.4,IF(B167=data!$B$3,(O167*10)/4.8,IF(B167=data!$B$4,(O167*10)/7.1,IF(B167=data!$B$5,(O167*10)/5.2,"zvolte typ stavby")))) -> 44.23076923 | Q167: 33000000 | R167: - | U167: IROP 2
A168: II/105 Kamenný Přívoz, opěrná zeď-PD | B168: řešení bodové závady a/nebo bezpečnostního rizika (křižovatky, opěrné zdi, skalní masivy) | C168: - | D168: 1 | E168: 10 | F168: 9 | G168: 6 | H168: 6 | I168: 0 | J168: 4 | K168: 0 | L168: 5 | M168: 10 | N168: 0 | O168: =IF(B168=data!$B$2,D168*0.7+E168*0.5+F168*0.2+G168*0.8+H168+I168*0.2+J168+K168*0.3+L168+M168*0.5+N168*0.2,IF(B168=data!$B$3,D168*0.1+E168*0.4+F168*0.3+G168*0.1+H168+J168+K168*0.5+L168+M168*0.4,IF(B168=data!$B$4,D168*0.6+E168*0.8+F168*0.7+G168+H168+J168+L168+N168,IF(B168=data!$B$5,D168*0.7+E168*0.8+F168+I168*0.7+J168+L168,"zvolte typ stavby")))) -> 35.9 | P168: =IF(B168=data!$B$2,(O168*10)/6.4,IF(B168=data!$B$3,(O168*10)/4.8,IF(B168=data!$B$4,(O168*10)/7.1,IF(B168=data!$B$5,(O168*10)/5.2,"zvolte typ stavby")))) -> 50.56338028 | Q168: 33000000
A169: II/102 Davle | B169: oprava a rekonstrukce | C169: Rekonstrukce | D169: 6 | E169: 10 | F169: 10 | G169: 6 | H169: 10 | I169: 10 | J169: 10 | K169: 0 | L169: 10 | M169: 10 | N169: 10 | O169: =IF(B169=data!$B$2,D169*0.7+E169*0.5+F169*0.2+G169*0.8+H169+I169*0.2+J169+K169*0.3+L169+M169*0.5+N169*0.2,IF(B169=data!$B$3,D169*0.1+E169*0.4+F169*0.3+G169*0.1+H169+J169+K169*0.5+L169+M169*0.4,IF(B169=data!$B$4,D169*0.6+E169*0.8+F169*0.7+G169+H169+J169+L169+N169,IF(B169=data!$B$5,D169*0.7+E169*0.8+F169+I169*0.7+J169+L169,"zvolte typ stavby")))) -> 55 | P169: =IF(B169=data!$B$2,(O169*10)/6.4,IF(B169=data!$B$3,(O169*10)/4.8,IF(B169=data!$B$4,(O169*10)/7.1,IF(B169=data!$B$5,(O169*10)/5.2,"zvolte typ stavby")))) -> 85.9375 | Q169: 32483662.56 | U169: IROP 2
A170: III/33721 Močovice | B170: oprava a rekonstrukce | C170: Rekonstrukce | D170: 2 | E170: 10 | F170: 5 | G170: 6 | H170: 10 | I170: 10 | J170: 4 | K170: 0 | L170: 10 | M170: 10 | N170: 0 | O170: =IF(B170=data!$B$2,D170*0.7+E170*0.5+F170*0.2+G170*0.8+H170+I170*0.2+J170+K170*0.3+L170+M170*0.5+N170*0.2,IF(B170=data!$B$3,D170*0.1+E170*0.4+F170*0.3+G170*0.1+H170+J170+K170*0.5+L170+M170*0.4,IF(B170=data!$B$4,D170*0.6+E170*0.8+F170*0.7+G170+H170+J170+L170+N170,IF(B170=data!$B$5,D170*0.7+E170*0.8+F170+I170*0.7+J170+L170,"zvolte typ stavby")))) -> 43.2 | P170: =IF(B170=data!$B$2,(O170*10)/6.4,IF(B170=data!$B$3,(O170*10)/4.8,IF(B170=data!$B$4,(O170*10)/7.1,IF(B170=data!$B$5,(O170*10)/5.2,"zvolte typ stavby")))) -> 67.5 | Q170: 30911582.53 | U170: IROP 2
A171: III/26828 Dolní Krupá - Bělá pod Bezdězem | B171: oprava a rekonstrukce | C171: Souvislá údržba | D171: 3 | E171: 0 | F171: 4 | G171: 10 | H171: 10 | I171: 10 | J171: 7 | K171: 0 | L171: 10 | M171: 0 | N171: 2 | O171: =IF(B171=data!$B$2,D171*0.7+E171*0.5+F171*0.2+G171*0.8+H171+I171*0.2+J171+K171*0.3+L171+M171*0.5+N171*0.2,IF(B171=data!$B$3,D171*0.1+E171*0.4+F171*0.3+G171*0.1+H171+J171+K171*0.5+L171+M171*0.4,IF(B171=data!$B$4,D171*0.6+E171*0.8+F171*0.7+G171+H171+J171+L171+N171,IF(B171=data!$B$5,D171*0.7+E171*0.8+F171+I171*0.7+J171+L171,"zvolte typ stavby")))) -> 40.3 | P171: =IF(B171=[1]data!$B$2,(O171*10)/6.4,IF(B171=[1]data!$B$3,(O171*10)/4.8,IF(B171=[1]data!$B$4,(O171*10)/7.1,IF(B171=[1]data!$B$5,(O171*10)/5.2,"zvolte typ stavby")))) -> 62.96875 | Q171: 30878979.13 | S171: připraveno k soutěži a realizaci 2023
A172: Pyšely – okružní křižovatka III/6031 × III/1096 | B172: řešení bodové závady a/nebo bezpečnostního rizika (křižovatky, opěrné zdi, skalní masivy) | C172: - | D172: 3 | E172: 10 | F172: 5 | G172: 10 | H172: 3 | I172: 0 | J172: 4 | K172: 0 | L172: 10 | M172: 10 | N172: 4 | O172: =IF(B172=data!$B$2,D172*0.7+E172*0.5+F172*0.2+G172*0.8+H172+I172*0.2+J172+K172*0.3+L172+M172*0.5+N172*0.2,IF(B172=data!$B$3,D172*0.1+E172*0.4+F172*0.3+G172*0.1+H172+J172+K172*0.5+L172+M172*0.4,IF(B172=data!$B$4,D172*0.6+E172*0.8+F172*0.7+G172+H172+J172+L172+N172,IF(B172=data!$B$5,D172*0.7+E172*0.8+F172+I172*0.7+J172+L172,"zvolte typ stavby")))) -> 44.3 | P172: =IF(B172=data!$B$2,(O172*10)/6.4,IF(B172=data!$B$3,(O172*10)/4.8,IF(B172=data!$B$4,(O172*10)/7.1,IF(B172=data!$B$5,(O172*10)/5.2,"zvolte typ stavby")))) -> 62.3943662 | Q172: 30250000
A173: II/279 Rabakov – Prodašice, II. etapa | B173: oprava a rekonstrukce | C173: Rekonstrukce | D173: 3 | E173: 10 | F173: 10 | G173: 6 | H173: 6 | I173: 10 | J173: 4 | K173: 0 | L173: 0 | M173: 0 | N173: 2 | O173: =IF(B173=data!$B$2,D173*0.7+E173*0.5+F173*0.2+G173*0.8+H173+I173*0.2+J173+K173*0.3+L173+M173*0.5+N173*0.2,IF(B173=data!$B$3,D173*0.1+E173*0.4+F173*0.3+G173*0.1+H173+J173+K173*0.5+L173+M173*0.4,IF(B173=data!$B$4,D173*0.6+E173*0.8+F173*0.7+G173+H173+J173+L173+N173,IF(B173=data!$B$5,D173*0.7+E173*0.8+F173+I173*0.7+J173+L173,"zvolte typ stavby")))) -> 26.3 | P173: =IF(B173=data!$B$2,(O173*10)/6.4,IF(B173=data!$B$3,(O173*10)/4.8,IF(B173=data!$B$4,(O173*10)/7.1,IF(B173=data!$B$5,(O173*10)/5.2,"zvolte typ stavby")))) -> 41.09375 | Q173: 30000000
A174: II/611 Poděbrady, most ev.č. 611-014 | B174: mostní objekty a propustky | C174: Most | D174: 7 | E174: 8 | F174: 10 | G174: 6 | H174: 6 | I174: 0 | J174: 7 | K174: 0 | L174: 0 | M174: 0 | N174: 0 | O174: =IF(B174=data!$B$2,D174*0.7+E174*0.5+F174*0.2+G174*0.8+H174+I174*0.2+J174+K174*0.3+L174+M174*0.5+N174*0.2,IF(B174=data!$B$3,D174*0.1+E174*0.4+F174*0.3+G174*0.1+H174+J174+K174*0.5+L174+M174*0.4,IF(B174=data!$B$4,D174*0.6+E174*0.8+F174*0.7+G174+H174+J174+L174+N174,IF(B174=data!$B$5,D174*0.7+E174*0.8+F174+I174*0.7+J174+L174,"zvolte typ stavby")))) -> 20.5 | P174: =IF(B174=data!$B$2,(O174*10)/6.4,IF(B174=data!$B$3,(O174*10)/4.8,IF(B174=data!$B$4,(O174*10)/7.1,IF(B174=data!$B$5,(O174*10)/5.2,"zvolte typ stavby")))) -> 42.70833333 | Q174: 30000000
A175: III/00325 Jažlovice, PD | B175: oprava a rekonstrukce | C175: Rekonstrukce | D175: 4 | E175: 8 | F175: 5 | G175: 6 | H175: 6 | I175: 10 | J175: 4 | K175: 0 | L175: 5 | M175: 10 | N175: 2 | O175: =IF(B175=data!$B$2,D175*0.7+E175*0.5+F175*0.2+G175*0.8+H175+I175*0.2+J175+K175*0.3+L175+M175*0.5+N175*0.2,IF(B175=data!$B$3,D175*0.1+E175*0.4+F175*0.3+G175*0.1+H175+J175+K175*0.5+L175+M175*0.4,IF(B175=data!$B$4,D175*0.6+E175*0.8+F175*0.7+G175+H175+J175+L175+N175,IF(B175=data!$B$5,D175*0.7+E175*0.8+F175+I175*0.7+J175+L175,"zvolte typ stavby")))) -> 35 | P175: =IF(B175=data!$B$2,(O175*10)/6.4,IF(B175=data!$B$3,(O175*10)/4.8,IF(B175=data!$B$4,(O175*10)/7.1,IF(B175=data!$B$5,(O175*10)/5.2,"zvolte typ stavby")))) -> 54.6875 | Q175: 30000000
A176: II/105 Velběhy - Spolí | B176: oprava a rekonstrukce | C176: Rekonstrukce | D176: 3 | E176: 10 | F176: 10 | G176: 3 | H176: 3 | I176: 10 | J176: 4 | K176: 0 | L176: 10 | M176: 10 | N176: 2 | O176: =IF(B176=data!$B$2,D176*0.7+E176*0.5+F176*0.2+G176*0.8+H176+I176*0.2+J176+K176*0.3+L176+M176*0.5+N176*0.2,IF(B176=data!$B$3,D176*0.1+E176*0.4+F176*0.3+G176*0.1+H176+J176+K176*0.5+L176+M176*0.4,IF(B176=data!$B$4,D176*0.6+E176*0.8+F176*0.7+G176+H176+J176+L176+N176,IF(B176=data!$B$5,D176*0.7+E176*0.8+F176+I176*0.7+J176+L176,"zvolte typ stavby")))) -> 35.9 | P176: =IF(B176=data!$B$2,(O176*10)/6.4,IF(B176=data!$B$3,(O176*10)/4.8,IF(B176=data!$B$4,(O176*10)/7.1,IF(B176=data!$B$5,(O176*10)/5.2,"zvolte typ stavby")))) -> 56.09375 | Q176: 30000000 | U176: IROP 2
A177: II/610 x II/245 Brandýs nad Labem, křižovatka | B177: řešení bodové závady a/nebo bezpečnostního rizika (křižovatky, opěrné zdi, skalní masivy) | C177: - | D177: 8 | E177: 8 | F177: 10 | G177: 6 | H177: 3 | I177: 0 | J177: 2 | K177: 0 | L177: 0 | M177: 10 | N177: 7 | O177: =IF(B177=data!$B$2,D177*0.7+E177*0.5+F177*0.2+G177*0.8+H177+I177*0.2+J177+K177*0.3+L177+M177*0.5+N177*0.2,IF(B177=data!$B$3,D177*0.1+E177*0.4+F177*0.3+G177*0.1+H177+J177+K177*0.5+L177+M177*0.4,IF(B177=data!$B$4,D177*0.6+E177*0.8+F177*0.7+G177+H177+J177+L177+N177,IF(B177=data!$B$5,D177*0.7+E177*0.8+F177+I177*0.7+J177+L177,"zvolte typ stavby")))) -> 36.2 | P177: =IF(B177=data!$B$2,(O177*10)/6.4,IF(B177=data!$B$3,(O177*10)/4.8,IF(B177=data!$B$4,(O177*10)/7.1,IF(B177=data!$B$5,(O177*10)/5.2,"zvolte typ stavby")))) -> 50.98591549 | Q177: 30000000 | R177: - | U177: plán investic KU, tendrovat
A178: II/101 Třebotov - Rudná, rekonstrukce II. Etapa | B178: oprava a rekonstrukce | C178: Rekonstrukce | D178: 3 | E178: 10 | F178: 10 | G178: 3 | H178: 10 | I178: 10 | J178: 4 | K178: 0 | L178: 5 | M178: 10 | N178: 0 | O178: =IF(B178=data!$B$2,D178*0.7+E178*0.5+F178*0.2+G178*0.8+H178+I178*0.2+J178+K178*0.3+L178+M178*0.5+N178*0.2,IF(B178=data!$B$3,D178*0.1+E178*0.4+F178*0.3+G178*0.1+H178+J178+K178*0.5+L178+M178*0.4,IF(B178=data!$B$4,D178*0.6+E178*0.8+F178*0.7+G178+H178+J178+L178+N178,IF(B178=data!$B$5,D178*0.7+E178*0.8+F178+I178*0.7+J178+L178,"zvolte typ stavby")))) -> 37.5 | P178: =IF(B178=data!$B$2,(O178*10)/6.4,IF(B178=data!$B$3,(O178*10)/4.8,IF(B178=data!$B$4,(O178*10)/7.1,IF(B178=data!$B$5,(O178*10)/5.2,"zvolte typ stavby")))) -> 58.59375 | Q178: 30000000 | U178: plán investic KU
A179: II/112 Struhařov, okružní křižovatka a silnice, II. etapa (okružní křižovatka) | B179: řešení bodové závady a/nebo bezpečnostního rizika (křižovatky, opěrné zdi, skalní masivy) | C179: - | D179: 6 | E179: 10 | F179: 10 | G179: 6 | H179: 10 | I179: 0 | J179: 7 | K179: 0 | L179: 8 | M179: 0 | N179: 10 | O179: =IF(B179=data!$B$2,D179*0.7+E179*0.5+F179*0.2+G179*0.8+H179+I179*0.2+J179+K179*0.3+L179+M179*0.5+N179*0.2,IF(B179=data!$B$3,D179*0.1+E179*0.4+F179*0.3+G179*0.1+H179+J179+K179*0.5+L179+M179*0.4,IF(B179=data!$B$4,D179*0.6+E179*0.8+F179*0.7+G179+H179+J179+L179+N179,IF(B179=data!$B$5,D179*0.7+E179*0.8+F179+I179*0.7+J179+L179,"zvolte typ stavby")))) -> 59.6 | P179: =IF(B179=data!$B$2,(O179*10)/6.4,IF(B179=data!$B$3,(O179*10)/4.8,IF(B179=data!$B$4,(O179*10)/7.1,IF(B179=data!$B$5,(O179*10)/5.2,"zvolte typ stavby")))) -> 83.94366197 | Q179: 30000000 | R179: IROP 2
A180: Hostivice – rekonstrukce silnice III/0064, ul. Litovická | B180: oprava a rekonstrukce | C180: Rekonstrukce | D180: 1 | E180: 10 | F180: 5 | G180: 3 | H180: 10 | I180: 10 | J180: 2 | K180: 0 | L180: 0 | M180: 10 | N180: 7 | O180: =IF(B180=data!$B$2,D180*0.7+E180*0.5+F180*0.2+G180*0.8+H180+I180*0.2+J180+K180*0.3+L180+M180*0.5+N180*0.2,IF(B180=data!$B$3,D180*0.1+E180*0.4+F180*0.3+G180*0.1+H180+J180+K180*0.5+L180+M180*0.4,IF(B180=data!$B$4,D180*0.6+E180*0.8+F180*0.7+G180+H180+J180+L180+N180,IF(B180=data!$B$5,D180*0.7+E180*0.8+F180+I180*0.7+J180+L180,"zvolte typ stavby")))) -> 29.5 | P180: =IF(B180=data!$B$2,(O180*10)/6.4,IF(B180=data!$B$3,(O180*10)/4.8,IF(B180=data!$B$4,(O180*10)/7.1,IF(B180=data!$B$5,(O180*10)/5.2,"zvolte typ stavby")))) -> 46.09375 | Q180: 29782739.14 | S180: k 11/2022 Odhad našich nákladů- projektanta soutěží město
A181: II/245 Český Brod - Žižkova ulice - celková rekonstrukce ulice II etapa | B181: oprava a rekonstrukce | C181: Rekonstrukce | D181: 4 | E181: 10 | F181: 10 | G181: 3 | H181: 10 | I181: 10 | J181: 7 | K181: 0 | L181: 8 | M181: 10 | N181: 0 | O181: =IF(B181=data!$B$2,D181*0.7+E181*0.5+F181*0.2+G181*0.8+H181+I181*0.2+J181+K181*0.3+L181+M181*0.5+N181*0.2,IF(B181=data!$B$3,D181*0.1+E181*0.4+F181*0.3+G181*0.1+H181+J181+K181*0.5+L181+M181*0.4,IF(B181=data!$B$4,D181*0.6+E181*0.8+F181*0.7+G181+H181+J181+L181+N181,IF(B181=data!$B$5,D181*0.7+E181*0.8+F181+I181*0.7+J181+L181,"zvolte typ stavby")))) -> 44.2 | P181: =IF(B181=data!$B$2,(O181*10)/6.4,IF(B181=data!$B$3,(O181*10)/4.8,IF(B181=data!$B$4,(O181*10)/7.1,IF(B181=data!$B$5,(O181*10)/5.2,"zvolte typ stavby")))) -> 69.0625 | Q181: 29491361.41 | U181: IROP 2
A182: III/0172 Opatovice I, most ev.č. 0172-1 | B182: oprava a rekonstrukce | C182: Rekonstrukce | D182: 2 | E182: 10 | F182: 5 | G182: 6 | H182: 10 | I182: 10 | J182: 4 | K182: 0 | L182: 10 | M182: 10 | N182: 2 | O182: =IF(B182=data!$B$2,D182*0.7+E182*0.5+F182*0.2+G182*0.8+H182+I182*0.2+J182+K182*0.3+L182+M182*0.5+N182*0.2,IF(B182=data!$B$3,D182*0.1+E182*0.4+F182*0.3+G182*0.1+H182+J182+K182*0.5+L182+M182*0.4,IF(B182=data!$B$4,D182*0.6+E182*0.8+F182*0.7+G182+H182+J182+L182+N182,IF(B182=data!$B$5,D182*0.7+E182*0.8+F182+I182*0.7+J182+L182,"zvolte typ stavby")))) -> 43.6 | P182: =IF(B182=data!$B$2,(O182*10)/6.4,IF(B182=data!$B$3,(O182*10)/4.8,IF(B182=data!$B$4,(O182*10)/7.1,IF(B182=data!$B$5,(O182*10)/5.2,"zvolte typ stavby")))) -> 68.125 | Q182: 29248546.36
A183: II/605 Levín, rekonstrukde mostu ev.č. 605-034 | B183: mostní objekty a propustky | C183: Most | D183: 5 | E183: 10 | F183: 10 | G183: 6 | H183: 6 | I183: 0 | J183: 10 | K183: 0 | L183: 10 | M183: 10 | N183: 0 | O183: =IF(B183=data!$B$2,D183*0.7+E183*0.5+F183*0.2+G183*0.8+H183+I183*0.2+J183+K183*0.3+L183+M183*0.5+N183*0.2,IF(B183=data!$B$3,D183*0.1+E183*0.4+F183*0.3+G183*0.1+H183+J183+K183*0.5+L183+M183*0.4,IF(B183=data!$B$4,D183*0.6+E183*0.8+F183*0.7+G183+H183+J183+L183+N183,IF(B183=data!$B$5,D183*0.7+E183*0.8+F183+I183*0.7+J183+L183,"zvolte typ stavby")))) -> 38.1 | P183: =IF(B183=data!$B$2,(O183*10)/6.4,IF(B183=data!$B$3,(O183*10)/4.8,IF(B183=data!$B$4,(O183*10)/7.1,IF(B183=data!$B$5,(O183*10)/5.2,"zvolte typ stavby")))) -> 79.375 | Q183: 29900000
A184: III/2444 a III/105a Přezletice, průtah III etapa | B184: oprava a rekonstrukce | C184: Rekonstrukce | D184: 5 | E184: 10 | F184: 5 | G184: 6 | H184: 10 | I184: 1 | J184: 7 | K184: 0 | L184: 5 | M184: 10 | N184: 2 | O184: =IF(B184=data!$B$2,D184*0.7+E184*0.5+F184*0.2+G184*0.8+H184+I184*0.2+J184+K184*0.3+L184+M184*0.5+N184*0.2,IF(B184=data!$B$3,D184*0.1+E184*0.4+F184*0.3+G184*0.1+H184+J184+K184*0.5+L184+M184*0.4,IF(B184=data!$B$4,D184*0.6+E184*0.8+F184*0.7+G184+H184+J184+L184+N184,IF(B184=data!$B$5,D184*0.7+E184*0.8+F184+I184*0.7+J184+L184,"zvolte typ stavby")))) -> 41.9 | P184: =IF(B184=data!$B$2,(O184*10)/6.4,IF(B184=data!$B$3,(O184*10)/4.8,IF(B184=data!$B$4,(O184*10)/7.1,IF(B184=data!$B$5,(O184*10)/5.2,"zvolte typ stavby")))) -> 65.46875 | Q184: 48400000 | U184: IROP 2
A185: II/277 Mohelnice nad Jizerou / Podhora – zajištění nestabilní skalní stěny | B185: řešení bodové závady a/nebo bezpečnostního rizika (křižovatky, opěrné zdi, skalní masivy) | D185: 3 | E185: 0 | F185: 10 | G185: 10 | H185: 10 | I185: 1 | J185: 10 | K185: 0 | L185: 10 | M185: 10 | N185: 0 | O185: =IF(B185=data!$B$2,D185*0.7+E185*0.5+F185*0.2+G185*0.8+H185+I185*0.2+J185+K185*0.3+L185+M185*0.5+N185*0.2,IF(B185=data!$B$3,D185*0.1+E185*0.4+F185*0.3+G185*0.1+H185+J185+K185*0.5+L185+M185*0.4,IF(B185=data!$B$4,D185*0.6+E185*0.8+F185*0.7+G185+H185+J185+L185+N185,IF(B185=data!$B$5,D185*0.7+E185*0.8+F185+I185*0.7+J185+L185,"zvolte typ stavby")))) -> 48.8 | P185: =IF(B185=data!$B$2,(O185*10)/6.4,IF(B185=data!$B$3,(O185*10)/4.8,IF(B185=data!$B$4,(O185*10)/7.1,IF(B185=data!$B$5,(O185*10)/5.2,"zvolte typ stavby")))) -> 68.73239437 | Q185: 27777916.72 | R185: SFDI – NZ – národní zdroje | S185: SFDI – NZ – národní zdroje 2023 - v soutěži!
A186: III/0098 Byškovice - Korycany | B186: oprava a rekonstrukce | C186: Souvislá údržba | D186: 2 | E186: 0 | F186: 5 | G186: 6 | H186: 10 | I186: 1 | J186: 4 | K186: 0 | L186: 10 | M186: 10 | N186: 10 | O186: =IF(B186=data!$B$2,D186*0.7+E186*0.5+F186*0.2+G186*0.8+H186+I186*0.2+J186+K186*0.3+L186+M186*0.5+N186*0.2,IF(B186=data!$B$3,D186*0.1+E186*0.4+F186*0.3+G186*0.1+H186+J186+K186*0.5+L186+M186*0.4,IF(B186=data!$B$4,D186*0.6+E186*0.8+F186*0.7+G186+H186+J186+L186+N186,IF(B186=data!$B$5,D186*0.7+E186*0.8+F186+I186*0.7+J186+L186,"zvolte typ stavby")))) -> 38.4 | P186: =IF(B186=data!$B$2,(O186*10)/6.4,IF(B186=data!$B$3,(O186*10)/4.8,IF(B186=data!$B$4,(O186*10)/7.1,IF(B186=data!$B$5,(O186*10)/5.2,"zvolte typ stavby")))) -> 60 | Q186: 26930524.24 | S186: připraveno k soutěži a realizaci 2023, lze zařadit do ÚD-SOKP | U186: SFDI NZ 2022 - tendrovat
A187: Okružní křižovatka II/610 x II/275 Horky nad Jizerou_PD | B187: řešení bodové závady a/nebo bezpečnostního rizika (křižovatky, opěrné zdi, skalní masivy) | C187: - | D187: 4 | E187: 10 | F187: 10 | G187: 10 | H187: 10 | I187: 0 | J187: 4 | K187: 0 | L187: 2 | M187: 10 | N187: 0 | O187: =IF(B187=data!$B$2,D187*0.7+E187*0.5+F187*0.2+G187*0.8+H187+I187*0.2+J187+K187*0.3+L187+M187*0.5+N187*0.2,IF(B187=data!$B$3,D187*0.1+E187*0.4+F187*0.3+G187*0.1+H187+J187+K187*0.5+L187+M187*0.4,IF(B187=data!$B$4,D187*0.6+E187*0.8+F187*0.7+G187+H187+J187+L187+N187,IF(B187=data!$B$5,D187*0.7+E187*0.8+F187+I187*0.7+J187+L187,"zvolte typ stavby")))) -> 43.4 | P187: =IF(B187=data!$B$2,(O187*10)/6.4,IF(B187=data!$B$3,(O187*10)/4.8,IF(B187=data!$B$4,(O187*10)/7.1,IF(B187=data!$B$5,(O187*10)/5.2,"zvolte typ stavby")))) -> 61.12676056 | Q187: 30000000 | U187: SFDI NZ 2022 - tendrovat
A188: II/101 Břežanské údolí, sanace skalního svahu | B188: řešení bodové závady a/nebo bezpečnostního rizika (křižovatky, opěrné zdi, skalní masivy) | C188: - | D188: 5 | E188: 10 | F188: 10 | G188: 10 | H188: 10 | I188: 0 | J188: 10 | K188: 0 | L188: 5 | M188: 0 | N188: 7 | O188: =IF(B188=data!$B$2,D188*0.7+E188*0.5+F188*0.2+G188*0.8+H188+I188*0.2+J188+K188*0.3+L188+M188*0.5+N188*0.2,IF(B188=data!$B$3,D188*0.1+E188*0.4+F188*0.3+G188*0.1+H188+J188+K188*0.5+L188+M188*0.4,IF(B188=data!$B$4,D188*0.6+E188*0.8+F188*0.7+G188+H188+J188+L188+N188,IF(B188=data!$B$5,D188*0.7+E188*0.8+F188+I188*0.7+J188+L188,"zvolte typ stavby")))) -> 60 | P188: =IF(B188=data!$B$2,(O188*10)/6.4,IF(B188=data!$B$3,(O188*10)/4.8,IF(B188=data!$B$4,(O188*10)/7.1,IF(B188=data!$B$5,(O188*10)/5.2,"zvolte typ stavby")))) -> 84.50704225 | Q188: 26341700
A189: II/245 Český Brod - Žižkova ulice - celková rekonstrukce ulice I etapa | B189: oprava a rekonstrukce | C189: Rekonstrukce | D189: 4 | E189: 10 | F189: 10 | G189: 3 | H189: 10 | I189: 10 | J189: 7 | K189: 0 | L189: 8 | M189: 10 | N189: 0 | O189: =IF(B189=data!$B$2,D189*0.7+E189*0.5+F189*0.2+G189*0.8+H189+I189*0.2+J189+K189*0.3+L189+M189*0.5+N189*0.2,IF(B189=data!$B$3,D189*0.1+E189*0.4+F189*0.3+G189*0.1+H189+J189+K189*0.5+L189+M189*0.4,IF(B189=data!$B$4,D189*0.6+E189*0.8+F189*0.7+G189+H189+J189+L189+N189,IF(B189=data!$B$5,D189*0.7+E189*0.8+F189+I189*0.7+J189+L189,"zvolte typ stavby")))) -> 44.2 | P189: =IF(B189=data!$B$2,(O189*10)/6.4,IF(B189=data!$B$3,(O189*10)/4.8,IF(B189=data!$B$4,(O189*10)/7.1,IF(B189=data!$B$5,(O189*10)/5.2,"zvolte typ stavby")))) -> 69.0625 | Q189: 26157361.41
A190: II/107 Všechromy - rekonstrukce silnice a okružních křižovatek | B190: oprava a rekonstrukce | C190: Rekonstrukce | D190: 7 | E190: 10 | F190: 10 | G190: 10 | H190: 6 | I190: 10 | J190: 10 | K190: 10 | L190: 5 | M190: 10 | N190: 4 | O190: =IF(B190=data!$B$2,D190*0.7+E190*0.5+F190*0.2+G190*0.8+H190+I190*0.2+J190+K190*0.3+L190+M190*0.5+N190*0.2,IF(B190=data!$B$3,D190*0.1+E190*0.4+F190*0.3+G190*0.1+H190+J190+K190*0.5+L190+M190*0.4,IF(B190=data!$B$4,D190*0.6+E190*0.8+F190*0.7+G190+H190+J190+L190+N190,IF(B190=data!$B$5,D190*0.7+E190*0.8+F190+I190*0.7+J190+L190,"zvolte typ stavby")))) -> 51.7 | P190: =IF(B190=data!$B$2,(O190*10)/6.4,IF(B190=data!$B$3,(O190*10)/4.8,IF(B190=data!$B$4,(O190*10)/7.1,IF(B190=data!$B$5,(O190*10)/5.2,"zvolte typ stavby")))) -> 80.78125 | Q190: 25410000 | U190: IROP 2
A191: II/101 Kováry - Zákolany a III/00710 Lichoceves, úprava podjezdů | B191: řešení bodové závady a/nebo bezpečnostního rizika (křižovatky, opěrné zdi, skalní masivy) | C191: - | D191: 3 | E191: 10 | F191: 10 | G191: 6 | H191: 6 | I191: 0 | J191: 2 | K191: 0 | L191: 2 | M191: 0 | N191: 0 | O191: =IF(B191=data!$B$2,D191*0.7+E191*0.5+F191*0.2+G191*0.8+H191+I191*0.2+J191+K191*0.3+L191+M191*0.5+N191*0.2,IF(B191=data!$B$3,D191*0.1+E191*0.4+F191*0.3+G191*0.1+H191+J191+K191*0.5+L191+M191*0.4,IF(B191=data!$B$4,D191*0.6+E191*0.8+F191*0.7+G191+H191+J191+L191+N191,IF(B191=data!$B$5,D191*0.7+E191*0.8+F191+I191*0.7+J191+L191,"zvolte typ stavby")))) -> 32.8 | P191: =IF(B191=data!$B$2,(O191*10)/6.4,IF(B191=data!$B$3,(O191*10)/4.8,IF(B191=data!$B$4,(O191*10)/7.1,IF(B191=data!$B$5,(O191*10)/5.2,"zvolte typ stavby")))) -> 46.1971831 | Q191: 25000000 | U191: SFDI NZ 2022 - tendrovat
A192: III/11533 Beroun, okružní křižovatka | B192: řešení bodové závady a/nebo bezpečnostního rizika (křižovatky, opěrné zdi, skalní masivy) | C192: - | D192: 5 | E192: 10 | F192: 5 | G192: 6 | H192: 3 | I192: 0 | J192: 7 | K192: 0 | L192: 2 | M192: 0 | N192: 4 | O192: =IF(B192=data!$B$2,D192*0.7+E192*0.5+F192*0.2+G192*0.8+H192+I192*0.2+J192+K192*0.3+L192+M192*0.5+N192*0.2,IF(B192=data!$B$3,D192*0.1+E192*0.4+F192*0.3+G192*0.1+H192+J192+K192*0.5+L192+M192*0.4,IF(B192=data!$B$4,D192*0.6+E192*0.8+F192*0.7+G192+H192+J192+L192+N192,IF(B192=data!$B$5,D192*0.7+E192*0.8+F192+I192*0.7+J192+L192,"zvolte typ stavby")))) -> 36.5 | P192: =IF(B192=data!$B$2,(O192*10)/6.4,IF(B192=data!$B$3,(O192*10)/4.8,IF(B192=data!$B$4,(O192*10)/7.1,IF(B192=data!$B$5,(O192*10)/5.2,"zvolte typ stavby")))) -> 51.4084507 | Q192: 25000000
A193: III/12144 Střezimíř, most ev.č. 12144-3 | B193: mostní objekty a propustky | C193: Most | D193: 2 | E193: 0 | F193: 5 | G193: 6 | H193: 6 | I193: 0 | J193: 10 | K193: 0 | L193: 5 | M193: 10 | N193: 0 | O193: =IF(B193=data!$B$2,D193*0.7+E193*0.5+F193*0.2+G193*0.8+H193+I193*0.2+J193+K193*0.3+L193+M193*0.5+N193*0.2,IF(B193=data!$B$3,D193*0.1+E193*0.4+F193*0.3+G193*0.1+H193+J193+K193*0.5+L193+M193*0.4,IF(B193=data!$B$4,D193*0.6+E193*0.8+F193*0.7+G193+H193+J193+L193+N193,IF(B193=data!$B$5,D193*0.7+E193*0.8+F193+I193*0.7+J193+L193,"zvolte typ stavby")))) -> 27.3 | P193: =IF(B193=data!$B$2,(O193*10)/6.4,IF(B193=data!$B$3,(O193*10)/4.8,IF(B193=data!$B$4,(O193*10)/7.1,IF(B193=data!$B$5,(O193*10)/5.2,"zvolte typ stavby")))) -> 56.875 | Q193: 25000000 | S193: Předpokládaný termmín realizace 03/2024-12/2024
A194: II/113 Bílkovice, most ev. č. 113-015 | B194: mostní objekty a propustky | C194: Most | D194: 4 | E194: 0 | F194: 10 | G194: 3 | H194: 6 | I194: 0 | J194: 10 | K194: 0 | L194: 5 | M194: 10 | N194: 0 | O194: =IF(B194=data!$B$2,D194*0.7+E194*0.5+F194*0.2+G194*0.8+H194+I194*0.2+J194+K194*0.3+L194+M194*0.5+N194*0.2,IF(B194=data!$B$3,D194*0.1+E194*0.4+F194*0.3+G194*0.1+H194+J194+K194*0.5+L194+M194*0.4,IF(B194=data!$B$4,D194*0.6+E194*0.8+F194*0.7+G194+H194+J194+L194+N194,IF(B194=data!$B$5,D194*0.7+E194*0.8+F194+I194*0.7+J194+L194,"zvolte typ stavby")))) -> 28.7 | P194: =IF(B194=data!$B$2,(O194*10)/6.4,IF(B194=data!$B$3,(O194*10)/4.8,IF(B194=data!$B$4,(O194*10)/7.1,IF(B194=data!$B$5,(O194*10)/5.2,"zvolte typ stavby")))) -> 59.79166667 | Q194: 25000000 | S194: Předpokládaný termmín realizace 03/2024-12/2024
A195: Okružní křižovatka silnic II/112 a II/127 Zdislavice - PD | B195: řešení bodové závady a/nebo bezpečnostního rizika (křižovatky, opěrné zdi, skalní masivy) | C195: - | D195: 6 | E195: 10 | F195: 10 | G195: 3 | H195: 10 | I195: 0 | J195: 2 | K195: 0 | L195: 2 | M195: 0 | N195: 10 | O195: =IF(B195=data!$B$2,D195*0.7+E195*0.5+F195*0.2+G195*0.8+H195+I195*0.2+J195+K195*0.3+L195+M195*0.5+N195*0.2,IF(B195=data!$B$3,D195*0.1+E195*0.4+F195*0.3+G195*0.1+H195+J195+K195*0.5+L195+M195*0.4,IF(B195=data!$B$4,D195*0.6+E195*0.8+F195*0.7+G195+H195+J195+L195+N195,IF(B195=data!$B$5,D195*0.7+E195*0.8+F195+I195*0.7+J195+L195,"zvolte typ stavby")))) -> 45.6 | P195: =IF(B195=data!$B$2,(O195*10)/6.4,IF(B195=data!$B$3,(O195*10)/4.8,IF(B195=data!$B$4,(O195*10)/7.1,IF(B195=data!$B$5,(O195*10)/5.2,"zvolte typ stavby")))) -> 64.22535211 | Q195: 25000000 | R195: -
A196: Okružní křižovatka silnic II/106 x III/1065 x III/1066-Krhanice | B196: řešení bodové závady a/nebo bezpečnostního rizika (křižovatky, opěrné zdi, skalní masivy) | C196: - | D196: 3 | E196: 8 | F196: 10 | G196: 6 | H196: 6 | I196: 10 | J196: 7 | K196: 0 | L196: 10 | M196: 10 | N196: 2 | O196: =IF(B196=data!$B$2,D196*0.7+E196*0.5+F196*0.2+G196*0.8+H196+I196*0.2+J196+K196*0.3+L196+M196*0.5+N196*0.2,IF(B196=data!$B$3,D196*0.1+E196*0.4+F196*0.3+G196*0.1+H196+J196+K196*0.5+L196+M196*0.4,IF(B196=data!$B$4,D196*0.6+E196*0.8+F196*0.7+G196+H196+J196+L196+N196,IF(B196=data!$B$5,D196*0.7+E196*0.8+F196+I196*0.7+J196+L196,"zvolte typ stavby")))) -> 46.2 | P196: =IF(B196=data!$B$2,(O196*10)/6.4,IF(B196=data!$B$3,(O196*10)/4.8,IF(B196=data!$B$4,(O196*10)/7.1,IF(B196=data!$B$5,(O196*10)/5.2,"zvolte typ stavby")))) -> 65.07042254 | Q196: 25000000
A197: II/174 Březnice, most ev.č. 174-006 PD | B197: mostní objekty a propustky | C197: Most | D197: 3 | E197: 0 | F197: 10 | G197: 6 | H197: 6 | I197: 0 | J197: 10 | K197: 0 | L197: 8 | M197: 10 | N197: 0 | O197: =IF(B197=data!$B$2,D197*0.7+E197*0.5+F197*0.2+G197*0.8+H197+I197*0.2+J197+K197*0.3+L197+M197*0.5+N197*0.2,IF(B197=data!$B$3,D197*0.1+E197*0.4+F197*0.3+G197*0.1+H197+J197+K197*0.5+L197+M197*0.4,IF(B197=data!$B$4,D197*0.6+E197*0.8+F197*0.7+G197+H197+J197+L197+N197,IF(B197=data!$B$5,D197*0.7+E197*0.8+F197+I197*0.7+J197+L197,"zvolte typ stavby")))) -> 31.9 | P197: =IF(B197=data!$B$2,(O197*10)/6.4,IF(B197=data!$B$3,(O197*10)/4.8,IF(B197=data!$B$4,(O197*10)/7.1,IF(B197=data!$B$5,(O197*10)/5.2,"zvolte typ stavby")))) -> 66.45833333 | Q197: 25000000 | S197: Předpokládaný termmín realizace 03/2024-12/2024
A198: II/240, III/2404 Horoměřice, dešťová a splašková kanalizace - PD | B198: oprava a rekonstrukce | C198: Rekonstrukce | D198: 5 | E198: 10 | F198: 10 | G198: 10 | H198: 10 | I198: 10 | J198: 7 | K198: 0 | L198: 2 | M198: 10 | N198: 4 | O198: =IF(B198=data!$B$2,D198*0.7+E198*0.5+F198*0.2+G198*0.8+H198+I198*0.2+J198+K198*0.3+L198+M198*0.5+N198*0.2,IF(B198=data!$B$3,D198*0.1+E198*0.4+F198*0.3+G198*0.1+H198+J198+K198*0.5+L198+M198*0.4,IF(B198=data!$B$4,D198*0.6+E198*0.8+F198*0.7+G198+H198+J198+L198+N198,IF(B198=data!$B$5,D198*0.7+E198*0.8+F198+I198*0.7+J198+L198,"zvolte typ stavby")))) -> 45.3 | P198: =IF(B198=data!$B$2,(O198*10)/6.4,IF(B198=data!$B$3,(O198*10)/4.8,IF(B198=data!$B$4,(O198*10)/7.1,IF(B198=data!$B$5,(O198*10)/5.2,"zvolte typ stavby")))) -> 70.78125 | Q198: 24163294
A199: III/23627 Nové Strašecí, oprava mostu ev.č. 23627-2 přes D6 | B199: mostní objekty a propustky | C199: Most | D199: 3 | E199: 10 | F199: 7 | G199: 3 | H199: 10 | I199: 1 | J199: 4 | K199: 0 | L199: 10 | M199: 0 | N199: 0 | O199: =IF(B199=data!$B$2,D199*0.7+E199*0.5+F199*0.2+G199*0.8+H199+I199*0.2+J199+K199*0.3+L199+M199*0.5+N199*0.2,IF(B199=data!$B$3,D199*0.1+E199*0.4+F199*0.3+G199*0.1+H199+J199+K199*0.5+L199+M199*0.4,IF(B199=data!$B$4,D199*0.6+E199*0.8+F199*0.7+G199+H199+J199+L199+N199,IF(B199=data!$B$5,D199*0.7+E199*0.8+F199+I199*0.7+J199+L199,"zvolte typ stavby")))) -> 30.7 | P199: =IF(B199=data!$B$2,(O199*10)/6.4,IF(B199=data!$B$3,(O199*10)/4.8,IF(B199=data!$B$4,(O199*10)/7.1,IF(B199=data!$B$5,(O199*10)/5.2,"zvolte typ stavby")))) -> 63.95833333 | Q199: =19500000*1.21 -> 23595000 | R199: SFDI – NZ – národní zdroje
A200: III/10163 Nehvizdy - Horoušany | B200: oprava a rekonstrukce | C200: Souvislá údržba | D200: 4 | E200: 0 | F200: 5 | G200: 6 | H200: 6 | I200: 10 | J200: 7 | K200: 0 | L200: 10 | M200: 10 | N200: 7 | O200: =IF(B200=data!$B$2,D200*0.7+E200*0.5+F200*0.2+G200*0.8+H200+I200*0.2+J200+K200*0.3+L200+M200*0.5+N200*0.2,IF(B200=data!$B$3,D200*0.1+E200*0.4+F200*0.3+G200*0.1+H200+J200+K200*0.5+L200+M200*0.4,IF(B200=data!$B$4,D200*0.6+E200*0.8+F200*0.7+G200+H200+J200+L200+N200,IF(B200=data!$B$5,D200*0.7+E200*0.8+F200+I200*0.7+J200+L200,"zvolte typ stavby")))) -> 40 | P200: =IF(B200=data!$B$2,(O200*10)/6.4,IF(B200=data!$B$3,(O200*10)/4.8,IF(B200=data!$B$4,(O200*10)/7.1,IF(B200=data!$B$5,(O200*10)/5.2,"zvolte typ stavby")))) -> 62.5 | Q200: 23361149.35 | S200: připraveno k soutěži a realizaci 2023
... 479 more rows

Sheet náměty na projekční přípravu
A1: Název projektu | B1: druh stavby | C1: Podkategorie | D1: dopravní zatížení | E1: dopravní význam | F1: technický stav | G1: stavební stav | H1: životní prostředí | I1: regionální význam | J1: jediná přístupová cesta | K1: hromadná doprava | L1: nehodová lokalita | M1: Výsledné hodnocení | N1: Hodnocení s korekcí | O1: Předpokládané náklady | P1: Poznámky | Q1: =SUM(O2:O285) -> 3021243319
A2: KONTROLA PŘEPOČTU | B2: mostní objekty a propustky | D2: 10 | E2: 10 | F2: 10 | G2: 10 | H2: 10 | I2: 10 | J2: 10 | K2: 10 | L2: 10 | M2: =IF(B2=data!$S$2,D2*0.7+E2*0.2+F2*0.8+G2+H2*0.2+I2+J2*0.3+K2*0.5+L2*0.2,IF(B2=data!$S$3,D2*0.1+E2*0.3+F2*0.1+G2+I2+J2*0.5+K2*0.4,IF(B2=data!$S$4,D2*0.6+E2*0.7+F2+G2+I2+L2,IF(B2=data!$S$5,D2*0.7+E2+H2*0.7+I2,"zvolte typ stavby")))) -> 34 | N2: =IF(B2=data!$S$2,(M2*10)/4.9,IF(B2=data!$S$3,(M2*10)/3.4,IF(B2=data!$S$4,(M2*10)/5.3,IF(B2=data!$S$5,(M2*10)/3.4,"zvolte typ stavby")))) -> 100
A3: III/10533 Žemličkova Lhota - opěrná zeď a most | B3: mostní objekty a propustky | C3: Most | D3: 1 | E3: 5 | F3: 10 | G3: 10 | H3: 0 | I3: 4 | J3: 10 | K3: 10 | L3: 0 | M3: =IF(B3=data!$S$2,D3*0.7+E3*0.2+F3*0.8+G3+H3*0.2+I3+J3*0.3+K3*0.5+L3*0.2,IF(B3=data!$S$3,D3*0.1+E3*0.3+F3*0.1+G3+I3+J3*0.5+K3*0.4,IF(B3=data!$S$4,D3*0.6+E3*0.7+F3+G3+I3+L3,IF(B3=data!$S$5,D3*0.7+E3+H3*0.7+I3,"zvolte typ stavby")))) -> 25.6 | N3: =IF(B3=data!$S$2,(M3*10)/4.9,IF(B3=data!$S$3,(M3*10)/3.4,IF(B3=data!$S$4,(M3*10)/5.3,IF(B3=data!$S$5,(M3*10)/3.4,"zvolte typ stavby")))) -> 75.29411765 | O3: 11000000
A4: II/605 Beroun mosty 605 - 027,026 | B4: mostní objekty a propustky | C4: Most | D4: 8 | E4: 10 | F4: 6 | G4: 6 | H4: 0 | I4: 10 | J4: 0 | K4: 10 | L4: 0 | M4: =IF(B4=data!$S$2,D4*0.7+E4*0.2+F4*0.8+G4+H4*0.2+I4+J4*0.3+K4*0.5+L4*0.2,IF(B4=data!$S$3,D4*0.1+E4*0.3+F4*0.1+G4+I4+J4*0.5+K4*0.4,IF(B4=data!$S$4,D4*0.6+E4*0.7+F4+G4+I4+L4,IF(B4=data!$S$5,D4*0.7+E4+H4*0.7+I4,"zvolte typ stavby")))) -> 24.4 | N4: =IF(B4=data!$S$2,(M4*10)/4.9,IF(B4=data!$S$3,(M4*10)/3.4,IF(B4=data!$S$4,(M4*10)/5.3,IF(B4=data!$S$5,(M4*10)/3.4,"zvolte typ stavby")))) -> 71.76470588 | O4: 40000000
A5: Mníšek pod Brdy most ev.č. VY 11626 - 1 | B5: mostní objekty a propustky | C5: Most | D5: 3 | E5: 7 | F5: 10 | G5: 10 | H5: 0 | I5: 7 | J5: 0 | K5: 10 | L5: 0 | M5: =IF(B5=data!$S$2,D5*0.7+E5*0.2+F5*0.8+G5+H5*0.2+I5+J5*0.3+K5*0.5+L5*0.2,IF(B5=data!$S$3,D5*0.1+E5*0.3+F5*0.1+G5+I5+J5*0.5+K5*0.4,IF(B5=data!$S$4,D5*0.6+E5*0.7+F5+G5+I5+L5,IF(B5=data!$S$5,D5*0.7+E5+H5*0.7+I5,"zvolte typ stavby")))) -> 24.4 | N5: =IF(B5=data!$S$2,(M5*10)/4.9,IF(B5=data!$S$3,(M5*10)/3.4,IF(B5=data!$S$4,(M5*10)/5.3,IF(B5=data!$S$5,(M5*10)/3.4,"zvolte typ stavby")))) -> 71.76470588 | O5: 25000000
A6: III/00712 Stehelčeves, přestavba mostu ev.č. 00712-1 pro přívalové vody_PD | B6: mostní objekty a propustky | E6: 7 | F6: 10 | G6: 10 | H6: 0 | I6: 7 | J6: 0 | K6: 10 | M6: =IF(B6=data!$S$2,D6*0.7+E6*0.2+F6*0.8+G6+H6*0.2+I6+J6*0.3+K6*0.5+L6*0.2,IF(B6=data!$S$3,D6*0.1+E6*0.3+F6*0.1+G6+I6+J6*0.5+K6*0.4,IF(B6=data!$S$4,D6*0.6+E6*0.7+F6+G6+I6+L6,IF(B6=data!$S$5,D6*0.7+E6+H6*0.7+I6,"zvolte typ stavby")))) -> 24.1 | N6: =IF(B6=data!$S$2,(M6*10)/4.9,IF(B6=data!$S$3,(M6*10)/3.4,IF(B6=data!$S$4,(M6*10)/5.3,IF(B6=data!$S$5,(M6*10)/3.4,"zvolte typ stavby")))) -> 70.88235294 | O6: 8500000
A7: II/125 Kondrac, most ev.č. 125-014 | B7: mostní objekty a propustky | C7: Most | D7: 3 | E7: 10 | F7: 6 | G7: 6 | H7: 0 | I7: 10 | J7: 0 | K7: 10 | L7: 0 | M7: =IF(B7=data!$S$2,D7*0.7+E7*0.2+F7*0.8+G7+H7*0.2+I7+J7*0.3+K7*0.5+L7*0.2,IF(B7=data!$S$3,D7*0.1+E7*0.3+F7*0.1+G7+I7+J7*0.5+K7*0.4,IF(B7=data!$S$4,D7*0.6+E7*0.7+F7+G7+I7+L7,IF(B7=data!$S$5,D7*0.7+E7+H7*0.7+I7,"zvolte typ stavby")))) -> 23.9 | N7: =IF(B7=data!$S$2,(M7*10)/4.9,IF(B7=data!$S$3,(M7*10)/3.4,IF(B7=data!$S$4,(M7*10)/5.3,IF(B7=data!$S$5,(M7*10)/3.4,"zvolte typ stavby")))) -> 70.29411765 | O7: 25000000
A8: II/101 Jirny, most ev.č. 101-076 most přes Jirenský potok za obcí Jirny | B8: mostní objekty a propustky | C8: Most | D8: 4 | E8: 10 | F8: 6 | G8: 10 | H8: 0 | I8: 10 | J8: 0 | K8: 10 | L8: 0 | M8: =IF(B8=data!$S$2,D8*0.7+E8*0.2+F8*0.8+G8+H8*0.2+I8+J8*0.3+K8*0.5+L8*0.2,IF(B8=data!$S$3,D8*0.1+E8*0.3+F8*0.1+G8+I8+J8*0.5+K8*0.4,IF(B8=data!$S$4,D8*0.6+E8*0.7+F8+G8+I8+L8,IF(B8=data!$S$5,D8*0.7+E8+H8*0.7+I8,"zvolte typ stavby")))) -> 28 | N8: =IF(B8=data!$S$2,(M8*10)/4.9,IF(B8=data!$S$3,(M8*10)/3.4,IF(B8=data!$S$4,(M8*10)/5.3,IF(B8=data!$S$5,(M8*10)/3.4,"zvolte typ stavby")))) -> 82.35294118 | O8: 1200000
A9: II/276 Bělá pod bezdězem, ul. Pražská - propustek | B9: mostní objekty a propustky | C9: Rekonstrukce | D9: 4 | E9: 9 | F9: 6 | G9: 10 | H9: 0 | I9: 4 | J9: 0 | K9: 10 | L9: 0 | M9: =IF(B9=data!$S$2,D9*0.7+E9*0.2+F9*0.8+G9+H9*0.2+I9+J9*0.3+K9*0.5+L9*0.2,IF(B9=data!$S$3,D9*0.1+E9*0.3+F9*0.1+G9+I9+J9*0.5+K9*0.4,IF(B9=data!$S$4,D9*0.6+E9*0.7+F9+G9+I9+L9,IF(B9=data!$S$5,D9*0.7+E9+H9*0.7+I9,"zvolte typ stavby")))) -> 21.7 | N9: =IF(B9=data!$S$2,(M9*10)/4.9,IF(B9=data!$S$3,(M9*10)/3.4,IF(B9=data!$S$4,(M9*10)/5.3,IF(B9=data!$S$5,(M9*10)/3.4,"zvolte typ stavby")))) -> 63.82352941 | O9: 2500000
A10: II/330 Netřebice, most ev.č. 330-011 přes potok | B10: mostní objekty a propustky | C10: Most | D10: 3 | E10: 10 | F10: 6 | G10: 6 | H10: 0 | I10: 7 | J10: 0 | K10: 10 | L10: 0 | M10: =IF(B10=data!$S$2,D10*0.7+E10*0.2+F10*0.8+G10+H10*0.2+I10+J10*0.3+K10*0.5+L10*0.2,IF(B10=data!$S$3,D10*0.1+E10*0.3+F10*0.1+G10+I10+J10*0.5+K10*0.4,IF(B10=data!$S$4,D10*0.6+E10*0.7+F10+G10+I10+L10,IF(B10=data!$S$5,D10*0.7+E10+H10*0.7+I10,"zvolte typ stavby")))) -> 20.9 | N10: =IF(B10=data!$S$2,(M10*10)/4.9,IF(B10=data!$S$3,(M10*10)/3.4,IF(B10=data!$S$4,(M10*10)/5.3,IF(B10=data!$S$5,(M10*10)/3.4,"zvolte typ stavby")))) -> 61.47058824 | O10: 19000000
A11: III/0076 Běloky, rekonstrukce mostu ev.č. 0076-2 pro přívalové vody_PD | B11: mostní objekty a propustky | E11: 6 | F11: 10 | G11: 10 | H11: 0 | I11: 4 | J11: 0 | K11: 10 | M11: =IF(B11=data!$S$2,D11*0.7+E11*0.2+F11*0.8+G11+H11*0.2+I11+J11*0.3+K11*0.5+L11*0.2,IF(B11=data!$S$3,D11*0.1+E11*0.3+F11*0.1+G11+I11+J11*0.5+K11*0.4,IF(B11=data!$S$4,D11*0.6+E11*0.7+F11+G11+I11+L11,IF(B11=data!$S$5,D11*0.7+E11+H11*0.7+I11,"zvolte typ stavby")))) -> 20.8 | N11: =IF(B11=data!$S$2,(M11*10)/4.9,IF(B11=data!$S$3,(M11*10)/3.4,IF(B11=data!$S$4,(M11*10)/5.3,IF(B11=data!$S$5,(M11*10)/3.4,"zvolte typ stavby")))) -> 61.17647059 | O11: 9500000
A12: III/2365 Zahořany,hávárie propustku | B12: mostní objekty a propustky | C12: Propustek | D12: 1 | E12: 5 | F12: 10 | G12: 10 | H12: 0 | I12: 4 | J12: 0 | K12: 0 | L12: 0 | M12: =IF(B12=data!$S$2,D12*0.7+E12*0.2+F12*0.8+G12+H12*0.2+I12+J12*0.3+K12*0.5+L12*0.2,IF(B12=data!$S$3,D12*0.1+E12*0.3+F12*0.1+G12+I12+J12*0.5+K12*0.4,IF(B12=data!$S$4,D12*0.6+E12*0.7+F12+G12+I12+L12,IF(B12=data!$S$5,D12*0.7+E12+H12*0.7+I12,"zvolte typ stavby")))) -> 16.6 | N12: =IF(B12=data!$S$2,(M12*10)/4.9,IF(B12=data!$S$3,(M12*10)/3.4,IF(B12=data!$S$4,(M12*10)/5.3,IF(B12=data!$S$5,(M12*10)/3.4,"zvolte typ stavby")))) -> 48.82352941 | O12: 3000000
A13: III/23916 Zlonice, rekonstrukce mostu ev.č. 23916-2 přes Dřínovský potok_PD | B13: mostní objekty a propustky | E13: 5 | F13: 10 | G13: 10 | H13: 0 | I13: 4 | J13: 0 | K13: 0 | M13: =IF(B13=data!$S$2,D13*0.7+E13*0.2+F13*0.8+G13+H13*0.2+I13+J13*0.3+K13*0.5+L13*0.2,IF(B13=data!$S$3,D13*0.1+E13*0.3+F13*0.1+G13+I13+J13*0.5+K13*0.4,IF(B13=data!$S$4,D13*0.6+E13*0.7+F13+G13+I13+L13,IF(B13=data!$S$5,D13*0.7+E13+H13*0.7+I13,"zvolte typ stavby")))) -> 16.5 | N13: =IF(B13=data!$S$2,(M13*10)/4.9,IF(B13=data!$S$3,(M13*10)/3.4,IF(B13=data!$S$4,(M13*10)/5.3,IF(B13=data!$S$5,(M13*10)/3.4,"zvolte typ stavby")))) -> 48.52941176 | O13: 5200000
A14: II/11232 Tomice, most ev.č. 11232-6 přes potok před obcí Tomice | B14: mostní objekty a propustky | C14: Most | D14: 1 | E14: 5 | F14: 6 | G14: 6 | H14: 0 | I14: 4 | J14: 0 | K14: 10 | L14: 0 | M14: =IF(B14=data!$S$2,D14*0.7+E14*0.2+F14*0.8+G14+H14*0.2+I14+J14*0.3+K14*0.5+L14*0.2,IF(B14=data!$S$3,D14*0.1+E14*0.3+F14*0.1+G14+I14+J14*0.5+K14*0.4,IF(B14=data!$S$4,D14*0.6+E14*0.7+F14+G14+I14+L14,IF(B14=data!$S$5,D14*0.7+E14+H14*0.7+I14,"zvolte typ stavby")))) -> 16.2 | N14: =IF(B14=data!$S$2,(M14*10)/4.9,IF(B14=data!$S$3,(M14*10)/3.4,IF(B14=data!$S$4,(M14*10)/5.3,IF(B14=data!$S$5,(M14*10)/3.4,"zvolte typ stavby")))) -> 47.64705882 | O14: 15000000
A15: KONTROLA PŘEPOČTU | B15: novostavba (obchvat, přeložka, propojka) | D15: 10 | E15: 10 | F15: 10 | G15: 10 | H15: 10 | I15: 10 | J15: 10 | K15: 10 | L15: 10 | M15: =IF(B15=data!$S$2,D15*0.7+E15*0.2+F15*0.8+G15+H15*0.2+I15+J15*0.3+K15*0.5+L15*0.2,IF(B15=data!$S$3,D15*0.1+E15*0.3+F15*0.1+G15+I15+J15*0.5+K15*0.4,IF(B15=data!$S$4,D15*0.6+E15*0.7+F15+G15+I15+L15,IF(B15=data!$S$5,D15*0.7+E15+H15*0.7+I15,"zvolte typ stavby")))) -> 34 | N15: =IF(B15=data!$S$2,(M15*10)/4.9,IF(B15=data!$S$3,(M15*10)/3.4,IF(B15=data!$S$4,(M15*10)/5.3,IF(B15=data!$S$5,(M15*10)/3.4,"zvolte typ stavby")))) -> 100 | O15: 150000000
A16: KONTROLA PŘEPOČTU | B16: oprava a rekonstrukce | D16: 10 | E16: 10 | F16: 10 | G16: 10 | H16: 10 | I16: 10 | J16: 10 | K16: 10 | L16: 10 | M16: =IF(B16=data!$S$2,D16*0.7+E16*0.2+F16*0.8+G16+H16*0.2+I16+J16*0.3+K16*0.5+L16*0.2,IF(B16=data!$S$3,D16*0.1+E16*0.3+F16*0.1+G16+I16+J16*0.5+K16*0.4,IF(B16=data!$S$4,D16*0.6+E16*0.7+F16+G16+I16+L16,IF(B16=data!$S$5,D16*0.7+E16+H16*0.7+I16,"zvolte typ stavby")))) -> 49 | N16: =IF(B16=data!$S$2,(M16*10)/4.9,IF(B16=data!$S$3,(M16*10)/3.4,IF(B16=data!$S$4,(M16*10)/5.3,IF(B16=data!$S$5,(M16*10)/3.4,"zvolte typ stavby")))) -> 100 | O16: 65000000
M17: =IF(B17=data!$S$2,D17*0.7+E17*0.2+F17*0.8+G17+H17*0.2+I17+J17*0.3+K17*0.5+L17*0.2,IF(B17=data!$S$3,D17*0.1+E17*0.3+F17*0.1+G17+I17+J17*0.5+K17*0.4,IF(B17=data!$S$4,D17*0.6+E17*0.7+F17+G17+I17+L17,IF(B17=data!$S$5,D17*0.7+E17+H17*0.7+I17,"zvolte typ stavby")))) -> zvolte typ stavby | N17: =IF(B17=data!$S$2,(M17*10)/4.9,IF(B17=data!$S$3,(M17*10)/3.4,IF(B17=data!$S$4,(M17*10)/5.3,IF(B17=data!$S$5,(M17*10)/3.4,"zvolte typ stavby")))) -> zvolte typ stavby
A18: II/101 Kostelec nad Labem - Brandýs nad Labem | B18: oprava a rekonstrukce | C18: Rekonstrukce | D18: 7 | E18: 10 | F18: 10 | G18: 10 | H18: 10 | I18: 10 | J18: 0 | K18: 10 | L18: 10 | M18: =IF(B18=data!$S$2,D18*0.7+E18*0.2+F18*0.8+G18+H18*0.2+I18+J18*0.3+K18*0.5+L18*0.2,IF(B18=data!$S$3,D18*0.1+E18*0.3+F18*0.1+G18+I18+J18*0.5+K18*0.4,IF(B18=data!$S$4,D18*0.6+E18*0.7+F18+G18+I18+L18,IF(B18=data!$S$5,D18*0.7+E18+H18*0.7+I18,"zvolte typ stavby")))) -> 43.9 | N18: =IF(B18=data!$S$2,(M18*10)/4.9,IF(B18=data!$S$3,(M18*10)/3.4,IF(B18=data!$S$4,(M18*10)/5.3,IF(B18=data!$S$5,(M18*10)/3.4,"zvolte typ stavby")))) -> 89.59183673 | O18: 40000000
A19: II/275 Luštěnice - Brodce | B19: oprava a rekonstrukce | C19: Rekonstrukce | D19: 4 | E19: 10 | F19: 10 | G19: 10 | H19: 10 | I19: 10 | J19: 0 | K19: 10 | L19: 10 | M19: =IF(B19=data!$S$2,D19*0.7+E19*0.2+F19*0.8+G19+H19*0.2+I19+J19*0.3+K19*0.5+L19*0.2,IF(B19=data!$S$3,D19*0.1+E19*0.3+F19*0.1+G19+I19+J19*0.5+K19*0.4,IF(B19=data!$S$4,D19*0.6+E19*0.7+F19+G19+I19+L19,IF(B19=data!$S$5,D19*0.7+E19+H19*0.7+I19,"zvolte typ stavby")))) -> 41.8 | N19: =IF(B19=data!$S$2,(M19*10)/4.9,IF(B19=data!$S$3,(M19*10)/3.4,IF(B19=data!$S$4,(M19*10)/5.3,IF(B19=data!$S$5,(M19*10)/3.4,"zvolte typ stavby")))) -> 85.30612245 | O19: 60000000
A20: II/174 Březnice - Hudčice, hr. kraje | B20: oprava a rekonstrukce | C20: Rekonstrukce | D20: 3 | E20: 10 | F20: 10 | G20: 10 | H20: 10 | I20: 10 | J20: 0 | K20: 10 | L20: 10 | M20: =IF(B20=data!$S$2,D20*0.7+E20*0.2+F20*0.8+G20+H20*0.2+I20+J20*0.3+K20*0.5+L20*0.2,IF(B20=data!$S$3,D20*0.1+E20*0.3+F20*0.1+G20+I20+J20*0.5+K20*0.4,IF(B20=data!$S$4,D20*0.6+E20*0.7+F20+G20+I20+L20,IF(B20=data!$S$5,D20*0.7+E20+H20*0.7+I20,"zvolte typ stavby")))) -> 41.1 | N20: =IF(B20=data!$S$2,(M20*10)/4.9,IF(B20=data!$S$3,(M20*10)/3.4,IF(B20=data!$S$4,(M20*10)/5.3,IF(B20=data!$S$5,(M20*10)/3.4,"zvolte typ stavby")))) -> 83.87755102 | O20: 58000000
A21: II/121 Votice kř. s III/12148 - konec obce Heřmaničky | B21: oprava a rekonstrukce | C21: Rekonstrukce | D21: 3 | E21: 10 | F21: 10 | G21: 10 | H21: 10 | I21: 10 | J21: 0 | K21: 10 | L21: 10 | M21: =IF(B21=data!$S$2,D21*0.7+E21*0.2+F21*0.8+G21+H21*0.2+I21+J21*0.3+K21*0.5+L21*0.2,IF(B21=data!$S$3,D21*0.1+E21*0.3+F21*0.1+G21+I21+J21*0.5+K21*0.4,IF(B21=data!$S$4,D21*0.6+E21*0.7+F21+G21+I21+L21,IF(B21=data!$S$5,D21*0.7+E21+H21*0.7+I21,"zvolte typ stavby")))) -> 41.1 | N21: =IF(B21=data!$S$2,(M21*10)/4.9,IF(B21=data!$S$3,(M21*10)/3.4,IF(B21=data!$S$4,(M21*10)/5.3,IF(B21=data!$S$5,(M21*10)/3.4,"zvolte typ stavby")))) -> 83.87755102 | O21: 98000000
A22: II/120 Sedlec - Prčice náměstí - kř. s II/105 | B22: oprava a rekonstrukce | C22: Rekonstrukce | D22: 3 | E22: 10 | F22: 10 | G22: 10 | H22: 10 | I22: 10 | J22: 0 | K22: 10 | L22: 10 | M22: =IF(B22=data!$S$2,D22*0.7+E22*0.2+F22*0.8+G22+H22*0.2+I22+J22*0.3+K22*0.5+L22*0.2,IF(B22=data!$S$3,D22*0.1+E22*0.3+F22*0.1+G22+I22+J22*0.5+K22*0.4,IF(B22=data!$S$4,D22*0.6+E22*0.7+F22+G22+I22+L22,IF(B22=data!$S$5,D22*0.7+E22+H22*0.7+I22,"zvolte typ stavby")))) -> 41.1 | N22: =IF(B22=data!$S$2,(M22*10)/4.9,IF(B22=data!$S$3,(M22*10)/3.4,IF(B22=data!$S$4,(M22*10)/5.3,IF(B22=data!$S$5,(M22*10)/3.4,"zvolte typ stavby")))) -> 83.87755102 | O22: 130000000
A23: II/127 Trh.Štěpánov - Zdislavice | B23: oprava a rekonstrukce | C23: Rekonstrukce | D23: 2 | E23: 10 | F23: 10 | G23: 10 | H23: 10 | I23: 10 | J23: 0 | K23: 10 | L23: 10 | M23: =IF(B23=data!$S$2,D23*0.7+E23*0.2+F23*0.8+G23+H23*0.2+I23+J23*0.3+K23*0.5+L23*0.2,IF(B23=data!$S$3,D23*0.1+E23*0.3+F23*0.1+G23+I23+J23*0.5+K23*0.4,IF(B23=data!$S$4,D23*0.6+E23*0.7+F23+G23+I23+L23,IF(B23=data!$S$5,D23*0.7+E23+H23*0.7+I23,"zvolte typ stavby")))) -> 40.4 | N23: =IF(B23=data!$S$2,(M23*10)/4.9,IF(B23=data!$S$3,(M23*10)/3.4,IF(B23=data!$S$4,(M23*10)/5.3,IF(B23=data!$S$5,(M23*10)/3.4,"zvolte typ stavby")))) -> 82.44897959 | O23: 90000000
A24: II/109 Vranov - Chocerady | B24: oprava a rekonstrukce | C24: Rekonstrukce | D24: 2 | E24: 10 | F24: 10 | G24: 10 | H24: 10 | I24: 10 | J24: 0 | K24: 10 | L24: 7 | M24: =IF(B24=data!$S$2,D24*0.7+E24*0.2+F24*0.8+G24+H24*0.2+I24+J24*0.3+K24*0.5+L24*0.2,IF(B24=data!$S$3,D24*0.1+E24*0.3+F24*0.1+G24+I24+J24*0.5+K24*0.4,IF(B24=data!$S$4,D24*0.6+E24*0.7+F24+G24+I24+L24,IF(B24=data!$S$5,D24*0.7+E24+H24*0.7+I24,"zvolte typ stavby")))) -> 39.8 | N24: =IF(B24=data!$S$2,(M24*10)/4.9,IF(B24=data!$S$3,(M24*10)/3.4,IF(B24=data!$S$4,(M24*10)/5.3,IF(B24=data!$S$5,(M24*10)/3.4,"zvolte typ stavby")))) -> 81.2244898 | O24: 80000000
A25: II/150 Louňovice p.Blaníkem - Načeradec | B25: oprava a rekonstrukce | C25: Rekonstrukce | D25: 1 | E25: 10 | F25: 10 | G25: 10 | H25: 10 | I25: 10 | J25: 0 | K25: 10 | L25: 10 | M25: =IF(B25=data!$S$2,D25*0.7+E25*0.2+F25*0.8+G25+H25*0.2+I25+J25*0.3+K25*0.5+L25*0.2,IF(B25=data!$S$3,D25*0.1+E25*0.3+F25*0.1+G25+I25+J25*0.5+K25*0.4,IF(B25=data!$S$4,D25*0.6+E25*0.7+F25+G25+I25+L25,IF(B25=data!$S$5,D25*0.7+E25+H25*0.7+I25,"zvolte typ stavby")))) -> 39.7 | N25: =IF(B25=data!$S$2,(M25*10)/4.9,IF(B25=data!$S$3,(M25*10)/3.4,IF(B25=data!$S$4,(M25*10)/5.3,IF(B25=data!$S$5,(M25*10)/3.4,"zvolte typ stavby")))) -> 81.02040816 | O25: 85000000
M26: =IF(B26=data!$S$2,D26*0.7+E26*0.2+F26*0.8+G26+H26*0.2+I26+J26*0.3+K26*0.5+L26*0.2,IF(B26=data!$S$3,D26*0.1+E26*0.3+F26*0.1+G26+I26+J26*0.5+K26*0.4,IF(B26=data!$S$4,D26*0.6+E26*0.7+F26+G26+I26+L26,IF(B26=data!$S$5,D26*0.7+E26+H26*0.7+I26,"zvolte typ stavby")))) -> zvolte typ stavby | N26: =IF(B26=data!$S$2,(M26*10)/4.9,IF(B26=data!$S$3,(M26*10)/3.4,IF(B26=data!$S$4,(M26*10)/5.3,IF(B26=data!$S$5,(M26*10)/3.4,"zvolte typ stavby")))) -> zvolte typ stavby
M27: =IF(B27=data!$S$2,D27*0.7+E27*0.2+F27*0.8+G27+H27*0.2+I27+J27*0.3+K27*0.5+L27*0.2,IF(B27=data!$S$3,D27*0.1+E27*0.3+F27*0.1+G27+I27+J27*0.5+K27*0.4,IF(B27=data!$S$4,D27*0.6+E27*0.7+F27+G27+I27+L27,IF(B27=data!$S$5,D27*0.7+E27+H27*0.7+I27,"zvolte typ stavby")))) -> zvolte typ stavby | N27: =IF(B27=data!$S$2,(M27*10)/4.9,IF(B27=data!$S$3,(M27*10)/3.4,IF(B27=data!$S$4,(M27*10)/5.3,IF(B27=data!$S$5,(M27*10)/3.4,"zvolte typ stavby")))) -> zvolte typ stavby
A28: II/137 Načeradec - Daměnice, hr. kraje | B28: oprava a rekonstrukce | C28: Rekonstrukce | D28: 1 | E28: 10 | F28: 10 | G28: 10 | H28: 10 | I28: 10 | J28: 0 | K28: 10 | L28: 2 | M28: =IF(B28=data!$S$2,D28*0.7+E28*0.2+F28*0.8+G28+H28*0.2+I28+J28*0.3+K28*0.5+L28*0.2,IF(B28=data!$S$3,D28*0.1+E28*0.3+F28*0.1+G28+I28+J28*0.5+K28*0.4,IF(B28=data!$S$4,D28*0.6+E28*0.7+F28+G28+I28+L28,IF(B28=data!$S$5,D28*0.7+E28+H28*0.7+I28,"zvolte typ stavby")))) -> 38.1 | N28: =IF(B28=data!$S$2,(M28*10)/4.9,IF(B28=data!$S$3,(M28*10)/3.4,IF(B28=data!$S$4,(M28*10)/5.3,IF(B28=data!$S$5,(M28*10)/3.4,"zvolte typ stavby")))) -> 77.75510204 | O28: 68000000
A29: III/1255 Kondrac - Načeradec | B29: oprava a rekonstrukce | C29: Rekonstrukce | D29: 1 | E29: 5 | F29: 10 | G29: 10 | H29: 10 | I29: 10 | J29: 0 | K29: 10 | L29: 7 | M29: =IF(B29=data!$S$2,D29*0.7+E29*0.2+F29*0.8+G29+H29*0.2+I29+J29*0.3+K29*0.5+L29*0.2,IF(B29=data!$S$3,D29*0.1+E29*0.3+F29*0.1+G29+I29+J29*0.5+K29*0.4,IF(B29=data!$S$4,D29*0.6+E29*0.7+F29+G29+I29+L29,IF(B29=data!$S$5,D29*0.7+E29+H29*0.7+I29,"zvolte typ stavby")))) -> 38.1 | N29: =IF(B29=data!$S$2,(M29*10)/4.9,IF(B29=data!$S$3,(M29*10)/3.4,IF(B29=data!$S$4,(M29*10)/5.3,IF(B29=data!$S$5,(M29*10)/3.4,"zvolte typ stavby")))) -> 77.75510204 | O29: 28000000
A30: II/119 a III/10226 Dobříš - nájezd na D4 | B30: oprava a rekonstrukce | C30: Rekonstrukce | D30: 5 | E30: 10 | F30: 6 | G30: 10 | H30: 10 | I30: 10 | J30: 0 | K30: 10 | L30: 4 | M30: =IF(B30=data!$S$2,D30*0.7+E30*0.2+F30*0.8+G30+H30*0.2+I30+J30*0.3+K30*0.5+L30*0.2,IF(B30=data!$S$3,D30*0.1+E30*0.3+F30*0.1+G30+I30+J30*0.5+K30*0.4,IF(B30=data!$S$4,D30*0.6+E30*0.7+F30+G30+I30+L30,IF(B30=data!$S$5,D30*0.7+E30+H30*0.7+I30,"zvolte typ stavby")))) -> 38.1 | N30: =IF(B30=data!$S$2,(M30*10)/4.9,IF(B30=data!$S$3,(M30*10)/3.4,IF(B30=data!$S$4,(M30*10)/5.3,IF(B30=data!$S$5,(M30*10)/3.4,"zvolte typ stavby")))) -> 77.75510204 | O30: 40000000
A31: II/114 Dobříš, kom. a opěrné zdi na hrázi rybníka Koryto | B31: oprava a rekonstrukce | C31: Rekonstrukce | D31: 7 | E31: 10 | F31: 3 | G31: 10 | H31: 10 | I31: 10 | J31: 0 | K31: 10 | L31: 7 | M31: =IF(B31=data!$S$2,D31*0.7+E31*0.2+F31*0.8+G31+H31*0.2+I31+J31*0.3+K31*0.5+L31*0.2,IF(B31=data!$S$3,D31*0.1+E31*0.3+F31*0.1+G31+I31+J31*0.5+K31*0.4,IF(B31=data!$S$4,D31*0.6+E31*0.7+F31+G31+I31+L31,IF(B31=data!$S$5,D31*0.7+E31+H31*0.7+I31,"zvolte typ stavby")))) -> 37.7 | N31: =IF(B31=data!$S$2,(M31*10)/4.9,IF(B31=data!$S$3,(M31*10)/3.4,IF(B31=data!$S$4,(M31*10)/5.3,IF(B31=data!$S$5,(M31*10)/3.4,"zvolte typ stavby")))) -> 76.93877551 | O31: 65000000
A32: II/127 od OK Zdislavice - Pravonín - Buková | B32: oprava a rekonstrukce | C32: Rekonstrukce | D32: 2 | E32: 10 | F32: 10 | G32: 10 | H32: 10 | I32: 7 | J32: 0 | K32: 10 | L32: 7 | M32: =IF(B32=data!$S$2,D32*0.7+E32*0.2+F32*0.8+G32+H32*0.2+I32+J32*0.3+K32*0.5+L32*0.2,IF(B32=data!$S$3,D32*0.1+E32*0.3+F32*0.1+G32+I32+J32*0.5+K32*0.4,IF(B32=data!$S$4,D32*0.6+E32*0.7+F32+G32+I32+L32,IF(B32=data!$S$5,D32*0.7+E32+H32*0.7+I32,"zvolte typ stavby")))) -> 36.8 | N32: =IF(B32=data!$S$2,(M32*10)/4.9,IF(B32=data!$S$3,(M32*10)/3.4,IF(B32=data!$S$4,(M32*10)/5.3,IF(B32=data!$S$5,(M32*10)/3.4,"zvolte typ stavby")))) -> 75.10204082 | O32: 100000000
A33: II/114 Živohošť most - Chotilsko | B33: oprava a rekonstrukce | C33: Rekonstrukce | D33: 3 | E33: 10 | F33: 6 | G33: 10 | H33: 10 | I33: 10 | J33: 0 | K33: 10 | L33: 4 | M33: =IF(B33=data!$S$2,D33*0.7+E33*0.2+F33*0.8+G33+H33*0.2+I33+J33*0.3+K33*0.5+L33*0.2,IF(B33=data!$S$3,D33*0.1+E33*0.3+F33*0.1+G33+I33+J33*0.5+K33*0.4,IF(B33=data!$S$4,D33*0.6+E33*0.7+F33+G33+I33+L33,IF(B33=data!$S$5,D33*0.7+E33+H33*0.7+I33,"zvolte typ stavby")))) -> 36.7 | N33: =IF(B33=data!$S$2,(M33*10)/4.9,IF(B33=data!$S$3,(M33*10)/3.4,IF(B33=data!$S$4,(M33*10)/5.3,IF(B33=data!$S$5,(M33*10)/3.4,"zvolte typ stavby")))) -> 74.89795918 | O33: 82000000
A34: II/105 Tloskov - kř. s III/1027 | B34: oprava a rekonstrukce | D34: 3 | E34: 10 | F34: 6 | G34: 10 | H34: 10 | I34: 10 | J34: 0 | K34: 10 | L34: 4 | M34: =IF(B34=data!$S$2,D34*0.7+E34*0.2+F34*0.8+G34+H34*0.2+I34+J34*0.3+K34*0.5+L34*0.2,IF(B34=data!$S$3,D34*0.1+E34*0.3+F34*0.1+G34+I34+J34*0.5+K34*0.4,IF(B34=data!$S$4,D34*0.6+E34*0.7+F34+G34+I34+L34,IF(B34=data!$S$5,D34*0.7+E34+H34*0.7+I34,"zvolte typ stavby")))) -> 36.7 | N34: =IF(B34=data!$S$2,(M34*10)/4.9,IF(B34=data!$S$3,(M34*10)/3.4,IF(B34=data!$S$4,(M34*10)/5.3,IF(B34=data!$S$5,(M34*10)/3.4,"zvolte typ stavby")))) -> 74.89795918 | O34: 65000000
M35: =IF(B35=data!$S$2,D35*0.7+E35*0.2+F35*0.8+G35+H35*0.2+I35+J35*0.3+K35*0.5+L35*0.2,IF(B35=data!$S$3,D35*0.1+E35*0.3+F35*0.1+G35+I35+J35*0.5+K35*0.4,IF(B35=data!$S$4,D35*0.6+E35*0.7+F35+G35+I35+L35,IF(B35=data!$S$5,D35*0.7+E35+H35*0.7+I35,"zvolte typ stavby")))) -> zvolte typ stavby | N35: =IF(B35=data!$S$2,(M35*10)/4.9,IF(B35=data!$S$3,(M35*10)/3.4,IF(B35=data!$S$4,(M35*10)/5.3,IF(B35=data!$S$5,(M35*10)/3.4,"zvolte typ stavby")))) -> zvolte typ stavby
A36: Oprava II. poloviny II/337 a II/339 Čáslav - kooor. objízdné trasy s ŘSD - PD | B36: oprava a rekonstrukce | C36: Souvislá údržba | D36: 6 | E36: 9 | F36: 6 | G36: 6 | H36: 10 | I36: 10 | J36: 0 | K36: 10 | L36: 4 | M36: =IF(B36=data!$S$2,D36*0.7+E36*0.2+F36*0.8+G36+H36*0.2+I36+J36*0.3+K36*0.5+L36*0.2,IF(B36=data!$S$3,D36*0.1+E36*0.3+F36*0.1+G36+I36+J36*0.5+K36*0.4,IF(B36=data!$S$4,D36*0.6+E36*0.7+F36+G36+I36+L36,IF(B36=data!$S$5,D36*0.7+E36+H36*0.7+I36,"zvolte typ stavby")))) -> 34.6 | N36: =IF(B36=data!$S$2,(M36*10)/4.9,IF(B36=data!$S$3,(M36*10)/3.4,IF(B36=data!$S$4,(M36*10)/5.3,IF(B36=data!$S$5,(M36*10)/3.4,"zvolte typ stavby")))) -> 70.6122449 | O36: 500000
M37: =IF(B37=data!$S$2,D37*0.7+E37*0.2+F37*0.8+G37+H37*0.2+I37+J37*0.3+K37*0.5+L37*0.2,IF(B37=data!$S$3,D37*0.1+E37*0.3+F37*0.1+G37+I37+J37*0.5+K37*0.4,IF(B37=data!$S$4,D37*0.6+E37*0.7+F37+G37+I37+L37,IF(B37=data!$S$5,D37*0.7+E37+H37*0.7+I37,"zvolte typ stavby")))) -> zvolte typ stavby | N37: =IF(B37=data!$S$2,(M37*10)/4.9,IF(B37=data!$S$3,(M37*10)/3.4,IF(B37=data!$S$4,(M37*10)/5.3,IF(B37=data!$S$5,(M37*10)/3.4,"zvolte typ stavby")))) -> zvolte typ stavby
M38: =IF(B38=data!$S$2,D38*0.7+E38*0.2+F38*0.8+G38+H38*0.2+I38+J38*0.3+K38*0.5+L38*0.2,IF(B38=data!$S$3,D38*0.1+E38*0.3+F38*0.1+G38+I38+J38*0.5+K38*0.4,IF(B38=data!$S$4,D38*0.6+E38*0.7+F38+G38+I38+L38,IF(B38=data!$S$5,D38*0.7+E38+H38*0.7+I38,"zvolte typ stavby")))) -> zvolte typ stavby | N38: =IF(B38=data!$S$2,(M38*10)/4.9,IF(B38=data!$S$3,(M38*10)/3.4,IF(B38=data!$S$4,(M38*10)/5.3,IF(B38=data!$S$5,(M38*10)/3.4,"zvolte typ stavby")))) -> zvolte typ stavby
A39: III/1068 Brodce - Zbořený Kostelec | B39: oprava a rekonstrukce | C39: Rekonstrukce | D39: 1 | E39: 5 | F39: 10 | G39: 10 | H39: 10 | I39: 2 | J39: 10 | K39: 10 | L39: 7 | M39: =IF(B39=data!$S$2,D39*0.7+E39*0.2+F39*0.8+G39+H39*0.2+I39+J39*0.3+K39*0.5+L39*0.2,IF(B39=data!$S$3,D39*0.1+E39*0.3+F39*0.1+G39+I39+J39*0.5+K39*0.4,IF(B39=data!$S$4,D39*0.6+E39*0.7+F39+G39+I39+L39,IF(B39=data!$S$5,D39*0.7+E39+H39*0.7+I39,"zvolte typ stavby")))) -> 33.1 | N39: =IF(B39=data!$S$2,(M39*10)/4.9,IF(B39=data!$S$3,(M39*10)/3.4,IF(B39=data!$S$4,(M39*10)/5.3,IF(B39=data!$S$5,(M39*10)/3.4,"zvolte typ stavby")))) -> 67.55102041 | O39: 10000000
M40: =IF(B40=data!$S$2,D40*0.7+E40*0.2+F40*0.8+G40+H40*0.2+I40+J40*0.3+K40*0.5+L40*0.2,IF(B40=data!$S$3,D40*0.1+E40*0.3+F40*0.1+G40+I40+J40*0.5+K40*0.4,IF(B40=data!$S$4,D40*0.6+E40*0.7+F40+G40+I40+L40,IF(B40=data!$S$5,D40*0.7+E40+H40*0.7+I40,"zvolte typ stavby")))) -> zvolte typ stavby | N40: =IF(B40=data!$S$2,(M40*10)/4.9,IF(B40=data!$S$3,(M40*10)/3.4,IF(B40=data!$S$4,(M40*10)/5.3,IF(B40=data!$S$5,(M40*10)/3.4,"zvolte typ stavby")))) -> zvolte typ stavby
M41: =IF(B41=data!$S$2,D41*0.7+E41*0.2+F41*0.8+G41+H41*0.2+I41+J41*0.3+K41*0.5+L41*0.2,IF(B41=data!$S$3,D41*0.1+E41*0.3+F41*0.1+G41+I41+J41*0.5+K41*0.4,IF(B41=data!$S$4,D41*0.6+E41*0.7+F41+G41+I41+L41,IF(B41=data!$S$5,D41*0.7+E41+H41*0.7+I41,"zvolte typ stavby")))) -> zvolte typ stavby | N41: =IF(B41=data!$S$2,(M41*10)/4.9,IF(B41=data!$S$3,(M41*10)/3.4,IF(B41=data!$S$4,(M41*10)/5.3,IF(B41=data!$S$5,(M41*10)/3.4,"zvolte typ stavby")))) -> zvolte typ stavby
A42: III/2595 Podlázky - Bukovno | B42: oprava a rekonstrukce | C42: Rekonstrukce | D42: 3 | E42: 7 | F42: 10 | G42: 6 | H42: 10 | I42: 7 | J42: 0 | K42: 10 | L42: 7 | M42: =IF(B42=data!$S$2,D42*0.7+E42*0.2+F42*0.8+G42+H42*0.2+I42+J42*0.3+K42*0.5+L42*0.2,IF(B42=data!$S$3,D42*0.1+E42*0.3+F42*0.1+G42+I42+J42*0.5+K42*0.4,IF(B42=data!$S$4,D42*0.6+E42*0.7+F42+G42+I42+L42,IF(B42=data!$S$5,D42*0.7+E42+H42*0.7+I42,"zvolte typ stavby")))) -> 32.9 | N42: =IF(B42=data!$S$2,(M42*10)/4.9,IF(B42=data!$S$3,(M42*10)/3.4,IF(B42=data!$S$4,(M42*10)/5.3,IF(B42=data!$S$5,(M42*10)/3.4,"zvolte typ stavby")))) -> 67.14285714 | O42: 20000000
A43: II/259 Bukovno, průtah | B43: oprava a rekonstrukce | C43: Rekonstrukce | D43: 3 | E43: 8 | F43: 6 | G43: 10 | H43: 10 | I43: 7 | J43: 0 | K43: 10 | L43: 2 | M43: =IF(B43=data!$S$2,D43*0.7+E43*0.2+F43*0.8+G43+H43*0.2+I43+J43*0.3+K43*0.5+L43*0.2,IF(B43=data!$S$3,D43*0.1+E43*0.3+F43*0.1+G43+I43+J43*0.5+K43*0.4,IF(B43=data!$S$4,D43*0.6+E43*0.7+F43+G43+I43+L43,IF(B43=data!$S$5,D43*0.7+E43+H43*0.7+I43,"zvolte typ stavby")))) -> 32.9 | N43: =IF(B43=data!$S$2,(M43*10)/4.9,IF(B43=data!$S$3,(M43*10)/3.4,IF(B43=data!$S$4,(M43*10)/5.3,IF(B43=data!$S$5,(M43*10)/3.4,"zvolte typ stavby")))) -> 67.14285714 | O43: 10000000
A44: III/24637 Vliněves, průtah | B44: oprava a rekonstrukce | C44: Rekonstrukce | D44: 4 | E44: 7 | F44: 6 | G44: 10 | H44: 10 | I44: 10 | J44: 10 | K44: 10 | L44: 2 | M44: =IF(B44=data!$S$2,D44*0.7+E44*0.2+F44*0.8+G44+H44*0.2+I44+J44*0.3+K44*0.5+L44*0.2,IF(B44=data!$S$3,D44*0.1+E44*0.3+F44*0.1+G44+I44+J44*0.5+K44*0.4,IF(B44=data!$S$4,D44*0.6+E44*0.7+F44+G44+I44+L44,IF(B44=data!$S$5,D44*0.7+E44+H44*0.7+I44,"zvolte typ stavby")))) -> 39.4 | N44: =IF(B44=data!$S$2,(M44*10)/4.9,IF(B44=data!$S$3,(M44*10)/3.4,IF(B44=data!$S$4,(M44*10)/5.3,IF(B44=data!$S$5,(M44*10)/3.4,"zvolte typ stavby")))) -> 80.40816327 | O44: 15000000
A45: II/245 Brandýs nad Labem, ul. Královická | B45: oprava a rekonstrukce | C45: Rekonstrukce | D45: 4 | E45: 10 | F45: 10 | G45: 10 | H45: 10 | I45: 10 | J45: 0 | K45: 10 | L45: 2 | M45: =IF(B45=data!$S$2,D45*0.7+E45*0.2+F45*0.8+G45+H45*0.2+I45+J45*0.3+K45*0.5+L45*0.2,IF(B45=data!$S$3,D45*0.1+E45*0.3+F45*0.1+G45+I45+J45*0.5+K45*0.4,IF(B45=data!$S$4,D45*0.6+E45*0.7+F45+G45+I45+L45,IF(B45=data!$S$5,D45*0.7+E45+H45*0.7+I45,"zvolte typ stavby")))) -> 40.2 | N45: =IF(B45=data!$S$2,(M45*10)/4.9,IF(B45=data!$S$3,(M45*10)/3.4,IF(B45=data!$S$4,(M45*10)/5.3,IF(B45=data!$S$5,(M45*10)/3.4,"zvolte typ stavby")))) -> 82.04081633 | O45: 40000000
A46: III/10159 Brandýs nad Labem, průtah | B46: oprava a rekonstrukce | C46: Rekonstrukce | D46: 1 | E46: 3 | F46: 10 | G46: 10 | H46: 10 | I46: 4 | J46: 0 | K46: 10 | L46: 2 | M46: =IF(B46=data!$S$2,D46*0.7+E46*0.2+F46*0.8+G46+H46*0.2+I46+J46*0.3+K46*0.5+L46*0.2,IF(B46=data!$S$3,D46*0.1+E46*0.3+F46*0.1+G46+I46+J46*0.5+K46*0.4,IF(B46=data!$S$4,D46*0.6+E46*0.7+F46+G46+I46+L46,IF(B46=data!$S$5,D46*0.7+E46+H46*0.7+I46,"zvolte typ stavby")))) -> 30.7 | N46: =IF(B46=data!$S$2,(M46*10)/4.9,IF(B46=data!$S$3,(M46*10)/3.4,IF(B46=data!$S$4,(M46*10)/5.3,IF(B46=data!$S$5,(M46*10)/3.4,"zvolte typ stavby")))) -> 62.65306122 | O46: 20000000
A47: III/1247 Miličín od kř. I/3 - hr. kraje | B47: oprava a rekonstrukce | C47: Rekonstrukce | D47: 1 | E47: 5 | F47: 10 | G47: 10 | H47: 10 | I47: 4 | J47: 0 | K47: 10 | L47: 7 | M47: =IF(B47=data!$S$2,D47*0.7+E47*0.2+F47*0.8+G47+H47*0.2+I47+J47*0.3+K47*0.5+L47*0.2,IF(B47=data!$S$3,D47*0.1+E47*0.3+F47*0.1+G47+I47+J47*0.5+K47*0.4,IF(B47=data!$S$4,D47*0.6+E47*0.7+F47+G47+I47+L47,IF(B47=data!$S$5,D47*0.7+E47+H47*0.7+I47,"zvolte typ stavby")))) -> 32.1 | N47: =IF(B47=data!$S$2,(M47*10)/4.9,IF(B47=data!$S$3,(M47*10)/3.4,IF(B47=data!$S$4,(M47*10)/5.3,IF(B47=data!$S$5,(M47*10)/3.4,"zvolte typ stavby")))) -> 65.51020408 | O47: 80000000
A48: III/27937 Dolní Bousov, průtah (Vlčí Pole) | B48: oprava a rekonstrukce | C48: Rekonstrukce | D48: 2 | E48: 5 | F48: 3 | G48: 10 | H48: 10 | I48: 10 | J48: 0 | K48: 10 | L48: 0 | M48: =IF(B48=data!$S$2,D48*0.7+E48*0.2+F48*0.8+G48+H48*0.2+I48+J48*0.3+K48*0.5+L48*0.2,IF(B48=data!$S$3,D48*0.1+E48*0.3+F48*0.1+G48+I48+J48*0.5+K48*0.4,IF(B48=data!$S$4,D48*0.6+E48*0.7+F48+G48+I48+L48,IF(B48=data!$S$5,D48*0.7+E48+H48*0.7+I48,"zvolte typ stavby")))) -> 31.8 | N48: =IF(B48=data!$S$2,(M48*10)/4.9,IF(B48=data!$S$3,(M48*10)/3.4,IF(B48=data!$S$4,(M48*10)/5.3,IF(B48=data!$S$5,(M48*10)/3.4,"zvolte typ stavby")))) -> 64.89795918 | O48: 10000000
A49: III/10222 Nový Knín, ul. Kozohorská | B49: oprava a rekonstrukce | C49: Rekonstrukce | D49: 1 | E49: 7 | F49: 10 | G49: 10 | H49: 10 | I49: 4 | J49: 0 | K49: 10 | L49: 7 | M49: =IF(B49=data!$S$2,D49*0.7+E49*0.2+F49*0.8+G49+H49*0.2+I49+J49*0.3+K49*0.5+L49*0.2,IF(B49=data!$S$3,D49*0.1+E49*0.3+F49*0.1+G49+I49+J49*0.5+K49*0.4,IF(B49=data!$S$4,D49*0.6+E49*0.7+F49+G49+I49+L49,IF(B49=data!$S$5,D49*0.7+E49+H49*0.7+I49,"zvolte typ stavby")))) -> 32.5 | N49: =IF(B49=data!$S$2,(M49*10)/4.9,IF(B49=data!$S$3,(M49*10)/3.4,IF(B49=data!$S$4,(M49*10)/5.3,IF(B49=data!$S$5,(M49*10)/3.4,"zvolte typ stavby")))) -> 66.32653061 | O49: 11000000
M50: =IF(B50=data!$S$2,D50*0.7+E50*0.2+F50*0.8+G50+H50*0.2+I50+J50*0.3+K50*0.5+L50*0.2,IF(B50=data!$S$3,D50*0.1+E50*0.3+F50*0.1+G50+I50+J50*0.5+K50*0.4,IF(B50=data!$S$4,D50*0.6+E50*0.7+F50+G50+I50+L50,IF(B50=data!$S$5,D50*0.7+E50+H50*0.7+I50,"zvolte typ stavby")))) -> zvolte typ stavby | N50: =IF(B50=data!$S$2,(M50*10)/4.9,IF(B50=data!$S$3,(M50*10)/3.4,IF(B50=data!$S$4,(M50*10)/5.3,IF(B50=data!$S$5,(M50*10)/3.4,"zvolte typ stavby")))) -> zvolte typ stavby
A51: II/605 hr. Středočeského kraje - Rudná-PD | B51: oprava a rekonstrukce | C51: Rekonstrukce | D51: 7 | E51: 9 | F51: 3 | G51: 6 | H51: 0 | I51: 10 | J51: 0 | K51: 10 | L51: 4 | M51: =IF(B51=data!$S$2,D51*0.7+E51*0.2+F51*0.8+G51+H51*0.2+I51+J51*0.3+K51*0.5+L51*0.2,IF(B51=data!$S$3,D51*0.1+E51*0.3+F51*0.1+G51+I51+J51*0.5+K51*0.4,IF(B51=data!$S$4,D51*0.6+E51*0.7+F51+G51+I51+L51,IF(B51=data!$S$5,D51*0.7+E51+H51*0.7+I51,"zvolte typ stavby")))) -> 30.9 | N51: =IF(B51=data!$S$2,(M51*10)/4.9,IF(B51=data!$S$3,(M51*10)/3.4,IF(B51=data!$S$4,(M51*10)/5.3,IF(B51=data!$S$5,(M51*10)/3.4,"zvolte typ stavby")))) -> 63.06122449 | O51: 5804460
M52: =IF(B52=data!$S$2,D52*0.7+E52*0.2+F52*0.8+G52+H52*0.2+I52+J52*0.3+K52*0.5+L52*0.2,IF(B52=data!$S$3,D52*0.1+E52*0.3+F52*0.1+G52+I52+J52*0.5+K52*0.4,IF(B52=data!$S$4,D52*0.6+E52*0.7+F52+G52+I52+L52,IF(B52=data!$S$5,D52*0.7+E52+H52*0.7+I52,"zvolte typ stavby")))) -> zvolte typ stavby | N52: =IF(B52=data!$S$2,(M52*10)/4.9,IF(B52=data!$S$3,(M52*10)/3.4,IF(B52=data!$S$4,(M52*10)/5.3,IF(B52=data!$S$5,(M52*10)/3.4,"zvolte typ stavby")))) -> zvolte typ stavby
A53: II/328 Městec Králové ul. Pražská - I/11 | B53: oprava a rekonstrukce | C53: Rekonstrukce | D53: 4 | E53: 10 | F53: 6 | G53: 6 | H53: 10 | I53: 7 | J53: 0 | K53: 10 | L53: 4 | M53: =IF(B53=data!$S$2,D53*0.7+E53*0.2+F53*0.8+G53+H53*0.2+I53+J53*0.3+K53*0.5+L53*0.2,IF(B53=data!$S$3,D53*0.1+E53*0.3+F53*0.1+G53+I53+J53*0.5+K53*0.4,IF(B53=data!$S$4,D53*0.6+E53*0.7+F53+G53+I53+L53,IF(B53=data!$S$5,D53*0.7+E53+H53*0.7+I53,"zvolte typ stavby")))) -> 30.4 | N53: =IF(B53=data!$S$2,(M53*10)/4.9,IF(B53=data!$S$3,(M53*10)/3.4,IF(B53=data!$S$4,(M53*10)/5.3,IF(B53=data!$S$5,(M53*10)/3.4,"zvolte typ stavby")))) -> 62.04081633 | O53: 8105309
M54: =IF(B54=data!$S$2,D54*0.7+E54*0.2+F54*0.8+G54+H54*0.2+I54+J54*0.3+K54*0.5+L54*0.2,IF(B54=data!$S$3,D54*0.1+E54*0.3+F54*0.1+G54+I54+J54*0.5+K54*0.4,IF(B54=data!$S$4,D54*0.6+E54*0.7+F54+G54+I54+L54,IF(B54=data!$S$5,D54*0.7+E54+H54*0.7+I54,"zvolte typ stavby")))) -> zvolte typ stavby | N54: =IF(B54=data!$S$2,(M54*10)/4.9,IF(B54=data!$S$3,(M54*10)/3.4,IF(B54=data!$S$4,(M54*10)/5.3,IF(B54=data!$S$5,(M54*10)/3.4,"zvolte typ stavby")))) -> zvolte typ stavby
M55: =IF(B55=data!$S$2,D55*0.7+E55*0.2+F55*0.8+G55+H55*0.2+I55+J55*0.3+K55*0.5+L55*0.2,IF(B55=data!$S$3,D55*0.1+E55*0.3+F55*0.1+G55+I55+J55*0.5+K55*0.4,IF(B55=data!$S$4,D55*0.6+E55*0.7+F55+G55+I55+L55,IF(B55=data!$S$5,D55*0.7+E55+H55*0.7+I55,"zvolte typ stavby")))) -> zvolte typ stavby | N55: =IF(B55=data!$S$2,(M55*10)/4.9,IF(B55=data!$S$3,(M55*10)/3.4,IF(B55=data!$S$4,(M55*10)/5.3,IF(B55=data!$S$5,(M55*10)/3.4,"zvolte typ stavby")))) -> zvolte typ stavby
M56: =IF(B56=data!$S$2,D56*0.7+E56*0.2+F56*0.8+G56+H56*0.2+I56+J56*0.3+K56*0.5+L56*0.2,IF(B56=data!$S$3,D56*0.1+E56*0.3+F56*0.1+G56+I56+J56*0.5+K56*0.4,IF(B56=data!$S$4,D56*0.6+E56*0.7+F56+G56+I56+L56,IF(B56=data!$S$5,D56*0.7+E56+H56*0.7+I56,"zvolte typ stavby")))) -> zvolte typ stavby | N56: =IF(B56=data!$S$2,(M56*10)/4.9,IF(B56=data!$S$3,(M56*10)/3.4,IF(B56=data!$S$4,(M56*10)/5.3,IF(B56=data!$S$5,(M56*10)/3.4,"zvolte typ stavby")))) -> zvolte typ stavby
M57: =IF(B57=data!$S$2,D57*0.7+E57*0.2+F57*0.8+G57+H57*0.2+I57+J57*0.3+K57*0.5+L57*0.2,IF(B57=data!$S$3,D57*0.1+E57*0.3+F57*0.1+G57+I57+J57*0.5+K57*0.4,IF(B57=data!$S$4,D57*0.6+E57*0.7+F57+G57+I57+L57,IF(B57=data!$S$5,D57*0.7+E57+H57*0.7+I57,"zvolte typ stavby")))) -> zvolte typ stavby | N57: =IF(B57=data!$S$2,(M57*10)/4.9,IF(B57=data!$S$3,(M57*10)/3.4,IF(B57=data!$S$4,(M57*10)/5.3,IF(B57=data!$S$5,(M57*10)/3.4,"zvolte typ stavby")))) -> zvolte typ stavby
M58: =IF(B58=data!$S$2,D58*0.7+E58*0.2+F58*0.8+G58+H58*0.2+I58+J58*0.3+K58*0.5+L58*0.2,IF(B58=data!$S$3,D58*0.1+E58*0.3+F58*0.1+G58+I58+J58*0.5+K58*0.4,IF(B58=data!$S$4,D58*0.6+E58*0.7+F58+G58+I58+L58,IF(B58=data!$S$5,D58*0.7+E58+H58*0.7+I58,"zvolte typ stavby")))) -> zvolte typ stavby | N58: =IF(B58=data!$S$2,(M58*10)/4.9,IF(B58=data!$S$3,(M58*10)/3.4,IF(B58=data!$S$4,(M58*10)/5.3,IF(B58=data!$S$5,(M58*10)/3.4,"zvolte typ stavby")))) -> zvolte typ stavby
A59: II/327 Týnec nad Labem | B59: oprava a rekonstrukce | C59: Souvislá údržba | D59: 3 | E59: 10 | F59: 6 | G59: 6 | H59: 10 | I59: 7 | J59: 0 | K59: 10 | L59: 2 | M59: =IF(B59=data!$S$2,D59*0.7+E59*0.2+F59*0.8+G59+H59*0.2+I59+J59*0.3+K59*0.5+L59*0.2,IF(B59=data!$S$3,D59*0.1+E59*0.3+F59*0.1+G59+I59+J59*0.5+K59*0.4,IF(B59=data!$S$4,D59*0.6+E59*0.7+F59+G59+I59+L59,IF(B59=data!$S$5,D59*0.7+E59+H59*0.7+I59,"zvolte typ stavby")))) -> 29.3 | N59: =IF(B59=data!$S$2,(M59*10)/4.9,IF(B59=data!$S$3,(M59*10)/3.4,IF(B59=data!$S$4,(M59*10)/5.3,IF(B59=data!$S$5,(M59*10)/3.4,"zvolte typ stavby")))) -> 59.79591837 | O59: 10000000
A60: II/125 Uhlířské Janovice | B60: oprava a rekonstrukce | C60: Souvislá údržba | D60: 4 | E60: 10 | F60: 3 | G60: 6 | H60: 10 | I60: 7 | J60: 0 | K60: 10 | L60: 10 | M60: =IF(B60=data!$S$2,D60*0.7+E60*0.2+F60*0.8+G60+H60*0.2+I60+J60*0.3+K60*0.5+L60*0.2,IF(B60=data!$S$3,D60*0.1+E60*0.3+F60*0.1+G60+I60+J60*0.5+K60*0.4,IF(B60=data!$S$4,D60*0.6+E60*0.7+F60+G60+I60+L60,IF(B60=data!$S$5,D60*0.7+E60+H60*0.7+I60,"zvolte typ stavby")))) -> 29.2 | N60: =IF(B60=data!$S$2,(M60*10)/4.9,IF(B60=data!$S$3,(M60*10)/3.4,IF(B60=data!$S$4,(M60*10)/5.3,IF(B60=data!$S$5,(M60*10)/3.4,"zvolte typ stavby")))) -> 59.59183673 | O60: 4044000
M61: =IF(B61=data!$S$2,D61*0.7+E61*0.2+F61*0.8+G61+H61*0.2+I61+J61*0.3+K61*0.5+L61*0.2,IF(B61=data!$S$3,D61*0.1+E61*0.3+F61*0.1+G61+I61+J61*0.5+K61*0.4,IF(B61=data!$S$4,D61*0.6+E61*0.7+F61+G61+I61+L61,IF(B61=data!$S$5,D61*0.7+E61+H61*0.7+I61,"zvolte typ stavby")))) -> zvolte typ stavby | N61: =IF(B61=data!$S$2,(M61*10)/4.9,IF(B61=data!$S$3,(M61*10)/3.4,IF(B61=data!$S$4,(M61*10)/5.3,IF(B61=data!$S$5,(M61*10)/3.4,"zvolte typ stavby")))) -> zvolte typ stavby
M62: =IF(B62=data!$S$2,D62*0.7+E62*0.2+F62*0.8+G62+H62*0.2+I62+J62*0.3+K62*0.5+L62*0.2,IF(B62=data!$S$3,D62*0.1+E62*0.3+F62*0.1+G62+I62+J62*0.5+K62*0.4,IF(B62=data!$S$4,D62*0.6+E62*0.7+F62+G62+I62+L62,IF(B62=data!$S$5,D62*0.7+E62+H62*0.7+I62,"zvolte typ stavby")))) -> zvolte typ stavby | N62: =IF(B62=data!$S$2,(M62*10)/4.9,IF(B62=data!$S$3,(M62*10)/3.4,IF(B62=data!$S$4,(M62*10)/5.3,IF(B62=data!$S$5,(M62*10)/3.4,"zvolte typ stavby")))) -> zvolte typ stavby
A63: II/335 Staňkovice - Sázava | B63: oprava a rekonstrukce | C63: Rekonstrukce | D63: 3 | E63: 10 | F63: 3 | G63: 6 | H63: 10 | I63: 7 | J63: 0 | K63: 10 | L63: 10 | M63: =IF(B63=data!$S$2,D63*0.7+E63*0.2+F63*0.8+G63+H63*0.2+I63+J63*0.3+K63*0.5+L63*0.2,IF(B63=data!$S$3,D63*0.1+E63*0.3+F63*0.1+G63+I63+J63*0.5+K63*0.4,IF(B63=data!$S$4,D63*0.6+E63*0.7+F63+G63+I63+L63,IF(B63=data!$S$5,D63*0.7+E63+H63*0.7+I63,"zvolte typ stavby")))) -> 28.5 | N63: =IF(B63=data!$S$2,(M63*10)/4.9,IF(B63=data!$S$3,(M63*10)/3.4,IF(B63=data!$S$4,(M63*10)/5.3,IF(B63=data!$S$5,(M63*10)/3.4,"zvolte typ stavby")))) -> 58.16326531 | O63: 5000000
A64: III/2733 Kokořín | B64: oprava a rekonstrukce | C64: Rekonstrukce | D64: 2 | E64: 6 | F64: 6 | G64: 6 | H64: 10 | I64: 10 | J64: 10 | K64: 0 | L64: 0 | M64: =IF(B64=data!$S$2,D64*0.7+E64*0.2+F64*0.8+G64+H64*0.2+I64+J64*0.3+K64*0.5+L64*0.2,IF(B64=data!$S$3,D64*0.1+E64*0.3+F64*0.1+G64+I64+J64*0.5+K64*0.4,IF(B64=data!$S$4,D64*0.6+E64*0.7+F64+G64+I64+L64,IF(B64=data!$S$5,D64*0.7+E64+H64*0.7+I64,"zvolte typ stavby")))) -> 28.4 | N64: =IF(B64=data!$S$2,(M64*10)/4.9,IF(B64=data!$S$3,(M64*10)/3.4,IF(B64=data!$S$4,(M64*10)/5.3,IF(B64=data!$S$5,(M64*10)/3.4,"zvolte typ stavby")))) -> 57.95918367 | O64: 100000000
A65: III/11553 Pičín - rek. opěrné zdi | B65: oprava a rekonstrukce | C65: Rekonstrukce | D65: 1 | E65: 5 | F65: 6 | G65: 10 | H65: 10 | I65: 4 | J65: 0 | K65: 10 | L65: 4 | M65: =IF(B65=data!$S$2,D65*0.7+E65*0.2+F65*0.8+G65+H65*0.2+I65+J65*0.3+K65*0.5+L65*0.2,IF(B65=data!$S$3,D65*0.1+E65*0.3+F65*0.1+G65+I65+J65*0.5+K65*0.4,IF(B65=data!$S$4,D65*0.6+E65*0.7+F65+G65+I65+L65,IF(B65=data!$S$5,D65*0.7+E65+H65*0.7+I65,"zvolte typ stavby")))) -> 28.3 | N65: =IF(B65=data!$S$2,(M65*10)/4.9,IF(B65=data!$S$3,(M65*10)/3.4,IF(B65=data!$S$4,(M65*10)/5.3,IF(B65=data!$S$5,(M65*10)/3.4,"zvolte typ stavby")))) -> 57.75510204 | O65: 5000000
A66: III/01214 Úvaly | B66: oprava a rekonstrukce | C66: Rekonstrukce | D66: 3 | E66: 5 | F66: 6 | G66: 6 | H66: 10 | I66: 7 | J66: 0 | K66: 10 | L66: 2 | M66: =IF(B66=data!$S$2,D66*0.7+E66*0.2+F66*0.8+G66+H66*0.2+I66+J66*0.3+K66*0.5+L66*0.2,IF(B66=data!$S$3,D66*0.1+E66*0.3+F66*0.1+G66+I66+J66*0.5+K66*0.4,IF(B66=data!$S$4,D66*0.6+E66*0.7+F66+G66+I66+L66,IF(B66=data!$S$5,D66*0.7+E66+H66*0.7+I66,"zvolte typ stavby")))) -> 28.3 | N66: =IF(B66=data!$S$2,(M66*10)/4.9,IF(B66=data!$S$3,(M66*10)/3.4,IF(B66=data!$S$4,(M66*10)/5.3,IF(B66=data!$S$5,(M66*10)/3.4,"zvolte typ stavby")))) -> 57.75510204 | O66: 40000000
A67: II/330 Zvěřinek - Nymburk | B67: oprava a rekonstrukce | C67: Souvislá údržba | D67: 4 | E67: 10 | F67: 3 | G67: 6 | H67: 10 | I67: 7 | J67: 0 | K67: 10 | L67: 4 | M67: =IF(B67=data!$S$2,D67*0.7+E67*0.2+F67*0.8+G67+H67*0.2+I67+J67*0.3+K67*0.5+L67*0.2,IF(B67=data!$S$3,D67*0.1+E67*0.3+F67*0.1+G67+I67+J67*0.5+K67*0.4,IF(B67=data!$S$4,D67*0.6+E67*0.7+F67+G67+I67+L67,IF(B67=data!$S$5,D67*0.7+E67+H67*0.7+I67,"zvolte typ stavby")))) -> 28 | N67: =IF(B67=data!$S$2,(M67*10)/4.9,IF(B67=data!$S$3,(M67*10)/3.4,IF(B67=data!$S$4,(M67*10)/5.3,IF(B67=data!$S$5,(M67*10)/3.4,"zvolte typ stavby")))) -> 57.14285714 | O67: 230000000
A68: II/334 Milčice - Chotouň - křiž. II/335 | B68: oprava a rekonstrukce | C68: Rekonstrukce | D68: 3 | E68: 10 | F68: 3 | G68: 6 | H68: 10 | I68: 7 | J68: 0 | K68: 10 | L68: 7 | M68: =IF(B68=data!$S$2,D68*0.7+E68*0.2+F68*0.8+G68+H68*0.2+I68+J68*0.3+K68*0.5+L68*0.2,IF(B68=data!$S$3,D68*0.1+E68*0.3+F68*0.1+G68+I68+J68*0.5+K68*0.4,IF(B68=data!$S$4,D68*0.6+E68*0.7+F68+G68+I68+L68,IF(B68=data!$S$5,D68*0.7+E68+H68*0.7+I68,"zvolte typ stavby")))) -> 27.9 | N68: =IF(B68=data!$S$2,(M68*10)/4.9,IF(B68=data!$S$3,(M68*10)/3.4,IF(B68=data!$S$4,(M68*10)/5.3,IF(B68=data!$S$5,(M68*10)/3.4,"zvolte typ stavby")))) -> 56.93877551 | O68: 3699677
M69: =IF(B69=data!$S$2,D69*0.7+E69*0.2+F69*0.8+G69+H69*0.2+I69+J69*0.3+K69*0.5+L69*0.2,IF(B69=data!$S$3,D69*0.1+E69*0.3+F69*0.1+G69+I69+J69*0.5+K69*0.4,IF(B69=data!$S$4,D69*0.6+E69*0.7+F69+G69+I69+L69,IF(B69=data!$S$5,D69*0.7+E69+H69*0.7+I69,"zvolte typ stavby")))) -> zvolte typ stavby | N69: =IF(B69=data!$S$2,(M69*10)/4.9,IF(B69=data!$S$3,(M69*10)/3.4,IF(B69=data!$S$4,(M69*10)/5.3,IF(B69=data!$S$5,(M69*10)/3.4,"zvolte typ stavby")))) -> zvolte typ stavby
M70: =IF(B70=data!$S$2,D70*0.7+E70*0.2+F70*0.8+G70+H70*0.2+I70+J70*0.3+K70*0.5+L70*0.2,IF(B70=data!$S$3,D70*0.1+E70*0.3+F70*0.1+G70+I70+J70*0.5+K70*0.4,IF(B70=data!$S$4,D70*0.6+E70*0.7+F70+G70+I70+L70,IF(B70=data!$S$5,D70*0.7+E70+H70*0.7+I70,"zvolte typ stavby")))) -> zvolte typ stavby | N70: =IF(B70=data!$S$2,(M70*10)/4.9,IF(B70=data!$S$3,(M70*10)/3.4,IF(B70=data!$S$4,(M70*10)/5.3,IF(B70=data!$S$5,(M70*10)/3.4,"zvolte typ stavby")))) -> zvolte typ stavby
M71: =IF(B71=data!$S$2,D71*0.7+E71*0.2+F71*0.8+G71+H71*0.2+I71+J71*0.3+K71*0.5+L71*0.2,IF(B71=data!$S$3,D71*0.1+E71*0.3+F71*0.1+G71+I71+J71*0.5+K71*0.4,IF(B71=data!$S$4,D71*0.6+E71*0.7+F71+G71+I71+L71,IF(B71=data!$S$5,D71*0.7+E71+H71*0.7+I71,"zvolte typ stavby")))) -> zvolte typ stavby | N71: =IF(B71=data!$S$2,(M71*10)/4.9,IF(B71=data!$S$3,(M71*10)/3.4,IF(B71=data!$S$4,(M71*10)/5.3,IF(B71=data!$S$5,(M71*10)/3.4,"zvolte typ stavby")))) -> zvolte typ stavby
M72: =IF(B72=data!$S$2,D72*0.7+E72*0.2+F72*0.8+G72+H72*0.2+I72+J72*0.3+K72*0.5+L72*0.2,IF(B72=data!$S$3,D72*0.1+E72*0.3+F72*0.1+G72+I72+J72*0.5+K72*0.4,IF(B72=data!$S$4,D72*0.6+E72*0.7+F72+G72+I72+L72,IF(B72=data!$S$5,D72*0.7+E72+H72*0.7+I72,"zvolte typ stavby")))) -> zvolte typ stavby | N72: =IF(B72=data!$S$2,(M72*10)/4.9,IF(B72=data!$S$3,(M72*10)/3.4,IF(B72=data!$S$4,(M72*10)/5.3,IF(B72=data!$S$5,(M72*10)/3.4,"zvolte typ stavby")))) -> zvolte typ stavby
A73: II/108 Stříbrná Skalice - Kostelec n.Č.l. | B73: oprava a rekonstrukce | C73: Rekonstrukce | D73: 3 | E73: 10 | F73: 3 | G73: 6 | H73: 10 | I73: 7 | J73: 0 | K73: 10 | L73: 4 | M73: =IF(B73=data!$S$2,D73*0.7+E73*0.2+F73*0.8+G73+H73*0.2+I73+J73*0.3+K73*0.5+L73*0.2,IF(B73=data!$S$3,D73*0.1+E73*0.3+F73*0.1+G73+I73+J73*0.5+K73*0.4,IF(B73=data!$S$4,D73*0.6+E73*0.7+F73+G73+I73+L73,IF(B73=data!$S$5,D73*0.7+E73+H73*0.7+I73,"zvolte typ stavby")))) -> 27.3 | N73: =IF(B73=data!$S$2,(M73*10)/4.9,IF(B73=data!$S$3,(M73*10)/3.4,IF(B73=data!$S$4,(M73*10)/5.3,IF(B73=data!$S$5,(M73*10)/3.4,"zvolte typ stavby")))) -> 55.71428571 | O73: 35000000
A74: II/113 Struhařov - Ondřejov | B74: oprava a rekonstrukce | C74: Souvislá údržba | D74: 3 | E74: 10 | F74: 3 | G74: 6 | H74: 10 | I74: 7 | J74: 0 | K74: 10 | L74: 4 | M74: =IF(B74=data!$S$2,D74*0.7+E74*0.2+F74*0.8+G74+H74*0.2+I74+J74*0.3+K74*0.5+L74*0.2,IF(B74=data!$S$3,D74*0.1+E74*0.3+F74*0.1+G74+I74+J74*0.5+K74*0.4,IF(B74=data!$S$4,D74*0.6+E74*0.7+F74+G74+I74+L74,IF(B74=data!$S$5,D74*0.7+E74+H74*0.7+I74,"zvolte typ stavby")))) -> 27.3 | N74: =IF(B74=data!$S$2,(M74*10)/4.9,IF(B74=data!$S$3,(M74*10)/3.4,IF(B74=data!$S$4,(M74*10)/5.3,IF(B74=data!$S$5,(M74*10)/3.4,"zvolte typ stavby")))) -> 55.71428571 | O74: 18000000
A75: II/327 Uhlířská Lhota - Hradišťko II | B75: oprava a rekonstrukce | C75: Souvislá údržba | D75: 3 | E75: 10 | F75: 3 | G75: 6 | H75: 10 | I75: 7 | J75: 0 | K75: 10 | L75: 4 | M75: =IF(B75=data!$S$2,D75*0.7+E75*0.2+F75*0.8+G75+H75*0.2+I75+J75*0.3+K75*0.5+L75*0.2,IF(B75=data!$S$3,D75*0.1+E75*0.3+F75*0.1+G75+I75+J75*0.5+K75*0.4,IF(B75=data!$S$4,D75*0.6+E75*0.7+F75+G75+I75+L75,IF(B75=data!$S$5,D75*0.7+E75+H75*0.7+I75,"zvolte typ stavby")))) -> 27.3 | N75: =IF(B75=data!$S$2,(M75*10)/4.9,IF(B75=data!$S$3,(M75*10)/3.4,IF(B75=data!$S$4,(M75*10)/5.3,IF(B75=data!$S$5,(M75*10)/3.4,"zvolte typ stavby")))) -> 55.71428571 | O75: 10000000
A76: II/329 Radim | B76: oprava a rekonstrukce | C76: Rekonstrukce | D76: 3 | E76: 10 | F76: 3 | G76: 6 | H76: 10 | I76: 7 | J76: 0 | K76: 10 | L76: 4 | M76: =IF(B76=data!$S$2,D76*0.7+E76*0.2+F76*0.8+G76+H76*0.2+I76+J76*0.3+K76*0.5+L76*0.2,IF(B76=data!$S$3,D76*0.1+E76*0.3+F76*0.1+G76+I76+J76*0.5+K76*0.4,IF(B76=data!$S$4,D76*0.6+E76*0.7+F76+G76+I76+L76,IF(B76=data!$S$5,D76*0.7+E76+H76*0.7+I76,"zvolte typ stavby")))) -> 27.3 | N76: =IF(B76=data!$S$2,(M76*10)/4.9,IF(B76=data!$S$3,(M76*10)/3.4,IF(B76=data!$S$4,(M76*10)/5.3,IF(B76=data!$S$5,(M76*10)/3.4,"zvolte typ stavby")))) -> 55.71428571 | O76: 13000000
A77: II/327 Svatá Kateřina | B77: oprava a rekonstrukce | C77: Souvislá údržba | D77: 3 | E77: 10 | F77: 3 | G77: 6 | H77: 10 | I77: 7 | J77: 0 | K77: 10 | L77: 4 | M77: =IF(B77=data!$S$2,D77*0.7+E77*0.2+F77*0.8+G77+H77*0.2+I77+J77*0.3+K77*0.5+L77*0.2,IF(B77=data!$S$3,D77*0.1+E77*0.3+F77*0.1+G77+I77+J77*0.5+K77*0.4,IF(B77=data!$S$4,D77*0.6+E77*0.7+F77+G77+I77+L77,IF(B77=data!$S$5,D77*0.7+E77+H77*0.7+I77,"zvolte typ stavby")))) -> 27.3 | N77: =IF(B77=data!$S$2,(M77*10)/4.9,IF(B77=data!$S$3,(M77*10)/3.4,IF(B77=data!$S$4,(M77*10)/5.3,IF(B77=data!$S$5,(M77*10)/3.4,"zvolte typ stavby")))) -> 55.71428571 | O77: 24000000
A78: II/328 křiž. I/11 - Městec Králové | B78: oprava a rekonstrukce | C78: Souvislá údržba | D78: 3 | E78: 10 | F78: 3 | G78: 6 | H78: 10 | I78: 7 | J78: 0 | K78: 10 | L78: 4 | M78: =IF(B78=data!$S$2,D78*0.7+E78*0.2+F78*0.8+G78+H78*0.2+I78+J78*0.3+K78*0.5+L78*0.2,IF(B78=data!$S$3,D78*0.1+E78*0.3+F78*0.1+G78+I78+J78*0.5+K78*0.4,IF(B78=data!$S$4,D78*0.6+E78*0.7+F78+G78+I78+L78,IF(B78=data!$S$5,D78*0.7+E78+H78*0.7+I78,"zvolte typ stavby")))) -> 27.3 | N78: =IF(B78=data!$S$2,(M78*10)/4.9,IF(B78=data!$S$3,(M78*10)/3.4,IF(B78=data!$S$4,(M78*10)/5.3,IF(B78=data!$S$5,(M78*10)/3.4,"zvolte typ stavby")))) -> 55.71428571 | O78: 35000000
A79: II/324 Městec Králové - křiž. II/328 | B79: oprava a rekonstrukce | C79: Rekonstrukce | D79: 3 | E79: 10 | F79: 3 | G79: 6 | H79: 10 | I79: 7 | J79: 0 | K79: 10 | L79: 4 | M79: =IF(B79=data!$S$2,D79*0.7+E79*0.2+F79*0.8+G79+H79*0.2+I79+J79*0.3+K79*0.5+L79*0.2,IF(B79=data!$S$3,D79*0.1+E79*0.3+F79*0.1+G79+I79+J79*0.5+K79*0.4,IF(B79=data!$S$4,D79*0.6+E79*0.7+F79+G79+I79+L79,IF(B79=data!$S$5,D79*0.7+E79+H79*0.7+I79,"zvolte typ stavby")))) -> 27.3 | N79: =IF(B79=data!$S$2,(M79*10)/4.9,IF(B79=data!$S$3,(M79*10)/3.4,IF(B79=data!$S$4,(M79*10)/5.3,IF(B79=data!$S$5,(M79*10)/3.4,"zvolte typ stavby")))) -> 55.71428571 | O79: 23000000
A80: II/334 křiž. I/12 - Třebovle - Kouřim | B80: oprava a rekonstrukce | C80: Rekonstrukce | D80: 3 | E80: 10 | F80: 3 | G80: 6 | H80: 10 | I80: 7 | J80: 0 | K80: 10 | L80: 4 | M80: =IF(B80=data!$S$2,D80*0.7+E80*0.2+F80*0.8+G80+H80*0.2+I80+J80*0.3+K80*0.5+L80*0.2,IF(B80=data!$S$3,D80*0.1+E80*0.3+F80*0.1+G80+I80+J80*0.5+K80*0.4,IF(B80=data!$S$4,D80*0.6+E80*0.7+F80+G80+I80+L80,IF(B80=data!$S$5,D80*0.7+E80+H80*0.7+I80,"zvolte typ stavby")))) -> 27.3 | N80: =IF(B80=data!$S$2,(M80*10)/4.9,IF(B80=data!$S$3,(M80*10)/3.4,IF(B80=data!$S$4,(M80*10)/5.3,IF(B80=data!$S$5,(M80*10)/3.4,"zvolte typ stavby")))) -> 55.71428571 | O80: 8500000
A81: II/338 Žáky - Šebestěnice | B81: oprava a rekonstrukce | C81: Souvislá údržba | D81: 3 | E81: 10 | F81: 3 | G81: 6 | H81: 10 | I81: 7 | J81: 0 | K81: 10 | L81: 4 | M81: =IF(B81=data!$S$2,D81*0.7+E81*0.2+F81*0.8+G81+H81*0.2+I81+J81*0.3+K81*0.5+L81*0.2,IF(B81=data!$S$3,D81*0.1+E81*0.3+F81*0.1+G81+I81+J81*0.5+K81*0.4,IF(B81=data!$S$4,D81*0.6+E81*0.7+F81+G81+I81+L81,IF(B81=data!$S$5,D81*0.7+E81+H81*0.7+I81,"zvolte typ stavby")))) -> 27.3 | N81: =IF(B81=data!$S$2,(M81*10)/4.9,IF(B81=data!$S$3,(M81*10)/3.4,IF(B81=data!$S$4,(M81*10)/5.3,IF(B81=data!$S$5,(M81*10)/3.4,"zvolte typ stavby")))) -> 55.71428571 | O81: 9423239
M82: =IF(B82=data!$S$2,D82*0.7+E82*0.2+F82*0.8+G82+H82*0.2+I82+J82*0.3+K82*0.5+L82*0.2,IF(B82=data!$S$3,D82*0.1+E82*0.3+F82*0.1+G82+I82+J82*0.5+K82*0.4,IF(B82=data!$S$4,D82*0.6+E82*0.7+F82+G82+I82+L82,IF(B82=data!$S$5,D82*0.7+E82+H82*0.7+I82,"zvolte typ stavby")))) -> zvolte typ stavby | N82: =IF(B82=data!$S$2,(M82*10)/4.9,IF(B82=data!$S$3,(M82*10)/3.4,IF(B82=data!$S$4,(M82*10)/5.3,IF(B82=data!$S$5,(M82*10)/3.4,"zvolte typ stavby")))) -> zvolte typ stavby
M83: =IF(B83=data!$S$2,D83*0.7+E83*0.2+F83*0.8+G83+H83*0.2+I83+J83*0.3+K83*0.5+L83*0.2,IF(B83=data!$S$3,D83*0.1+E83*0.3+F83*0.1+G83+I83+J83*0.5+K83*0.4,IF(B83=data!$S$4,D83*0.6+E83*0.7+F83+G83+I83+L83,IF(B83=data!$S$5,D83*0.7+E83+H83*0.7+I83,"zvolte typ stavby")))) -> zvolte typ stavby | N83: =IF(B83=data!$S$2,(M83*10)/4.9,IF(B83=data!$S$3,(M83*10)/3.4,IF(B83=data!$S$4,(M83*10)/5.3,IF(B83=data!$S$5,(M83*10)/3.4,"zvolte typ stavby")))) -> zvolte typ stavby
M84: =IF(B84=data!$S$2,D84*0.7+E84*0.2+F84*0.8+G84+H84*0.2+I84+J84*0.3+K84*0.5+L84*0.2,IF(B84=data!$S$3,D84*0.1+E84*0.3+F84*0.1+G84+I84+J84*0.5+K84*0.4,IF(B84=data!$S$4,D84*0.6+E84*0.7+F84+G84+I84+L84,IF(B84=data!$S$5,D84*0.7+E84+H84*0.7+I84,"zvolte typ stavby")))) -> zvolte typ stavby | N84: =IF(B84=data!$S$2,(M84*10)/4.9,IF(B84=data!$S$3,(M84*10)/3.4,IF(B84=data!$S$4,(M84*10)/5.3,IF(B84=data!$S$5,(M84*10)/3.4,"zvolte typ stavby")))) -> zvolte typ stavby
A85: II/335 Ondřejov - Stříbrná Skalice | B85: oprava a rekonstrukce | C85: Rekonstrukce | D85: 3 | E85: 10 | F85: 3 | G85: 6 | H85: 10 | I85: 7 | J85: 0 | K85: 10 | L85: 2 | M85: =IF(B85=data!$S$2,D85*0.7+E85*0.2+F85*0.8+G85+H85*0.2+I85+J85*0.3+K85*0.5+L85*0.2,IF(B85=data!$S$3,D85*0.1+E85*0.3+F85*0.1+G85+I85+J85*0.5+K85*0.4,IF(B85=data!$S$4,D85*0.6+E85*0.7+F85+G85+I85+L85,IF(B85=data!$S$5,D85*0.7+E85+H85*0.7+I85,"zvolte typ stavby")))) -> 26.9 | N85: =IF(B85=data!$S$2,(M85*10)/4.9,IF(B85=data!$S$3,(M85*10)/3.4,IF(B85=data!$S$4,(M85*10)/5.3,IF(B85=data!$S$5,(M85*10)/3.4,"zvolte typ stavby")))) -> 54.89795918 | O85: 12000000
A86: II/337 Onomyšl | B86: oprava a rekonstrukce | C86: Rekonstrukce | D86: 3 | E86: 10 | F86: 3 | G86: 6 | H86: 10 | I86: 7 | J86: 0 | K86: 10 | L86: 2 | M86: =IF(B86=data!$S$2,D86*0.7+E86*0.2+F86*0.8+G86+H86*0.2+I86+J86*0.3+K86*0.5+L86*0.2,IF(B86=data!$S$3,D86*0.1+E86*0.3+F86*0.1+G86+I86+J86*0.5+K86*0.4,IF(B86=data!$S$4,D86*0.6+E86*0.7+F86+G86+I86+L86,IF(B86=data!$S$5,D86*0.7+E86+H86*0.7+I86,"zvolte typ stavby")))) -> 26.9 | N86: =IF(B86=data!$S$2,(M86*10)/4.9,IF(B86=data!$S$3,(M86*10)/3.4,IF(B86=data!$S$4,(M86*10)/5.3,IF(B86=data!$S$5,(M86*10)/3.4,"zvolte typ stavby")))) -> 54.89795918 | O86: 25000000
A87: II/338 Žehušice | B87: oprava a rekonstrukce | C87: Rekonstrukce | D87: 3 | E87: 10 | F87: 3 | G87: 6 | H87: 10 | I87: 7 | J87: 0 | K87: 10 | L87: 2 | M87: =IF(B87=data!$S$2,D87*0.7+E87*0.2+F87*0.8+G87+H87*0.2+I87+J87*0.3+K87*0.5+L87*0.2,IF(B87=data!$S$3,D87*0.1+E87*0.3+F87*0.1+G87+I87+J87*0.5+K87*0.4,IF(B87=data!$S$4,D87*0.6+E87*0.7+F87+G87+I87+L87,IF(B87=data!$S$5,D87*0.7+E87+H87*0.7+I87,"zvolte typ stavby")))) -> 26.9 | N87: =IF(B87=data!$S$2,(M87*10)/4.9,IF(B87=data!$S$3,(M87*10)/3.4,IF(B87=data!$S$4,(M87*10)/5.3,IF(B87=data!$S$5,(M87*10)/3.4,"zvolte typ stavby")))) -> 54.89795918 | O87: 120000000
A88: II/339 Lány | B88: oprava a rekonstrukce | C88: Souvislá údržba | D88: 3 | E88: 10 | F88: 3 | G88: 6 | H88: 10 | I88: 7 | J88: 0 | K88: 10 | L88: 2 | M88: =IF(B88=data!$S$2,D88*0.7+E88*0.2+F88*0.8+G88+H88*0.2+I88+J88*0.3+K88*0.5+L88*0.2,IF(B88=data!$S$3,D88*0.1+E88*0.3+F88*0.1+G88+I88+J88*0.5+K88*0.4,IF(B88=data!$S$4,D88*0.6+E88*0.7+F88+G88+I88+L88,IF(B88=data!$S$5,D88*0.7+E88+H88*0.7+I88,"zvolte typ stavby")))) -> 26.9 | N88: =IF(B88=data!$S$2,(M88*10)/4.9,IF(B88=data!$S$3,(M88*10)/3.4,IF(B88=data!$S$4,(M88*10)/5.3,IF(B88=data!$S$5,(M88*10)/3.4,"zvolte typ stavby")))) -> 54.89795918 | O88: 28000000
A89: II/335 Uhlířské Janovice - Žandov | B89: oprava a rekonstrukce | C89: Rekonstrukce | D89: 2 | E89: 10 | F89: 3 | G89: 6 | H89: 10 | I89: 7 | J89: 0 | K89: 10 | L89: 4 | M89: =IF(B89=data!$S$2,D89*0.7+E89*0.2+F89*0.8+G89+H89*0.2+I89+J89*0.3+K89*0.5+L89*0.2,IF(B89=data!$S$3,D89*0.1+E89*0.3+F89*0.1+G89+I89+J89*0.5+K89*0.4,IF(B89=data!$S$4,D89*0.6+E89*0.7+F89+G89+I89+L89,IF(B89=data!$S$5,D89*0.7+E89+H89*0.7+I89,"zvolte typ stavby")))) -> 26.6 | N89: =IF(B89=data!$S$2,(M89*10)/4.9,IF(B89=data!$S$3,(M89*10)/3.4,IF(B89=data!$S$4,(M89*10)/5.3,IF(B89=data!$S$5,(M89*10)/3.4,"zvolte typ stavby")))) -> 54.28571429 | O89: 11528555
A90: II/336 Čenovice - ZRUČ n.S. | B90: oprava a rekonstrukce | C90: Rekonstrukce | D90: 3 | E90: 10 | F90: 6 | G90: 6 | H90: 10 | I90: 4 | J90: 0 | K90: 10 | L90: 2 | M90: =IF(B90=data!$S$2,D90*0.7+E90*0.2+F90*0.8+G90+H90*0.2+I90+J90*0.3+K90*0.5+L90*0.2,IF(B90=data!$S$3,D90*0.1+E90*0.3+F90*0.1+G90+I90+J90*0.5+K90*0.4,IF(B90=data!$S$4,D90*0.6+E90*0.7+F90+G90+I90+L90,IF(B90=data!$S$5,D90*0.7+E90+H90*0.7+I90,"zvolte typ stavby")))) -> 26.3 | N90: =IF(B90=data!$S$2,(M90*10)/4.9,IF(B90=data!$S$3,(M90*10)/3.4,IF(B90=data!$S$4,(M90*10)/5.3,IF(B90=data!$S$5,(M90*10)/3.4,"zvolte typ stavby")))) -> 53.67346939 | O90: 16295165
M91: =IF(B91=data!$S$2,D91*0.7+E91*0.2+F91*0.8+G91+H91*0.2+I91+J91*0.3+K91*0.5+L91*0.2,IF(B91=data!$S$3,D91*0.1+E91*0.3+F91*0.1+G91+I91+J91*0.5+K91*0.4,IF(B91=data!$S$4,D91*0.6+E91*0.7+F91+G91+I91+L91,IF(B91=data!$S$5,D91*0.7+E91+H91*0.7+I91,"zvolte typ stavby")))) -> zvolte typ stavby | N91: =IF(B91=data!$S$2,(M91*10)/4.9,IF(B91=data!$S$3,(M91*10)/3.4,IF(B91=data!$S$4,(M91*10)/5.3,IF(B91=data!$S$5,(M91*10)/3.4,"zvolte typ stavby")))) -> zvolte typ stavby
M92: =IF(B92=data!$S$2,D92*0.7+E92*0.2+F92*0.8+G92+H92*0.2+I92+J92*0.3+K92*0.5+L92*0.2,IF(B92=data!$S$3,D92*0.1+E92*0.3+F92*0.1+G92+I92+J92*0.5+K92*0.4,IF(B92=data!$S$4,D92*0.6+E92*0.7+F92+G92+I92+L92,IF(B92=data!$S$5,D92*0.7+E92+H92*0.7+I92,"zvolte typ stavby")))) -> zvolte typ stavby | N92: =IF(B92=data!$S$2,(M92*10)/4.9,IF(B92=data!$S$3,(M92*10)/3.4,IF(B92=data!$S$4,(M92*10)/5.3,IF(B92=data!$S$5,(M92*10)/3.4,"zvolte typ stavby")))) -> zvolte typ stavby
M93: =IF(B93=data!$S$2,D93*0.7+E93*0.2+F93*0.8+G93+H93*0.2+I93+J93*0.3+K93*0.5+L93*0.2,IF(B93=data!$S$3,D93*0.1+E93*0.3+F93*0.1+G93+I93+J93*0.5+K93*0.4,IF(B93=data!$S$4,D93*0.6+E93*0.7+F93+G93+I93+L93,IF(B93=data!$S$5,D93*0.7+E93+H93*0.7+I93,"zvolte typ stavby")))) -> zvolte typ stavby | N93: =IF(B93=data!$S$2,(M93*10)/4.9,IF(B93=data!$S$3,(M93*10)/3.4,IF(B93=data!$S$4,(M93*10)/5.3,IF(B93=data!$S$5,(M93*10)/3.4,"zvolte typ stavby")))) -> zvolte typ stavby
A94: III/2451 Káraný | B94: oprava a rekonstrukce | C94: Rekonstrukce | D94: 3 | E94: 5 | F94: 6 | G94: 6 | H94: 10 | I94: 2 | J94: 10 | K94: 10 | L94: 0 | M94: =IF(B94=data!$S$2,D94*0.7+E94*0.2+F94*0.8+G94+H94*0.2+I94+J94*0.3+K94*0.5+L94*0.2,IF(B94=data!$S$3,D94*0.1+E94*0.3+F94*0.1+G94+I94+J94*0.5+K94*0.4,IF(B94=data!$S$4,D94*0.6+E94*0.7+F94+G94+I94+L94,IF(B94=data!$S$5,D94*0.7+E94+H94*0.7+I94,"zvolte typ stavby")))) -> 25.9 | N94: =IF(B94=data!$S$2,(M94*10)/4.9,IF(B94=data!$S$3,(M94*10)/3.4,IF(B94=data!$S$4,(M94*10)/5.3,IF(B94=data!$S$5,(M94*10)/3.4,"zvolte typ stavby")))) -> 52.85714286 | O94: 10000000
M95: =IF(B95=data!$S$2,D95*0.7+E95*0.2+F95*0.8+G95+H95*0.2+I95+J95*0.3+K95*0.5+L95*0.2,IF(B95=data!$S$3,D95*0.1+E95*0.3+F95*0.1+G95+I95+J95*0.5+K95*0.4,IF(B95=data!$S$4,D95*0.6+E95*0.7+F95+G95+I95+L95,IF(B95=data!$S$5,D95*0.7+E95+H95*0.7+I95,"zvolte typ stavby")))) -> zvolte typ stavby | N95: =IF(B95=data!$S$2,(M95*10)/4.9,IF(B95=data!$S$3,(M95*10)/3.4,IF(B95=data!$S$4,(M95*10)/5.3,IF(B95=data!$S$5,(M95*10)/3.4,"zvolte typ stavby")))) -> zvolte typ stavby
M96: =IF(B96=data!$S$2,D96*0.7+E96*0.2+F96*0.8+G96+H96*0.2+I96+J96*0.3+K96*0.5+L96*0.2,IF(B96=data!$S$3,D96*0.1+E96*0.3+F96*0.1+G96+I96+J96*0.5+K96*0.4,IF(B96=data!$S$4,D96*0.6+E96*0.7+F96+G96+I96+L96,IF(B96=data!$S$5,D96*0.7+E96+H96*0.7+I96,"zvolte typ stavby")))) -> zvolte typ stavby | N96: =IF(B96=data!$S$2,(M96*10)/4.9,IF(B96=data!$S$3,(M96*10)/3.4,IF(B96=data!$S$4,(M96*10)/5.3,IF(B96=data!$S$5,(M96*10)/3.4,"zvolte typ stavby")))) -> zvolte typ stavby
A97: II/336 Janovická Lhota | B97: oprava a rekonstrukce | C97: Souvislá údržba | D97: 1 | E97: 10 | F97: 3 | G97: 6 | H97: 10 | I97: 7 | J97: 0 | K97: 10 | L97: 2 | M97: =IF(B97=data!$S$2,D97*0.7+E97*0.2+F97*0.8+G97+H97*0.2+I97+J97*0.3+K97*0.5+L97*0.2,IF(B97=data!$S$3,D97*0.1+E97*0.3+F97*0.1+G97+I97+J97*0.5+K97*0.4,IF(B97=data!$S$4,D97*0.6+E97*0.7+F97+G97+I97+L97,IF(B97=data!$S$5,D97*0.7+E97+H97*0.7+I97,"zvolte typ stavby")))) -> 25.5 | N97: =IF(B97=data!$S$2,(M97*10)/4.9,IF(B97=data!$S$3,(M97*10)/3.4,IF(B97=data!$S$4,(M97*10)/5.3,IF(B97=data!$S$5,(M97*10)/3.4,"zvolte typ stavby")))) -> 52.04081633 | O97: 8095413
A98: III/23626 Stochov | B98: oprava a rekonstrukce | D98: 1 | E98: 6 | F98: 3 | G98: 6 | H98: 0 | I98: 7 | J98: 10 | K98: 10 | L98: 0 | M98: =IF(B98=data!$S$2,D98*0.7+E98*0.2+F98*0.8+G98+H98*0.2+I98+J98*0.3+K98*0.5+L98*0.2,IF(B98=data!$S$3,D98*0.1+E98*0.3+F98*0.1+G98+I98+J98*0.5+K98*0.4,IF(B98=data!$S$4,D98*0.6+E98*0.7+F98+G98+I98+L98,IF(B98=data!$S$5,D98*0.7+E98+H98*0.7+I98,"zvolte typ stavby")))) -> 25.3 | N98: =IF(B98=data!$S$2,(M98*10)/4.9,IF(B98=data!$S$3,(M98*10)/3.4,IF(B98=data!$S$4,(M98*10)/5.3,IF(B98=data!$S$5,(M98*10)/3.4,"zvolte typ stavby")))) -> 51.63265306 | O98: 45000000
A99: III/12557 Kolín - Veltruby | B99: oprava a rekonstrukce | C99: Souvislá údržba | D99: 5 | E99: 5 | F99: 3 | G99: 6 | H99: 10 | I99: 4 | J99: 0 | K99: 10 | L99: 7 | M99: =IF(B99=data!$S$2,D99*0.7+E99*0.2+F99*0.8+G99+H99*0.2+I99+J99*0.3+K99*0.5+L99*0.2,IF(B99=data!$S$3,D99*0.1+E99*0.3+F99*0.1+G99+I99+J99*0.5+K99*0.4,IF(B99=data!$S$4,D99*0.6+E99*0.7+F99+G99+I99+L99,IF(B99=data!$S$5,D99*0.7+E99+H99*0.7+I99,"zvolte typ stavby")))) -> 25.3 | N99: =IF(B99=data!$S$2,(M99*10)/4.9,IF(B99=data!$S$3,(M99*10)/3.4,IF(B99=data!$S$4,(M99*10)/5.3,IF(B99=data!$S$5,(M99*10)/3.4,"zvolte typ stavby")))) -> 51.63265306 | O99: 16722515
M100: =IF(B100=data!$S$2,D100*0.7+E100*0.2+F100*0.8+G100+H100*0.2+I100+J100*0.3+K100*0.5+L100*0.2,IF(B100=data!$S$3,D100*0.1+E100*0.3+F100*0.1+G100+I100+J100*0.5+K100*0.4,IF(B100=data!$S$4,D100*0.6+E100*0.7+F100+G100+I100+L100,IF(B100=data!$S$5,D100*0.7+E100+H100*0.7+I100,"zvolte typ stavby")))) -> zvolte typ stavby | N100: =IF(B100=data!$S$2,(M100*10)/4.9,IF(B100=data!$S$3,(M100*10)/3.4,IF(B100=data!$S$4,(M100*10)/5.3,IF(B100=data!$S$5,(M100*10)/3.4,"zvolte typ stavby")))) -> zvolte typ stavby
M101: =IF(B101=data!$S$2,D101*0.7+E101*0.2+F101*0.8+G101+H101*0.2+I101+J101*0.3+K101*0.5+L101*0.2,IF(B101=data!$S$3,D101*0.1+E101*0.3+F101*0.1+G101+I101+J101*0.5+K101*0.4,IF(B101=data!$S$4,D101*0.6+E101*0.7+F101+G101+I101+L101,IF(B101=data!$S$5,D101*0.7+E101+H101*0.7+I101,"zvolte typ stavby")))) -> zvolte typ stavby | N101: =IF(B101=data!$S$2,(M101*10)/4.9,IF(B101=data!$S$3,(M101*10)/3.4,IF(B101=data!$S$4,(M101*10)/5.3,IF(B101=data!$S$5,(M101*10)/3.4,"zvolte typ stavby")))) -> zvolte typ stavby
M102: =IF(B102=data!$S$2,D102*0.7+E102*0.2+F102*0.8+G102+H102*0.2+I102+J102*0.3+K102*0.5+L102*0.2,IF(B102=data!$S$3,D102*0.1+E102*0.3+F102*0.1+G102+I102+J102*0.5+K102*0.4,IF(B102=data!$S$4,D102*0.6+E102*0.7+F102+G102+I102+L102,IF(B102=data!$S$5,D102*0.7+E102+H102*0.7+I102,"zvolte typ stavby")))) -> zvolte typ stavby | N102: =IF(B102=data!$S$2,(M102*10)/4.9,IF(B102=data!$S$3,(M102*10)/3.4,IF(B102=data!$S$4,(M102*10)/5.3,IF(B102=data!$S$5,(M102*10)/3.4,"zvolte typ stavby")))) -> zvolte typ stavby
M103: =IF(B103=data!$S$2,D103*0.7+E103*0.2+F103*0.8+G103+H103*0.2+I103+J103*0.3+K103*0.5+L103*0.2,IF(B103=data!$S$3,D103*0.1+E103*0.3+F103*0.1+G103+I103+J103*0.5+K103*0.4,IF(B103=data!$S$4,D103*0.6+E103*0.7+F103+G103+I103+L103,IF(B103=data!$S$5,D103*0.7+E103+H103*0.7+I103,"zvolte typ stavby")))) -> zvolte typ stavby | N103: =IF(B103=data!$S$2,(M103*10)/4.9,IF(B103=data!$S$3,(M103*10)/3.4,IF(B103=data!$S$4,(M103*10)/5.3,IF(B103=data!$S$5,(M103*10)/3.4,"zvolte typ stavby")))) -> zvolte typ stavby
M104: =IF(B104=data!$S$2,D104*0.7+E104*0.2+F104*0.8+G104+H104*0.2+I104+J104*0.3+K104*0.5+L104*0.2,IF(B104=data!$S$3,D104*0.1+E104*0.3+F104*0.1+G104+I104+J104*0.5+K104*0.4,IF(B104=data!$S$4,D104*0.6+E104*0.7+F104+G104+I104+L104,IF(B104=data!$S$5,D104*0.7+E104+H104*0.7+I104,"zvolte typ stavby")))) -> zvolte typ stavby | N104: =IF(B104=data!$S$2,(M104*10)/4.9,IF(B104=data!$S$3,(M104*10)/3.4,IF(B104=data!$S$4,(M104*10)/5.3,IF(B104=data!$S$5,(M104*10)/3.4,"zvolte typ stavby")))) -> zvolte typ stavby
M105: =IF(B105=data!$S$2,D105*0.7+E105*0.2+F105*0.8+G105+H105*0.2+I105+J105*0.3+K105*0.5+L105*0.2,IF(B105=data!$S$3,D105*0.1+E105*0.3+F105*0.1+G105+I105+J105*0.5+K105*0.4,IF(B105=data!$S$4,D105*0.6+E105*0.7+F105+G105+I105+L105,IF(B105=data!$S$5,D105*0.7+E105+H105*0.7+I105,"zvolte typ stavby")))) -> zvolte typ stavby | N105: =IF(B105=data!$S$2,(M105*10)/4.9,IF(B105=data!$S$3,(M105*10)/3.4,IF(B105=data!$S$4,(M105*10)/5.3,IF(B105=data!$S$5,(M105*10)/3.4,"zvolte typ stavby")))) -> zvolte typ stavby
M106: =IF(B106=data!$S$2,D106*0.7+E106*0.2+F106*0.8+G106+H106*0.2+I106+J106*0.3+K106*0.5+L106*0.2,IF(B106=data!$S$3,D106*0.1+E106*0.3+F106*0.1+G106+I106+J106*0.5+K106*0.4,IF(B106=data!$S$4,D106*0.6+E106*0.7+F106+G106+I106+L106,IF(B106=data!$S$5,D106*0.7+E106+H106*0.7+I106,"zvolte typ stavby")))) -> zvolte typ stavby | N106: =IF(B106=data!$S$2,(M106*10)/4.9,IF(B106=data!$S$3,(M106*10)/3.4,IF(B106=data!$S$4,(M106*10)/5.3,IF(B106=data!$S$5,(M106*10)/3.4,"zvolte typ stavby")))) -> zvolte typ stavby
M107: =IF(B107=data!$S$2,D107*0.7+E107*0.2+F107*0.8+G107+H107*0.2+I107+J107*0.3+K107*0.5+L107*0.2,IF(B107=data!$S$3,D107*0.1+E107*0.3+F107*0.1+G107+I107+J107*0.5+K107*0.4,IF(B107=data!$S$4,D107*0.6+E107*0.7+F107+G107+I107+L107,IF(B107=data!$S$5,D107*0.7+E107+H107*0.7+I107,"zvolte typ stavby")))) -> zvolte typ stavby | N107: =IF(B107=data!$S$2,(M107*10)/4.9,IF(B107=data!$S$3,(M107*10)/3.4,IF(B107=data!$S$4,(M107*10)/5.3,IF(B107=data!$S$5,(M107*10)/3.4,"zvolte typ stavby")))) -> zvolte typ stavby
M108: =IF(B108=data!$S$2,D108*0.7+E108*0.2+F108*0.8+G108+H108*0.2+I108+J108*0.3+K108*0.5+L108*0.2,IF(B108=data!$S$3,D108*0.1+E108*0.3+F108*0.1+G108+I108+J108*0.5+K108*0.4,IF(B108=data!$S$4,D108*0.6+E108*0.7+F108+G108+I108+L108,IF(B108=data!$S$5,D108*0.7+E108+H108*0.7+I108,"zvolte typ stavby")))) -> zvolte typ stavby | N108: =IF(B108=data!$S$2,(M108*10)/4.9,IF(B108=data!$S$3,(M108*10)/3.4,IF(B108=data!$S$4,(M108*10)/5.3,IF(B108=data!$S$5,(M108*10)/3.4,"zvolte typ stavby")))) -> zvolte typ stavby
M109: =IF(B109=data!$S$2,D109*0.7+E109*0.2+F109*0.8+G109+H109*0.2+I109+J109*0.3+K109*0.5+L109*0.2,IF(B109=data!$S$3,D109*0.1+E109*0.3+F109*0.1+G109+I109+J109*0.5+K109*0.4,IF(B109=data!$S$4,D109*0.6+E109*0.7+F109+G109+I109+L109,IF(B109=data!$S$5,D109*0.7+E109+H109*0.7+I109,"zvolte typ stavby")))) -> zvolte typ stavby | N109: =IF(B109=data!$S$2,(M109*10)/4.9,IF(B109=data!$S$3,(M109*10)/3.4,IF(B109=data!$S$4,(M109*10)/5.3,IF(B109=data!$S$5,(M109*10)/3.4,"zvolte typ stavby")))) -> zvolte typ stavby
M110: =IF(B110=data!$S$2,D110*0.7+E110*0.2+F110*0.8+G110+H110*0.2+I110+J110*0.3+K110*0.5+L110*0.2,IF(B110=data!$S$3,D110*0.1+E110*0.3+F110*0.1+G110+I110+J110*0.5+K110*0.4,IF(B110=data!$S$4,D110*0.6+E110*0.7+F110+G110+I110+L110,IF(B110=data!$S$5,D110*0.7+E110+H110*0.7+I110,"zvolte typ stavby")))) -> zvolte typ stavby | N110: =IF(B110=data!$S$2,(M110*10)/4.9,IF(B110=data!$S$3,(M110*10)/3.4,IF(B110=data!$S$4,(M110*10)/5.3,IF(B110=data!$S$5,(M110*10)/3.4,"zvolte typ stavby")))) -> zvolte typ stavby
M111: =IF(B111=data!$S$2,D111*0.7+E111*0.2+F111*0.8+G111+H111*0.2+I111+J111*0.3+K111*0.5+L111*0.2,IF(B111=data!$S$3,D111*0.1+E111*0.3+F111*0.1+G111+I111+J111*0.5+K111*0.4,IF(B111=data!$S$4,D111*0.6+E111*0.7+F111+G111+I111+L111,IF(B111=data!$S$5,D111*0.7+E111+H111*0.7+I111,"zvolte typ stavby")))) -> zvolte typ stavby | N111: =IF(B111=data!$S$2,(M111*10)/4.9,IF(B111=data!$S$3,(M111*10)/3.4,IF(B111=data!$S$4,(M111*10)/5.3,IF(B111=data!$S$5,(M111*10)/3.4,"zvolte typ stavby")))) -> zvolte typ stavby
M112: =IF(B112=data!$S$2,D112*0.7+E112*0.2+F112*0.8+G112+H112*0.2+I112+J112*0.3+K112*0.5+L112*0.2,IF(B112=data!$S$3,D112*0.1+E112*0.3+F112*0.1+G112+I112+J112*0.5+K112*0.4,IF(B112=data!$S$4,D112*0.6+E112*0.7+F112+G112+I112+L112,IF(B112=data!$S$5,D112*0.7+E112+H112*0.7+I112,"zvolte typ stavby")))) -> zvolte typ stavby | N112: =IF(B112=data!$S$2,(M112*10)/4.9,IF(B112=data!$S$3,(M112*10)/3.4,IF(B112=data!$S$4,(M112*10)/5.3,IF(B112=data!$S$5,(M112*10)/3.4,"zvolte typ stavby")))) -> zvolte typ stavby
A113: Lochovice zrušení mostů ev.č. 114 - 009, 114 -007, 118 - 021 | B113: oprava a rekonstrukce | C113: Rekonstrukce | D113: 3 | E113: 10 | F113: 6 | G113: 6 | H113: 0 | I113: 4 | J113: 0 | K113: 10 | L113: 0 | M113: =IF(B113=data!$S$2,D113*0.7+E113*0.2+F113*0.8+G113+H113*0.2+I113+J113*0.3+K113*0.5+L113*0.2,IF(B113=data!$S$3,D113*0.1+E113*0.3+F113*0.1+G113+I113+J113*0.5+K113*0.4,IF(B113=data!$S$4,D113*0.6+E113*0.7+F113+G113+I113+L113,IF(B113=data!$S$5,D113*0.7+E113+H113*0.7+I113,"zvolte typ stavby")))) -> 23.9 | N113: =IF(B113=data!$S$2,(M113*10)/4.9,IF(B113=data!$S$3,(M113*10)/3.4,IF(B113=data!$S$4,(M113*10)/5.3,IF(B113=data!$S$5,(M113*10)/3.4,"zvolte typ stavby")))) -> 48.7755102 | O113: 2232201
M114: =IF(B114=data!$S$2,D114*0.7+E114*0.2+F114*0.8+G114+H114*0.2+I114+J114*0.3+K114*0.5+L114*0.2,IF(B114=data!$S$3,D114*0.1+E114*0.3+F114*0.1+G114+I114+J114*0.5+K114*0.4,IF(B114=data!$S$4,D114*0.6+E114*0.7+F114+G114+I114+L114,IF(B114=data!$S$5,D114*0.7+E114+H114*0.7+I114,"zvolte typ stavby")))) -> zvolte typ stavby | N114: =IF(B114=data!$S$2,(M114*10)/4.9,IF(B114=data!$S$3,(M114*10)/3.4,IF(B114=data!$S$4,(M114*10)/5.3,IF(B114=data!$S$5,(M114*10)/3.4,"zvolte typ stavby")))) -> zvolte typ stavby
M115: =IF(B115=data!$S$2,D115*0.7+E115*0.2+F115*0.8+G115+H115*0.2+I115+J115*0.3+K115*0.5+L115*0.2,IF(B115=data!$S$3,D115*0.1+E115*0.3+F115*0.1+G115+I115+J115*0.5+K115*0.4,IF(B115=data!$S$4,D115*0.6+E115*0.7+F115+G115+I115+L115,IF(B115=data!$S$5,D115*0.7+E115+H115*0.7+I115,"zvolte typ stavby")))) -> zvolte typ stavby | N115: =IF(B115=data!$S$2,(M115*10)/4.9,IF(B115=data!$S$3,(M115*10)/3.4,IF(B115=data!$S$4,(M115*10)/5.3,IF(B115=data!$S$5,(M115*10)/3.4,"zvolte typ stavby")))) -> zvolte typ stavby
M116: =IF(B116=data!$S$2,D116*0.7+E116*0.2+F116*0.8+G116+H116*0.2+I116+J116*0.3+K116*0.5+L116*0.2,IF(B116=data!$S$3,D116*0.1+E116*0.3+F116*0.1+G116+I116+J116*0.5+K116*0.4,IF(B116=data!$S$4,D116*0.6+E116*0.7+F116+G116+I116+L116,IF(B116=data!$S$5,D116*0.7+E116+H116*0.7+I116,"zvolte typ stavby")))) -> zvolte typ stavby | N116: =IF(B116=data!$S$2,(M116*10)/4.9,IF(B116=data!$S$3,(M116*10)/3.4,IF(B116=data!$S$4,(M116*10)/5.3,IF(B116=data!$S$5,(M116*10)/3.4,"zvolte typ stavby")))) -> zvolte typ stavby
A117: III/32916 Poděbrady - Pátek | B117: oprava a rekonstrukce | C117: Rekonstrukce | D117: 3 | E117: 5 | F117: 3 | G117: 6 | H117: 10 | I117: 4 | J117: 0 | K117: 10 | L117: 4 | M117: =IF(B117=data!$S$2,D117*0.7+E117*0.2+F117*0.8+G117+H117*0.2+I117+J117*0.3+K117*0.5+L117*0.2,IF(B117=data!$S$3,D117*0.1+E117*0.3+F117*0.1+G117+I117+J117*0.5+K117*0.4,IF(B117=data!$S$4,D117*0.6+E117*0.7+F117+G117+I117+L117,IF(B117=data!$S$5,D117*0.7+E117+H117*0.7+I117,"zvolte typ stavby")))) -> 23.3 | N117: =IF(B117=data!$S$2,(M117*10)/4.9,IF(B117=data!$S$3,(M117*10)/3.4,IF(B117=data!$S$4,(M117*10)/5.3,IF(B117=data!$S$5,(M117*10)/3.4,"zvolte typ stavby")))) -> 47.55102041 | O117: 8000000
A118: III/3284 Kolín, Sendražice | B118: oprava a rekonstrukce | C118: Souvislá údržba | D118: 2 | E118: 5 | F118: 3 | G118: 6 | H118: 10 | I118: 4 | J118: 0 | K118: 10 | L118: 7 | M118: =IF(B118=data!$S$2,D118*0.7+E118*0.2+F118*0.8+G118+H118*0.2+I118+J118*0.3+K118*0.5+L118*0.2,IF(B118=data!$S$3,D118*0.1+E118*0.3+F118*0.1+G118+I118+J118*0.5+K118*0.4,IF(B118=data!$S$4,D118*0.6+E118*0.7+F118+G118+I118+L118,IF(B118=data!$S$5,D118*0.7+E118+H118*0.7+I118,"zvolte typ stavby")))) -> 23.2 | N118: =IF(B118=data!$S$2,(M118*10)/4.9,IF(B118=data!$S$3,(M118*10)/3.4,IF(B118=data!$S$4,(M118*10)/5.3,IF(B118=data!$S$5,(M118*10)/3.4,"zvolte typ stavby")))) -> 47.34693878 | O118: 8566284
M119: =IF(B119=data!$S$2,D119*0.7+E119*0.2+F119*0.8+G119+H119*0.2+I119+J119*0.3+K119*0.5+L119*0.2,IF(B119=data!$S$3,D119*0.1+E119*0.3+F119*0.1+G119+I119+J119*0.5+K119*0.4,IF(B119=data!$S$4,D119*0.6+E119*0.7+F119+G119+I119+L119,IF(B119=data!$S$5,D119*0.7+E119+H119*0.7+I119,"zvolte typ stavby")))) -> zvolte typ stavby | N119: =IF(B119=data!$S$2,(M119*10)/4.9,IF(B119=data!$S$3,(M119*10)/3.4,IF(B119=data!$S$4,(M119*10)/5.3,IF(B119=data!$S$5,(M119*10)/3.4,"zvolte typ stavby")))) -> zvolte typ stavby
A120: III/0086 Předboj odvodnění | B120: oprava a rekonstrukce | C120: Rekonstrukce | D120: 3 | E120: 5 | F120: 6 | G120: 6 | H120: 10 | I120: 2 | J120: 0 | K120: 10 | L120: 0 | M120: =IF(B120=data!$S$2,D120*0.7+E120*0.2+F120*0.8+G120+H120*0.2+I120+J120*0.3+K120*0.5+L120*0.2,IF(B120=data!$S$3,D120*0.1+E120*0.3+F120*0.1+G120+I120+J120*0.5+K120*0.4,IF(B120=data!$S$4,D120*0.6+E120*0.7+F120+G120+I120+L120,IF(B120=data!$S$5,D120*0.7+E120+H120*0.7+I120,"zvolte typ stavby")))) -> 22.9 | N120: =IF(B120=data!$S$2,(M120*10)/4.9,IF(B120=data!$S$3,(M120*10)/3.4,IF(B120=data!$S$4,(M120*10)/5.3,IF(B120=data!$S$5,(M120*10)/3.4,"zvolte typ stavby")))) -> 46.73469388 | O120: 3387964
M121: =IF(B121=data!$S$2,D121*0.7+E121*0.2+F121*0.8+G121+H121*0.2+I121+J121*0.3+K121*0.5+L121*0.2,IF(B121=data!$S$3,D121*0.1+E121*0.3+F121*0.1+G121+I121+J121*0.5+K121*0.4,IF(B121=data!$S$4,D121*0.6+E121*0.7+F121+G121+I121+L121,IF(B121=data!$S$5,D121*0.7+E121+H121*0.7+I121,"zvolte typ stavby")))) -> zvolte typ stavby | N121: =IF(B121=data!$S$2,(M121*10)/4.9,IF(B121=data!$S$3,(M121*10)/3.4,IF(B121=data!$S$4,(M121*10)/5.3,IF(B121=data!$S$5,(M121*10)/3.4,"zvolte typ stavby")))) -> zvolte typ stavby
M122: =IF(B122=data!$S$2,D122*0.7+E122*0.2+F122*0.8+G122+H122*0.2+I122+J122*0.3+K122*0.5+L122*0.2,IF(B122=data!$S$3,D122*0.1+E122*0.3+F122*0.1+G122+I122+J122*0.5+K122*0.4,IF(B122=data!$S$4,D122*0.6+E122*0.7+F122+G122+I122+L122,IF(B122=data!$S$5,D122*0.7+E122+H122*0.7+I122,"zvolte typ stavby")))) -> zvolte typ stavby | N122: =IF(B122=data!$S$2,(M122*10)/4.9,IF(B122=data!$S$3,(M122*10)/3.4,IF(B122=data!$S$4,(M122*10)/5.3,IF(B122=data!$S$5,(M122*10)/3.4,"zvolte typ stavby")))) -> zvolte typ stavby
M123: =IF(B123=data!$S$2,D123*0.7+E123*0.2+F123*0.8+G123+H123*0.2+I123+J123*0.3+K123*0.5+L123*0.2,IF(B123=data!$S$3,D123*0.1+E123*0.3+F123*0.1+G123+I123+J123*0.5+K123*0.4,IF(B123=data!$S$4,D123*0.6+E123*0.7+F123+G123+I123+L123,IF(B123=data!$S$5,D123*0.7+E123+H123*0.7+I123,"zvolte typ stavby")))) -> zvolte typ stavby | N123: =IF(B123=data!$S$2,(M123*10)/4.9,IF(B123=data!$S$3,(M123*10)/3.4,IF(B123=data!$S$4,(M123*10)/5.3,IF(B123=data!$S$5,(M123*10)/3.4,"zvolte typ stavby")))) -> zvolte typ stavby
M124: =IF(B124=data!$S$2,D124*0.7+E124*0.2+F124*0.8+G124+H124*0.2+I124+J124*0.3+K124*0.5+L124*0.2,IF(B124=data!$S$3,D124*0.1+E124*0.3+F124*0.1+G124+I124+J124*0.5+K124*0.4,IF(B124=data!$S$4,D124*0.6+E124*0.7+F124+G124+I124+L124,IF(B124=data!$S$5,D124*0.7+E124+H124*0.7+I124,"zvolte typ stavby")))) -> zvolte typ stavby | N124: =IF(B124=data!$S$2,(M124*10)/4.9,IF(B124=data!$S$3,(M124*10)/3.4,IF(B124=data!$S$4,(M124*10)/5.3,IF(B124=data!$S$5,(M124*10)/3.4,"zvolte typ stavby")))) -> zvolte typ stavby
M125: =IF(B125=data!$S$2,D125*0.7+E125*0.2+F125*0.8+G125+H125*0.2+I125+J125*0.3+K125*0.5+L125*0.2,IF(B125=data!$S$3,D125*0.1+E125*0.3+F125*0.1+G125+I125+J125*0.5+K125*0.4,IF(B125=data!$S$4,D125*0.6+E125*0.7+F125+G125+I125+L125,IF(B125=data!$S$5,D125*0.7+E125+H125*0.7+I125,"zvolte typ stavby")))) -> zvolte typ stavby | N125: =IF(B125=data!$S$2,(M125*10)/4.9,IF(B125=data!$S$3,(M125*10)/3.4,IF(B125=data!$S$4,(M125*10)/5.3,IF(B125=data!$S$5,(M125*10)/3.4,"zvolte typ stavby")))) -> zvolte typ stavby
A126: III/33338 Uhlířské Janovice - Chmeliště | B126: oprava a rekonstrukce | C126: Rekonstrukce | D126: 2 | E126: 5 | F126: 3 | G126: 6 | H126: 10 | I126: 4 | J126: 0 | K126: 10 | L126: 2 | M126: =IF(B126=data!$S$2,D126*0.7+E126*0.2+F126*0.8+G126+H126*0.2+I126+J126*0.3+K126*0.5+L126*0.2,IF(B126=data!$S$3,D126*0.1+E126*0.3+F126*0.1+G126+I126+J126*0.5+K126*0.4,IF(B126=data!$S$4,D126*0.6+E126*0.7+F126+G126+I126+L126,IF(B126=data!$S$5,D126*0.7+E126+H126*0.7+I126,"zvolte typ stavby")))) -> 22.2 | N126: =IF(B126=data!$S$2,(M126*10)/4.9,IF(B126=data!$S$3,(M126*10)/3.4,IF(B126=data!$S$4,(M126*10)/5.3,IF(B126=data!$S$5,(M126*10)/3.4,"zvolte typ stavby")))) -> 45.30612245 | O126: 2000000
A127: Mnichovice, Myšlín- odvodnění | B127: oprava a rekonstrukce | C127: Rekonstrukce | D127: 2 | E127: 5 | F127: 3 | G127: 6 | H127: 10 | I127: 4 | J127: 0 | K127: 10 | L127: 2 | M127: =IF(B127=data!$S$2,D127*0.7+E127*0.2+F127*0.8+G127+H127*0.2+I127+J127*0.3+K127*0.5+L127*0.2,IF(B127=data!$S$3,D127*0.1+E127*0.3+F127*0.1+G127+I127+J127*0.5+K127*0.4,IF(B127=data!$S$4,D127*0.6+E127*0.7+F127+G127+I127+L127,IF(B127=data!$S$5,D127*0.7+E127+H127*0.7+I127,"zvolte typ stavby")))) -> 22.2 | N127: =IF(B127=data!$S$2,(M127*10)/4.9,IF(B127=data!$S$3,(M127*10)/3.4,IF(B127=data!$S$4,(M127*10)/5.3,IF(B127=data!$S$5,(M127*10)/3.4,"zvolte typ stavby")))) -> 45.30612245 | O127: 9245374
M128: =IF(B128=data!$S$2,D128*0.7+E128*0.2+F128*0.8+G128+H128*0.2+I128+J128*0.3+K128*0.5+L128*0.2,IF(B128=data!$S$3,D128*0.1+E128*0.3+F128*0.1+G128+I128+J128*0.5+K128*0.4,IF(B128=data!$S$4,D128*0.6+E128*0.7+F128+G128+I128+L128,IF(B128=data!$S$5,D128*0.7+E128+H128*0.7+I128,"zvolte typ stavby")))) -> zvolte typ stavby | N128: =IF(B128=data!$S$2,(M128*10)/4.9,IF(B128=data!$S$3,(M128*10)/3.4,IF(B128=data!$S$4,(M128*10)/5.3,IF(B128=data!$S$5,(M128*10)/3.4,"zvolte typ stavby")))) -> zvolte typ stavby
M129: =IF(B129=data!$S$2,D129*0.7+E129*0.2+F129*0.8+G129+H129*0.2+I129+J129*0.3+K129*0.5+L129*0.2,IF(B129=data!$S$3,D129*0.1+E129*0.3+F129*0.1+G129+I129+J129*0.5+K129*0.4,IF(B129=data!$S$4,D129*0.6+E129*0.7+F129+G129+I129+L129,IF(B129=data!$S$5,D129*0.7+E129+H129*0.7+I129,"zvolte typ stavby")))) -> zvolte typ stavby | N129: =IF(B129=data!$S$2,(M129*10)/4.9,IF(B129=data!$S$3,(M129*10)/3.4,IF(B129=data!$S$4,(M129*10)/5.3,IF(B129=data!$S$5,(M129*10)/3.4,"zvolte typ stavby")))) -> zvolte typ stavby
M130: =IF(B130=data!$S$2,D130*0.7+E130*0.2+F130*0.8+G130+H130*0.2+I130+J130*0.3+K130*0.5+L130*0.2,IF(B130=data!$S$3,D130*0.1+E130*0.3+F130*0.1+G130+I130+J130*0.5+K130*0.4,IF(B130=data!$S$4,D130*0.6+E130*0.7+F130+G130+I130+L130,IF(B130=data!$S$5,D130*0.7+E130+H130*0.7+I130,"zvolte typ stavby")))) -> zvolte typ stavby | N130: =IF(B130=data!$S$2,(M130*10)/4.9,IF(B130=data!$S$3,(M130*10)/3.4,IF(B130=data!$S$4,(M130*10)/5.3,IF(B130=data!$S$5,(M130*10)/3.4,"zvolte typ stavby")))) -> zvolte typ stavby
A131: III/27528 Dymokury -Činěves | B131: oprava a rekonstrukce | C131: Rekonstrukce | D131: 1 | E131: 5 | F131: 6 | G131: 6 | H131: 10 | I131: 2 | J131: 0 | K131: 10 | L131: 2 | M131: =IF(B131=data!$S$2,D131*0.7+E131*0.2+F131*0.8+G131+H131*0.2+I131+J131*0.3+K131*0.5+L131*0.2,IF(B131=data!$S$3,D131*0.1+E131*0.3+F131*0.1+G131+I131+J131*0.5+K131*0.4,IF(B131=data!$S$4,D131*0.6+E131*0.7+F131+G131+I131+L131,IF(B131=data!$S$5,D131*0.7+E131+H131*0.7+I131,"zvolte typ stavby")))) -> 21.9 | N131: =IF(B131=data!$S$2,(M131*10)/4.9,IF(B131=data!$S$3,(M131*10)/3.4,IF(B131=data!$S$4,(M131*10)/5.3,IF(B131=data!$S$5,(M131*10)/3.4,"zvolte typ stavby")))) -> 44.69387755 | O131: 13803694.52
M132: =IF(B132=data!$S$2,D132*0.7+E132*0.2+F132*0.8+G132+H132*0.2+I132+J132*0.3+K132*0.5+L132*0.2,IF(B132=data!$S$3,D132*0.1+E132*0.3+F132*0.1+G132+I132+J132*0.5+K132*0.4,IF(B132=data!$S$4,D132*0.6+E132*0.7+F132+G132+I132+L132,IF(B132=data!$S$5,D132*0.7+E132+H132*0.7+I132,"zvolte typ stavby")))) -> zvolte typ stavby | N132: =IF(B132=data!$S$2,(M132*10)/4.9,IF(B132=data!$S$3,(M132*10)/3.4,IF(B132=data!$S$4,(M132*10)/5.3,IF(B132=data!$S$5,(M132*10)/3.4,"zvolte typ stavby")))) -> zvolte typ stavby
M133: =IF(B133=data!$S$2,D133*0.7+E133*0.2+F133*0.8+G133+H133*0.2+I133+J133*0.3+K133*0.5+L133*0.2,IF(B133=data!$S$3,D133*0.1+E133*0.3+F133*0.1+G133+I133+J133*0.5+K133*0.4,IF(B133=data!$S$4,D133*0.6+E133*0.7+F133+G133+I133+L133,IF(B133=data!$S$5,D133*0.7+E133+H133*0.7+I133,"zvolte typ stavby")))) -> zvolte typ stavby | N133: =IF(B133=data!$S$2,(M133*10)/4.9,IF(B133=data!$S$3,(M133*10)/3.4,IF(B133=data!$S$4,(M133*10)/5.3,IF(B133=data!$S$5,(M133*10)/3.4,"zvolte typ stavby")))) -> zvolte typ stavby
A134: III/12540, 1543, 12546 Lošany, Lošánky | B134: oprava a rekonstrukce | C134: Rekonstrukce | D134: 2 | E134: 5 | F134: 3 | G134: 6 | H134: 10 | I134: 4 | J134: 0 | K134: 10 | L134: 0 | M134: =IF(B134=data!$S$2,D134*0.7+E134*0.2+F134*0.8+G134+H134*0.2+I134+J134*0.3+K134*0.5+L134*0.2,IF(B134=data!$S$3,D134*0.1+E134*0.3+F134*0.1+G134+I134+J134*0.5+K134*0.4,IF(B134=data!$S$4,D134*0.6+E134*0.7+F134+G134+I134+L134,IF(B134=data!$S$5,D134*0.7+E134+H134*0.7+I134,"zvolte typ stavby")))) -> 21.8 | N134: =IF(B134=data!$S$2,(M134*10)/4.9,IF(B134=data!$S$3,(M134*10)/3.4,IF(B134=data!$S$4,(M134*10)/5.3,IF(B134=data!$S$5,(M134*10)/3.4,"zvolte typ stavby")))) -> 44.48979592 | O134: 12000000
M135: =IF(B135=data!$S$2,D135*0.7+E135*0.2+F135*0.8+G135+H135*0.2+I135+J135*0.3+K135*0.5+L135*0.2,IF(B135=data!$S$3,D135*0.1+E135*0.3+F135*0.1+G135+I135+J135*0.5+K135*0.4,IF(B135=data!$S$4,D135*0.6+E135*0.7+F135+G135+I135+L135,IF(B135=data!$S$5,D135*0.7+E135+H135*0.7+I135,"zvolte typ stavby")))) -> zvolte typ stavby | N135: =IF(B135=data!$S$2,(M135*10)/4.9,IF(B135=data!$S$3,(M135*10)/3.4,IF(B135=data!$S$4,(M135*10)/5.3,IF(B135=data!$S$5,(M135*10)/3.4,"zvolte typ stavby")))) -> zvolte typ stavby
M136: =IF(B136=data!$S$2,D136*0.7+E136*0.2+F136*0.8+G136+H136*0.2+I136+J136*0.3+K136*0.5+L136*0.2,IF(B136=data!$S$3,D136*0.1+E136*0.3+F136*0.1+G136+I136+J136*0.5+K136*0.4,IF(B136=data!$S$4,D136*0.6+E136*0.7+F136+G136+I136+L136,IF(B136=data!$S$5,D136*0.7+E136+H136*0.7+I136,"zvolte typ stavby")))) -> zvolte typ stavby | N136: =IF(B136=data!$S$2,(M136*10)/4.9,IF(B136=data!$S$3,(M136*10)/3.4,IF(B136=data!$S$4,(M136*10)/5.3,IF(B136=data!$S$5,(M136*10)/3.4,"zvolte typ stavby")))) -> zvolte typ stavby
M137: =IF(B137=data!$S$2,D137*0.7+E137*0.2+F137*0.8+G137+H137*0.2+I137+J137*0.3+K137*0.5+L137*0.2,IF(B137=data!$S$3,D137*0.1+E137*0.3+F137*0.1+G137+I137+J137*0.5+K137*0.4,IF(B137=data!$S$4,D137*0.6+E137*0.7+F137+G137+I137+L137,IF(B137=data!$S$5,D137*0.7+E137+H137*0.7+I137,"zvolte typ stavby")))) -> zvolte typ stavby | N137: =IF(B137=data!$S$2,(M137*10)/4.9,IF(B137=data!$S$3,(M137*10)/3.4,IF(B137=data!$S$4,(M137*10)/5.3,IF(B137=data!$S$5,(M137*10)/3.4,"zvolte typ stavby")))) -> zvolte typ stavby
A138: III/10812 Dobré Pole - Kouřim | B138: oprava a rekonstrukce | C138: Rekonstrukce | D138: 1 | E138: 5 | F138: 3 | G138: 6 | H138: 10 | I138: 4 | J138: 0 | K138: 10 | L138: 2 | M138: =IF(B138=data!$S$2,D138*0.7+E138*0.2+F138*0.8+G138+H138*0.2+I138+J138*0.3+K138*0.5+L138*0.2,IF(B138=data!$S$3,D138*0.1+E138*0.3+F138*0.1+G138+I138+J138*0.5+K138*0.4,IF(B138=data!$S$4,D138*0.6+E138*0.7+F138+G138+I138+L138,IF(B138=data!$S$5,D138*0.7+E138+H138*0.7+I138,"zvolte typ stavby")))) -> 21.5 | N138: =IF(B138=data!$S$2,(M138*10)/4.9,IF(B138=data!$S$3,(M138*10)/3.4,IF(B138=data!$S$4,(M138*10)/5.3,IF(B138=data!$S$5,(M138*10)/3.4,"zvolte typ stavby")))) -> 43.87755102 | O138: 10000000
A139: III/33515 Sudějov - Mančice | B139: oprava a rekonstrukce | C139: Souvislá údržba | D139: 1 | E139: 5 | F139: 3 | G139: 6 | H139: 10 | I139: 4 | J139: 0 | K139: 10 | L139: 2 | M139: =IF(B139=data!$S$2,D139*0.7+E139*0.2+F139*0.8+G139+H139*0.2+I139+J139*0.3+K139*0.5+L139*0.2,IF(B139=data!$S$3,D139*0.1+E139*0.3+F139*0.1+G139+I139+J139*0.5+K139*0.4,IF(B139=data!$S$4,D139*0.6+E139*0.7+F139+G139+I139+L139,IF(B139=data!$S$5,D139*0.7+E139+H139*0.7+I139,"zvolte typ stavby")))) -> 21.5 | N139: =IF(B139=data!$S$2,(M139*10)/4.9,IF(B139=data!$S$3,(M139*10)/3.4,IF(B139=data!$S$4,(M139*10)/5.3,IF(B139=data!$S$5,(M139*10)/3.4,"zvolte typ stavby")))) -> 43.87755102 | O139: 16202928
M140: =IF(B140=data!$S$2,D140*0.7+E140*0.2+F140*0.8+G140+H140*0.2+I140+J140*0.3+K140*0.5+L140*0.2,IF(B140=data!$S$3,D140*0.1+E140*0.3+F140*0.1+G140+I140+J140*0.5+K140*0.4,IF(B140=data!$S$4,D140*0.6+E140*0.7+F140+G140+I140+L140,IF(B140=data!$S$5,D140*0.7+E140+H140*0.7+I140,"zvolte typ stavby")))) -> zvolte typ stavby | N140: =IF(B140=data!$S$2,(M140*10)/4.9,IF(B140=data!$S$3,(M140*10)/3.4,IF(B140=data!$S$4,(M140*10)/5.3,IF(B140=data!$S$5,(M140*10)/3.4,"zvolte typ stavby")))) -> zvolte typ stavby
M141: =IF(B141=data!$S$2,D141*0.7+E141*0.2+F141*0.8+G141+H141*0.2+I141+J141*0.3+K141*0.5+L141*0.2,IF(B141=data!$S$3,D141*0.1+E141*0.3+F141*0.1+G141+I141+J141*0.5+K141*0.4,IF(B141=data!$S$4,D141*0.6+E141*0.7+F141+G141+I141+L141,IF(B141=data!$S$5,D141*0.7+E141+H141*0.7+I141,"zvolte typ stavby")))) -> zvolte typ stavby | N141: =IF(B141=data!$S$2,(M141*10)/4.9,IF(B141=data!$S$3,(M141*10)/3.4,IF(B141=data!$S$4,(M141*10)/5.3,IF(B141=data!$S$5,(M141*10)/3.4,"zvolte typ stavby")))) -> zvolte typ stavby
M142: =IF(B142=data!$S$2,D142*0.7+E142*0.2+F142*0.8+G142+H142*0.2+I142+J142*0.3+K142*0.5+L142*0.2,IF(B142=data!$S$3,D142*0.1+E142*0.3+F142*0.1+G142+I142+J142*0.5+K142*0.4,IF(B142=data!$S$4,D142*0.6+E142*0.7+F142+G142+I142+L142,IF(B142=data!$S$5,D142*0.7+E142+H142*0.7+I142,"zvolte typ stavby")))) -> zvolte typ stavby | N142: =IF(B142=data!$S$2,(M142*10)/4.9,IF(B142=data!$S$3,(M142*10)/3.4,IF(B142=data!$S$4,(M142*10)/5.3,IF(B142=data!$S$5,(M142*10)/3.4,"zvolte typ stavby")))) -> zvolte typ stavby
A143: III/10145 Stehelčeves-Bouchalka | B143: oprava a rekonstrukce | C143: Souvislá údržba | D143: 1 | E143: 6 | F143: 6 | G143: 6 | H143: 0 | I143: 7 | J143: 0 | K143: 0 | L143: 2 | M143: =IF(B143=data!$S$2,D143*0.7+E143*0.2+F143*0.8+G143+H143*0.2+I143+J143*0.3+K143*0.5+L143*0.2,IF(B143=data!$S$3,D143*0.1+E143*0.3+F143*0.1+G143+I143+J143*0.5+K143*0.4,IF(B143=data!$S$4,D143*0.6+E143*0.7+F143+G143+I143+L143,IF(B143=data!$S$5,D143*0.7+E143+H143*0.7+I143,"zvolte typ stavby")))) -> 20.1 | N143: =IF(B143=data!$S$2,(M143*10)/4.9,IF(B143=data!$S$3,(M143*10)/3.4,IF(B143=data!$S$4,(M143*10)/5.3,IF(B143=data!$S$5,(M143*10)/3.4,"zvolte typ stavby")))) -> 41.02040816 | O143: 20000000
M144: =IF(B144=data!$S$2,D144*0.7+E144*0.2+F144*0.8+G144+H144*0.2+I144+J144*0.3+K144*0.5+L144*0.2,IF(B144=data!$S$3,D144*0.1+E144*0.3+F144*0.1+G144+I144+J144*0.5+K144*0.4,IF(B144=data!$S$4,D144*0.6+E144*0.7+F144+G144+I144+L144,IF(B144=data!$S$5,D144*0.7+E144+H144*0.7+I144,"zvolte typ stavby")))) -> zvolte typ stavby | N144: =IF(B144=data!$S$2,(M144*10)/4.9,IF(B144=data!$S$3,(M144*10)/3.4,IF(B144=data!$S$4,(M144*10)/5.3,IF(B144=data!$S$5,(M144*10)/3.4,"zvolte typ stavby")))) -> zvolte typ stavby
M145: =IF(B145=data!$S$2,D145*0.7+E145*0.2+F145*0.8+G145+H145*0.2+I145+J145*0.3+K145*0.5+L145*0.2,IF(B145=data!$S$3,D145*0.1+E145*0.3+F145*0.1+G145+I145+J145*0.5+K145*0.4,IF(B145=data!$S$4,D145*0.6+E145*0.7+F145+G145+I145+L145,IF(B145=data!$S$5,D145*0.7+E145+H145*0.7+I145,"zvolte typ stavby")))) -> zvolte typ stavby | N145: =IF(B145=data!$S$2,(M145*10)/4.9,IF(B145=data!$S$3,(M145*10)/3.4,IF(B145=data!$S$4,(M145*10)/5.3,IF(B145=data!$S$5,(M145*10)/3.4,"zvolte typ stavby")))) -> zvolte typ stavby
A146: III/3369 Kácov | B146: oprava a rekonstrukce | C146: Souvislá údržba | D146: 3 | E146: 4 | F146: 3 | G146: 3 | H146: 10 | I146: 4 | J146: 0 | K146: 10 | L146: 2 | M146: =IF(B146=data!$S$2,D146*0.7+E146*0.2+F146*0.8+G146+H146*0.2+I146+J146*0.3+K146*0.5+L146*0.2,IF(B146=data!$S$3,D146*0.1+E146*0.3+F146*0.1+G146+I146+J146*0.5+K146*0.4,IF(B146=data!$S$4,D146*0.6+E146*0.7+F146+G146+I146+L146,IF(B146=data!$S$5,D146*0.7+E146+H146*0.7+I146,"zvolte typ stavby")))) -> 19.7 | N146: =IF(B146=data!$S$2,(M146*10)/4.9,IF(B146=data!$S$3,(M146*10)/3.4,IF(B146=data!$S$4,(M146*10)/5.3,IF(B146=data!$S$5,(M146*10)/3.4,"zvolte typ stavby")))) -> 40.20408163 | O146: 12000000
M147: =IF(B147=data!$S$2,D147*0.7+E147*0.2+F147*0.8+G147+H147*0.2+I147+J147*0.3+K147*0.5+L147*0.2,IF(B147=data!$S$3,D147*0.1+E147*0.3+F147*0.1+G147+I147+J147*0.5+K147*0.4,IF(B147=data!$S$4,D147*0.6+E147*0.7+F147+G147+I147+L147,IF(B147=data!$S$5,D147*0.7+E147+H147*0.7+I147,"zvolte typ stavby")))) -> zvolte typ stavby | N147: =IF(B147=data!$S$2,(M147*10)/4.9,IF(B147=data!$S$3,(M147*10)/3.4,IF(B147=data!$S$4,(M147*10)/5.3,IF(B147=data!$S$5,(M147*10)/3.4,"zvolte typ stavby")))) -> zvolte typ stavby
M148: =IF(B148=data!$S$2,D148*0.7+E148*0.2+F148*0.8+G148+H148*0.2+I148+J148*0.3+K148*0.5+L148*0.2,IF(B148=data!$S$3,D148*0.1+E148*0.3+F148*0.1+G148+I148+J148*0.5+K148*0.4,IF(B148=data!$S$4,D148*0.6+E148*0.7+F148+G148+I148+L148,IF(B148=data!$S$5,D148*0.7+E148+H148*0.7+I148,"zvolte typ stavby")))) -> zvolte typ stavby | N148: =IF(B148=data!$S$2,(M148*10)/4.9,IF(B148=data!$S$3,(M148*10)/3.4,IF(B148=data!$S$4,(M148*10)/5.3,IF(B148=data!$S$5,(M148*10)/3.4,"zvolte typ stavby")))) -> zvolte typ stavby
M149: =IF(B149=data!$S$2,D149*0.7+E149*0.2+F149*0.8+G149+H149*0.2+I149+J149*0.3+K149*0.5+L149*0.2,IF(B149=data!$S$3,D149*0.1+E149*0.3+F149*0.1+G149+I149+J149*0.5+K149*0.4,IF(B149=data!$S$4,D149*0.6+E149*0.7+F149+G149+I149+L149,IF(B149=data!$S$5,D149*0.7+E149+H149*0.7+I149,"zvolte typ stavby")))) -> zvolte typ stavby | N149: =IF(B149=data!$S$2,(M149*10)/4.9,IF(B149=data!$S$3,(M149*10)/3.4,IF(B149=data!$S$4,(M149*10)/5.3,IF(B149=data!$S$5,(M149*10)/3.4,"zvolte typ stavby")))) -> zvolte typ stavby
M150: =IF(B150=data!$S$2,D150*0.7+E150*0.2+F150*0.8+G150+H150*0.2+I150+J150*0.3+K150*0.5+L150*0.2,IF(B150=data!$S$3,D150*0.1+E150*0.3+F150*0.1+G150+I150+J150*0.5+K150*0.4,IF(B150=data!$S$4,D150*0.6+E150*0.7+F150+G150+I150+L150,IF(B150=data!$S$5,D150*0.7+E150+H150*0.7+I150,"zvolte typ stavby")))) -> zvolte typ stavby | N150: =IF(B150=data!$S$2,(M150*10)/4.9,IF(B150=data!$S$3,(M150*10)/3.4,IF(B150=data!$S$4,(M150*10)/5.3,IF(B150=data!$S$5,(M150*10)/3.4,"zvolte typ stavby")))) -> zvolte typ stavby
A151: II/339 Čáslav - Krchleby | B151: oprava a rekonstrukce | C151: Souvislá údržba | D151: 3 | E151: 8 | F151: 3 | G151: 3 | H151: 1 | I151: 4 | J151: 0 | K151: 10 | L151: 4 | M151: =IF(B151=data!$S$2,D151*0.7+E151*0.2+F151*0.8+G151+H151*0.2+I151+J151*0.3+K151*0.5+L151*0.2,IF(B151=data!$S$3,D151*0.1+E151*0.3+F151*0.1+G151+I151+J151*0.5+K151*0.4,IF(B151=data!$S$4,D151*0.6+E151*0.7+F151+G151+I151+L151,IF(B151=data!$S$5,D151*0.7+E151+H151*0.7+I151,"zvolte typ stavby")))) -> 19.1 | N151: =IF(B151=data!$S$2,(M151*10)/4.9,IF(B151=data!$S$3,(M151*10)/3.4,IF(B151=data!$S$4,(M151*10)/5.3,IF(B151=data!$S$5,(M151*10)/3.4,"zvolte typ stavby")))) -> 38.97959184 | O151: 29000000
M152: =IF(B152=data!$S$2,D152*0.7+E152*0.2+F152*0.8+G152+H152*0.2+I152+J152*0.3+K152*0.5+L152*0.2,IF(B152=data!$S$3,D152*0.1+E152*0.3+F152*0.1+G152+I152+J152*0.5+K152*0.4,IF(B152=data!$S$4,D152*0.6+E152*0.7+F152+G152+I152+L152,IF(B152=data!$S$5,D152*0.7+E152+H152*0.7+I152,"zvolte typ stavby")))) -> zvolte typ stavby | N152: =IF(B152=data!$S$2,(M152*10)/4.9,IF(B152=data!$S$3,(M152*10)/3.4,IF(B152=data!$S$4,(M152*10)/5.3,IF(B152=data!$S$5,(M152*10)/3.4,"zvolte typ stavby")))) -> zvolte typ stavby
A153: II/611 Starý Vestec, průtah | B153: oprava a rekonstrukce | C153: Rekonstrukce | D153: 4 | E153: 8 | F153: 3 | G153: 2 | H153: 1 | I153: 4 | J153: 0 | K153: 10 | L153: 4 | M153: =IF(B153=data!$S$2,D153*0.7+E153*0.2+F153*0.8+G153+H153*0.2+I153+J153*0.3+K153*0.5+L153*0.2,IF(B153=data!$S$3,D153*0.1+E153*0.3+F153*0.1+G153+I153+J153*0.5+K153*0.4,IF(B153=data!$S$4,D153*0.6+E153*0.7+F153+G153+I153+L153,IF(B153=data!$S$5,D153*0.7+E153+H153*0.7+I153,"zvolte typ stavby")))) -> 18.8 | N153: =IF(B153=data!$S$2,(M153*10)/4.9,IF(B153=data!$S$3,(M153*10)/3.4,IF(B153=data!$S$4,(M153*10)/5.3,IF(B153=data!$S$5,(M153*10)/3.4,"zvolte typ stavby")))) -> 38.36734694 | O153: 4306540
M154: =IF(B154=data!$S$2,D154*0.7+E154*0.2+F154*0.8+G154+H154*0.2+I154+J154*0.3+K154*0.5+L154*0.2,IF(B154=data!$S$3,D154*0.1+E154*0.3+F154*0.1+G154+I154+J154*0.5+K154*0.4,IF(B154=data!$S$4,D154*0.6+E154*0.7+F154+G154+I154+L154,IF(B154=data!$S$5,D154*0.7+E154+H154*0.7+I154,"zvolte typ stavby")))) -> zvolte typ stavby | N154: =IF(B154=data!$S$2,(M154*10)/4.9,IF(B154=data!$S$3,(M154*10)/3.4,IF(B154=data!$S$4,(M154*10)/5.3,IF(B154=data!$S$5,(M154*10)/3.4,"zvolte typ stavby")))) -> zvolte typ stavby
M155: =IF(B155=data!$S$2,D155*0.7+E155*0.2+F155*0.8+G155+H155*0.2+I155+J155*0.3+K155*0.5+L155*0.2,IF(B155=data!$S$3,D155*0.1+E155*0.3+F155*0.1+G155+I155+J155*0.5+K155*0.4,IF(B155=data!$S$4,D155*0.6+E155*0.7+F155+G155+I155+L155,IF(B155=data!$S$5,D155*0.7+E155+H155*0.7+I155,"zvolte typ stavby")))) -> zvolte typ stavby | N155: =IF(B155=data!$S$2,(M155*10)/4.9,IF(B155=data!$S$3,(M155*10)/3.4,IF(B155=data!$S$4,(M155*10)/5.3,IF(B155=data!$S$5,(M155*10)/3.4,"zvolte typ stavby")))) -> zvolte typ stavby
M156: =IF(B156=data!$S$2,D156*0.7+E156*0.2+F156*0.8+G156+H156*0.2+I156+J156*0.3+K156*0.5+L156*0.2,IF(B156=data!$S$3,D156*0.1+E156*0.3+F156*0.1+G156+I156+J156*0.5+K156*0.4,IF(B156=data!$S$4,D156*0.6+E156*0.7+F156+G156+I156+L156,IF(B156=data!$S$5,D156*0.7+E156+H156*0.7+I156,"zvolte typ stavby")))) -> zvolte typ stavby | N156: =IF(B156=data!$S$2,(M156*10)/4.9,IF(B156=data!$S$3,(M156*10)/3.4,IF(B156=data!$S$4,(M156*10)/5.3,IF(B156=data!$S$5,(M156*10)/3.4,"zvolte typ stavby")))) -> zvolte typ stavby
M157: =IF(B157=data!$S$2,D157*0.7+E157*0.2+F157*0.8+G157+H157*0.2+I157+J157*0.3+K157*0.5+L157*0.2,IF(B157=data!$S$3,D157*0.1+E157*0.3+F157*0.1+G157+I157+J157*0.5+K157*0.4,IF(B157=data!$S$4,D157*0.6+E157*0.7+F157+G157+I157+L157,IF(B157=data!$S$5,D157*0.7+E157+H157*0.7+I157,"zvolte typ stavby")))) -> zvolte typ stavby | N157: =IF(B157=data!$S$2,(M157*10)/4.9,IF(B157=data!$S$3,(M157*10)/3.4,IF(B157=data!$S$4,(M157*10)/5.3,IF(B157=data!$S$5,(M157*10)/3.4,"zvolte typ stavby")))) -> zvolte typ stavby
M158: =IF(B158=data!$S$2,D158*0.7+E158*0.2+F158*0.8+G158+H158*0.2+I158+J158*0.3+K158*0.5+L158*0.2,IF(B158=data!$S$3,D158*0.1+E158*0.3+F158*0.1+G158+I158+J158*0.5+K158*0.4,IF(B158=data!$S$4,D158*0.6+E158*0.7+F158+G158+I158+L158,IF(B158=data!$S$5,D158*0.7+E158+H158*0.7+I158,"zvolte typ stavby")))) -> zvolte typ stavby | N158: =IF(B158=data!$S$2,(M158*10)/4.9,IF(B158=data!$S$3,(M158*10)/3.4,IF(B158=data!$S$4,(M158*10)/5.3,IF(B158=data!$S$5,(M158*10)/3.4,"zvolte typ stavby")))) -> zvolte typ stavby
A159: III/27215 Zdětín, rekonstrukce | B159: oprava a rekonstrukce | C159: Rekonstrukce | D159: 2 | E159: 5 | F159: 3 | G159: 6 | H159: 10 | I159: 4 | J159: 0 | K159: 0 | L159: 0 | M159: =IF(B159=data!$S$2,D159*0.7+E159*0.2+F159*0.8+G159+H159*0.2+I159+J159*0.3+K159*0.5+L159*0.2,IF(B159=data!$S$3,D159*0.1+E159*0.3+F159*0.1+G159+I159+J159*0.5+K159*0.4,IF(B159=data!$S$4,D159*0.6+E159*0.7+F159+G159+I159+L159,IF(B159=data!$S$5,D159*0.7+E159+H159*0.7+I159,"zvolte typ stavby")))) -> 16.8 | N159: =IF(B159=data!$S$2,(M159*10)/4.9,IF(B159=data!$S$3,(M159*10)/3.4,IF(B159=data!$S$4,(M159*10)/5.3,IF(B159=data!$S$5,(M159*10)/3.4,"zvolte typ stavby")))) -> 34.28571429 | O159: 8000000
M160: =IF(B160=data!$S$2,D160*0.7+E160*0.2+F160*0.8+G160+H160*0.2+I160+J160*0.3+K160*0.5+L160*0.2,IF(B160=data!$S$3,D160*0.1+E160*0.3+F160*0.1+G160+I160+J160*0.5+K160*0.4,IF(B160=data!$S$4,D160*0.6+E160*0.7+F160+G160+I160+L160,IF(B160=data!$S$5,D160*0.7+E160+H160*0.7+I160,"zvolte typ stavby")))) -> zvolte typ stavby | N160: =IF(B160=data!$S$2,(M160*10)/4.9,IF(B160=data!$S$3,(M160*10)/3.4,IF(B160=data!$S$4,(M160*10)/5.3,IF(B160=data!$S$5,(M160*10)/3.4,"zvolte typ stavby")))) -> zvolte typ stavby
M161: =IF(B161=data!$S$2,D161*0.7+E161*0.2+F161*0.8+G161+H161*0.2+I161+J161*0.3+K161*0.5+L161*0.2,IF(B161=data!$S$3,D161*0.1+E161*0.3+F161*0.1+G161+I161+J161*0.5+K161*0.4,IF(B161=data!$S$4,D161*0.6+E161*0.7+F161+G161+I161+L161,IF(B161=data!$S$5,D161*0.7+E161+H161*0.7+I161,"zvolte typ stavby")))) -> zvolte typ stavby | N161: =IF(B161=data!$S$2,(M161*10)/4.9,IF(B161=data!$S$3,(M161*10)/3.4,IF(B161=data!$S$4,(M161*10)/5.3,IF(B161=data!$S$5,(M161*10)/3.4,"zvolte typ stavby")))) -> zvolte typ stavby
M162: =IF(B162=data!$S$2,D162*0.7+E162*0.2+F162*0.8+G162+H162*0.2+I162+J162*0.3+K162*0.5+L162*0.2,IF(B162=data!$S$3,D162*0.1+E162*0.3+F162*0.1+G162+I162+J162*0.5+K162*0.4,IF(B162=data!$S$4,D162*0.6+E162*0.7+F162+G162+I162+L162,IF(B162=data!$S$5,D162*0.7+E162+H162*0.7+I162,"zvolte typ stavby")))) -> zvolte typ stavby | N162: =IF(B162=data!$S$2,(M162*10)/4.9,IF(B162=data!$S$3,(M162*10)/3.4,IF(B162=data!$S$4,(M162*10)/5.3,IF(B162=data!$S$5,(M162*10)/3.4,"zvolte typ stavby")))) -> zvolte typ stavby
M163: =IF(B163=data!$S$2,D163*0.7+E163*0.2+F163*0.8+G163+H163*0.2+I163+J163*0.3+K163*0.5+L163*0.2,IF(B163=data!$S$3,D163*0.1+E163*0.3+F163*0.1+G163+I163+J163*0.5+K163*0.4,IF(B163=data!$S$4,D163*0.6+E163*0.7+F163+G163+I163+L163,IF(B163=data!$S$5,D163*0.7+E163+H163*0.7+I163,"zvolte typ stavby")))) -> zvolte typ stavby | N163: =IF(B163=data!$S$2,(M163*10)/4.9,IF(B163=data!$S$3,(M163*10)/3.4,IF(B163=data!$S$4,(M163*10)/5.3,IF(B163=data!$S$5,(M163*10)/3.4,"zvolte typ stavby")))) -> zvolte typ stavby
A164: KONTROLA PŘEPOČTU | B164: řešení bodové závady a/nebo bezpečnostního rizika (křižovatky, opěrné zdi, skalní masivy) | D164: 10 | E164: 10 | F164: 10 | G164: 10 | H164: 10 | I164: 10 | J164: 10 | K164: 10 | L164: 10 | M164: =IF(B164=data!$S$2,D164*0.7+E164*0.2+F164*0.8+G164+H164*0.2+I164+J164*0.3+K164*0.5+L164*0.2,IF(B164=data!$S$3,D164*0.1+E164*0.3+F164*0.1+G164+I164+J164*0.5+K164*0.4,IF(B164=data!$S$4,D164*0.6+E164*0.7+F164+G164+I164+L164,IF(B164=data!$S$5,D164*0.7+E164+H164*0.7+I164,"zvolte typ stavby")))) -> 53 | N164: =IF(B164=data!$S$2,(M164*10)/4.9,IF(B164=data!$S$3,(M164*10)/3.4,IF(B164=data!$S$4,(M164*10)/5.3,IF(B164=data!$S$5,(M164*10)/3.4,"zvolte typ stavby")))) -> 100 | O164: 13000000
A165: II/125 Ratboř, úprava křižovatky s III/12545 | B165: řešení bodové závady a/nebo bezpečnostního rizika (křižovatky, opěrné zdi, skalní masivy) | C165: - | D165: 4 | E165: 10 | F165: 10 | G165: 3 | H165: 0 | I165: 7 | J165: 0 | K165: 0 | L165: 7 | M165: =IF(B165=data!$S$2,D165*0.7+E165*0.2+F165*0.8+G165+H165*0.2+I165+J165*0.3+K165*0.5+L165*0.2,IF(B165=data!$S$3,D165*0.1+E165*0.3+F165*0.1+G165+I165+J165*0.5+K165*0.4,IF(B165=data!$S$4,D165*0.6+E165*0.7+F165+G165+I165+L165,IF(B165=data!$S$5,D165*0.7+E165+H165*0.7+I165,"zvolte typ stavby")))) -> 36.4 | N165: =IF(B165=data!$S$2,(M165*10)/4.9,IF(B165=data!$S$3,(M165*10)/3.4,IF(B165=data!$S$4,(M165*10)/5.3,IF(B165=data!$S$5,(M165*10)/3.4,"zvolte typ stavby")))) -> 68.67924528 | O165: 15000000
A166: II/101 Kladno,Vrapická – havárie odvodnění - PD | B166: řešení bodové závady a/nebo bezpečnostního rizika (křižovatky, opěrné zdi, skalní masivy) | D166: 2 | E166: 10 | F166: 3 | G166: 10 | H166: 0 | I166: 7 | J166: 0 | K166: 10 | L166: 4 | M166: =IF(B166=data!$S$2,D166*0.7+E166*0.2+F166*0.8+G166+H166*0.2+I166+J166*0.3+K166*0.5+L166*0.2,IF(B166=data!$S$3,D166*0.1+E166*0.3+F166*0.1+G166+I166+J166*0.5+K166*0.4,IF(B166=data!$S$4,D166*0.6+E166*0.7+F166+G166+I166+L166,IF(B166=data!$S$5,D166*0.7+E166+H166*0.7+I166,"zvolte typ stavby")))) -> 32.2 | N166: =IF(B166=data!$S$2,(M166*10)/4.9,IF(B166=data!$S$3,(M166*10)/3.4,IF(B166=data!$S$4,(M166*10)/5.3,IF(B166=data!$S$5,(M166*10)/3.4,"zvolte typ stavby")))) -> 60.75471698 | O166: 4500000
C167: - | M167: =IF(B167=data!$S$2,D167*0.7+E167*0.2+F167*0.8+G167+H167*0.2+I167+J167*0.3+K167*0.5+L167*0.2,IF(B167=data!$S$3,D167*0.1+E167*0.3+F167*0.1+G167+I167+J167*0.5+K167*0.4,IF(B167=data!$S$4,D167*0.6+E167*0.7+F167+G167+I167+L167,IF(B167=data!$S$5,D167*0.7+E167+H167*0.7+I167,"zvolte typ stavby")))) -> zvolte typ stavby | N167: =IF(B167=data!$S$2,(M167*10)/4.9,IF(B167=data!$S$3,(M167*10)/3.4,IF(B167=data!$S$4,(M167*10)/5.3,IF(B167=data!$S$5,(M167*10)/3.4,"zvolte typ stavby")))) -> zvolte typ stavby
A168: II/272 Lysá nad Labem, křižovatky (Jedličkova x Smetanova a II/272 x II/332) | B168: řešení bodové závady a/nebo bezpečnostního rizika (křižovatky, opěrné zdi, skalní masivy) | C168: - | D168: 7 | E168: 10 | F168: 6 | G168: 3 | H168: 0 | I168: 7 | J168: 0 | K168: 0 | L168: 4 | M168: =IF(B168=data!$S$2,D168*0.7+E168*0.2+F168*0.8+G168+H168*0.2+I168+J168*0.3+K168*0.5+L168*0.2,IF(B168=data!$S$3,D168*0.1+E168*0.3+F168*0.1+G168+I168+J168*0.5+K168*0.4,IF(B168=data!$S$4,D168*0.6+E168*0.7+F168+G168+I168+L168,IF(B168=data!$S$5,D168*0.7+E168+H168*0.7+I168,"zvolte typ stavby")))) -> 31.2 | N168: =IF(B168=data!$S$2,(M168*10)/4.9,IF(B168=data!$S$3,(M168*10)/3.4,IF(B168=data!$S$4,(M168*10)/5.3,IF(B168=data!$S$5,(M168*10)/3.4,"zvolte typ stavby")))) -> 58.86792453 | O168: 20000000
A169: Strančice III/1015 a III/1016 okružní křižovatka | B169: řešení bodové závady a/nebo bezpečnostního rizika (křižovatky, opěrné zdi, skalní masivy) | C169: - | D169: 4 | E169: 5 | F169: 10 | G169: 3 | H169: 0 | I169: 10 | J169: 0 | K169: 0 | L169: 2 | M169: =IF(B169=data!$S$2,D169*0.7+E169*0.2+F169*0.8+G169+H169*0.2+I169+J169*0.3+K169*0.5+L169*0.2,IF(B169=data!$S$3,D169*0.1+E169*0.3+F169*0.1+G169+I169+J169*0.5+K169*0.4,IF(B169=data!$S$4,D169*0.6+E169*0.7+F169+G169+I169+L169,IF(B169=data!$S$5,D169*0.7+E169+H169*0.7+I169,"zvolte typ stavby")))) -> 30.9 | N169: =IF(B169=data!$S$2,(M169*10)/4.9,IF(B169=data!$S$3,(M169*10)/3.4,IF(B169=data!$S$4,(M169*10)/5.3,IF(B169=data!$S$5,(M169*10)/3.4,"zvolte typ stavby")))) -> 58.30188679 | O169: 7000000
A170: III/2407 Úholičky, havárie opěrné zdi - III. etapa | B170: řešení bodové závady a/nebo bezpečnostního rizika (křižovatky, opěrné zdi, skalní masivy) | C170: - | D170: 5 | E170: 5 | F170: 10 | G170: 10 | H170: 0 | I170: 4 | J170: 0 | K170: 0 | L170: 0 | M170: =IF(B170=data!$S$2,D170*0.7+E170*0.2+F170*0.8+G170+H170*0.2+I170+J170*0.3+K170*0.5+L170*0.2,IF(B170=data!$S$3,D170*0.1+E170*0.3+F170*0.1+G170+I170+J170*0.5+K170*0.4,IF(B170=data!$S$4,D170*0.6+E170*0.7+F170+G170+I170+L170,IF(B170=data!$S$5,D170*0.7+E170+H170*0.7+I170,"zvolte typ stavby")))) -> 30.5 | N170: =IF(B170=data!$S$2,(M170*10)/4.9,IF(B170=data!$S$3,(M170*10)/3.4,IF(B170=data!$S$4,(M170*10)/5.3,IF(B170=data!$S$5,(M170*10)/3.4,"zvolte typ stavby")))) -> 57.54716981 | O170: 6000000
C171: - | M171: =IF(B171=data!$S$2,D171*0.7+E171*0.2+F171*0.8+G171+H171*0.2+I171+J171*0.3+K171*0.5+L171*0.2,IF(B171=data!$S$3,D171*0.1+E171*0.3+F171*0.1+G171+I171+J171*0.5+K171*0.4,IF(B171=data!$S$4,D171*0.6+E171*0.7+F171+G171+I171+L171,IF(B171=data!$S$5,D171*0.7+E171+H171*0.7+I171,"zvolte typ stavby")))) -> zvolte typ stavby | N171: =IF(B171=data!$S$2,(M171*10)/4.9,IF(B171=data!$S$3,(M171*10)/3.4,IF(B171=data!$S$4,(M171*10)/5.3,IF(B171=data!$S$5,(M171*10)/3.4,"zvolte typ stavby")))) -> zvolte typ stavby
A172: II/125 x III/33345 x I/38 zpřehlednění křižovatky | B172: řešení bodové závady a/nebo bezpečnostního rizika (křižovatky, opěrné zdi, skalní masivy) | C172: - | D172: 5 | E172: 10 | F172: 6 | G172: 3 | H172: 0 | I172: 7 | J172: 0 | K172: 0 | L172: 4 | M172: =IF(B172=data!$S$2,D172*0.7+E172*0.2+F172*0.8+G172+H172*0.2+I172+J172*0.3+K172*0.5+L172*0.2,IF(B172=data!$S$3,D172*0.1+E172*0.3+F172*0.1+G172+I172+J172*0.5+K172*0.4,IF(B172=data!$S$4,D172*0.6+E172*0.7+F172+G172+I172+L172,IF(B172=data!$S$5,D172*0.7+E172+H172*0.7+I172,"zvolte typ stavby")))) -> 30 | N172: =IF(B172=data!$S$2,(M172*10)/4.9,IF(B172=data!$S$3,(M172*10)/3.4,IF(B172=data!$S$4,(M172*10)/5.3,IF(B172=data!$S$5,(M172*10)/3.4,"zvolte typ stavby")))) -> 56.60377358 | O172: 5800000
A173: II/118 Bakov u Beřovic, havárie operné zdi-PD | B173: řešení bodové závady a/nebo bezpečnostního rizika (křižovatky, opěrné zdi, skalní masivy) | D173: 1 | E173: 9 | F173: 6 | G173: 10 | H173: 0 | I173: 7 | J173: 0 | K173: 0 | L173: 0 | M173: =IF(B173=data!$S$2,D173*0.7+E173*0.2+F173*0.8+G173+H173*0.2+I173+J173*0.3+K173*0.5+L173*0.2,IF(B173=data!$S$3,D173*0.1+E173*0.3+F173*0.1+G173+I173+J173*0.5+K173*0.4,IF(B173=data!$S$4,D173*0.6+E173*0.7+F173+G173+I173+L173,IF(B173=data!$S$5,D173*0.7+E173+H173*0.7+I173,"zvolte typ stavby")))) -> 29.9 | N173: =IF(B173=data!$S$2,(M173*10)/4.9,IF(B173=data!$S$3,(M173*10)/3.4,IF(B173=data!$S$4,(M173*10)/5.3,IF(B173=data!$S$5,(M173*10)/3.4,"zvolte typ stavby")))) -> 56.41509434 | O173: 6500000
A174: II/268 Mnichovo Hradiště - bodové závady před a za mostem 268-006 | B174: řešení bodové závady a/nebo bezpečnostního rizika (křižovatky, opěrné zdi, skalní masivy) | D174: 6 | E174: 10 | F174: 3 | G174: 6 | H174: 0 | I174: 10 | J174: 0 | K174: 10 | L174: 0 | M174: =IF(B174=data!$S$2,D174*0.7+E174*0.2+F174*0.8+G174+H174*0.2+I174+J174*0.3+K174*0.5+L174*0.2,IF(B174=data!$S$3,D174*0.1+E174*0.3+F174*0.1+G174+I174+J174*0.5+K174*0.4,IF(B174=data!$S$4,D174*0.6+E174*0.7+F174+G174+I174+L174,IF(B174=data!$S$5,D174*0.7+E174+H174*0.7+I174,"zvolte typ stavby")))) -> 29.6 | N174: =IF(B174=data!$S$2,(M174*10)/4.9,IF(B174=data!$S$3,(M174*10)/3.4,IF(B174=data!$S$4,(M174*10)/5.3,IF(B174=data!$S$5,(M174*10)/3.4,"zvolte typ stavby")))) -> 55.8490566 | O174: 6000000
A175: III/2741 Kropáčova Vrutice - opěrná zeď | B175: řešení bodové závady a/nebo bezpečnostního rizika (křižovatky, opěrné zdi, skalní masivy) | C175: - | D175: 2 | E175: 4 | F175: 10 | G175: 10 | H175: 0 | I175: 4 | J175: 0 | K175: 10 | L175: 0 | M175: =IF(B175=data!$S$2,D175*0.7+E175*0.2+F175*0.8+G175+H175*0.2+I175+J175*0.3+K175*0.5+L175*0.2,IF(B175=data!$S$3,D175*0.1+E175*0.3+F175*0.1+G175+I175+J175*0.5+K175*0.4,IF(B175=data!$S$4,D175*0.6+E175*0.7+F175+G175+I175+L175,IF(B175=data!$S$5,D175*0.7+E175+H175*0.7+I175,"zvolte typ stavby")))) -> 28 | N175: =IF(B175=data!$S$2,(M175*10)/4.9,IF(B175=data!$S$3,(M175*10)/3.4,IF(B175=data!$S$4,(M175*10)/5.3,IF(B175=data!$S$5,(M175*10)/3.4,"zvolte typ stavby")))) -> 52.83018868 | O175: 5000000
A176: III-00724 a 00712 Knovíz, úprava křižovatky-bezpečnostní inspekce | B176: řešení bodové závady a/nebo bezpečnostního rizika (křižovatky, opěrné zdi, skalní masivy) | D176: 3 | E176: 7 | F176: 3 | G176: 3 | H176: 0 | I176: 7 | J176: 0 | K176: 10 | L176: 7 | M176: =IF(B176=data!$S$2,D176*0.7+E176*0.2+F176*0.8+G176+H176*0.2+I176+J176*0.3+K176*0.5+L176*0.2,IF(B176=data!$S$3,D176*0.1+E176*0.3+F176*0.1+G176+I176+J176*0.5+K176*0.4,IF(B176=data!$S$4,D176*0.6+E176*0.7+F176+G176+I176+L176,IF(B176=data!$S$5,D176*0.7+E176+H176*0.7+I176,"zvolte typ stavby")))) -> 26.7 | N176: =IF(B176=data!$S$2,(M176*10)/4.9,IF(B176=data!$S$3,(M176*10)/3.4,IF(B176=data!$S$4,(M176*10)/5.3,IF(B176=data!$S$5,(M176*10)/3.4,"zvolte typ stavby")))) -> 50.37735849
A177: III/1133 Český Brod, Zahrady opěrná zeď | B177: řešení bodové závady a/nebo bezpečnostního rizika (křižovatky, opěrné zdi, skalní masivy) | C177: - | D177: 1 | E177: 5 | F177: 6 | G177: 10 | H177: 0 | I177: 4 | J177: 10 | K177: 0 | L177: 2 | M177: =IF(B177=data!$S$2,D177*0.7+E177*0.2+F177*0.8+G177+H177*0.2+I177+J177*0.3+K177*0.5+L177*0.2,IF(B177=data!$S$3,D177*0.1+E177*0.3+F177*0.1+G177+I177+J177*0.5+K177*0.4,IF(B177=data!$S$4,D177*0.6+E177*0.7+F177+G177+I177+L177,IF(B177=data!$S$5,D177*0.7+E177+H177*0.7+I177,"zvolte typ stavby")))) -> 26.1 | N177: =IF(B177=data!$S$2,(M177*10)/4.9,IF(B177=data!$S$3,(M177*10)/3.4,IF(B177=data!$S$4,(M177*10)/5.3,IF(B177=data!$S$5,(M177*10)/3.4,"zvolte typ stavby")))) -> 49.24528302 | O177: 20000000
A178: II/610 x II/245 Brandýs nad Labem, křižovatka | B178: řešení bodové závady a/nebo bezpečnostního rizika (křižovatky, opěrné zdi, skalní masivy) | C178: - | D178: 9 | E178: 10 | F178: 6 | G178: 3 | H178: 0 | I178: 4 | J178: 0 | K178: 0 | L178: 0 | M178: =IF(B178=data!$S$2,D178*0.7+E178*0.2+F178*0.8+G178+H178*0.2+I178+J178*0.3+K178*0.5+L178*0.2,IF(B178=data!$S$3,D178*0.1+E178*0.3+F178*0.1+G178+I178+J178*0.5+K178*0.4,IF(B178=data!$S$4,D178*0.6+E178*0.7+F178+G178+I178+L178,IF(B178=data!$S$5,D178*0.7+E178+H178*0.7+I178,"zvolte typ stavby")))) -> 25.4 | N178: =IF(B178=data!$S$2,(M178*10)/4.9,IF(B178=data!$S$3,(M178*10)/3.4,IF(B178=data!$S$4,(M178*10)/5.3,IF(B178=data!$S$5,(M178*10)/3.4,"zvolte typ stavby")))) -> 47.9245283 | O178: 10580000
B179: řešení bodové závady a/nebo bezpečnostního rizika (křižovatky, opěrné zdi, skalní masivy) | C179: - | D179: 3 | E179: 5 | F179: 6 | G179: 6 | H179: 0 | I179: 4 | J179: 0 | K179: 10 | L179: 2 | M179: =IF(B179=data!$S$2,D179*0.7+E179*0.2+F179*0.8+G179+H179*0.2+I179+J179*0.3+K179*0.5+L179*0.2,IF(B179=data!$S$3,D179*0.1+E179*0.3+F179*0.1+G179+I179+J179*0.5+K179*0.4,IF(B179=data!$S$4,D179*0.6+E179*0.7+F179+G179+I179+L179,IF(B179=data!$S$5,D179*0.7+E179+H179*0.7+I179,"zvolte typ stavby")))) -> 23.3 | N179: =IF(B179=data!$S$2,(M179*10)/4.9,IF(B179=data!$S$3,(M179*10)/3.4,IF(B179=data!$S$4,(M179*10)/5.3,IF(B179=data!$S$5,(M179*10)/3.4,"zvolte typ stavby")))) -> 43.96226415
A180: III/27234A Bělá pod Bezdězem - opěrná zeď | B180: řešení bodové závady a/nebo bezpečnostního rizika (křižovatky, opěrné zdi, skalní masivy) | C180: - | D180: 3 | E180: 5 | F180: 1 | G180: 10 | H180: 0 | I180: 4 | J180: 0 | K180: 0 | L180: 2 | M180: =IF(B180=data!$S$2,D180*0.7+E180*0.2+F180*0.8+G180+H180*0.2+I180+J180*0.3+K180*0.5+L180*0.2,IF(B180=data!$S$3,D180*0.1+E180*0.3+F180*0.1+G180+I180+J180*0.5+K180*0.4,IF(B180=data!$S$4,D180*0.6+E180*0.7+F180+G180+I180+L180,IF(B180=data!$S$5,D180*0.7+E180+H180*0.7+I180,"zvolte typ stavby")))) -> 22.3 | N180: =IF(B180=data!$S$2,(M180*10)/4.9,IF(B180=data!$S$3,(M180*10)/3.4,IF(B180=data!$S$4,(M180*10)/5.3,IF(B180=data!$S$5,(M180*10)/3.4,"zvolte typ stavby")))) -> 42.0754717 | O180: 30000000
A181: II/238, III/23631 a III/2384 úprava křižovatek-bezpečnostní inspekce | B181: řešení bodové závady a/nebo bezpečnostního rizika (křižovatky, opěrné zdi, skalní masivy) | D181: 2 | E181: 9 | F181: 3 | G181: 3 | H181: 0 | I181: 4 | J181: 0 | K181: 10 | L181: 4 | M181: =IF(B181=data!$S$2,D181*0.7+E181*0.2+F181*0.8+G181+H181*0.2+I181+J181*0.3+K181*0.5+L181*0.2,IF(B181=data!$S$3,D181*0.1+E181*0.3+F181*0.1+G181+I181+J181*0.5+K181*0.4,IF(B181=data!$S$4,D181*0.6+E181*0.7+F181+G181+I181+L181,IF(B181=data!$S$5,D181*0.7+E181+H181*0.7+I181,"zvolte typ stavby")))) -> 21.5 | N181: =IF(B181=data!$S$2,(M181*10)/4.9,IF(B181=data!$S$3,(M181*10)/3.4,IF(B181=data!$S$4,(M181*10)/5.3,IF(B181=data!$S$5,(M181*10)/3.4,"zvolte typ stavby")))) -> 40.56603774
A182: III/24217 Netřeba, sanace svahu | B182: řešení bodové závady a/nebo bezpečnostního rizika (křižovatky, opěrné zdi, skalní masivy) | C182: - | D182: 3 | E182: 5 | F182: 6 | G182: 6 | H182: 0 | I182: 2 | J182: 0 | K182: 0 | L182: 2 | M182: =IF(B182=data!$S$2,D182*0.7+E182*0.2+F182*0.8+G182+H182*0.2+I182+J182*0.3+K182*0.5+L182*0.2,IF(B182=data!$S$3,D182*0.1+E182*0.3+F182*0.1+G182+I182+J182*0.5+K182*0.4,IF(B182=data!$S$4,D182*0.6+E182*0.7+F182+G182+I182+L182,IF(B182=data!$S$5,D182*0.7+E182+H182*0.7+I182,"zvolte typ stavby")))) -> 21.3 | N182: =IF(B182=data!$S$2,(M182*10)/4.9,IF(B182=data!$S$3,(M182*10)/3.4,IF(B182=data!$S$4,(M182*10)/5.3,IF(B182=data!$S$5,(M182*10)/3.4,"zvolte typ stavby")))) -> 40.18867925 | O182: 7000000
A183: III-1169 Sv.Jan pod Sklalou-zabezpečení skalního masivu-PD | B183: řešení bodové závady a/nebo bezpečnostního rizika (křižovatky, opěrné zdi, skalní masivy) | C183: - | D183: 3 | E183: 4 | F183: 6 | G183: 6 | H183: 0 | I183: 4 | J183: 0 | K183: 10 | L183: 0 | M183: =IF(B183=data!$S$2,D183*0.7+E183*0.2+F183*0.8+G183+H183*0.2+I183+J183*0.3+K183*0.5+L183*0.2,IF(B183=data!$S$3,D183*0.1+E183*0.3+F183*0.1+G183+I183+J183*0.5+K183*0.4,IF(B183=data!$S$4,D183*0.6+E183*0.7+F183+G183+I183+L183,IF(B183=data!$S$5,D183*0.7+E183+H183*0.7+I183,"zvolte typ stavby")))) -> 20.6 | N183: =IF(B183=data!$S$2,(M183*10)/4.9,IF(B183=data!$S$3,(M183*10)/3.4,IF(B183=data!$S$4,(M183*10)/5.3,IF(B183=data!$S$5,(M183*10)/3.4,"zvolte typ stavby")))) -> 38.86792453 | O183: 20000000
A184: III/27314 Hleďsebe, havárie zemního tělesa | B184: řešení bodové závady a/nebo bezpečnostního rizika (křižovatky, opěrné zdi, skalní masivy) | C184: - | D184: 1 | E184: 5 | F184: 1 | G184: 10 | H184: 0 | I184: 2 | J184: 0 | K184: 0 | L184: 2 | M184: =IF(B184=data!$S$2,D184*0.7+E184*0.2+F184*0.8+G184+H184*0.2+I184+J184*0.3+K184*0.5+L184*0.2,IF(B184=data!$S$3,D184*0.1+E184*0.3+F184*0.1+G184+I184+J184*0.5+K184*0.4,IF(B184=data!$S$4,D184*0.6+E184*0.7+F184+G184+I184+L184,IF(B184=data!$S$5,D184*0.7+E184+H184*0.7+I184,"zvolte typ stavby")))) -> 19.1 | N184: =IF(B184=data!$S$2,(M184*10)/4.9,IF(B184=data!$S$3,(M184*10)/3.4,IF(B184=data!$S$4,(M184*10)/5.3,IF(B184=data!$S$5,(M184*10)/3.4,"zvolte typ stavby")))) -> 36.03773585 | O184: 19000000
A185: III/26811 Hoškovice - bodová závada před mostem 26811-2 | B185: řešení bodové závady a/nebo bezpečnostního rizika (křižovatky, opěrné zdi, skalní masivy) | D185: 1 | E185: 2 | F185: 1 | G185: 6 | H185: 0 | I185: 2 | J185: 0 | L185: 0 | M185: =IF(B185=data!$S$2,D185*0.7+E185*0.2+F185*0.8+G185+H185*0.2+I185+J185*0.3+K185*0.5+L185*0.2,IF(B185=data!$S$3,D185*0.1+E185*0.3+F185*0.1+G185+I185+J185*0.5+K185*0.4,IF(B185=data!$S$4,D185*0.6+E185*0.7+F185+G185+I185+L185,IF(B185=data!$S$5,D185*0.7+E185+H185*0.7+I185,"zvolte typ stavby")))) -> 11 | N185: =IF(B185=data!$S$2,(M185*10)/4.9,IF(B185=data!$S$3,(M185*10)/3.4,IF(B185=data!$S$4,(M185*10)/5.3,IF(B185=data!$S$5,(M185*10)/3.4,"zvolte typ stavby")))) -> 20.75471698 | O185: 10000000
M186: =IF(B186=data!$S$2,D186*0.7+E186*0.2+F186*0.8+G186+H186*0.2+I186+J186*0.3+K186*0.5+L186*0.2,IF(B186=data!$S$3,D186*0.1+E186*0.3+F186*0.1+G186+I186+J186*0.5+K186*0.4,IF(B186=data!$S$4,D186*0.6+E186*0.7+F186+G186+I186+L186,IF(B186=data!$S$5,D186*0.7+E186+H186*0.7+I186,"zvolte typ stavby")))) -> zvolte typ stavby | N186: =IF(B186=data!$S$2,(M186*10)/4.9,IF(B186=data!$S$3,(M186*10)/3.4,IF(B186=data!$S$4,(M186*10)/5.3,IF(B186=data!$S$5,(M186*10)/3.4,"zvolte typ stavby")))) -> zvolte typ stavby
A187: II/116 Srbsko, havárie odvodnění | B187: řešení bodové závady a/nebo bezpečnostního rizika (křižovatky, opěrné zdi, skalní masivy) | D187: 4 | E187: 7 | F187: 10 | G187: 10 | H187: 1 | I187: 7 | J187: 0 | K187: 0 | L187: 2 | M187: =IF(B187=data!$S$2,D187*0.7+E187*0.2+F187*0.8+G187+H187*0.2+I187+J187*0.3+K187*0.5+L187*0.2,IF(B187=data!$S$3,D187*0.1+E187*0.3+F187*0.1+G187+I187+J187*0.5+K187*0.4,IF(B187=data!$S$4,D187*0.6+E187*0.7+F187+G187+I187+L187,IF(B187=data!$S$5,D187*0.7+E187+H187*0.7+I187,"zvolte typ stavby")))) -> 36.3 | N187: =IF(B187=data!$S$2,(M187*10)/4.9,IF(B187=data!$S$3,(M187*10)/3.4,IF(B187=data!$S$4,(M187*10)/5.3,IF(B187=data!$S$5,(M187*10)/3.4,"zvolte typ stavby")))) -> 68.49056604 | O187: 1500000
A188: II/11553 Pičín, rekonstrukce opěrné zdi | B188: řešení bodové závady a/nebo bezpečnostního rizika (křižovatky, opěrné zdi, skalní masivy) | D188: 2 | E188: 7 | F188: 10 | G188: 10 | H188: 1 | I188: 7 | J188: 0 | K188: 0 | L188: 4 | M188: =IF(B188=data!$S$2,D188*0.7+E188*0.2+F188*0.8+G188+H188*0.2+I188+J188*0.3+K188*0.5+L188*0.2,IF(B188=data!$S$3,D188*0.1+E188*0.3+F188*0.1+G188+I188+J188*0.5+K188*0.4,IF(B188=data!$S$4,D188*0.6+E188*0.7+F188+G188+I188+L188,IF(B188=data!$S$5,D188*0.7+E188+H188*0.7+I188,"zvolte typ stavby")))) -> 37.1 | N188: =IF(B188=data!$S$2,(M188*10)/4.9,IF(B188=data!$S$3,(M188*10)/3.4,IF(B188=data!$S$4,(M188*10)/5.3,IF(B188=data!$S$5,(M188*10)/3.4,"zvolte typ stavby")))) -> 70 | O188: 6 000 000,-
A189: II/150 Načeradec - Horní Lhota - hr. kraje | B189: oprava a rekonstrukce | D189: 3 | E189: 10 | F189: 10 | G189: 10 | H189: 10 | I189: 10 | J189: 0 | K189: 10 | L189: 4 | M189: =IF(B189=data!$S$2,D189*0.7+E189*0.2+F189*0.8+G189+H189*0.2+I189+J189*0.3+K189*0.5+L189*0.2,IF(B189=data!$S$3,D189*0.1+E189*0.3+F189*0.1+G189+I189+J189*0.5+K189*0.4,IF(B189=data!$S$4,D189*0.6+E189*0.7+F189+G189+I189+L189,IF(B189=data!$S$5,D189*0.7+E189+H189*0.7+I189,"zvolte typ stavby")))) -> 39.9 | N189: =IF(B189=data!$S$2,(M189*10)/4.9,IF(B189=data!$S$3,(M189*10)/3.4,IF(B189=data!$S$4,(M189*10)/5.3,IF(B189=data!$S$5,(M189*10)/3.4,"zvolte typ stavby")))) -> 81.42857143 | O189: 132 000 000,-
A190: III/33310 Zeleneč - Svémyslice | B190: oprava a rekonstrukce | C190: Rekonstrukce | D190: 4 | E190: 7 | F190: 10 | G190: 6 | H190: 10 | I190: 10 | J190: 0 | K190: 10 | L190: 2 | M190: =IF(B190=data!$S$2,D190*0.7+E190*0.2+F190*0.8+G190+H190*0.2+I190+J190*0.3+K190*0.5+L190*0.2,IF(B190=data!$S$3,D190*0.1+E190*0.3+F190*0.1+G190+I190+J190*0.5+K190*0.4,IF(B190=data!$S$4,D190*0.6+E190*0.7+F190+G190+I190+L190,IF(B190=data!$S$5,D190*0.7+E190+H190*0.7+I190,"zvolte typ stavby")))) -> 35.6 | N190: =IF(B190=data!$S$2,(M190*10)/4.9,IF(B190=data!$S$3,(M190*10)/3.4,IF(B190=data!$S$4,(M190*10)/5.3,IF(B190=data!$S$5,(M190*10)/3.4,"zvolte typ stavby")))) -> 72.65306122 | O190: 30000000
A191: II/101 Neratovice - Jiřice | B191: oprava a rekonstrukce | C191: Rekonstrukce | D191: 5 | E191: 10 | F191: 10 | G191: 10 | H191: 1 | I191: 10 | J191: 0 | K191: 10 | L191: 2 | M191: =IF(B191=data!$S$2,D191*0.7+E191*0.2+F191*0.8+G191+H191*0.2+I191+J191*0.3+K191*0.5+L191*0.2,IF(B191=data!$S$3,D191*0.1+E191*0.3+F191*0.1+G191+I191+J191*0.5+K191*0.4,IF(B191=data!$S$4,D191*0.6+E191*0.7+F191+G191+I191+L191,IF(B191=data!$S$5,D191*0.7+E191+H191*0.7+I191,"zvolte typ stavby")))) -> 39.1 | N191: =IF(B191=data!$S$2,(M191*10)/4.9,IF(B191=data!$S$3,(M191*10)/3.4,IF(B191=data!$S$4,(M191*10)/5.3,IF(B191=data!$S$5,(M191*10)/3.4,"zvolte typ stavby")))) -> 79.79591837 | O191: 30000000
A192: III32914 Kostelní Lhota -Pečky | B192: oprava a rekonstrukce | M192: =IF(B192=data!$S$2,D192*0.7+E192*0.2+F192*0.8+G192+H192*0.2+I192+J192*0.3+K192*0.5+L192*0.2,IF(B192=data!$S$3,D192*0.1+E192*0.3+F192*0.1+G192+I192+J192*0.5+K192*0.4,IF(B192=data!$S$4,D192*0.6+E192*0.7+F192+G192+I192+L192,IF(B192=data!$S$5,D192*0.7+E192+H192*0.7+I192,"zvolte typ stavby")))) -> 0 | N192: =IF(B192=data!$S$2,(M192*10)/4.9,IF(B192=data!$S$3,(M192*10)/3.4,IF(B192=data!$S$4,(M192*10)/5.3,IF(B192=data!$S$5,(M192*10)/3.4,"zvolte typ stavby")))) -> 0 | O192: 20000000
A193: III/32710 Týnec nad Labem-Hranice kraje | B193: oprava a rekonstrukce | M193: =IF(B193=data!$S$2,D193*0.7+E193*0.2+F193*0.8+G193+H193*0.2+I193+J193*0.3+K193*0.5+L193*0.2,IF(B193=data!$S$3,D193*0.1+E193*0.3+F193*0.1+G193+I193+J193*0.5+K193*0.4,IF(B193=data!$S$4,D193*0.6+E193*0.7+F193+G193+I193+L193,IF(B193=data!$S$5,D193*0.7+E193+H193*0.7+I193,"zvolte typ stavby")))) -> 0 | N193: =IF(B193=data!$S$2,(M193*10)/4.9,IF(B193=data!$S$3,(M193*10)/3.4,IF(B193=data!$S$4,(M193*10)/5.3,IF(B193=data!$S$5,(M193*10)/3.4,"zvolte typ stavby")))) -> 0 | O193: 10000000
M194: =IF(B194=data!$S$2,D194*0.7+E194*0.2+F194*0.8+G194+H194*0.2+I194+J194*0.3+K194*0.5+L194*0.2,IF(B194=data!$S$3,D194*0.1+E194*0.3+F194*0.1+G194+I194+J194*0.5+K194*0.4,IF(B194=data!$S$4,D194*0.6+E194*0.7+F194+G194+I194+L194,IF(B194=data!$S$5,D194*0.7+E194+H194*0.7+I194,"zvolte typ stavby")))) -> zvolte typ stavby | N194: =IF(B194=data!$S$2,(M194*10)/4.9,IF(B194=data!$S$3,(M194*10)/3.4,IF(B194=data!$S$4,(M194*10)/5.3,IF(B194=data!$S$5,(M194*10)/3.4,"zvolte typ stavby")))) -> zvolte typ stavby
M195: =IF(B195=data!$S$2,D195*0.7+E195*0.2+F195*0.8+G195+H195*0.2+I195+J195*0.3+K195*0.5+L195*0.2,IF(B195=data!$S$3,D195*0.1+E195*0.3+F195*0.1+G195+I195+J195*0.5+K195*0.4,IF(B195=data!$S$4,D195*0.6+E195*0.7+F195+G195+I195+L195,IF(B195=data!$S$5,D195*0.7+E195+H195*0.7+I195,"zvolte typ stavby")))) -> zvolte typ stavby | N195: =IF(B195=data!$S$2,(M195*10)/4.9,IF(B195=data!$S$3,(M195*10)/3.4,IF(B195=data!$S$4,(M195*10)/5.3,IF(B195=data!$S$5,(M195*10)/3.4,"zvolte typ stavby")))) -> zvolte typ stavby
M196: =IF(B196=data!$S$2,D196*0.7+E196*0.2+F196*0.8+G196+H196*0.2+I196+J196*0.3+K196*0.5+L196*0.2,IF(B196=data!$S$3,D196*0.1+E196*0.3+F196*0.1+G196+I196+J196*0.5+K196*0.4,IF(B196=data!$S$4,D196*0.6+E196*0.7+F196+G196+I196+L196,IF(B196=data!$S$5,D196*0.7+E196+H196*0.7+I196,"zvolte typ stavby")))) -> zvolte typ stavby | N196: =IF(B196=data!$S$2,(M196*10)/4.9,IF(B196=data!$S$3,(M196*10)/3.4,IF(B196=data!$S$4,(M196*10)/5.3,IF(B196=data!$S$5,(M196*10)/3.4,"zvolte typ stavby")))) -> zvolte typ stavby
M197: =IF(B197=data!$S$2,D197*0.7+E197*0.2+F197*0.8+G197+H197*0.2+I197+J197*0.3+K197*0.5+L197*0.2,IF(B197=data!$S$3,D197*0.1+E197*0.3+F197*0.1+G197+I197+J197*0.5+K197*0.4,IF(B197=data!$S$4,D197*0.6+E197*0.7+F197+G197+I197+L197,IF(B197=data!$S$5,D197*0.7+E197+H197*0.7+I197,"zvolte typ stavby")))) -> zvolte typ stavby | N197: =IF(B197=data!$S$2,(M197*10)/4.9,IF(B197=data!$S$3,(M197*10)/3.4,IF(B197=data!$S$4,(M197*10)/5.3,IF(B197=data!$S$5,(M197*10)/3.4,"zvolte typ stavby")))) -> zvolte typ stavby
M198: =IF(B198=data!$S$2,D198*0.7+E198*0.2+F198*0.8+G198+H198*0.2+I198+J198*0.3+K198*0.5+L198*0.2,IF(B198=data!$S$3,D198*0.1+E198*0.3+F198*0.1+G198+I198+J198*0.5+K198*0.4,IF(B198=data!$S$4,D198*0.6+E198*0.7+F198+G198+I198+L198,IF(B198=data!$S$5,D198*0.7+E198+H198*0.7+I198,"zvolte typ stavby")))) -> zvolte typ stavby | N198: =IF(B198=data!$S$2,(M198*10)/4.9,IF(B198=data!$S$3,(M198*10)/3.4,IF(B198=data!$S$4,(M198*10)/5.3,IF(B198=data!$S$5,(M198*10)/3.4,"zvolte typ stavby")))) -> zvolte typ stavby
M199: =IF(B199=data!$S$2,D199*0.7+E199*0.2+F199*0.8+G199+H199*0.2+I199+J199*0.3+K199*0.5+L199*0.2,IF(B199=data!$S$3,D199*0.1+E199*0.3+F199*0.1+G199+I199+J199*0.5+K199*0.4,IF(B199=data!$S$4,D199*0.6+E199*0.7+F199+G199+I199+L199,IF(B199=data!$S$5,D199*0.7+E199+H199*0.7+I199,"zvolte typ stavby")))) -> zvolte typ stavby | N199: =IF(B199=data!$S$2,(M199*10)/4.9,IF(B199=data!$S$3,(M199*10)/3.4,IF(B199=data!$S$4,(M199*10)/5.3,IF(B199=data!$S$5,(M199*10)/3.4,"zvolte typ stavby")))) -> zvolte typ stavby
M200: =IF(B200=data!$S$2,D200*0.7+E200*0.2+F200*0.8+G200+H200*0.2+I200+J200*0.3+K200*0.5+L200*0.2,IF(B200=data!$S$3,D200*0.1+E200*0.3+F200*0.1+G200+I200+J200*0.5+K200*0.4,IF(B200=data!$S$4,D200*0.6+E200*0.7+F200+G200+I200+L200,IF(B200=data!$S$5,D200*0.7+E200+H200*0.7+I200,"zvolte typ stavby")))) -> zvolte typ stavby | N200: =IF(B200=data!$S$2,(M200*10)/4.9,IF(B200=data!$S$3,(M200*10)/3.4,IF(B200=data!$S$4,(M200*10)/5.3,IF(B200=data!$S$5,(M200*10)/3.4,"zvolte typ stavby")))) -> zvolte typ stavby
... 154 more rows

Sheet data (hidden)
A1: data pro list Příprava | L1: podkategorie | R1: data pro list Záměry | AC1: podkategorie
B2: oprava a rekonstrukce | C2: 0 | D2: 0 | E2: 0 | F2: 0 | G2: 0 | H2: 0 | I2: 0 | J2: 0 | L2: =IF('v přípravě a připraveno'!B2=data!$B$2,"Souvislá údržba",IF('v přípravě a připraveno'!B2=data!$B$3,"Most","-")) -> - | M2: =IF('v přípravě a připraveno'!B2=data!$B$2,"Rekonstrukce",IF('v přípravě a připraveno'!B2=data!$B$3,"Propustek","-")) -> - | S2: oprava a rekonstrukce | T2: 0 | U2: 0 | V2: 0 | W2: 0 | X2: 0 | Y2: 0 | Z2: 0 | AA2: 0 | AC2: =IF('náměty na projekční přípravu'!B2=data!$S$2,"Souvislá údržba",IF('náměty na projekční přípravu'!B2=data!$S$3,"Most","-")) -> Most | AD2: =IF('náměty na projekční přípravu'!B2=data!$S$2,"Rekonstrukce",IF('náměty na projekční přípravu'!B2=data!$S$3,"Propustek","-")) -> Propustek
B3: mostní objekty a propustky | C3: 1 | D3: 5 | E3: 1 | F3: 1 | G3: 1 | H3: 2 | I3: 10 | J3: 2 | L3: =IF('v přípravě a připraveno'!#REF!=data!$B$2,"Souvislá údržba",IF('v přípravě a připraveno'!#REF!=data!$B$3,"Most","-")) ->  | M3: =IF('v přípravě a připraveno'!#REF!=data!$B$2,"Rekonstrukce",IF('v přípravě a připraveno'!#REF!=data!$B$3,"Propustek","-")) ->  | S3: mostní objekty a propustky | T3: 1 | U3: 5 | V3: 1 | W3: 1 | X3: 1 | Y3: 2 | Z3: 10 | AA3: 2 | AC3: =IF('náměty na projekční přípravu'!B3=data!$S$2,"Souvislá údržba",IF('náměty na projekční přípravu'!B3=data!$S$3,"Most","-")) -> Most | AD3: =IF('náměty na projekční přípravu'!B3=data!$S$2,"Rekonstrukce",IF('náměty na projekční přípravu'!B3=data!$S$3,"Propustek","-")) -> Propustek
B4: řešení bodové závady a/nebo bezpečnostního rizika (křižovatky, opěrné zdi, skalní masivy) | C4: 2 | D4: 10 | E4: 3 | F4: 2 | G4: 10 | H4: 4 | J4: 5 | L4: =IF('v přípravě a připraveno'!B3=data!$B$2,"Souvislá údržba",IF('v přípravě a připraveno'!B3=data!$B$3,"Most","-")) -> Souvislá údržba | M4: =IF('v přípravě a připraveno'!B3=data!$B$2,"Rekonstrukce",IF('v přípravě a připraveno'!B3=data!$B$3,"Propustek","-")) -> Rekonstrukce | S4: řešení bodové závady a/nebo bezpečnostního rizika (křižovatky, opěrné zdi, skalní masivy) | T4: 2 | U4: 10 | V4: 3 | W4: 2 | X4: 10 | Y4: 4 | AA4: 5 | AC4: =IF('náměty na projekční přípravu'!B4=data!$S$2,"Souvislá údržba",IF('náměty na projekční přípravu'!B4=data!$S$3,"Most","-")) -> Most | AD4: =IF('náměty na projekční přípravu'!B4=data!$S$2,"Rekonstrukce",IF('náměty na projekční přípravu'!B4=data!$S$3,"Propustek","-")) -> Propustek
B5: novostavba (obchvat, přeložka, propojka) | C5: 3 | E5: 6 | F5: 3 | H5: 7 | J5: 8 | L5: =IF('v přípravě a připraveno'!B4=data!$B$2,"Souvislá údržba",IF('v přípravě a připraveno'!B4=data!$B$3,"Most","-")) -> - | M5: =IF('v přípravě a připraveno'!B4=data!$B$2,"Rekonstrukce",IF('v přípravě a připraveno'!B4=data!$B$3,"Propustek","-")) -> - | S5: novostavba (obchvat, přeložka, propojka) | T5: 3 | V5: 6 | W5: 3 | Y5: 7 | AA5: 8 | AC5: =IF('náměty na projekční přípravu'!B5=data!$S$2,"Souvislá údržba",IF('náměty na projekční přípravu'!B5=data!$S$3,"Most","-")) -> Most | AD5: =IF('náměty na projekční přípravu'!B5=data!$S$2,"Rekonstrukce",IF('náměty na projekční přípravu'!B5=data!$S$3,"Propustek","-")) -> Propustek
C6: 4 | E6: 10 | F6: 6 | H6: 10 | J6: 10 | L6: =IF('v přípravě a připraveno'!B5=data!$B$2,"Souvislá údržba",IF('v přípravě a připraveno'!B5=data!$B$3,"Most","-")) -> - | M6: =IF('v přípravě a připraveno'!B5=data!$B$2,"Rekonstrukce",IF('v přípravě a připraveno'!B5=data!$B$3,"Propustek","-")) -> - | T6: 4 | V6: 10 | W6: 6 | Y6: 10 | AA6: 10 | AC6: =IF('náměty na projekční přípravu'!B6=data!$S$2,"Souvislá údržba",IF('náměty na projekční přípravu'!B6=data!$S$3,"Most","-")) -> Most | AD6: =IF('náměty na projekční přípravu'!B6=data!$S$2,"Rekonstrukce",IF('náměty na projekční přípravu'!B6=data!$S$3,"Propustek","-")) -> Propustek
C7: 5 | F7: 10 | L7: =IF('v přípravě a připraveno'!B6=data!$B$2,"Souvislá údržba",IF('v přípravě a připraveno'!B6=data!$B$3,"Most","-")) -> - | M7: =IF('v přípravě a připraveno'!B6=data!$B$2,"Rekonstrukce",IF('v přípravě a připraveno'!B6=data!$B$3,"Propustek","-")) -> - | T7: 5 | W7: 10 | AC7: =IF('náměty na projekční přípravu'!B7=data!$S$2,"Souvislá údržba",IF('náměty na projekční přípravu'!B7=data!$S$3,"Most","-")) -> Most | AD7: =IF('náměty na projekční přípravu'!B7=data!$S$2,"Rekonstrukce",IF('náměty na projekční přípravu'!B7=data!$S$3,"Propustek","-")) -> Propustek
C8: 6 | L8: =IF('v přípravě a připraveno'!B7=data!$B$2,"Souvislá údržba",IF('v přípravě a připraveno'!B7=data!$B$3,"Most","-")) -> - | M8: =IF('v přípravě a připraveno'!B7=data!$B$2,"Rekonstrukce",IF('v přípravě a připraveno'!B7=data!$B$3,"Propustek","-")) -> - | S8: souvislá údržba | T8: 6 | AC8: =IF('náměty na projekční přípravu'!B8=data!$S$2,"Souvislá údržba",IF('náměty na projekční přípravu'!B8=data!$S$3,"Most","-")) -> Most | AD8: =IF('náměty na projekční přípravu'!B8=data!$S$2,"Rekonstrukce",IF('náměty na projekční přípravu'!B8=data!$S$3,"Propustek","-")) -> Propustek
C9: 7 | L9: =IF('v přípravě a připraveno'!B8=data!$B$2,"Souvislá údržba",IF('v přípravě a připraveno'!B8=data!$B$3,"Most","-")) -> - | M9: =IF('v přípravě a připraveno'!B8=data!$B$2,"Rekonstrukce",IF('v přípravě a připraveno'!B8=data!$B$3,"Propustek","-")) -> - | S9: rekonstrukce | T9: 7 | AC9: =IF('náměty na projekční přípravu'!B9=data!$S$2,"Souvislá údržba",IF('náměty na projekční přípravu'!B9=data!$S$3,"Most","-")) -> Most | AD9: =IF('náměty na projekční přípravu'!B9=data!$S$2,"Rekonstrukce",IF('náměty na projekční přípravu'!B9=data!$S$3,"Propustek","-")) -> Propustek
C10: 8 | L10: =IF('v přípravě a připraveno'!B9=data!$B$2,"Souvislá údržba",IF('v přípravě a připraveno'!B9=data!$B$3,"Most","-")) -> - | M10: =IF('v přípravě a připraveno'!B9=data!$B$2,"Rekonstrukce",IF('v přípravě a připraveno'!B9=data!$B$3,"Propustek","-")) -> - | T10: 8 | AC10: =IF('náměty na projekční přípravu'!B10=data!$S$2,"Souvislá údržba",IF('náměty na projekční přípravu'!B10=data!$S$3,"Most","-")) -> Most | AD10: =IF('náměty na projekční přípravu'!B10=data!$S$2,"Rekonstrukce",IF('náměty na projekční přípravu'!B10=data!$S$3,"Propustek","-")) -> Propustek
C11: 9 | L11: =IF('v přípravě a připraveno'!B10=data!$B$2,"Souvislá údržba",IF('v přípravě a připraveno'!B10=data!$B$3,"Most","-")) -> - | M11: =IF('v přípravě a připraveno'!B10=data!$B$2,"Rekonstrukce",IF('v přípravě a připraveno'!B10=data!$B$3,"Propustek","-")) -> - | T11: 9 | AC11: =IF('náměty na projekční přípravu'!B11=data!$S$2,"Souvislá údržba",IF('náměty na projekční přípravu'!B11=data!$S$3,"Most","-")) -> Most | AD11: =IF('náměty na projekční přípravu'!B11=data!$S$2,"Rekonstrukce",IF('náměty na projekční přípravu'!B11=data!$S$3,"Propustek","-")) -> Propustek
C12: 10 | L12: =IF('v přípravě a připraveno'!B11=data!$B$2,"Souvislá údržba",IF('v přípravě a připraveno'!B11=data!$B$3,"Most","-")) -> - | M12: =IF('v přípravě a připraveno'!B11=data!$B$2,"Rekonstrukce",IF('v přípravě a připraveno'!B11=data!$B$3,"Propustek","-")) -> - | T12: 10 | AC12: =IF('náměty na projekční přípravu'!B12=data!$S$2,"Souvislá údržba",IF('náměty na projekční přípravu'!B12=data!$S$3,"Most","-")) -> Most | AD12: =IF('náměty na projekční přípravu'!B12=data!$S$2,"Rekonstrukce",IF('náměty na projekční přípravu'!B12=data!$S$3,"Propustek","-")) -> Propustek
L13: =IF('v přípravě a připraveno'!B12=data!$B$2,"Souvislá údržba",IF('v přípravě a připraveno'!B12=data!$B$3,"Most","-")) -> Souvislá údržba | M13: =IF('v přípravě a připraveno'!B12=data!$B$2,"Rekonstrukce",IF('v přípravě a připraveno'!B12=data!$B$3,"Propustek","-")) -> Rekonstrukce | AC13: =IF('náměty na projekční přípravu'!B13=data!$S$2,"Souvislá údržba",IF('náměty na projekční přípravu'!B13=data!$S$3,"Most","-")) -> Most | AD13: =IF('náměty na projekční přípravu'!B13=data!$S$2,"Rekonstrukce",IF('náměty na projekční přípravu'!B13=data!$S$3,"Propustek","-")) -> Propustek
L14: =IF('v přípravě a připraveno'!B13=data!$B$2,"Souvislá údržba",IF('v přípravě a připraveno'!B13=data!$B$3,"Most","-")) -> - | M14: =IF('v přípravě a připraveno'!B13=data!$B$2,"Rekonstrukce",IF('v přípravě a připraveno'!B13=data!$B$3,"Propustek","-")) -> - | AC14: =IF('náměty na projekční přípravu'!B14=data!$S$2,"Souvislá údržba",IF('náměty na projekční přípravu'!B14=data!$S$3,"Most","-")) -> Most | AD14: =IF('náměty na projekční přípravu'!B14=data!$S$2,"Rekonstrukce",IF('náměty na projekční přípravu'!B14=data!$S$3,"Propustek","-")) -> Propustek
L15: =IF('v přípravě a připraveno'!B14=data!$B$2,"Souvislá údržba",IF('v přípravě a připraveno'!B14=data!$B$3,"Most","-")) -> - | M15: =IF('v přípravě a připraveno'!B14=data!$B$2,"Rekonstrukce",IF('v přípravě a připraveno'!B14=data!$B$3,"Propustek","-")) -> - | AC15: =IF('náměty na projekční přípravu'!B15=data!$S$2,"Souvislá údržba",IF('náměty na projekční přípravu'!B15=data!$S$3,"Most","-")) -> - | AD15: =IF('náměty na projekční přípravu'!B15=data!$S$2,"Rekonstrukce",IF('náměty na projekční přípravu'!B15=data!$S$3,"Propustek","-")) -> -
L16: =IF('v přípravě a připraveno'!B15=data!$B$2,"Souvislá údržba",IF('v přípravě a připraveno'!B15=data!$B$3,"Most","-")) -> - | M16: =IF('v přípravě a připraveno'!B15=data!$B$2,"Rekonstrukce",IF('v přípravě a připraveno'!B15=data!$B$3,"Propustek","-")) -> - | AC16: =IF('náměty na projekční přípravu'!#REF!=data!$S$2,"Souvislá údržba",IF('náměty na projekční přípravu'!#REF!=data!$S$3,"Most","-")) ->  | AD16: =IF('náměty na projekční přípravu'!#REF!=data!$S$2,"Rekonstrukce",IF('náměty na projekční přípravu'!#REF!=data!$S$3,"Propustek","-")) -> 
L17: =IF('v přípravě a připraveno'!B16=data!$B$2,"Souvislá údržba",IF('v přípravě a připraveno'!B16=data!$B$3,"Most","-")) -> Souvislá údržba | M17: =IF('v přípravě a připraveno'!B16=data!$B$2,"Rekonstrukce",IF('v přípravě a připraveno'!B16=data!$B$3,"Propustek","-")) -> Rekonstrukce | AC17: =IF('náměty na projekční přípravu'!B16=data!$S$2,"Souvislá údržba",IF('náměty na projekční přípravu'!B16=data!$S$3,"Most","-")) -> Souvislá údržba | AD17: =IF('náměty na projekční přípravu'!B16=data!$S$2,"Rekonstrukce",IF('náměty na projekční přípravu'!B16=data!$S$3,"Propustek","-")) -> Rekonstrukce
B18: Zdroje financování | L18: =IF('v přípravě a připraveno'!B17=data!$B$2,"Souvislá údržba",IF('v přípravě a připraveno'!B17=data!$B$3,"Most","-")) -> - | M18: =IF('v přípravě a připraveno'!B17=data!$B$2,"Rekonstrukce",IF('v přípravě a připraveno'!B17=data!$B$3,"Propustek","-")) -> - | AC18: =IF('náměty na projekční přípravu'!B17=data!$S$2,"Souvislá údržba",IF('náměty na projekční přípravu'!B17=data!$S$3,"Most","-")) -> - | AD18: =IF('náměty na projekční přípravu'!B17=data!$S$2,"Rekonstrukce",IF('náměty na projekční přípravu'!B17=data!$S$3,"Propustek","-")) -> -
B19: - | L19: =IF('v přípravě a připraveno'!B18=data!$B$2,"Souvislá údržba",IF('v přípravě a připraveno'!B18=data!$B$3,"Most","-")) -> - | M19: =IF('v přípravě a připraveno'!B18=data!$B$2,"Rekonstrukce",IF('v přípravě a připraveno'!B18=data!$B$3,"Propustek","-")) -> - | AC19: =IF('náměty na projekční přípravu'!B18=data!$S$2,"Souvislá údržba",IF('náměty na projekční přípravu'!B18=data!$S$3,"Most","-")) -> Souvislá údržba | AD19: =IF('náměty na projekční přípravu'!B18=data!$S$2,"Rekonstrukce",IF('náměty na projekční přípravu'!B18=data!$S$3,"Propustek","-")) -> Rekonstrukce
B20: SFDI – NZ – národní zdroje | L20: =IF('v přípravě a připraveno'!B19=data!$B$2,"Souvislá údržba",IF('v přípravě a připraveno'!B19=data!$B$3,"Most","-")) -> - | M20: =IF('v přípravě a připraveno'!B19=data!$B$2,"Rekonstrukce",IF('v přípravě a připraveno'!B19=data!$B$3,"Propustek","-")) -> - | AC20: =IF('náměty na projekční přípravu'!B19=data!$S$2,"Souvislá údržba",IF('náměty na projekční přípravu'!B19=data!$S$3,"Most","-")) -> Souvislá údržba | AD20: =IF('náměty na projekční přípravu'!B19=data!$S$2,"Rekonstrukce",IF('náměty na projekční přípravu'!B19=data!$S$3,"Propustek","-")) -> Rekonstrukce
B21: SFDI – UD – účelová dotace | L21: =IF('v přípravě a připraveno'!B20=data!$B$2,"Souvislá údržba",IF('v přípravě a připraveno'!B20=data!$B$3,"Most","-")) -> - | M21: =IF('v přípravě a připraveno'!B20=data!$B$2,"Rekonstrukce",IF('v přípravě a připraveno'!B20=data!$B$3,"Propustek","-")) -> - | AC21: =IF('náměty na projekční přípravu'!B20=data!$S$2,"Souvislá údržba",IF('náměty na projekční přípravu'!B20=data!$S$3,"Most","-")) -> Souvislá údržba | AD21: =IF('náměty na projekční přípravu'!B20=data!$S$2,"Rekonstrukce",IF('náměty na projekční přípravu'!B20=data!$S$3,"Propustek","-")) -> Rekonstrukce
B22: KÚ – zásobník investic kap. 12 | L22: =IF('v přípravě a připraveno'!B21=data!$B$2,"Souvislá údržba",IF('v přípravě a připraveno'!B21=data!$B$3,"Most","-")) -> - | M22: =IF('v přípravě a připraveno'!B21=data!$B$2,"Rekonstrukce",IF('v přípravě a připraveno'!B21=data!$B$3,"Propustek","-")) -> - | AC22: =IF('náměty na projekční přípravu'!B21=data!$S$2,"Souvislá údržba",IF('náměty na projekční přípravu'!B21=data!$S$3,"Most","-")) -> Souvislá údržba | AD22: =IF('náměty na projekční přípravu'!B21=data!$S$2,"Rekonstrukce",IF('náměty na projekční přípravu'!B21=data!$S$3,"Propustek","-")) -> Rekonstrukce
B23: IROP 2 | L23: =IF('v přípravě a připraveno'!B22=data!$B$2,"Souvislá údržba",IF('v přípravě a připraveno'!B22=data!$B$3,"Most","-")) -> - | M23: =IF('v přípravě a připraveno'!B22=data!$B$2,"Rekonstrukce",IF('v přípravě a připraveno'!B22=data!$B$3,"Propustek","-")) -> - | AC23: =IF('náměty na projekční přípravu'!B22=data!$S$2,"Souvislá údržba",IF('náměty na projekční přípravu'!B22=data!$S$3,"Most","-")) -> Souvislá údržba | AD23: =IF('náměty na projekční přípravu'!B22=data!$S$2,"Rekonstrukce",IF('náměty na projekční přípravu'!B22=data!$S$3,"Propustek","-")) -> Rekonstrukce
B24: Vlastní zdroje KSÚS | L24: =IF('v přípravě a připraveno'!B24=data!$B$2,"Souvislá údržba",IF('v přípravě a připraveno'!B24=data!$B$3,"Most","-")) -> Souvislá údržba | M24: =IF('v přípravě a připraveno'!B24=data!$B$2,"Rekonstrukce",IF('v přípravě a připraveno'!B24=data!$B$3,"Propustek","-")) -> Rekonstrukce | AC24: =IF('náměty na projekční přípravu'!B23=data!$S$2,"Souvislá údržba",IF('náměty na projekční přípravu'!B23=data!$S$3,"Most","-")) -> Souvislá údržba | AD24: =IF('náměty na projekční přípravu'!B23=data!$S$2,"Rekonstrukce",IF('náměty na projekční přípravu'!B23=data!$S$3,"Propustek","-")) -> Rekonstrukce
B25: OPŽP | L25: =IF('v přípravě a připraveno'!#REF!=data!$B$2,"Souvislá údržba",IF('v přípravě a připraveno'!#REF!=data!$B$3,"Most","-")) ->  | M25: =IF('v přípravě a připraveno'!#REF!=data!$B$2,"Rekonstrukce",IF('v přípravě a připraveno'!#REF!=data!$B$3,"Propustek","-")) ->  | AC25: =IF('náměty na projekční přípravu'!B24=data!$S$2,"Souvislá údržba",IF('náměty na projekční přípravu'!B24=data!$S$3,"Most","-")) -> Souvislá údržba | AD25: =IF('náměty na projekční přípravu'!B24=data!$S$2,"Rekonstrukce",IF('náměty na projekční přípravu'!B24=data!$S$3,"Propustek","-")) -> Rekonstrukce
L26: =IF('v přípravě a připraveno'!B25=data!$B$2,"Souvislá údržba",IF('v přípravě a připraveno'!B25=data!$B$3,"Most","-")) -> Souvislá údržba | M26: =IF('v přípravě a připraveno'!B25=data!$B$2,"Rekonstrukce",IF('v přípravě a připraveno'!B25=data!$B$3,"Propustek","-")) -> Rekonstrukce | AC26: =IF('náměty na projekční přípravu'!B25=data!$S$2,"Souvislá údržba",IF('náměty na projekční přípravu'!B25=data!$S$3,"Most","-")) -> Souvislá údržba | AD26: =IF('náměty na projekční přípravu'!B25=data!$S$2,"Rekonstrukce",IF('náměty na projekční přípravu'!B25=data!$S$3,"Propustek","-")) -> Rekonstrukce
L27: =IF('v přípravě a připraveno'!B26=data!$B$2,"Souvislá údržba",IF('v přípravě a připraveno'!B26=data!$B$3,"Most","-")) -> - | M27: =IF('v přípravě a připraveno'!B26=data!$B$2,"Rekonstrukce",IF('v přípravě a připraveno'!B26=data!$B$3,"Propustek","-")) -> - | AC27: =IF('náměty na projekční přípravu'!B26=data!$S$2,"Souvislá údržba",IF('náměty na projekční přípravu'!B26=data!$S$3,"Most","-")) -> - | AD27: =IF('náměty na projekční přípravu'!B26=data!$S$2,"Rekonstrukce",IF('náměty na projekční přípravu'!B26=data!$S$3,"Propustek","-")) -> -
L28: =IF('v přípravě a připraveno'!B27=data!$B$2,"Souvislá údržba",IF('v přípravě a připraveno'!B27=data!$B$3,"Most","-")) -> - | M28: =IF('v přípravě a připraveno'!B27=data!$B$2,"Rekonstrukce",IF('v přípravě a připraveno'!B27=data!$B$3,"Propustek","-")) -> - | AC28: =IF('náměty na projekční přípravu'!#REF!=data!$S$2,"Souvislá údržba",IF('náměty na projekční přípravu'!#REF!=data!$S$3,"Most","-")) ->  | AD28: =IF('náměty na projekční přípravu'!#REF!=data!$S$2,"Rekonstrukce",IF('náměty na projekční přípravu'!#REF!=data!$S$3,"Propustek","-")) -> 
L29: =IF('v přípravě a připraveno'!B28=data!$B$2,"Souvislá údržba",IF('v přípravě a připraveno'!B28=data!$B$3,"Most","-")) -> Souvislá údržba | M29: =IF('v přípravě a připraveno'!B28=data!$B$2,"Rekonstrukce",IF('v přípravě a připraveno'!B28=data!$B$3,"Propustek","-")) -> Rekonstrukce | AC29: =IF('náměty na projekční přípravu'!B27=data!$S$2,"Souvislá údržba",IF('náměty na projekční přípravu'!B27=data!$S$3,"Most","-")) -> - | AD29: =IF('náměty na projekční přípravu'!B27=data!$S$2,"Rekonstrukce",IF('náměty na projekční přípravu'!B27=data!$S$3,"Propustek","-")) -> -
L30: =IF('v přípravě a připraveno'!B29=data!$B$2,"Souvislá údržba",IF('v přípravě a připraveno'!B29=data!$B$3,"Most","-")) -> Souvislá údržba | M30: =IF('v přípravě a připraveno'!B29=data!$B$2,"Rekonstrukce",IF('v přípravě a připraveno'!B29=data!$B$3,"Propustek","-")) -> Rekonstrukce | AC30: =IF('náměty na projekční přípravu'!B28=data!$S$2,"Souvislá údržba",IF('náměty na projekční přípravu'!B28=data!$S$3,"Most","-")) -> Souvislá údržba | AD30: =IF('náměty na projekční přípravu'!B28=data!$S$2,"Rekonstrukce",IF('náměty na projekční přípravu'!B28=data!$S$3,"Propustek","-")) -> Rekonstrukce
L31: =IF('v přípravě a připraveno'!B30=data!$B$2,"Souvislá údržba",IF('v přípravě a připraveno'!B30=data!$B$3,"Most","-")) -> Souvislá údržba | M31: =IF('v přípravě a připraveno'!B30=data!$B$2,"Rekonstrukce",IF('v přípravě a připraveno'!B30=data!$B$3,"Propustek","-")) -> Rekonstrukce | AC31: =IF('náměty na projekční přípravu'!B29=data!$S$2,"Souvislá údržba",IF('náměty na projekční přípravu'!B29=data!$S$3,"Most","-")) -> Souvislá údržba | AD31: =IF('náměty na projekční přípravu'!B29=data!$S$2,"Rekonstrukce",IF('náměty na projekční přípravu'!B29=data!$S$3,"Propustek","-")) -> Rekonstrukce
L32: =IF('v přípravě a připraveno'!B31=data!$B$2,"Souvislá údržba",IF('v přípravě a připraveno'!B31=data!$B$3,"Most","-")) -> - | M32: =IF('v přípravě a připraveno'!B31=data!$B$2,"Rekonstrukce",IF('v přípravě a připraveno'!B31=data!$B$3,"Propustek","-")) -> - | AC32: =IF('náměty na projekční přípravu'!B30=data!$S$2,"Souvislá údržba",IF('náměty na projekční přípravu'!B30=data!$S$3,"Most","-")) -> Souvislá údržba | AD32: =IF('náměty na projekční přípravu'!B30=data!$S$2,"Rekonstrukce",IF('náměty na projekční přípravu'!B30=data!$S$3,"Propustek","-")) -> Rekonstrukce
L33: =IF('v přípravě a připraveno'!B32=data!$B$2,"Souvislá údržba",IF('v přípravě a připraveno'!B32=data!$B$3,"Most","-")) -> - | M33: =IF('v přípravě a připraveno'!B32=data!$B$2,"Rekonstrukce",IF('v přípravě a připraveno'!B32=data!$B$3,"Propustek","-")) -> - | AC33: =IF('náměty na projekční přípravu'!B31=data!$S$2,"Souvislá údržba",IF('náměty na projekční přípravu'!B31=data!$S$3,"Most","-")) -> Souvislá údržba | AD33: =IF('náměty na projekční přípravu'!B31=data!$S$2,"Rekonstrukce",IF('náměty na projekční přípravu'!B31=data!$S$3,"Propustek","-")) -> Rekonstrukce
L34: =IF('v přípravě a připraveno'!#REF!=data!$B$2,"Souvislá údržba",IF('v přípravě a připraveno'!#REF!=data!$B$3,"Most","-")) ->  | M34: =IF('v přípravě a připraveno'!#REF!=data!$B$2,"Rekonstrukce",IF('v přípravě a připraveno'!#REF!=data!$B$3,"Propustek","-")) ->  | AC34: =IF('náměty na projekční přípravu'!B32=data!$S$2,"Souvislá údržba",IF('náměty na projekční přípravu'!B32=data!$S$3,"Most","-")) -> Souvislá údržba | AD34: =IF('náměty na projekční přípravu'!B32=data!$S$2,"Rekonstrukce",IF('náměty na projekční přípravu'!B32=data!$S$3,"Propustek","-")) -> Rekonstrukce
L35: =IF('v přípravě a připraveno'!B33=data!$B$2,"Souvislá údržba",IF('v přípravě a připraveno'!B33=data!$B$3,"Most","-")) -> Souvislá údržba | M35: =IF('v přípravě a připraveno'!B33=data!$B$2,"Rekonstrukce",IF('v přípravě a připraveno'!B33=data!$B$3,"Propustek","-")) -> Rekonstrukce | AC35: =IF('náměty na projekční přípravu'!B33=data!$S$2,"Souvislá údržba",IF('náměty na projekční přípravu'!B33=data!$S$3,"Most","-")) -> Souvislá údržba | AD35: =IF('náměty na projekční přípravu'!B33=data!$S$2,"Rekonstrukce",IF('náměty na projekční přípravu'!B33=data!$S$3,"Propustek","-")) -> Rekonstrukce
L36: =IF('v přípravě a připraveno'!B34=data!$B$2,"Souvislá údržba",IF('v přípravě a připraveno'!B34=data!$B$3,"Most","-")) -> - | M36: =IF('v přípravě a připraveno'!B34=data!$B$2,"Rekonstrukce",IF('v přípravě a připraveno'!B34=data!$B$3,"Propustek","-")) -> - | AC36: =IF('náměty na projekční přípravu'!B34=data!$S$2,"Souvislá údržba",IF('náměty na projekční přípravu'!B34=data!$S$3,"Most","-")) -> Souvislá údržba | AD36: =IF('náměty na projekční přípravu'!B34=data!$S$2,"Rekonstrukce",IF('náměty na projekční přípravu'!B34=data!$S$3,"Propustek","-")) -> Rekonstrukce
L37: =IF('v přípravě a připraveno'!B35=data!$B$2,"Souvislá údržba",IF('v přípravě a připraveno'!B35=data!$B$3,"Most","-")) -> - | M37: =IF('v přípravě a připraveno'!B35=data!$B$2,"Rekonstrukce",IF('v přípravě a připraveno'!B35=data!$B$3,"Propustek","-")) -> - | AC37: =IF('náměty na projekční přípravu'!B35=data!$S$2,"Souvislá údržba",IF('náměty na projekční přípravu'!B35=data!$S$3,"Most","-")) -> - | AD37: =IF('náměty na projekční přípravu'!B35=data!$S$2,"Rekonstrukce",IF('náměty na projekční přípravu'!B35=data!$S$3,"Propustek","-")) -> -
L38: =IF('v přípravě a připraveno'!B36=data!$B$2,"Souvislá údržba",IF('v přípravě a připraveno'!B36=data!$B$3,"Most","-")) -> - | M38: =IF('v přípravě a připraveno'!B36=data!$B$2,"Rekonstrukce",IF('v přípravě a připraveno'!B36=data!$B$3,"Propustek","-")) -> - | AC38: =IF('náměty na projekční přípravu'!B36=data!$S$2,"Souvislá údržba",IF('náměty na projekční přípravu'!B36=data!$S$3,"Most","-")) -> Souvislá údržba | AD38: =IF('náměty na projekční přípravu'!B36=data!$S$2,"Rekonstrukce",IF('náměty na projekční přípravu'!B36=data!$S$3,"Propustek","-")) -> Rekonstrukce
L39: =IF('v přípravě a připraveno'!B37=data!$B$2,"Souvislá údržba",IF('v přípravě a připraveno'!B37=data!$B$3,"Most","-")) -> - | M39: =IF('v přípravě a připraveno'!B37=data!$B$2,"Rekonstrukce",IF('v přípravě a připraveno'!B37=data!$B$3,"Propustek","-")) -> - | AC39: =IF('náměty na projekční přípravu'!B37=data!$S$2,"Souvislá údržba",IF('náměty na projekční přípravu'!B37=data!$S$3,"Most","-")) -> - | AD39: =IF('náměty na projekční přípravu'!B37=data!$S$2,"Rekonstrukce",IF('náměty na projekční přípravu'!B37=data!$S$3,"Propustek","-")) -> -
L40: =IF('v přípravě a připraveno'!B38=data!$B$2,"Souvislá údržba",IF('v přípravě a připraveno'!B38=data!$B$3,"Most","-")) -> Souvislá údržba | M40: =IF('v přípravě a připraveno'!B38=data!$B$2,"Rekonstrukce",IF('v přípravě a připraveno'!B38=data!$B$3,"Propustek","-")) -> Rekonstrukce | AC40: =IF('náměty na projekční přípravu'!B38=data!$S$2,"Souvislá údržba",IF('náměty na projekční přípravu'!B38=data!$S$3,"Most","-")) -> - | AD40: =IF('náměty na projekční přípravu'!B38=data!$S$2,"Rekonstrukce",IF('náměty na projekční přípravu'!B38=data!$S$3,"Propustek","-")) -> -
L41: =IF('v přípravě a připraveno'!B39=data!$B$2,"Souvislá údržba",IF('v přípravě a připraveno'!B39=data!$B$3,"Most","-")) -> Souvislá údržba | M41: =IF('v přípravě a připraveno'!B39=data!$B$2,"Rekonstrukce",IF('v přípravě a připraveno'!B39=data!$B$3,"Propustek","-")) -> Rekonstrukce | AC41: =IF('náměty na projekční přípravu'!B39=data!$S$2,"Souvislá údržba",IF('náměty na projekční přípravu'!B39=data!$S$3,"Most","-")) -> Souvislá údržba | AD41: =IF('náměty na projekční přípravu'!B39=data!$S$2,"Rekonstrukce",IF('náměty na projekční přípravu'!B39=data!$S$3,"Propustek","-")) -> Rekonstrukce
L42: =IF('v přípravě a připraveno'!B40=data!$B$2,"Souvislá údržba",IF('v přípravě a připraveno'!B40=data!$B$3,"Most","-")) -> - | M42: =IF('v přípravě a připraveno'!B40=data!$B$2,"Rekonstrukce",IF('v přípravě a připraveno'!B40=data!$B$3,"Propustek","-")) -> - | AC42: =IF('náměty na projekční přípravu'!B40=data!$S$2,"Souvislá údržba",IF('náměty na projekční přípravu'!B40=data!$S$3,"Most","-")) -> - | AD42: =IF('náměty na projekční přípravu'!B40=data!$S$2,"Rekonstrukce",IF('náměty na projekční přípravu'!B40=data!$S$3,"Propustek","-")) -> -
L43: =IF('v přípravě a připraveno'!B41=data!$B$2,"Souvislá údržba",IF('v přípravě a připraveno'!B41=data!$B$3,"Most","-")) -> - | M43: =IF('v přípravě a připraveno'!B41=data!$B$2,"Rekonstrukce",IF('v přípravě a připraveno'!B41=data!$B$3,"Propustek","-")) -> - | AC43: =IF('náměty na projekční přípravu'!B41=data!$S$2,"Souvislá údržba",IF('náměty na projekční přípravu'!B41=data!$S$3,"Most","-")) -> - | AD43: =IF('náměty na projekční přípravu'!B41=data!$S$2,"Rekonstrukce",IF('náměty na projekční přípravu'!B41=data!$S$3,"Propustek","-")) -> -
L44: =IF('v přípravě a připraveno'!B42=data!$B$2,"Souvislá údržba",IF('v přípravě a připraveno'!B42=data!$B$3,"Most","-")) -> - | M44: =IF('v přípravě a připraveno'!B42=data!$B$2,"Rekonstrukce",IF('v přípravě a připraveno'!B42=data!$B$3,"Propustek","-")) -> - | AC44: =IF('náměty na projekční přípravu'!B42=data!$S$2,"Souvislá údržba",IF('náměty na projekční přípravu'!B42=data!$S$3,"Most","-")) -> Souvislá údržba | AD44: =IF('náměty na projekční přípravu'!B42=data!$S$2,"Rekonstrukce",IF('náměty na projekční přípravu'!B42=data!$S$3,"Propustek","-")) -> Rekonstrukce
L45: =IF('v přípravě a připraveno'!B43=data!$B$2,"Souvislá údržba",IF('v přípravě a připraveno'!B43=data!$B$3,"Most","-")) -> - | M45: =IF('v přípravě a připraveno'!B43=data!$B$2,"Rekonstrukce",IF('v přípravě a připraveno'!B43=data!$B$3,"Propustek","-")) -> - | AC45: =IF('náměty na projekční přípravu'!B43=data!$S$2,"Souvislá údržba",IF('náměty na projekční přípravu'!B43=data!$S$3,"Most","-")) -> Souvislá údržba | AD45: =IF('náměty na projekční přípravu'!B43=data!$S$2,"Rekonstrukce",IF('náměty na projekční přípravu'!B43=data!$S$3,"Propustek","-")) -> Rekonstrukce
L46: =IF('v přípravě a připraveno'!B44=data!$B$2,"Souvislá údržba",IF('v přípravě a připraveno'!B44=data!$B$3,"Most","-")) -> Most | M46: =IF('v přípravě a připraveno'!B44=data!$B$2,"Rekonstrukce",IF('v přípravě a připraveno'!B44=data!$B$3,"Propustek","-")) -> Propustek | AC46: =IF('náměty na projekční přípravu'!B44=data!$S$2,"Souvislá údržba",IF('náměty na projekční přípravu'!B44=data!$S$3,"Most","-")) -> Souvislá údržba | AD46: =IF('náměty na projekční přípravu'!B44=data!$S$2,"Rekonstrukce",IF('náměty na projekční přípravu'!B44=data!$S$3,"Propustek","-")) -> Rekonstrukce
L47: =IF('v přípravě a připraveno'!B45=data!$B$2,"Souvislá údržba",IF('v přípravě a připraveno'!B45=data!$B$3,"Most","-")) -> Souvislá údržba | M47: =IF('v přípravě a připraveno'!B45=data!$B$2,"Rekonstrukce",IF('v přípravě a připraveno'!B45=data!$B$3,"Propustek","-")) -> Rekonstrukce | AC47: =IF('náměty na projekční přípravu'!B45=data!$S$2,"Souvislá údržba",IF('náměty na projekční přípravu'!B45=data!$S$3,"Most","-")) -> Souvislá údržba | AD47: =IF('náměty na projekční přípravu'!B45=data!$S$2,"Rekonstrukce",IF('náměty na projekční přípravu'!B45=data!$S$3,"Propustek","-")) -> Rekonstrukce
L48: =IF('v přípravě a připraveno'!B46=data!$B$2,"Souvislá údržba",IF('v přípravě a připraveno'!B46=data!$B$3,"Most","-")) -> Most | M48: =IF('v přípravě a připraveno'!B46=data!$B$2,"Rekonstrukce",IF('v přípravě a připraveno'!B46=data!$B$3,"Propustek","-")) -> Propustek | AC48: =IF('náměty na projekční přípravu'!B46=data!$S$2,"Souvislá údržba",IF('náměty na projekční přípravu'!B46=data!$S$3,"Most","-")) -> Souvislá údržba | AD48: =IF('náměty na projekční přípravu'!B46=data!$S$2,"Rekonstrukce",IF('náměty na projekční přípravu'!B46=data!$S$3,"Propustek","-")) -> Rekonstrukce
L49: =IF('v přípravě a připraveno'!B47=data!$B$2,"Souvislá údržba",IF('v přípravě a připraveno'!B47=data!$B$3,"Most","-")) -> Souvislá údržba | M49: =IF('v přípravě a připraveno'!B47=data!$B$2,"Rekonstrukce",IF('v přípravě a připraveno'!B47=data!$B$3,"Propustek","-")) -> Rekonstrukce | AC49: =IF('náměty na projekční přípravu'!B47=data!$S$2,"Souvislá údržba",IF('náměty na projekční přípravu'!B47=data!$S$3,"Most","-")) -> Souvislá údržba | AD49: =IF('náměty na projekční přípravu'!B47=data!$S$2,"Rekonstrukce",IF('náměty na projekční přípravu'!B47=data!$S$3,"Propustek","-")) -> Rekonstrukce
L50: =IF('v přípravě a připraveno'!B48=data!$B$2,"Souvislá údržba",IF('v přípravě a připraveno'!B48=data!$B$3,"Most","-")) -> Souvislá údržba | M50: =IF('v přípravě a připraveno'!B48=data!$B$2,"Rekonstrukce",IF('v přípravě a připraveno'!B48=data!$B$3,"Propustek","-")) -> Rekonstrukce | AC50: =IF('náměty na projekční přípravu'!B48=data!$S$2,"Souvislá údržba",IF('náměty na projekční přípravu'!B48=data!$S$3,"Most","-")) -> Souvislá údržba | AD50: =IF('náměty na projekční přípravu'!B48=data!$S$2,"Rekonstrukce",IF('náměty na projekční přípravu'!B48=data!$S$3,"Propustek","-")) -> Rekonstrukce
L51: =IF('v přípravě a připraveno'!B49=data!$B$2,"Souvislá údržba",IF('v přípravě a připraveno'!B49=data!$B$3,"Most","-")) -> Souvislá údržba | M51: =IF('v přípravě a připraveno'!B49=data!$B$2,"Rekonstrukce",IF('v přípravě a připraveno'!B49=data!$B$3,"Propustek","-")) -> Rekonstrukce | AC51: =IF('náměty na projekční přípravu'!B49=data!$S$2,"Souvislá údržba",IF('náměty na projekční přípravu'!B49=data!$S$3,"Most","-")) -> Souvislá údržba | AD51: =IF('náměty na projekční přípravu'!B49=data!$S$2,"Rekonstrukce",IF('náměty na projekční přípravu'!B49=data!$S$3,"Propustek","-")) -> Rekonstrukce
L52: =IF('v přípravě a připraveno'!B50=data!$B$2,"Souvislá údržba",IF('v přípravě a připraveno'!B50=data!$B$3,"Most","-")) -> - | M52: =IF('v přípravě a připraveno'!B50=data!$B$2,"Rekonstrukce",IF('v přípravě a připraveno'!B50=data!$B$3,"Propustek","-")) -> - | AC52: =IF('náměty na projekční přípravu'!B50=data!$S$2,"Souvislá údržba",IF('náměty na projekční přípravu'!B50=data!$S$3,"Most","-")) -> - | AD52: =IF('náměty na projekční přípravu'!B50=data!$S$2,"Rekonstrukce",IF('náměty na projekční přípravu'!B50=data!$S$3,"Propustek","-")) -> -
L53: =IF('v přípravě a připraveno'!B51=data!$B$2,"Souvislá údržba",IF('v přípravě a připraveno'!B51=data!$B$3,"Most","-")) -> - | M53: =IF('v přípravě a připraveno'!B51=data!$B$2,"Rekonstrukce",IF('v přípravě a připraveno'!B51=data!$B$3,"Propustek","-")) -> - | AC53: =IF('náměty na projekční přípravu'!B51=data!$S$2,"Souvislá údržba",IF('náměty na projekční přípravu'!B51=data!$S$3,"Most","-")) -> Souvislá údržba | AD53: =IF('náměty na projekční přípravu'!B51=data!$S$2,"Rekonstrukce",IF('náměty na projekční přípravu'!B51=data!$S$3,"Propustek","-")) -> Rekonstrukce
